Workbook

Sheet COA (hidden)
A1: AMERICAN WATER
A2: CHART OF ACCOUNTS (SAP - AWTR)
A3: As of 6/29/14
A4: G/L Acct | B4: Long Text
A5: 10130100 | B5: UPIS - Organization
A6: 10130200 | B6: UPIS - Franchises
A7: 10130320 | B7: UPIS - Land & Land Rights - Source of Supply
A8: 10130330 | B8: UPIS - Land & Land Rights - Pumping
A9: 10130340 | B9: UPIS - Land & Land Rights - Water Treatment
A10: 10130350 | B10: UPIS - Land & Land Rights - Transmission & Distrib
A11: 10130360 | B11: UPIS - Land & Land Rights - Admin & General
A12: 10130410 | B12: UPIS - Struct & Imp - Source of Supply
A13: 10130420 | B13: UPIS - Struct & Imp - Pumping
A14: 10130430 | B14: UPIS - Struct & Imp - Water Treatment
A15: 10130440 | B15: UPIS - Struct & Imp - Transmission & Distribution
A16: 10130450 | B16: UPIS - Struct & Imp - Admin & General
A17: 10130500 | B17: UPIS - Collect & Impounding
A18: 10130600 | B18: UPIS - Lake & River & Other
A19: 10130700 | B19: UPIS - Wells & Springs
A20: 10130800 | B20: UPIS - Infiltration Galleries
A21: 10130900 | B21: UPIS - Supply Mains
A22: 10131000 | B22: UPIS - Power Generation Equipment
A23: 10131020 | B23: UPIS - Boiler Plant Equipment
A24: 10131110 | B24: UPIS - Pumping Equipment - Steam
A25: 10131120 | B25: UPIS - Pumping Equipment - Electric
A26: 10131130 | B26: UPIS - Pumping Equipment - Diesel
A27: 10131140 | B27: UPIS - Pumping Equipment - Hydraulic
A28: 10131150 | B28: UPIS - Pumping Equipment - Other
A29: 10131152 | B29: UPIS - Pumping Equipment - Source of Supply
A30: 10131153 | B30: UPIS - Pumping Equipment - Water Treatment
A31: 10131154 | B31: UPIS - Pumping Equipment - Transmission & Distrib
A32: 10132010 | B32: UPIS - Water Treatment Equipment
A33: 10133000 | B33: UPIS - Distribution Reservoirs & Standpipes
A34: 10133100 | B34: UPIS - Transmission & Distribution Mains
A35: 10133200 | B35: UPIS - Fire Mains
A36: 10133300 | B36: UPIS - Services
A37: 10133410 | B37: UPIS - Meters
A38: 10133420 | B38: UPIS - Meter Installations
A39: 10133500 | B39: UPIS - Hydrants
A40: 10133600 | B40: UPIS - Backflow Prevention
A41: 10133910 | B41: UPIS - Other P/E - Intangible
A42: 10133920 | B42: UPIS - Other P/E - Source of Supply
A43: 10133930 | B43: UPIS - Other P/E - Water Treatment
A44: 10133950 | B44: UPIS - Other P/E - Transmission & Distribution
A45: 10134010 | B45: UPIS - Office Furniture & Equipment
A46: 10134100 | B46: UPIS - Transportation Equipment
A47: 10134200 | B47: UPIS - Stores Equipment
A48: 10134300 | B48: UPIS - Tools-Shop-Garage Equipment
A49: 10134400 | B49: UPIS - Laboratory Equipment
A50: 10134500 | B50: UPIS - Power Operated Equipment
A51: 10134600 | B51: UPIS - Communication Equipment
A52: 10134700 | B52: UPIS - Misc Equipment
A53: 10134800 | B53: UPIS - Other Tangible Property
A54: 10135100 | B54: UPIS - WW Organization
A55: 10135200 | B55: UPIS - WW Franchises
A56: 10135220 | B56: UPIS - WW Other Intangible
A57: 10135320 | B57: UPIS - WW Land & Land Rights - Coll
A58: 10135330 | B58: UPIS - WW Land & Land Rights - SPP
A59: 10135340 | B59: UPIS - WW Land & Land Rights - TDP
A60: 10135350 | B60: UPIS - WW Land & Land Rights - General
A61: 10135420 | B61: UPIS - WW Struct & Imp - Coll
A62: 10135430 | B62: UPIS - WW Struct & Imp - SPP
A63: 10135440 | B63: UPIS - WW Struct & Imp - TDP
A64: 10135450 | B64: UPIS - WW Struct & Imp - General
A65: 10135520 | B65: UPIS - WW Pwr Gen Equipment - Col
A66: 10135530 | B66: UPIS - WW Pwr Gen Equipment - SPP
A67: 10135540 | B67: UPIS - WW Pwr Gen Equipment - TDP
A68: 10135550 | B68: UPIS - WW Pwr Gen Equipment - RWT
A69: 10135560 | B69: UPIS - WW Pwr Gen Equipment - RWD
A70: 10136000 | B70: UPIS - WW Collection Sewers
A71: 10136110 | B71: UPIS - WW Collecting Mains
A72: 10136200 | B72: UPIS - WW Special Coll Struct
A73: 10136300 | B73: UPIS - WW Services Sewer
A74: 10136400 | B74: UPIS - WW Flow Measuring Device
A75: 10136500 | B75: UPIS - WW Flow Measuring Install
A76: 10137000 | B76: UPIS - WW Receiving Wells
A77: 10137110 | B77: UPIS - WW Pump Equipment - Elect
A78: 10137120 | B78: UPIS - WW Pump Equipment - Oth Pwr
A79: 10138000 | B79: UPIS - WW - Transmission & D244Distribution Equip
A80: 10138100 | B80: UPIS - WW Plant Sewers
A81: 10138200 | B81: UPIS - WW Outfall Sewer Line
A82: 10138910 | B82: UPIS - WW Oth Plant & Misc Equipment
A83: 10138920 | B83: UPIS - WW Oth Plant & Misc Equipment - Coll
A84: 10138930 | B84: UPIS - WW Oth Plant & Misc Equipment - SPP
A85: 10138940 | B85: UPIS - WW Oth Plant & Misc Equipment - TDP
A86: 10139000 | B86: UPIS - WW Office Furniture
A87: 10139100 | B87: UPIS - WW Transportation Equipment
A88: 10139200 | B88: UPIS - WW Stores Equipment
A89: 10139300 | B89: UPIS - WW Tool Shop & Garage
A90: 10139400 | B90: UPIS - WW Laboratory Equipment
A91: 10139500 | B91: UPIS - WW Power Operated Equipment
A92: 10139600 | B92: UPIS - WW Communication Equipment
A93: 10139700 | B93: UPIS - WW Misc Equipment
A94: 10139800 | B94: UPIS - WW Other Tangible Pl
A95: 10190000 | B95: Reg Asset-AFUDC-Debt
A96: 10230100 | B96: Leased - Organization
A97: 10230320 | B97: Leased - Land & Land Rights - Source of Supply
A98: 10230330 | B98: Leased - Land & Land Rights - Pumping
A99: 10230340 | B99: Leased - Land & Land Rights - Water Treatment
A100: 10230350 | B100: Leased - Land & Land Rights - Transmission & Distr
A101: 10230360 | B101: Leased - Land & Land Rights - Admin & General
A102: 10230410 | B102: Leased - Struct & Imp - Source of Supply
A103: 10230420 | B103: Leased - Struct & Imp - Pumping
A104: 10230430 | B104: Leased - Struct & Imp - Water Treatment
A105: 10230440 | B105: Leased - Struct & Imp - Transmission & Distrib
A106: 10230450 | B106: Leased - Struct & Imp - Admin & General
A107: 10230500 | B107: Leased - Collect & Impounding
A108: 10230600 | B108: Leased - Lake - River & Other
A109: 10230900 | B109: Leased - Supply Mains
A110: 10231000 | B110: Leased - Power Generation Equipment
A111: 10231120 | B111: Leased - Pump Equipment Electric
A112: 10232010 | B112: Leased - WT Equipment
A113: 10233000 | B113: Leased - Distribution Reservoirs & Standpipes
A114: 10233100 | B114: Leased - TD Mains
A115: 10233300 | B115: Leased - Services
A116: 10233410 | B116: Leased - Meters
A117: 10233420 | B117: Leased - Meter Installations
A118: 10233500 | B118: Leased - Hydrants
A119: 10233950 | B119: Leased - Other P/E - Transmission & Distribution
A120: 10234010 | B120: Leased - Office Furniture & Equipment
A121: 10234100 | B121: Leased - Transportation Equipment
A122: 10234200 | B122: Leased - Stores Equipment
A123: 10234300 | B123: Leased - Tools-Shop-Garage Equipment
A124: 10234400 | B124: Leased - Laboratory Equipment
A125: 10234500 | B125: Leased - Power Operated Equipment
A126: 10234600 | B126: Leased - Comm Equipment Not Class
A127: 10234700 | B127: Leased - Misc Equipment
A128: 10300000 | B128: Property Held Future
A129: 10400000 | B129: Utility Plant Purchased or Sold
A130: 10630100 | B130: CCNC Organization
A131: 10630200 | B131: CCNC Franchises
A132: 10630320 | B132: CCNC Land & Land Rights - Source of Supply
A133: 10630330 | B133: CCNC Land & Land Rights - Pumping
A134: 10630340 | B134: CCNC Land & Land Rights - Water Treatment
A135: 10630350 | B135: CCNC Land & Land Rights - Transmssn & Distr
A136: 10630360 | B136: CCNC Land & Land Rights - Adm & Gen
A137: 10630410 | B137: CCNC Struct & Imp - Source of Supply
A138: 10630420 | B138: CCNC Struct & Imp - Pumping
A139: 10630430 | B139: CCNC Struct & Imp - Water Treatment
A140: 10630440 | B140: CCNC Struct & Imp - Transmission & Distribution
A141: 10630450 | B141: CCNC Struct & Imp - Admin & General
A142: 10630500 | B142: CCNC Collect & Impounding
A143: 10630600 | B143: CCNC Lake - River & Other
A144: 10630700 | B144: CCNC Wells & Springs
A145: 10630800 | B145: CCNC Infiltration Galleries
A146: 10630900 | B146: CCNC Supply Mains
A147: 10631000 | B147: CCNC Power Generation Equipment
A148: 10631020 | B148: CCNC Boiler Plant Equipment
A149: 10631110 | B149: CCNC Pumping Equipment - Steam
A150: 10631120 | B150: CCNC Pumping Equipment - Electric
A151: 10631130 | B151: CCNC Pumping Equipment - Diesel
A152: 10631140 | B152: CCNC Pumping Equipment - Hydraulic
A153: 10631150 | B153: CCNC Pumping Equipment - Other
A154: 10631152 | B154: CCNC Pumping Equipment - Source of Supply
A155: 10631153 | B155: CCNC Pumping Equipment - Water Treatment
A156: 10631154 | B156: CCNC Pumping Equipment - Transmssn & Distr
A157: 10632010 | B157: CCNC - Water Treatment Equipment - Non-Media
A158: 10633000 | B158: CCNC - Distribution Reservoirs & Standpipes
A159: 10633100 | B159: CCNC - Transmssn & Distr Mains Not Classified
A160: 10633200 | B160: CCNC Fire Mains
A161: 10633300 | B161: CCNC Services
A162: 10633410 | B162: CCNC Meters
A163: 10633420 | B163: CCNC Meter Installations
A164: 10633500 | B164: CCNC Hydrants
A165: 10633600 | B165: CCNC Backflow Prevention
A166: 10633910 | B166: CCNC Other P/E Intangible
A167: 10633920 | B167: CCNC Other P/E - Source of Supply
A168: 10633930 | B168: CCNC Other P/E - Water Treatment
A169: 10633950 | B169: CCNC Other P/E - Transmission & Distribution
A170: 10634010 | B170: CCNC Office Furniture & Equipment
A171: 10634100 | B171: CCNC Transportation Equipment Not Classified
A172: 10634200 | B172: CCNC Stores Equipment
A173: 10634300 | B173: CCNC Tools-Shop-Garage Equipment
A174: 10634400 | B174: CCNC Laboratory Equipment
A175: 10634500 | B175: CCNC Power Operated Equipment
A176: 10634600 | B176: CCNC Communication Equipment
A177: 10634700 | B177: CCNC Misc Equipment
A178: 10634800 | B178: CCNC Other Tangible Property
A179: 10635320 | B179: CCNC WW Land & Land Rights - Coll
A180: 10635330 | B180: CCNC WW Land & Land Rights - SPP
A181: 10635340 | B181: CCNC WW Land & Land Rights - TDP
A182: 10635350 | B182: CCNC WW Land & Land Rights - Gen
A183: 10635420 | B183: CCNC WW Struct & Imp - Coll
A184: 10635430 | B184: CCNC WW Struct & Imp - SPP
A185: 10635440 | B185: CCNC WW Struct & Imp - TDP
A186: 10635450 | B186: CCNC WW Struct & Imp - Gen
A187: 10635520 | B187: CCNC WW Power Gen Equipment - Col
A188: 10635530 | B188: CCNC WW Power Gen Equipment - SPP
A189: 10635540 | B189: CCNC WW Power Gen Equipment - TDP
A190: 10635550 | B190: CCNC WW Power Gen Equipment - RWT
A191: 10635560 | B191: CCNC WW Power Gen Equipment - RWD
A192: 10636000 | B192: CCNC WW Collection Sewers
A193: 10636110 | B193: CCNC WW Collecting Mains
A194: 10636200 | B194: CCNC WW Special Coll Stru
A195: 10636300 | B195: CCNC WW Services Sewer
A196: 10636400 | B196: CCNC WW Flow Measuring De
A197: 10636500 | B197: CCNC WW Flow Measuring In
A198: 10637000 | B198: CCNC WW Receiving Wells
A199: 10637110 | B199: CCNC WW Pump Equipment - Elect
A200: 10637120 | B200: CCNC WW Pump Equipment - Oth Pwr
... 1843 more rows

Sheet Additions Pivot (hidden)
A1: Deferred Depr Calc
B2: =+'Total Deferred Depr'!P4 -> 68011000 | C2: =+'Total Deferred Depr'!Q4 -> 68311000 | D2: =+'Total Deferred Depr'!R4 -> 68011000
A3: Work Order Number | B3: Sum of Life reserve | C3: Sum of COR Reserve | D3: Sum of Salvage Reserve | E3: Profit Center | F3: Cost Center | G3: Profit Center | H3: Cost Center
A4: R10-25Q1.21-P-0011 | B4: 591.764875 | C4: 147.9412187 | D4: 0 | E4: =MID(A4,2,5) -> 10-25 | F4: =E4&"05" -> 10-2505 | G4: =SUBSTITUTE(E4,"-","") -> 1025 | H4: =SUBSTITUTE(F4,"-","") -> 102505
A5: R10-90Q1.20-P-0028 | B5: 596.793 | C5: 149.19825 | D5: 0 | E5: =MID(A5,2,5) -> 10-90 | F5: =E5&"05" -> 10-9005 | G5: =SUBSTITUTE(E5,"-","") -> 1090 | H5: =SUBSTITUTE(F5,"-","") -> 109005
A6: R10-90Q1.21-P-0023 | B6: 243.2590712 | C6: 0 | D6: -12.316915 | E6: 10-90 | F6: 10-9005 | G6: 1090 | H6: 109005
A7: R10-01L6.20-P-0012 | B7: 1856.136438 | C7: 0 | D7: 0 | E7: 10-01 | F7: 10-0105 | G7: 1001 | H7: 100105
A8: R10-01L6.20-P-0017 | B8: 891.7241392 | C8: 0 | D8: 0 | E8: 10-01 | F8: 10-0105 | G8: 1001 | H8: 100105
A9: R10-01Q1.21-P-0007 | B9: 343.0315633 | C9: 89.002784 | D9: -3.708449333 | E9: 10-01 | F9: 10-0105 | G9: 1001 | H9: 100105
A10: R10-45Q1.20-P-0004 | B10: 637.267176 | C10: 85.980492 | D10: -20.230704 | E10: 10-45 | F10: 10-4505 | G10: 1045 | H10: 104505
A11: R10-45Q1.21-P-0011 | B11: 368.930583 | C11: 91.517664 | D11: 0 | E11: 10-45 | F11: 10-4505 | G11: 1045 | H11: 104505
A12: R10-47Q1.20-P-0008 | B12: 111.3258977 | C12: 90.66748367 | D12: -6.886138 | E12: 10-47 | F12: 10-4705 | G12: 1047 | H12: 104705
A13: R10-47Q1.20-P-0011 | B13: 552.096181 | C13: 70.78156167 | D13: -16.17864267 | E13: 10-47 | F13: 10-4705 | G13: 1047 | H13: 104705
A14: R10-47Q1.20-P-0016 | B14: 484.080324 | C14: 62.06158 | D14: -14.185504 | E14: 10-47 | F14: 10-4705 | G14: 1047 | H14: 104705
A15: R10-47Q1.20-P-0017 | B15: 525.5445877 | C15: 67.37751125 | D15: -15.400574 | E15: 10-47 | F15: 10-4705 | G15: 1047 | H15: 104705
A16: R10-47Q1.21-P-0009 | B16: 271.830832 | C16: 34.85010667 | D16: -7.965738667 | E16: 10-47 | F16: 10-4705 | G16: 1047 | H16: 104705
A17: R10-47Q1.21-P-0011 | B17: 232.7474695 | C17: 29.83941917 | D17: -6.820438667 | E17: 10-47 | F17: 10-4705 | G17: 1047 | H17: 104705
A18: R10-47Q1.21-P-0014 | B18: 1174.016638 | C18: 185.1146567 | D18: -9.742876667 | E18: 10-47 | F18: 10-4705 | G18: 1047 | H18: 104705
A19: R10-47Q1.21-P-0018 | B19: 21.715485 | C19: 5.634288 | D19: -0.234762 | E19: 10-47 | F19: 10-4705 | G19: 1047 | H19: 104705
A20: R10-47Q1.21-P-0019 | B20: 105.528116 | C20: 16.639288 | D20: -0.875752 | E20: 10-47 | F20: 10-4705 | G20: 1047 | H20: 104705
A21: R10-47Q1.21-P-0020 | B21: 395.6752058 | C21: 62.38862167 | D21: -3.283611667 | E21: 10-47 | F21: 10-4705 | G21: 1047 | H21: 104705
A22: R10-47Q1.22-P-0002 | B22: 509.054455 | C22: 65.26339167 | D22: -14.91734667 | E22: 10-47 | F22: 10-4705 | G22: 1047 | H22: 104705
A23: R10-47Q1.22-P-0003 | B23: 80.04815 | C23: 12.6217 | D23: -0.6643 | E23: 10-47 | F23: 10-4705 | G23: 1047 | H23: 104705
A24: R10-47Q1.22-P-0007 | B24: 24.89029725 | C24: 3.19106375 | D24: -0.729386 | E24: 10-47 | F24: 10-4705 | G24: 1047 | H24: 104705
A25: R10-55Q1.20-P-0007 | B25: 632.007894 | C25: 156.777152 | D25: 0 | E25: 10-55 | F25: 10-5505 | G25: 1055 | H25: 105505
A26: R10-55Q1.20-P-0010 | B26: 238.842898 | C26: 59.24785067 | D26: 0 | E26: 10-55 | F26: 10-5505 | G26: 1055 | H26: 105505
A27: R10-55Q1.20-P-0011 | B27: 331.01572 | C27: 82.11242667 | D27: 0 | E27: 10-55 | F27: 10-5505 | G27: 1055 | H27: 105505
A28: R10-55Q1.20-P-0012 | B28: 538.529936 | C28: 133.5888213 | D28: 0 | E28: 10-55 | F28: 10-5505 | G28: 1055 | H28: 105505
A29: R10-55Q1.20-P-0022 | B29: 618.50145 | C29: 154.6253625 | D29: 0 | E29: 10-55 | F29: 10-5505 | G29: 1055 | H29: 105505
A30: R10-55Q1.21-P-0007 | B30: 199.312912 | C30: 49.44196267 | D30: 0 | E30: 10-55 | F30: 10-5505 | G30: 1055 | H30: 105505
A31: R10-55Q1.21-P-0016 | B31: 181.9155635 | C31: 45.12634133 | D31: 0 | E31: 10-55 | F31: 10-5505 | G31: 1055 | H31: 105505
A32: R10-55Q1.21-P-0019 | B32: 97.327834 | C32: 24.14333867 | D32: 0 | E32: 10-55 | F32: 10-5505 | G32: 1055 | H32: 105505
A33: R10-55Q1.21-P-0024 | B33: 146.74275 | C33: 36.6856875 | D33: 0 | E33: 10-55 | F33: 10-5505 | G33: 1055 | H33: 105505
A34: R10-55Q1.21-P-0026 | B34: 208.031205 | C34: 51.60464 | D34: 0 | E34: 10-55 | F34: 10-5505 | G34: 1055 | H34: 105505
A35: R10-55Q1.22-P-0003 | B35: 76.280624 | C35: 18.92232533 | D35: 0 | E35: 10-55 | F35: 10-5505 | G35: 1055 | H35: 105505
A36: R10-55Q1.22-P-0005 | B36: 151.57629 | C36: 37.60032 | D36: 0 | E36: 10-55 | F36: 10-5505 | G36: 1055 | H36: 105505
A37: R10-60Q1.20-P-0037 | B37: 420.1872083 | C37: 0 | D37: 0 | E37: 10-60 | F37: 10-6005 | G37: 1060 | H37: 106005
A38: R10-60Q1.20-P-0049 | B38: 145.028409 | C38: 18.916749 | D38: -4.203722 | E38: 10-60 | F38: 10-6005 | G38: 1060 | H38: 106005
A39: R10-65Q1.20-P-0009 | B39: 605.1265 | C39: 0 | D39: 0 | E39: 10-65 | F39: 10-6505 | G39: 1065 | H39: 106505
A40: R10-65Q1.20-P-0011 | B40: 1129.662534 | C40: 144.82853 | D40: -33.103664 | E40: 10-65 | F40: 10-6505 | G40: 1065 | H40: 106505
A41: R10-65Q1.20-P-0012 | B41: 530.6272335 | C41: 68.0291325 | D41: -15.549516 | E41: 10-65 | F41: 10-6505 | G41: 1065 | H41: 106505
A42: R10-65Q1.20-P-0017 | B42: 337.112685 | C42: 43.219575 | D42: -9.87876 | E42: 10-65 | F42: 10-6505 | G42: 1065 | H42: 106505
A43: R10-70Q1.20-P-0016 | B43: 816.170901 | C43: 104.637295 | D43: -23.917096 | E43: 10-70 | F43: 10-7005 | G43: 1070 | H43: 107005
A44: R10-70Q1.20-P-0019 | B44: 1275.636931 | C44: 163.5431962 | D44: -37.381302 | E44: 10-70 | F44: 10-7005 | G44: 1070 | H44: 107005
A45: R10-70Q1.20-P-0023 | B45: 561.8941965 | C45: 72.0377175 | D45: -16.465764 | E45: 10-70 | F45: 10-7005 | G45: 1070 | H45: 107005
A46: R10-70Q1.21-P-0030 | B46: 563.645082 | C46: 72.26219 | D46: -16.517072 | E46: 10-70 | F46: 10-7005 | G46: 1070 | H46: 107005
A47: R10-72Q1.22-P-0003 | B47: 46.41903125 | C47: 0 | D47: 0 | E47: 10-72 | F47: 10-7205 | G47: 1072 | H47: 107205
A48: R10-75Q1.19-P-0016 | B48: 38699.54232 | C48: 0 | D48: 0 | E48: 10-75 | F48: 10-7505 | G48: 1075 | H48: 107505
A49: R10-75Q1.20-P-0009 | B49: 9320.409654 | C49: 0 | D49: 0 | E49: 10-75 | F49: 10-7505 | G49: 1075 | H49: 107505
A50: R10-75Q1.20-P-0010 | B50: 5200.93428 | C50: 1290.15424 | D50: 0 | E50: 10-75 | F50: 10-7505 | G50: 1075 | H50: 107505
A51: R10-80Q1.20-P-0002 | B51: 1165.231657 | C51: 302.330376 | D51: -12.597099 | E51: 10-80 | F51: 10-8005 | G51: 1080 | H51: 108005
A52: R10-80Q1.20-P-0003 | B52: 1336.58343 | C52: 171.35685 | D52: -39.16728 | E52: 10-80 | F52: 10-8005 | G52: 1080 | H52: 108005
A53: R10-80Q1.20-P-0008 | B53: 179.1140117 | C53: 28.24204333 | D53: -1.486423333 | E53: 10-80 | F53: 10-8005 | G53: 1080 | H53: 108005
A54: R10-80Q1.20-P-0010 | B54: 345.7187175 | C54: 54.511665 | D54: -2.869035 | E54: 10-80 | F54: 10-8005 | G54: 1080 | H54: 108005
A55: R10-80Q1.20-P-0011 | B55: 656.3115645 | C55: 103.484811 | D55: -5.446569 | E55: 10-80 | F55: 10-8005 | G55: 1080 | H55: 108005
A56: R10-80Q1.21-P-0002 | B56: 718.0903113 | C56: 186.315324 | D56: -7.7631385 | E56: 10-80 | F56: 10-8005 | G56: 1080 | H56: 108005
A57: R10-80Q1.21-P-0005 | B57: 206.6555318 | C57: 32.58468967 | D57: -1.714983667 | E57: 10-80 | F57: 10-8005 | G57: 1080 | H57: 108005
A58: R10-80Q1.21-P-0006 | B58: 138.4769532 | C58: 21.83454033 | D58: -1.149186333 | E58: 10-80 | F58: 10-8005 | G58: 1080 | H58: 108005
A59: R10-80Q1.22-P-0006 | B59: 28.28933667 | C59: 7.339936 | D59: -0.3058306667 | E59: 10-80 | F59: 10-8005 | G59: 1080 | H59: 108005
A60: R10-85Q1.20-P-0002 | B60: 671.1772333 | C60: 0 | D60: 0 | E60: 10-85 | F60: 10-8505 | G60: 1085 | H60: 108505
A61: R10-85Q1.20-P-0009 | B61: 499.1744225 | C61: 123.8262133 | D61: 0 | E61: 10-85 | F61: 10-8505 | G61: 1085 | H61: 108505
A62: R10-85Q1.20-P-0010 | B62: 341.9340435 | C62: 84.820848 | D62: 0 | E62: 10-85 | F62: 10-8505 | G62: 1085 | H62: 108505
A63: R10-85Q1.21-P-0005 | B63: 614.2829193 | C63: 78.75422042 | D63: -18.00096467 | E63: 10-85 | F63: 10-8505 | G63: 1085 | H63: 108505
A64: R10-85Q1.21-P-0006 | B64: 118.3937707 | C64: 15.44266575 | D64: -3.4317035 | E64: 10-85 | F64: 10-8505 | G64: 1085 | H64: 108505
A65: R10-85Q1.21-P-0009 | B65: 128.4424405 | C65: 31.86169067 | D65: 0 | E65: 10-85 | F65: 10-8505 | G65: 1085 | H65: 108505
A66: R10-85Q1.21-P-0010 | B66: 270.2738903 | C66: 34.65049875 | D66: -7.920114 | E66: 10-85 | F66: 10-8505 | G66: 1085 | H66: 108505
A67: R10-85Q1.21-P-0013 | B67: 124.0179975 | C67: 19.554705 | D67: -1.029195 | E67: 10-85 | F67: 10-8505 | G67: 1085 | H67: 108505
A68: R10-85Q1.22-P-0005 | B68: 189.8804483 | C68: 0 | D68: 0 | E68: 10-85 | F68: 10-8505 | G68: 1085 | H68: 108505
A69: R10-90Q1.19-P-0067 | B69: 206.5503925 | C69: 53.799172 | D69: -1.921399 | E69: =MID(A69,2,5) -> 10-90 | F69: =E69&"05" -> 10-9005 | G69: =SUBSTITUTE(E69,"-","") -> 1090 | H69: =SUBSTITUTE(F69,"-","") -> 109005
A70: R10-90Q1.20-P-0007 | B70: 214.0095375 | C70: 54.0428125 | D70: 0 | E70: 10-90 | F70: 10-9005 | G70: 1090 | H70: 109005
A71: R10-90Q1.20-P-0011 | B71: 3964.41136 | C71: 508.2578667 | D71: -116.1732267 | E71: 10-90 | F71: 10-9005 | G71: 1090 | H71: 109005
A72: R10-90Q1.20-P-0020 | B72: 11031.43439 | C72: 0 | D72: -558.55364 | E72: 10-90 | F72: 10-9005 | G72: 1090 | H72: 109005
A73: R10-90Q1.20-P-0023 | B73: 830.2349055 | C73: 106.4403725 | D73: -24.329228 | E73: 10-90 | F73: 10-9005 | G73: 1090 | H73: 109005
A74: R10-90Q1.20-P-0024 | B74: 482.1519555 | C74: 0 | D74: 0 | E74: 10-90 | F74: 10-9005 | G74: 1090 | H74: 109005
A75: R10-90Q1.20-P-0029 | B75: 2144.864836 | C75: 274.9826713 | D75: -62.853182 | E75: 10-90 | F75: 10-9005 | G75: 1090 | H75: 109005
A76: R10-90Q1.20-P-0031 | B76: 313.2992135 | C76: 40.16656583 | D76: -9.180929333 | E76: 10-90 | F76: 10-9005 | G76: 1090 | H76: 109005
A77: R10-90Q1.20-P-0032 | B77: 1237.152849 | C77: 158.6093396 | D77: -36.25356333 | E77: 10-90 | F77: 10-9005 | G77: 1090 | H77: 109005
A78: R10-90Q1.20-P-0034 | B78: 1521.741459 | C78: 205.3143238 | D78: -48.30925267 | E78: 10-90 | F78: 10-9005 | G78: 1090 | H78: 109005
A79: R10-90Q1.20-P-0036 | B79: 617.9195295 | C79: 79.2204525 | D79: -18.107532 | E79: 10-90 | F79: 10-9005 | G79: 1090 | H79: 109005
A80: R10-90Q1.20-P-0038 | B80: 951.25116 | C80: 235.96928 | D80: 0 | E80: 10-90 | F80: 10-9005 | G80: 1090 | H80: 109005
A81: R10-90Q1.20-P-0042 | B81: 173.0375955 | C81: 43.6963625 | D81: 0 | E81: 10-90 | F81: 10-9005 | G81: 1090 | H81: 109005
A82: R10-90Q1.20-P-0043 | B82: 1552.450286 | C82: 199.0320879 | D82: -45.49304867 | E82: 10-90 | F82: 10-9005 | G82: 1090 | H82: 109005
A83: R10-90Q1.20-P-0049 | B83: 134.184099 | C83: 18.10420383 | D83: -4.259812667 | E83: 10-90 | F83: 10-9005 | G83: 1090 | H83: 109005
A84: R10-90Q1.20-P-0054 | B84: 211.5601215 | C84: 27.1230925 | D84: -6.199564 | E84: 10-90 | F84: 10-9005 | G84: 1090 | H84: 109005
A85: R10-90Q1.20-P-0059 | B85: 1311.165504 | C85: 129.129936 | D85: 0 | E85: 10-90 | F85: 10-9005 | G85: 1090 | H85: 109005
A86: R10-90Q1.20-P-0060 | B86: 158.075127 | C86: 21.3275965 | D86: -5.018258 | E86: 10-90 | F86: 10-9005 | G86: 1090 | H86: 109005
A87: R10-90Q1.21-P-0002 | B87: 1870.792458 | C87: 0 | D87: 0 | E87: 10-90 | F87: 10-9005 | G87: 1090 | H87: 109005
A88: R10-90Q1.21-P-0005 | B88: 317.603286 | C88: 42.851237 | D88: -10.082644 | E88: 10-90 | F88: 10-9005 | G88: 1090 | H88: 109005
A89: R10-90Q1.21-P-0007 | B89: 524.4953175 | C89: 70.76524125 | D89: -16.650645 | E89: 10-90 | F89: 10-9005 | G89: 1090 | H89: 109005
A90: R10-90Q1.21-P-0008 | B90: 531.3158825 | C90: 0 | D90: -26.90207 | E90: 10-90 | F90: 10-9005 | G90: 1090 | H90: 109005
A91: R10-90Q1.21-P-0009 | B91: 325.651746 | C91: 0 | D91: -16.488696 | E91: 10-90 | F91: 10-9005 | G91: 1090 | H91: 109005
A92: R10-90Q1.21-P-0016 | B92: 408.4435485 | C92: 0 | D92: -20.680686 | E92: 10-90 | F92: 10-9005 | G92: 1090 | H92: 109005
A93: R10-90Q1.21-P-0028 | B93: 156.0513267 | C93: 0 | D93: -7.901333 | E93: 10-90 | F93: 10-9005 | G93: 1090 | H93: 109005
A94: R10-90Q1.21-P-0029 | B94: 199.68375 | C94: 0 | D94: 0 | E94: 10-90 | F94: 10-9005 | G94: 1090 | H94: 109005
A95: R10-90Q1.21-P-0031 | B95: 263.869914 | C95: 0 | D95: 0 | E95: 10-90 | F95: 10-9005 | G95: 1090 | H95: 109005
A96: R10-90Q1.21-P-0033 | B96: 125.80197 | C96: 0 | D96: -6.36972 | E96: 10-90 | F96: 10-9005 | G96: 1090 | H96: 109005
A97: R10-90Q1.21-P-0035 | B97: 91.110305 | C97: 0 | D97: -4.61318 | E97: 10-90 | F97: 10-9005 | G97: 1090 | H97: 109005
A98: R10-90Q1.21-P-0045 | B98: 182.0470075 | C98: 0 | D98: -9.21757 | E98: 10-90 | F98: 10-9005 | G98: 1090 | H98: 109005
A99: R10-90Q1.21-P-0048 | B99: -31.96158392 | C99: 0 | D99: 0 | E99: 10-90 | F99: 10-9005 | G99: 1090 | H99: 109005
A100: R10-90Q1.21-P-0054 | B100: -88.5416175 | C100: -11.94609125 | D100: 2.810845 | E100: 10-90 | F100: 10-9005 | G100: 1090 | H100: 109005
A101: Grand Total | B101: 112753.8488 | C101: 7651.373535 | D101: -1446.787893
B102: =B101 -> 112753.8488 | C102: =C101 -> 7651.373535 | D102: =D101 -> -1446.787893

Sheet Cover Page
D4: Cause No. 45609 SEI-1 S1
D5: Indiana American Water Company
D6: Workpaper GDS-2R

Sheet Total Deferred Depr
A1: CR query for UN,UP doc types so have each month of CWIP transfers for depr base calc | N1: 2022-10-01 | O1: redo this column monthly
O2: latest month errors; kept prior month convention
F4: when added to CPR | N4: =+F4 -> when added to CPR | P4: 68011000 | Q4: 68311000 | R4: 68011000
A5: Company | B5: Work Order Number | C5: Account | D5: Document Type | E5: Posting WBS | F5: Month Number | G5: Amount | H5: Depr Group | I5: Life Rate | J5: COR Rate | K5: Slvg Rate?? | L5: yr | M5: month | N5: Depr begins | O5: #months | P5: Life reserve | Q5: COR Reserve | R5: Salvage Reserve
A6: 1010 | B6: R10-01L6.20-P-0012 | C6: 10134600 | D6: UP | E6: R10-01L6.20-P-0012 | F6: 202101 | G6: 15901.79 | H6: =VLOOKUP($B6,'WBS by Depr info'!$A$5:$G$147,2,0) -> 10WA01:346190 | I6: =VLOOKUP($H6,'WBS by Depr info'!$B$4:$G$147,4,0) -> 0.0667 | J6: =VLOOKUP($H6,'WBS by Depr info'!$B$4:$G$147,5,0) -> 0 | K6: =VLOOKUP($H6,'WBS by Depr info'!$B$4:$G$147,6,0) -> 0 | L6: =LEFT(F6,4) -> 2021 | M6: =RIGHT(F6,2) -> 01 | N6: =CONCATENATE(M6,"/",1,"/",L6) -> 01/1/2021 | O6: =((DAYS360($N6,$N$1)/30)) -> 21 | P6: =$G6*($I6/12)*$O6 -> 1856.136438 | Q6: =$G6*($J6/12)*$O6 -> 0 | R6: =$G6*($K6/12)*$O6 -> 0
A7: 1010 | B7: R10-01L6.20-P-0017 | C7: 10134600 | D7: UP | E7: R10-01L6.20-P-0017 | F7: 202101 | G7: 7639.53 | H7: =VLOOKUP($B7,'WBS by Depr info'!$A$5:$G$147,2,0) -> 10WA01:346190 | I7: =VLOOKUP($H7,'WBS by Depr info'!$B$4:$G$147,4,0) -> 0.0667 | J7: =VLOOKUP($H7,'WBS by Depr info'!$B$4:$G$147,5,0) -> 0 | K7: =VLOOKUP($H7,'WBS by Depr info'!$B$4:$G$147,6,0) -> 0 | L7: 2021 | M7: 01 | N7: 01/1/2021 | O7: =((DAYS360($N7,$N$1)/30)) -> 21 | P7: 891.7241392 | Q7: 0 | R7: 0
A8: 1010 | B8: R10-01Q1.21-P-0007 | C8: 10632010 | D8: UN | E8: R10-01Q1.21-P-0007 | F8: 202207 | G8: 74257.92 | H8: =VLOOKUP($B8,'WBS by Depr info'!$A$5:$G$147,2,0) -> 10WA01:320100 | I8: =VLOOKUP($H8,'WBS by Depr info'!$B$4:$G$147,4,0) -> 0.0185 | J8: =VLOOKUP($H8,'WBS by Depr info'!$B$4:$G$147,5,0) -> 0.0048 | K8: =VLOOKUP($H8,'WBS by Depr info'!$B$4:$G$147,6,0) -> -0.0002 | L8: 2022 | M8: 07 | N8: 07/1/2022 | O8: 3 | P8: 343.44288 | Q8: 89.109504 | R8: -3.712896
A9: 1010 | B9: R10-01Q1.21-P-0007 | C9: 10632010 | D9: UN | E9: R10-01Q1.21-P-0007 | F9: 202208 | G9: -133.4 | H9: =VLOOKUP($B9,'WBS by Depr info'!$A$5:$G$147,2,0) -> 10WA01:320100 | I9: =VLOOKUP($H9,'WBS by Depr info'!$B$4:$G$147,4,0) -> 0.0185 | J9: =VLOOKUP($H9,'WBS by Depr info'!$B$4:$G$147,5,0) -> 0.0048 | K9: =VLOOKUP($H9,'WBS by Depr info'!$B$4:$G$147,6,0) -> -0.0002 | L9: 2022 | M9: 08 | N9: 08/1/2022 | O9: 2 | P9: -0.4113166667 | Q9: -0.10672 | R9: 0.004446666667
A10: 1010 | B10: R10-25Q1.21-P-0011 | C10: 10630450 | D10: UN | E10: R10-25Q1.21-P-0011 | F10: 202112 | G10: 23358.95 | H10: =VLOOKUP($B10,'WBS by Depr info'!$A$5:$G$147,2,0) -> 10WA01:304500 | I10: =VLOOKUP($H10,'WBS by Depr info'!$B$4:$G$147,4,0) -> 0.03 | J10: =VLOOKUP($H10,'WBS by Depr info'!$B$4:$G$147,5,0) -> 0.0075 | K10: =VLOOKUP($H10,'WBS by Depr info'!$B$4:$G$147,6,0) -> 0 | L10: 2021 | M10: 12 | N10: 12/1/2021 | O10: 10 | P10: 583.97375 | Q10: 145.9934375 | R10: 0
A11: 1010 | B11: R10-25Q1.21-P-0011 | C11: 10630450 | D11: UN | E11: R10-25Q1.21-P-0011 | F11: 202201 | G11: -249.55 | H11: =VLOOKUP($B11,'WBS by Depr info'!$A$5:$G$147,2,0) -> 10WA01:304500 | I11: =VLOOKUP($H11,'WBS by Depr info'!$B$4:$G$147,4,0) -> 0.03 | J11: =VLOOKUP($H11,'WBS by Depr info'!$B$4:$G$147,5,0) -> 0.0075 | K11: =VLOOKUP($H11,'WBS by Depr info'!$B$4:$G$147,6,0) -> 0 | L11: 2022 | M11: 01 | N11: 01/1/2022 | O11: 9 | P11: -5.614875 | Q11: -1.40371875 | R11: 0
A12: 1010 | B12: R10-25Q1.21-P-0011 | C12: 10630450 | D12: UN | E12: R10-25Q1.21-P-0011 | F12: 202202 | G12: 670.3 | H12: =VLOOKUP($B12,'WBS by Depr info'!$A$5:$G$147,2,0) -> 10WA01:304500 | I12: =VLOOKUP($H12,'WBS by Depr info'!$B$4:$G$147,4,0) -> 0.03 | J12: =VLOOKUP($H12,'WBS by Depr info'!$B$4:$G$147,5,0) -> 0.0075 | K12: =VLOOKUP($H12,'WBS by Depr info'!$B$4:$G$147,6,0) -> 0 | L12: 2022 | M12: 02 | N12: 02/1/2022 | O12: 8 | P12: 13.406 | Q12: 3.3515 | R12: 0
A13: 1010 | B13: R10-45Q1.20-P-0004 | C13: 10131120 | D13: UP | E13: R10-45Q1.20-P-0004 | F13: 202012 | G13: 23343.12 | H13: =VLOOKUP($B13,'WBS by Depr info'!$A$5:$G$147,2,0) -> 10WA01:311200 | I13: =VLOOKUP($H13,'WBS by Depr info'!$B$4:$G$147,4,0) -> 0.0126 | J13: =VLOOKUP($H13,'WBS by Depr info'!$B$4:$G$147,5,0) -> 0.0017 | K13: =VLOOKUP($H13,'WBS by Depr info'!$B$4:$G$147,6,0) -> -0.0004 | L13: 2020 | M13: 12 | N13: 12/1/2020 | O13: 22 | P13: 539.226072 | Q13: 72.752724 | R13: -17.118288
A14: 1010 | B14: R10-45Q1.20-P-0004 | C14: 10631120 | D14: UN | E14: R10-45Q1.20-P-0004 | F14: 202008 | G14: 23343.12 | H14: =VLOOKUP($B14,'WBS by Depr info'!$A$5:$G$147,2,0) -> 10WA01:311200 | I14: =VLOOKUP($H14,'WBS by Depr info'!$B$4:$G$147,4,0) -> 0.0126 | J14: =VLOOKUP($H14,'WBS by Depr info'!$B$4:$G$147,5,0) -> 0.0017 | K14: =VLOOKUP($H14,'WBS by Depr info'!$B$4:$G$147,6,0) -> -0.0004 | L14: 2020 | M14: 08 | N14: 08/1/2020 | O14: 26 | P14: 637.267176 | Q14: 85.980492 | R14: -20.230704
A15: 1010 | B15: R10-45Q1.20-P-0004 | C15: 10631120 | D15: UP | E15: R10-45Q1.20-P-0004 | F15: 202012 | G15: -23343.12 | H15: =VLOOKUP($B15,'WBS by Depr info'!$A$5:$G$147,2,0) -> 10WA01:311200 | I15: =VLOOKUP($H15,'WBS by Depr info'!$B$4:$G$147,4,0) -> 0.0126 | J15: =VLOOKUP($H15,'WBS by Depr info'!$B$4:$G$147,5,0) -> 0.0017 | K15: =VLOOKUP($H15,'WBS by Depr info'!$B$4:$G$147,6,0) -> -0.0004 | L15: 2020 | M15: 12 | N15: 12/1/2020 | O15: 22 | P15: -539.226072 | Q15: -72.752724 | R15: 17.118288
A16: 1010 | B16: R10-45Q1.21-P-0011 | C16: 10630410 | D16: UN | E16: R10-45Q1.21-P-0011 | F16: 202201 | G16: 19066.18 | H16: =VLOOKUP($B16,'WBS by Depr info'!$A$5:$G$147,2,0) -> 10WA01:304100 | I16: =VLOOKUP($H16,'WBS by Depr info'!$B$4:$G$147,4,0) -> 0.0258 | J16: =VLOOKUP($H16,'WBS by Depr info'!$B$4:$G$147,5,0) -> 0.0064 | K16: =VLOOKUP($H16,'WBS by Depr info'!$B$4:$G$147,6,0) -> 0 | L16: 2022 | M16: 01 | N16: 01/1/2022 | O16: 9 | P16: 368.930583 | Q16: 91.517664 | R16: 0
A17: 1010 | B17: R10-47Q1.20-P-0008 | C17: 10133100 | D17: UP | E17: R10-47Q1.20-P-0008 | F17: 202010 | G17: 4918.67 | H17: =VLOOKUP($B17,'WBS by Depr info'!$A$5:$G$147,2,0) -> 10WA01:331001 | I17: =VLOOKUP($H17,'WBS by Depr info'!$B$4:$G$147,4,0) -> 0.0097 | J17: =VLOOKUP($H17,'WBS by Depr info'!$B$4:$G$147,5,0) -> 0.0079 | K17: =VLOOKUP($H17,'WBS by Depr info'!$B$4:$G$147,6,0) -> -0.0006 | L17: 2020 | M17: 10 | N17: 10/1/2020 | O17: 24 | P17: 95.422198 | Q17: 77.714986 | R17: -5.902404
A18: 1010 | B18: R10-47Q1.20-P-0008 | C18: 10633100 | D18: UN | E18: R10-47Q1.20-P-0008 | F18: 202006 | G18: 4918.67 | H18: =VLOOKUP($B18,'WBS by Depr info'!$A$5:$G$147,2,0) -> 10WA01:331001 | I18: =VLOOKUP($H18,'WBS by Depr info'!$B$4:$G$147,4,0) -> 0.0097 | J18: =VLOOKUP($H18,'WBS by Depr info'!$B$4:$G$147,5,0) -> 0.0079 | K18: =VLOOKUP($H18,'WBS by Depr info'!$B$4:$G$147,6,0) -> -0.0006 | L18: 2020 | M18: 06 | N18: 06/1/2020 | O18: 28 | P18: 111.3258977 | Q18: 90.66748367 | R18: -6.886138
A19: 1010 | B19: R10-47Q1.20-P-0008 | C19: 10633100 | D19: UP | E19: R10-47Q1.20-P-0008 | F19: 202010 | G19: -4918.67 | H19: =VLOOKUP($B19,'WBS by Depr info'!$A$5:$G$147,2,0) -> 10WA01:331001 | I19: =VLOOKUP($H19,'WBS by Depr info'!$B$4:$G$147,4,0) -> 0.0097 | J19: =VLOOKUP($H19,'WBS by Depr info'!$B$4:$G$147,5,0) -> 0.0079 | K19: =VLOOKUP($H19,'WBS by Depr info'!$B$4:$G$147,6,0) -> -0.0006 | L19: 2020 | M19: 10 | N19: 10/1/2020 | O19: 24 | P19: -95.422198 | Q19: -77.714986 | R19: 5.902404
A20: 1010 | B20: R10-47Q1.20-P-0011 | C20: 10131150 | D20: UP | E20: R10-47Q1.20-P-0011 | F20: 202101 | G20: 8667.13 | H20: =VLOOKUP($B20,'WBS by Depr info'!$A$5:$G$147,2,0) -> 10WA01:311500 | I20: =VLOOKUP($H20,'WBS by Depr info'!$B$4:$G$147,4,0) -> 0.0273 | J20: =VLOOKUP($H20,'WBS by Depr info'!$B$4:$G$147,5,0) -> 0.0035 | K20: =VLOOKUP($H20,'WBS by Depr info'!$B$4:$G$147,6,0) -> -0.0008 | L20: 2021 | M20: 01 | N20: 01/1/2021 | O20: 21 | P20: 414.0721357 | Q20: 53.08617125 | R20: -12.133982
A21: 1010 | B21: R10-47Q1.20-P-0011 | C21: 10631150 | D21: UN | E21: R10-47Q1.20-P-0011 | F21: 202006 | G21: 8667.13 | H21: =VLOOKUP($B21,'WBS by Depr info'!$A$5:$G$147,2,0) -> 10WA01:311500 | I21: =VLOOKUP($H21,'WBS by Depr info'!$B$4:$G$147,4,0) -> 0.0273 | J21: =VLOOKUP($H21,'WBS by Depr info'!$B$4:$G$147,5,0) -> 0.0035 | K21: =VLOOKUP($H21,'WBS by Depr info'!$B$4:$G$147,6,0) -> -0.0008 | L21: 2020 | M21: 06 | N21: 06/1/2020 | O21: 28 | P21: 552.096181 | Q21: 70.78156167 | R21: -16.17864267
A22: 1010 | B22: R10-47Q1.20-P-0011 | C22: 10631150 | D22: UP | E22: R10-47Q1.20-P-0011 | F22: 202101 | G22: -8667.13 | H22: =VLOOKUP($B22,'WBS by Depr info'!$A$5:$G$147,2,0) -> 10WA01:311500 | I22: =VLOOKUP($H22,'WBS by Depr info'!$B$4:$G$147,4,0) -> 0.0273 | J22: =VLOOKUP($H22,'WBS by Depr info'!$B$4:$G$147,5,0) -> 0.0035 | K22: =VLOOKUP($H22,'WBS by Depr info'!$B$4:$G$147,6,0) -> -0.0008 | L22: 2021 | M22: 01 | N22: 01/1/2021 | O22: 21 | P22: -414.0721357 | Q22: -53.08617125 | R22: 12.133982
A23: 1010 | B23: R10-47Q1.20-P-0016 | C23: 10131150 | D23: UP | E23: R10-47Q1.20-P-0016 | F23: 202102 | G23: 8857.67 | H23: =VLOOKUP($B23,'WBS by Depr info'!$A$5:$G$147,2,0) -> 10WA01:311500 | I23: =VLOOKUP($H23,'WBS by Depr info'!$B$4:$G$147,4,0) -> 0.0273 | J23: =VLOOKUP($H23,'WBS by Depr info'!$B$4:$G$147,5,0) -> 0.0035 | K23: =VLOOKUP($H23,'WBS by Depr info'!$B$4:$G$147,6,0) -> -0.0008 | L23: 2021 | M23: 02 | N23: 02/1/2021 | O23: 20 | P23: 403.023985 | Q23: 51.66974167 | R23: -11.81022667
A24: 1010 | B24: R10-47Q1.20-P-0016 | C24: 10631150 | D24: UN | E24: R10-47Q1.20-P-0016 | F24: 202010 | G24: 8923.83 | H24: =VLOOKUP($B24,'WBS by Depr info'!$A$5:$G$147,2,0) -> 10WA01:311500 | I24: =VLOOKUP($H24,'WBS by Depr info'!$B$4:$G$147,4,0) -> 0.0273 | J24: =VLOOKUP($H24,'WBS by Depr info'!$B$4:$G$147,5,0) -> 0.0035 | K24: =VLOOKUP($H24,'WBS by Depr info'!$B$4:$G$147,6,0) -> -0.0008 | L24: 2020 | M24: 10 | N24: 10/1/2020 | O24: 24 | P24: 487.241118 | Q24: 62.46681 | R24: -14.278128
A25: 1010 | B25: R10-47Q1.20-P-0016 | C25: 10631150 | D25: UN | E25: R10-47Q1.20-P-0016 | F25: 202101 | G25: -66.16 | H25: =VLOOKUP($B25,'WBS by Depr info'!$A$5:$G$147,2,0) -> 10WA01:311500 | I25: =VLOOKUP($H25,'WBS by Depr info'!$B$4:$G$147,4,0) -> 0.0273 | J25: =VLOOKUP($H25,'WBS by Depr info'!$B$4:$G$147,5,0) -> 0.0035 | K25: =VLOOKUP($H25,'WBS by Depr info'!$B$4:$G$147,6,0) -> -0.0008 | L25: 2021 | M25: 01 | N25: 01/1/2021 | O25: 21 | P25: -3.160794 | Q25: -0.40523 | R25: 0.092624
A26: 1010 | B26: R10-47Q1.20-P-0016 | C26: 10631150 | D26: UP | E26: R10-47Q1.20-P-0016 | F26: 202102 | G26: -8857.67 | H26: =VLOOKUP($B26,'WBS by Depr info'!$A$5:$G$147,2,0) -> 10WA01:311500 | I26: =VLOOKUP($H26,'WBS by Depr info'!$B$4:$G$147,4,0) -> 0.0273 | J26: =VLOOKUP($H26,'WBS by Depr info'!$B$4:$G$147,5,0) -> 0.0035 | K26: =VLOOKUP($H26,'WBS by Depr info'!$B$4:$G$147,6,0) -> -0.0008 | L26: 2021 | M26: 02 | N26: 02/1/2021 | O26: 20 | P26: -403.023985 | Q26: -51.66974167 | R26: 11.81022667
A27: 1010 | B27: R10-47Q1.20-P-0017 | C27: 10131150 | D27: UP | E27: R10-47Q1.20-P-0017 | F27: 202102 | G27: 9616.38 | H27: =VLOOKUP($B27,'WBS by Depr info'!$A$5:$G$147,2,0) -> 10WA01:311500 | I27: =VLOOKUP($H27,'WBS by Depr info'!$B$4:$G$147,4,0) -> 0.0273 | J27: =VLOOKUP($H27,'WBS by Depr info'!$B$4:$G$147,5,0) -> 0.0035 | K27: =VLOOKUP($H27,'WBS by Depr info'!$B$4:$G$147,6,0) -> -0.0008 | L27: 2021 | M27: 02 | N27: 02/1/2021 | O27: 20 | P27: 437.54529 | Q27: 56.09555 | R27: -12.82184
A28: 1010 | B28: R10-47Q1.20-P-0017 | C28: 10631150 | D28: UN | E28: R10-47Q1.20-P-0017 | F28: 202010 | G28: 9688.21 | H28: =VLOOKUP($B28,'WBS by Depr info'!$A$5:$G$147,2,0) -> 10WA01:311500 | I28: =VLOOKUP($H28,'WBS by Depr info'!$B$4:$G$147,4,0) -> 0.0273 | J28: =VLOOKUP($H28,'WBS by Depr info'!$B$4:$G$147,5,0) -> 0.0035 | K28: =VLOOKUP($H28,'WBS by Depr info'!$B$4:$G$147,6,0) -> -0.0008 | L28: 2020 | M28: 10 | N28: 10/1/2020 | O28: 24 | P28: 528.976266 | Q28: 67.81747 | R28: -15.501136
A29: 1010 | B29: R10-47Q1.20-P-0017 | C29: 10631150 | D29: UN | E29: R10-47Q1.20-P-0017 | F29: 202101 | G29: -71.83 | H29: =VLOOKUP($B29,'WBS by Depr info'!$A$5:$G$147,2,0) -> 10WA01:311500 | I29: =VLOOKUP($H29,'WBS by Depr info'!$B$4:$G$147,4,0) -> 0.0273 | J29: =VLOOKUP($H29,'WBS by Depr info'!$B$4:$G$147,5,0) -> 0.0035 | K29: =VLOOKUP($H29,'WBS by Depr info'!$B$4:$G$147,6,0) -> -0.0008 | L29: 2021 | M29: 01 | N29: 01/1/2021 | O29: 21 | P29: -3.43167825 | Q29: -0.43995875 | R29: 0.100562
A30: 1010 | B30: R10-47Q1.20-P-0017 | C30: 10631150 | D30: UP | E30: R10-47Q1.20-P-0017 | F30: 202102 | G30: -9616.38 | H30: =VLOOKUP($B30,'WBS by Depr info'!$A$5:$G$147,2,0) -> 10WA01:311500 | I30: =VLOOKUP($H30,'WBS by Depr info'!$B$4:$G$147,4,0) -> 0.0273 | J30: =VLOOKUP($H30,'WBS by Depr info'!$B$4:$G$147,5,0) -> 0.0035 | K30: =VLOOKUP($H30,'WBS by Depr info'!$B$4:$G$147,6,0) -> -0.0008 | L30: 2021 | M30: 02 | N30: 02/1/2021 | O30: 20 | P30: -437.54529 | Q30: -56.09555 | R30: 12.82184
A31: 1010 | B31: R10-47Q1.21-P-0009 | C31: 10131150 | D31: UP | E31: R10-47Q1.21-P-0009 | F31: 202111 | G31: 7425.74 | H31: =VLOOKUP($B31,'WBS by Depr info'!$A$5:$G$147,2,0) -> 10WA01:311500 | I31: =VLOOKUP($H31,'WBS by Depr info'!$B$4:$G$147,4,0) -> 0.0273 | J31: =VLOOKUP($H31,'WBS by Depr info'!$B$4:$G$147,5,0) -> 0.0035 | K31: =VLOOKUP($H31,'WBS by Depr info'!$B$4:$G$147,6,0) -> -0.0008 | L31: 2021 | M31: 11 | N31: 11/1/2021 | O31: 11 | P31: 185.8291435 | Q31: 23.82424917 | R31: -5.445542667
A32: 1010 | B32: R10-47Q1.21-P-0009 | C32: 10631150 | D32: UN | E32: R10-47Q1.21-P-0009 | F32: 202105 | G32: 3736.46 | H32: =VLOOKUP($B32,'WBS by Depr info'!$A$5:$G$147,2,0) -> 10WA01:311500 | I32: =VLOOKUP($H32,'WBS by Depr info'!$B$4:$G$147,4,0) -> 0.0273 | J32: =VLOOKUP($H32,'WBS by Depr info'!$B$4:$G$147,5,0) -> 0.0035 | K32: =VLOOKUP($H32,'WBS by Depr info'!$B$4:$G$147,6,0) -> -0.0008 | L32: 2021 | M32: 05 | N32: 05/1/2021 | O32: 17 | P32: 144.5075905 | Q32: 18.52661417 | R32: -4.234654667
A33: 1010 | B33: R10-47Q1.21-P-0009 | C33: 10631150 | D33: UN | E33: R10-47Q1.21-P-0009 | F33: 202106 | G33: 627.06 | H33: =VLOOKUP($B33,'WBS by Depr info'!$A$5:$G$147,2,0) -> 10WA01:311500 | I33: =VLOOKUP($H33,'WBS by Depr info'!$B$4:$G$147,4,0) -> 0.0273 | J33: =VLOOKUP($H33,'WBS by Depr info'!$B$4:$G$147,5,0) -> 0.0035 | K33: =VLOOKUP($H33,'WBS by Depr info'!$B$4:$G$147,6,0) -> -0.0008 | L33: 2021 | M33: 06 | N33: 06/1/2021 | O33: 16 | P33: 22.824984 | Q33: 2.92628 | R33: -0.668864
A34: 1010 | B34: R10-47Q1.21-P-0009 | C34: 10631150 | D34: UN | E34: R10-47Q1.21-P-0009 | F34: 202107 | G34: 3062.22 | H34: =VLOOKUP($B34,'WBS by Depr info'!$A$5:$G$147,2,0) -> 10WA01:311500 | I34: =VLOOKUP($H34,'WBS by Depr info'!$B$4:$G$147,4,0) -> 0.0273 | J34: =VLOOKUP($H34,'WBS by Depr info'!$B$4:$G$147,5,0) -> 0.0035 | K34: =VLOOKUP($H34,'WBS by Depr info'!$B$4:$G$147,6,0) -> -0.0008 | L34: 2021 | M34: 07 | N34: 07/1/2021 | O34: 15 | P34: 104.4982575 | Q34: 13.3972125 | R34: -3.06222
A35: 1010 | B35: R10-47Q1.21-P-0009 | C35: 10631150 | D35: UP | E35: R10-47Q1.21-P-0009 | F35: 202111 | G35: -7425.74 | H35: =VLOOKUP($B35,'WBS by Depr info'!$A$5:$G$147,2,0) -> 10WA01:311500 | I35: =VLOOKUP($H35,'WBS by Depr info'!$B$4:$G$147,4,0) -> 0.0273 | J35: =VLOOKUP($H35,'WBS by Depr info'!$B$4:$G$147,5,0) -> 0.0035 | K35: =VLOOKUP($H35,'WBS by Depr info'!$B$4:$G$147,6,0) -> -0.0008 | L35: 2021 | M35: 11 | N35: 11/1/2021 | O35: 11 | P35: -185.8291435 | Q35: -23.82424917 | R35: 5.445542667
A36: 1010 | B36: R10-47Q1.21-P-0011 | C36: 10631150 | D36: UN | E36: R10-47Q1.21-P-0011 | F36: 202110 | G36: 8528.64 | H36: =VLOOKUP($B36,'WBS by Depr info'!$A$5:$G$147,2,0) -> 10WA01:311500 | I36: =VLOOKUP($H36,'WBS by Depr info'!$B$4:$G$147,4,0) -> 0.0273 | J36: =VLOOKUP($H36,'WBS by Depr info'!$B$4:$G$147,5,0) -> 0.0035 | K36: =VLOOKUP($H36,'WBS by Depr info'!$B$4:$G$147,6,0) -> -0.0008 | L36: 2021 | M36: 10 | N36: 10/1/2021 | O36: 12 | P36: 232.831872 | Q36: 29.85024 | R36: -6.822912
A37: 1010 | B37: R10-47Q1.21-P-0011 | C37: 10631150 | D37: UN | E37: R10-47Q1.21-P-0011 | F37: 202112 | G37: -3.71 | H37: =VLOOKUP($B37,'WBS by Depr info'!$A$5:$G$147,2,0) -> 10WA01:311500 | I37: =VLOOKUP($H37,'WBS by Depr info'!$B$4:$G$147,4,0) -> 0.0273 | J37: =VLOOKUP($H37,'WBS by Depr info'!$B$4:$G$147,5,0) -> 0.0035 | K37: =VLOOKUP($H37,'WBS by Depr info'!$B$4:$G$147,6,0) -> -0.0008 | L37: 2021 | M37: 12 | N37: 12/1/2021 | O37: 10 | P37: -0.0844025 | Q37: -0.01082083333 | R37: 0.002473333333
A38: 1010 | B38: R10-47Q1.21-P-0014 | C38: 10130700 | D38: UP | E38: R10-47Q1.21-P-0014 | F38: 202203 | G38: 58457.26 | H38: =VLOOKUP($B38,'WBS by Depr info'!$A$5:$G$147,2,0) -> 10WA01:307000 | I38: =VLOOKUP($H38,'WBS by Depr info'!$B$4:$G$147,4,0) -> 0.0241 | J38: =VLOOKUP($H38,'WBS by Depr info'!$B$4:$G$147,5,0) -> 0.0038 | K38: =VLOOKUP($H38,'WBS by Depr info'!$B$4:$G$147,6,0) -> -0.0002 | L38: 2022 | M38: 03 | N38: 03/1/2022 | O38: 7 | P38: 821.8116468 | Q38: 129.5802597 | R38: -6.820013667
A39: 1010 | B39: R10-47Q1.21-P-0014 | C39: 10630700 | D39: UN | E39: R10-47Q1.21-P-0014 | F39: 202112 | G39: 58457.26 | H39: =VLOOKUP($B39,'WBS by Depr info'!$A$5:$G$147,2,0) -> 10WA01:307000 | I39: =VLOOKUP($H39,'WBS by Depr info'!$B$4:$G$147,4,0) -> 0.0241 | J39: =VLOOKUP($H39,'WBS by Depr info'!$B$4:$G$147,5,0) -> 0.0038 | K39: =VLOOKUP($H39,'WBS by Depr info'!$B$4:$G$147,6,0) -> -0.0002 | L39: 2021 | M39: 12 | N39: 12/1/2021 | O39: 10 | P39: 1174.016638 | Q39: 185.1146567 | R39: -9.742876667
A40: 1010 | B40: R10-47Q1.21-P-0014 | C40: 10630700 | D40: UP | E40: R10-47Q1.21-P-0014 | F40: 202203 | G40: -58457.26 | H40: =VLOOKUP($B40,'WBS by Depr info'!$A$5:$G$147,2,0) -> 10WA01:307000 | I40: =VLOOKUP($H40,'WBS by Depr info'!$B$4:$G$147,4,0) -> 0.0241 | J40: =VLOOKUP($H40,'WBS by Depr info'!$B$4:$G$147,5,0) -> 0.0038 | K40: =VLOOKUP($H40,'WBS by Depr info'!$B$4:$G$147,6,0) -> -0.0002 | L40: 2022 | M40: 03 | N40: 03/1/2022 | O40: 7 | P40: -821.8116468 | Q40: -129.5802597 | R40: 6.820013667
A41: 1010 | B41: R10-47Q1.21-P-0018 | C41: 10632010 | D41: UN | E41: R10-47Q1.21-P-0018 | F41: 202204 | G41: 2347.62 | H41: =VLOOKUP($B41,'WBS by Depr info'!$A$5:$G$147,2,0) -> 10WA01:320100 | I41: =VLOOKUP($H41,'WBS by Depr info'!$B$4:$G$147,4,0) -> 0.0185 | J41: =VLOOKUP($H41,'WBS by Depr info'!$B$4:$G$147,5,0) -> 0.0048 | K41: =VLOOKUP($H41,'WBS by Depr info'!$B$4:$G$147,6,0) -> -0.0002 | L41: 2022 | M41: 04 | N41: 04/1/2022 | O41: 6 | P41: 21.715485 | Q41: 5.634288 | R41: -0.234762
A42: 1010 | B42: R10-47Q1.21-P-0019 | C42: 10630700 | D42: UN | E42: R10-47Q1.21-P-0019 | F42: 202204 | G42: 8757.52 | H42: =VLOOKUP($B42,'WBS by Depr info'!$A$5:$G$147,2,0) -> 10WA01:307000 | I42: =VLOOKUP($H42,'WBS by Depr info'!$B$4:$G$147,4,0) -> 0.0241 | J42: =VLOOKUP($H42,'WBS by Depr info'!$B$4:$G$147,5,0) -> 0.0038 | K42: =VLOOKUP($H42,'WBS by Depr info'!$B$4:$G$147,6,0) -> -0.0002 | L42: 2022 | M42: 04 | N42: 04/1/2022 | O42: 6 | P42: 105.528116 | Q42: 16.639288 | R42: -0.875752
A43: 1010 | B43: R10-47Q1.21-P-0020 | C43: 10130700 | D43: UP | E43: R10-47Q1.21-P-0020 | F43: 202205 | G43: 19701.67 | H43: =VLOOKUP($B43,'WBS by Depr info'!$A$5:$G$147,2,0) -> 10WA01:307000 | I43: =VLOOKUP($H43,'WBS by Depr info'!$B$4:$G$147,4,0) -> 0.0241 | J43: =VLOOKUP($H43,'WBS by Depr info'!$B$4:$G$147,5,0) -> 0.0038 | K43: =VLOOKUP($H43,'WBS by Depr info'!$B$4:$G$147,6,0) -> -0.0002 | L43: 2022 | M43: 05 | N43: 05/1/2022 | O43: 5 | P43: 197.8376029 | Q43: 31.19431083 | R43: -1.641805833
A44: 1010 | B44: R10-47Q1.21-P-0020 | C44: 10630700 | D44: UN | E44: R10-47Q1.21-P-0020 | F44: 202112 | G44: 19701.67 | H44: =VLOOKUP($B44,'WBS by Depr info'!$A$5:$G$147,2,0) -> 10WA01:307000 | I44: =VLOOKUP($H44,'WBS by Depr info'!$B$4:$G$147,4,0) -> 0.0241 | J44: =VLOOKUP($H44,'WBS by Depr info'!$B$4:$G$147,5,0) -> 0.0038 | K44: =VLOOKUP($H44,'WBS by Depr info'!$B$4:$G$147,6,0) -> -0.0002 | L44: 2021 | M44: 12 | N44: 12/1/2021 | O44: 10 | P44: 395.6752058 | Q44: 62.38862167 | R44: -3.283611667
A45: 1010 | B45: R10-47Q1.21-P-0020 | C45: 10630700 | D45: UP | E45: R10-47Q1.21-P-0020 | F45: 202205 | G45: -19701.67 | H45: =VLOOKUP($B45,'WBS by Depr info'!$A$5:$G$147,2,0) -> 10WA01:307000 | I45: =VLOOKUP($H45,'WBS by Depr info'!$B$4:$G$147,4,0) -> 0.0241 | J45: =VLOOKUP($H45,'WBS by Depr info'!$B$4:$G$147,5,0) -> 0.0038 | K45: =VLOOKUP($H45,'WBS by Depr info'!$B$4:$G$147,6,0) -> -0.0002 | L45: 2022 | M45: 05 | N45: 05/1/2022 | O45: 5 | P45: -197.8376029 | Q45: -31.19431083 | R45: 1.641805833
A46: 1010 | B46: R10-47Q1.22-P-0002 | C46: 10131150 | D46: UP | E46: R10-47Q1.22-P-0002 | F46: 202209 | G46: 44752.04 | H46: =VLOOKUP($B46,'WBS by Depr info'!$A$5:$G$147,2,0) -> 10WA01:311500 | I46: =VLOOKUP($H46,'WBS by Depr info'!$B$4:$G$147,4,0) -> 0.0273 | J46: =VLOOKUP($H46,'WBS by Depr info'!$B$4:$G$147,5,0) -> 0.0035 | K46: =VLOOKUP($H46,'WBS by Depr info'!$B$4:$G$147,6,0) -> -0.0008 | L46: 2022 | M46: 09 | N46: 09/1/2022 | O46: 1 | P46: 101.810891 | Q46: 13.05267833 | R46: -2.983469333
A47: 1010 | B47: R10-47Q1.22-P-0002 | C47: 10631150 | D47: UN | E47: R10-47Q1.22-P-0002 | F47: 202205 | G47: 44752.04 | H47: =VLOOKUP($B47,'WBS by Depr info'!$A$5:$G$147,2,0) -> 10WA01:311500 | I47: =VLOOKUP($H47,'WBS by Depr info'!$B$4:$G$147,4,0) -> 0.0273 | J47: =VLOOKUP($H47,'WBS by Depr info'!$B$4:$G$147,5,0) -> 0.0035 | K47: =VLOOKUP($H47,'WBS by Depr info'!$B$4:$G$147,6,0) -> -0.0008 | L47: 2022 | M47: 05 | N47: 05/1/2022 | O47: 5 | P47: 509.054455 | Q47: 65.26339167 | R47: -14.91734667
A48: 1010 | B48: R10-47Q1.22-P-0002 | C48: 10631150 | D48: UP | E48: R10-47Q1.22-P-0002 | F48: 202209 | G48: -44752.04 | H48: =VLOOKUP($B48,'WBS by Depr info'!$A$5:$G$147,2,0) -> 10WA01:311500 | I48: =VLOOKUP($H48,'WBS by Depr info'!$B$4:$G$147,4,0) -> 0.0273 | J48: =VLOOKUP($H48,'WBS by Depr info'!$B$4:$G$147,5,0) -> 0.0035 | K48: =VLOOKUP($H48,'WBS by Depr info'!$B$4:$G$147,6,0) -> -0.0008 | L48: 2022 | M48: 09 | N48: 09/1/2022 | O48: 1 | P48: -101.810891 | Q48: -13.05267833 | R48: 2.983469333
A49: 1010 | B49: R10-47Q1.22-P-0003 | C49: 10630700 | D49: UN | E49: R10-47Q1.22-P-0003 | F49: 202204 | G49: 6643 | H49: =VLOOKUP($B49,'WBS by Depr info'!$A$5:$G$147,2,0) -> 10WA01:307000 | I49: =VLOOKUP($H49,'WBS by Depr info'!$B$4:$G$147,4,0) -> 0.0241 | J49: =VLOOKUP($H49,'WBS by Depr info'!$B$4:$G$147,5,0) -> 0.0038 | K49: =VLOOKUP($H49,'WBS by Depr info'!$B$4:$G$147,6,0) -> -0.0002 | L49: 2022 | M49: 04 | N49: 04/1/2022 | O49: 6 | P49: 80.04815 | Q49: 12.6217 | R49: -0.6643
A50: 1010 | B50: R10-47Q1.22-P-0007 | C50: 10631150 | D50: UN | E50: R10-47Q1.22-P-0007 | F50: 202205 | G50: 2432.87 | H50: =VLOOKUP($B50,'WBS by Depr info'!$A$5:$G$147,2,0) -> 10WA01:311500 | I50: =VLOOKUP($H50,'WBS by Depr info'!$B$4:$G$147,4,0) -> 0.0273 | J50: =VLOOKUP($H50,'WBS by Depr info'!$B$4:$G$147,5,0) -> 0.0035 | K50: =VLOOKUP($H50,'WBS by Depr info'!$B$4:$G$147,6,0) -> -0.0008 | L50: 2022 | M50: 05 | N50: 05/1/2022 | O50: 5 | P50: 27.67389625 | Q50: 3.547935417 | R50: -0.8109566667
A51: 1010 | B51: R10-47Q1.22-P-0007 | C51: 10631150 | D51: UN | E51: R10-47Q1.22-P-0007 | F51: 202206 | G51: -305.89 | H51: =VLOOKUP($B51,'WBS by Depr info'!$A$5:$G$147,2,0) -> 10WA01:311500 | I51: =VLOOKUP($H51,'WBS by Depr info'!$B$4:$G$147,4,0) -> 0.0273 | J51: =VLOOKUP($H51,'WBS by Depr info'!$B$4:$G$147,5,0) -> 0.0035 | K51: =VLOOKUP($H51,'WBS by Depr info'!$B$4:$G$147,6,0) -> -0.0008 | L51: 2022 | M51: 06 | N51: 06/1/2022 | O51: 4 | P51: -2.783599 | Q51: -0.3568716667 | R51: 0.08157066667
A52: 1010 | B52: R10-55Q1.20-P-0007 | C52: 10130410 | D52: UP | E52: R10-55Q1.20-P-0007 | F52: 202007 | G52: 10498.47 | H52: =VLOOKUP($B52,'WBS by Depr info'!$A$5:$G$147,2,0) -> 10WA01:304100 | I52: =VLOOKUP($H52,'WBS by Depr info'!$B$4:$G$147,4,0) -> 0.0258 | J52: =VLOOKUP($H52,'WBS by Depr info'!$B$4:$G$147,5,0) -> 0.0064 | K52: =VLOOKUP($H52,'WBS by Depr info'!$B$4:$G$147,6,0) -> 0 | L52: 2020 | M52: 07 | N52: 07/1/2020 | O52: 27 | P52: 609.4361835 | Q52: 151.177968 | R52: 0
A53: 1010 | B53: R10-55Q1.20-P-0007 | C53: 10630410 | D53: UN | E53: R10-55Q1.20-P-0007 | F53: 202006 | G53: 10498.47 | H53: =VLOOKUP($B53,'WBS by Depr info'!$A$5:$G$147,2,0) -> 10WA01:304100 | I53: =VLOOKUP($H53,'WBS by Depr info'!$B$4:$G$147,4,0) -> 0.0258 | J53: =VLOOKUP($H53,'WBS by Depr info'!$B$4:$G$147,5,0) -> 0.0064 | K53: =VLOOKUP($H53,'WBS by Depr info'!$B$4:$G$147,6,0) -> 0 | L53: 2020 | M53: 06 | N53: 06/1/2020 | O53: 28 | P53: 632.007894 | Q53: 156.777152 | R53: 0
A54: 1010 | B54: R10-55Q1.20-P-0007 | C54: 10630410 | D54: UP | E54: R10-55Q1.20-P-0007 | F54: 202007 | G54: -10498.47 | H54: =VLOOKUP($B54,'WBS by Depr info'!$A$5:$G$147,2,0) -> 10WA01:304100 | I54: =VLOOKUP($H54,'WBS by Depr info'!$B$4:$G$147,4,0) -> 0.0258 | J54: =VLOOKUP($H54,'WBS by Depr info'!$B$4:$G$147,5,0) -> 0.0064 | K54: =VLOOKUP($H54,'WBS by Depr info'!$B$4:$G$147,6,0) -> 0 | L54: 2020 | M54: 07 | N54: 07/1/2020 | O54: 27 | P54: -609.4361835 | Q54: -151.177968 | R54: 0
A55: 1010 | B55: R10-55Q1.20-P-0010 | C55: 10130410 | D55: UP | E55: R10-55Q1.20-P-0010 | F55: 202007 | G55: 3967.49 | H55: =VLOOKUP($B55,'WBS by Depr info'!$A$5:$G$147,2,0) -> 10WA01:304100 | I55: =VLOOKUP($H55,'WBS by Depr info'!$B$4:$G$147,4,0) -> 0.0258 | J55: =VLOOKUP($H55,'WBS by Depr info'!$B$4:$G$147,5,0) -> 0.0064 | K55: =VLOOKUP($H55,'WBS by Depr info'!$B$4:$G$147,6,0) -> 0 | L55: 2020 | M55: 07 | N55: 07/1/2020 | O55: 27 | P55: 230.3127945 | Q55: 57.131856 | R55: 0
A56: 1010 | B56: R10-55Q1.20-P-0010 | C56: 10630410 | D56: UN | E56: R10-55Q1.20-P-0010 | F56: 202006 | G56: 3967.49 | H56: =VLOOKUP($B56,'WBS by Depr info'!$A$5:$G$147,2,0) -> 10WA01:304100 | I56: =VLOOKUP($H56,'WBS by Depr info'!$B$4:$G$147,4,0) -> 0.0258 | J56: =VLOOKUP($H56,'WBS by Depr info'!$B$4:$G$147,5,0) -> 0.0064 | K56: =VLOOKUP($H56,'WBS by Depr info'!$B$4:$G$147,6,0) -> 0 | L56: 2020 | M56: 06 | N56: 06/1/2020 | O56: 28 | P56: 238.842898 | Q56: 59.24785067 | R56: 0
A57: 1010 | B57: R10-55Q1.20-P-0010 | C57: 10630410 | D57: UP | E57: R10-55Q1.20-P-0010 | F57: 202007 | G57: -3967.49 | H57: =VLOOKUP($B57,'WBS by Depr info'!$A$5:$G$147,2,0) -> 10WA01:304100 | I57: =VLOOKUP($H57,'WBS by Depr info'!$B$4:$G$147,4,0) -> 0.0258 | J57: =VLOOKUP($H57,'WBS by Depr info'!$B$4:$G$147,5,0) -> 0.0064 | K57: =VLOOKUP($H57,'WBS by Depr info'!$B$4:$G$147,6,0) -> 0 | L57: 2020 | M57: 07 | N57: 07/1/2020 | O57: 27 | P57: -230.3127945 | Q57: -57.131856 | R57: 0
A58: 1010 | B58: R10-55Q1.20-P-0011 | C58: 10630410 | D58: UN | E58: R10-55Q1.20-P-0011 | F58: 202006 | G58: 5498.6 | H58: =VLOOKUP($B58,'WBS by Depr info'!$A$5:$G$147,2,0) -> 10WA01:304100 | I58: =VLOOKUP($H58,'WBS by Depr info'!$B$4:$G$147,4,0) -> 0.0258 | J58: =VLOOKUP($H58,'WBS by Depr info'!$B$4:$G$147,5,0) -> 0.0064 | K58: =VLOOKUP($H58,'WBS by Depr info'!$B$4:$G$147,6,0) -> 0 | L58: 2020 | M58: 06 | N58: 06/1/2020 | O58: 28 | P58: 331.01572 | Q58: 82.11242667 | R58: 0
A59: 1010 | B59: R10-55Q1.20-P-0012 | C59: 10130410 | D59: UP | E59: R10-55Q1.20-P-0012 | F59: 202007 | G59: 8945.68 | H59: =VLOOKUP($B59,'WBS by Depr info'!$A$5:$G$147,2,0) -> 10WA01:304100 | I59: =VLOOKUP($H59,'WBS by Depr info'!$B$4:$G$147,4,0) -> 0.0258 | J59: =VLOOKUP($H59,'WBS by Depr info'!$B$4:$G$147,5,0) -> 0.0064 | K59: =VLOOKUP($H59,'WBS by Depr info'!$B$4:$G$147,6,0) -> 0 | L59: 2020 | M59: 07 | N59: 07/1/2020 | O59: 27 | P59: 519.296724 | Q59: 128.817792 | R59: 0
A60: 1010 | B60: R10-55Q1.20-P-0012 | C60: 10630410 | D60: UN | E60: R10-55Q1.20-P-0012 | F60: 202006 | G60: 8945.68 | H60: =VLOOKUP($B60,'WBS by Depr info'!$A$5:$G$147,2,0) -> 10WA01:304100 | I60: =VLOOKUP($H60,'WBS by Depr info'!$B$4:$G$147,4,0) -> 0.0258 | J60: =VLOOKUP($H60,'WBS by Depr info'!$B$4:$G$147,5,0) -> 0.0064 | K60: =VLOOKUP($H60,'WBS by Depr info'!$B$4:$G$147,6,0) -> 0 | L60: 2020 | M60: 06 | N60: 06/1/2020 | O60: 28 | P60: 538.529936 | Q60: 133.5888213 | R60: 0
A61: 1010 | B61: R10-55Q1.20-P-0012 | C61: 10630410 | D61: UP | E61: R10-55Q1.20-P-0012 | F61: 202007 | G61: -8945.68 | H61: =VLOOKUP($B61,'WBS by Depr info'!$A$5:$G$147,2,0) -> 10WA01:304100 | I61: =VLOOKUP($H61,'WBS by Depr info'!$B$4:$G$147,4,0) -> 0.0258 | J61: =VLOOKUP($H61,'WBS by Depr info'!$B$4:$G$147,5,0) -> 0.0064 | K61: =VLOOKUP($H61,'WBS by Depr info'!$B$4:$G$147,6,0) -> 0 | L61: 2020 | M61: 07 | N61: 07/1/2020 | O61: 27 | P61: -519.296724 | Q61: -128.817792 | R61: 0
A62: 1010 | B62: R10-55Q1.20-P-0022 | C62: 10130450 | D62: UP | E62: R10-55Q1.20-P-0022 | F62: 202101 | G62: 11780.98 | H62: =VLOOKUP($B62,'WBS by Depr info'!$A$5:$G$147,2,0) -> 10WA01:304500 | I62: =VLOOKUP($H62,'WBS by Depr info'!$B$4:$G$147,4,0) -> 0.03 | J62: =VLOOKUP($H62,'WBS by Depr info'!$B$4:$G$147,5,0) -> 0.0075 | K62: =VLOOKUP($H62,'WBS by Depr info'!$B$4:$G$147,6,0) -> 0 | L62: 2021 | M62: 01 | N62: 01/1/2021 | O62: 21 | P62: 618.50145 | Q62: 154.6253625 | R62: 0
A63: 1010 | B63: R10-55Q1.21-P-0007 | C63: 10130410 | D63: UP | E63: R10-55Q1.21-P-0007 | F63: 202108 | G63: 5793.98 | H63: =VLOOKUP($B63,'WBS by Depr info'!$A$5:$G$147,2,0) -> 10WA01:304100 | I63: =VLOOKUP($H63,'WBS by Depr info'!$B$4:$G$147,4,0) -> 0.0258 | J63: =VLOOKUP($H63,'WBS by Depr info'!$B$4:$G$147,5,0) -> 0.0064 | K63: =VLOOKUP($H63,'WBS by Depr info'!$B$4:$G$147,6,0) -> 0 | L63: 2021 | M63: 08 | N63: 08/1/2021 | O63: 14 | P63: 174.398798 | Q63: 43.26171733 | R63: 0
A64: 1010 | B64: R10-55Q1.21-P-0007 | C64: 10630410 | D64: UN | E64: R10-55Q1.21-P-0007 | F64: 202106 | G64: 5793.98 | H64: =VLOOKUP($B64,'WBS by Depr info'!$A$5:$G$147,2,0) -> 10WA01:304100 | I64: =VLOOKUP($H64,'WBS by Depr info'!$B$4:$G$147,4,0) -> 0.0258 | J64: =VLOOKUP($H64,'WBS by Depr info'!$B$4:$G$147,5,0) -> 0.0064 | K64: =VLOOKUP($H64,'WBS by Depr info'!$B$4:$G$147,6,0) -> 0 | L64: 2021 | M64: 06 | N64: 06/1/2021 | O64: 16 | P64: 199.312912 | Q64: 49.44196267 | R64: 0
A65: 1010 | B65: R10-55Q1.21-P-0007 | C65: 10630410 | D65: UP | E65: R10-55Q1.21-P-0007 | F65: 202108 | G65: -5793.98 | H65: =VLOOKUP($B65,'WBS by Depr info'!$A$5:$G$147,2,0) -> 10WA01:304100 | I65: =VLOOKUP($H65,'WBS by Depr info'!$B$4:$G$147,4,0) -> 0.0258 | J65: =VLOOKUP($H65,'WBS by Depr info'!$B$4:$G$147,5,0) -> 0.0064 | K65: =VLOOKUP($H65,'WBS by Depr info'!$B$4:$G$147,6,0) -> 0 | L65: 2021 | M65: 08 | N65: 08/1/2021 | O65: 14 | P65: -174.398798 | Q65: -43.26171733 | R65: 0
A66: 1010 | B66: R10-55Q1.21-P-0016 | C66: 10130410 | D66: UP | E66: R10-55Q1.21-P-0016 | F66: 202112 | G66: 7691.99 | H66: =VLOOKUP($B66,'WBS by Depr info'!$A$5:$G$147,2,0) -> 10WA01:304100 | I66: =VLOOKUP($H66,'WBS by Depr info'!$B$4:$G$147,4,0) -> 0.0258 | J66: =VLOOKUP($H66,'WBS by Depr info'!$B$4:$G$147,5,0) -> 0.0064 | K66: =VLOOKUP($H66,'WBS by Depr info'!$B$4:$G$147,6,0) -> 0 | L66: 2021 | M66: 12 | N66: 12/1/2021 | O66: 10 | P66: 165.377785 | Q66: 41.02394667 | R66: 0
A67: 1010 | B67: R10-55Q1.21-P-0016 | C67: 10630410 | D67: UN | E67: R10-55Q1.21-P-0016 | F67: 202111 | G67: 7691.99 | H67: =VLOOKUP($B67,'WBS by Depr info'!$A$5:$G$147,2,0) -> 10WA01:304100 | I67: =VLOOKUP($H67,'WBS by Depr info'!$B$4:$G$147,4,0) -> 0.0258 | J67: =VLOOKUP($H67,'WBS by Depr info'!$B$4:$G$147,5,0) -> 0.0064 | K67: =VLOOKUP($H67,'WBS by Depr info'!$B$4:$G$147,6,0) -> 0 | L67: 2021 | M67: 11 | N67: 11/1/2021 | O67: 11 | P67: 181.9155635 | Q67: 45.12634133 | R67: 0
A68: 1010 | B68: R10-55Q1.21-P-0016 | C68: 10630410 | D68: UP | E68: R10-55Q1.21-P-0016 | F68: 202112 | G68: -7691.99 | H68: =VLOOKUP($B68,'WBS by Depr info'!$A$5:$G$147,2,0) -> 10WA01:304100 | I68: =VLOOKUP($H68,'WBS by Depr info'!$B$4:$G$147,4,0) -> 0.0258 | J68: =VLOOKUP($H68,'WBS by Depr info'!$B$4:$G$147,5,0) -> 0.0064 | K68: =VLOOKUP($H68,'WBS by Depr info'!$B$4:$G$147,6,0) -> 0 | L68: 2021 | M68: 12 | N68: 12/1/2021 | O68: 10 | P68: -165.377785 | Q68: -41.02394667 | R68: 0
A69: 1010 | B69: R10-55Q1.21-P-0019 | C69: 10130410 | D69: UP | E69: R10-55Q1.21-P-0019 | F69: 202205 | G69: 4526.68 | H69: =VLOOKUP($B69,'WBS by Depr info'!$A$5:$G$147,2,0) -> 10WA01:304100 | I69: =VLOOKUP($H69,'WBS by Depr info'!$B$4:$G$147,4,0) -> 0.0258 | J69: =VLOOKUP($H69,'WBS by Depr info'!$B$4:$G$147,5,0) -> 0.0064 | K69: =VLOOKUP($H69,'WBS by Depr info'!$B$4:$G$147,6,0) -> 0 | L69: 2022 | M69: 05 | N69: 05/1/2022 | O69: 5 | P69: 48.66181 | Q69: 12.07114667 | R69: 0
A70: 1010 | B70: R10-55Q1.21-P-0019 | C70: 10630410 | D70: UN | E70: R10-55Q1.21-P-0019 | F70: 202112 | G70: 4528.64 | H70: =VLOOKUP($B70,'WBS by Depr info'!$A$5:$G$147,2,0) -> 10WA01:304100 | I70: =VLOOKUP($H70,'WBS by Depr info'!$B$4:$G$147,4,0) -> 0.0258 | J70: =VLOOKUP($H70,'WBS by Depr info'!$B$4:$G$147,5,0) -> 0.0064 | K70: =VLOOKUP($H70,'WBS by Depr info'!$B$4:$G$147,6,0) -> 0 | L70: =LEFT(F70,4) -> 2021 | M70: =RIGHT(F70,2) -> 12 | N70: =CONCATENATE(M70,"/",1,"/",L70) -> 12/1/2021 | O70: 10 | P70: =$G70*($I70/12)*$O70 -> 97.36576 | Q70: =$G70*($J70/12)*$O70 -> 24.15274667 | R70: =$G70*($K70/12)*$O70 -> 0
A71: 1010 | B71: R10-55Q1.21-P-0019 | C71: 10630410 | D71: UN | E71: R10-55Q1.21-P-0019 | F71: 202201 | G71: -1.96 | H71: =VLOOKUP($B71,'WBS by Depr info'!$A$5:$G$147,2,0) -> 10WA01:304100 | I71: =VLOOKUP($H71,'WBS by Depr info'!$B$4:$G$147,4,0) -> 0.0258 | J71: =VLOOKUP($H71,'WBS by Depr info'!$B$4:$G$147,5,0) -> 0.0064 | K71: =VLOOKUP($H71,'WBS by Depr info'!$B$4:$G$147,6,0) -> 0 | L71: 2022 | M71: 01 | N71: 01/1/2022 | O71: =((DAYS360($N71,$N$1)/30)) -> 9 | P71: -0.037926 | Q71: -0.009408 | R71: 0
A72: 1010 | B72: R10-55Q1.21-P-0019 | C72: 10630410 | D72: UP | E72: R10-55Q1.21-P-0019 | F72: 202205 | G72: -4526.68 | H72: =VLOOKUP($B72,'WBS by Depr info'!$A$5:$G$147,2,0) -> 10WA01:304100 | I72: =VLOOKUP($H72,'WBS by Depr info'!$B$4:$G$147,4,0) -> 0.0258 | J72: =VLOOKUP($H72,'WBS by Depr info'!$B$4:$G$147,5,0) -> 0.0064 | K72: =VLOOKUP($H72,'WBS by Depr info'!$B$4:$G$147,6,0) -> 0 | L72: 2022 | M72: 05 | N72: 05/1/2022 | O72: 5 | P72: -48.66181 | Q72: -12.07114667 | R72: 0
A73: 1010 | B73: R10-55Q1.21-P-0024 | C73: 10630450 | D73: UN | E73: R10-55Q1.21-P-0024 | F73: 202112 | G73: 5189.85 | H73: =VLOOKUP($B73,'WBS by Depr info'!$A$5:$G$147,2,0) -> 10WA01:304500 | I73: =VLOOKUP($H73,'WBS by Depr info'!$B$4:$G$147,4,0) -> 0.03 | J73: =VLOOKUP($H73,'WBS by Depr info'!$B$4:$G$147,5,0) -> 0.0075 | K73: =VLOOKUP($H73,'WBS by Depr info'!$B$4:$G$147,6,0) -> 0 | L73: 2021 | M73: 12 | N73: 12/1/2021 | O73: 10 | P73: 129.74625 | Q73: 32.4365625 | R73: 0
A74: 1010 | B74: R10-55Q1.21-P-0024 | C74: 10630450 | D74: UN | E74: R10-55Q1.21-P-0024 | F74: 202201 | G74: 755.4 | H74: =VLOOKUP($B74,'WBS by Depr info'!$A$5:$G$147,2,0) -> 10WA01:304500 | I74: =VLOOKUP($H74,'WBS by Depr info'!$B$4:$G$147,4,0) -> 0.03 | J74: =VLOOKUP($H74,'WBS by Depr info'!$B$4:$G$147,5,0) -> 0.0075 | K74: =VLOOKUP($H74,'WBS by Depr info'!$B$4:$G$147,6,0) -> 0 | L74: 2022 | M74: 01 | N74: 01/1/2022 | O74: 9 | P74: 16.9965 | Q74: 4.249125 | R74: 0
A75: 1010 | B75: R10-55Q1.21-P-0026 | C75: 10130410 | D75: UP | E75: R10-55Q1.21-P-0026 | F75: 202201 | G75: 9675.87 | H75: =VLOOKUP($B75,'WBS by Depr info'!$A$5:$G$147,2,0) -> 10WA01:304100 | I75: =VLOOKUP($H75,'WBS by Depr info'!$B$4:$G$147,4,0) -> 0.0258 | J75: =VLOOKUP($H75,'WBS by Depr info'!$B$4:$G$147,5,0) -> 0.0064 | K75: =VLOOKUP($H75,'WBS by Depr info'!$B$4:$G$147,6,0) -> 0 | L75: 2022 | M75: 01 | N75: 01/1/2022 | O75: 9 | P75: 187.2280845 | Q75: 46.444176 | R75: 0
A76: 1010 | B76: R10-55Q1.21-P-0026 | C76: 10630410 | D76: UN | E76: R10-55Q1.21-P-0026 | F76: 202112 | G76: 9675.87 | H76: =VLOOKUP($B76,'WBS by Depr info'!$A$5:$G$147,2,0) -> 10WA01:304100 | I76: =VLOOKUP($H76,'WBS by Depr info'!$B$4:$G$147,4,0) -> 0.0258 | J76: =VLOOKUP($H76,'WBS by Depr info'!$B$4:$G$147,5,0) -> 0.0064 | K76: =VLOOKUP($H76,'WBS by Depr info'!$B$4:$G$147,6,0) -> 0 | L76: 2021 | M76: 12 | N76: 12/1/2021 | O76: 10 | P76: 208.031205 | Q76: 51.60464 | R76: 0
A77: 1010 | B77: R10-55Q1.21-P-0026 | C77: 10630410 | D77: UP | E77: R10-55Q1.21-P-0026 | F77: 202201 | G77: -9675.87 | H77: =VLOOKUP($B77,'WBS by Depr info'!$A$5:$G$147,2,0) -> 10WA01:304100 | I77: =VLOOKUP($H77,'WBS by Depr info'!$B$4:$G$147,4,0) -> 0.0258 | J77: =VLOOKUP($H77,'WBS by Depr info'!$B$4:$G$147,5,0) -> 0.0064 | K77: =VLOOKUP($H77,'WBS by Depr info'!$B$4:$G$147,6,0) -> 0 | L77: 2022 | M77: 01 | N77: 01/1/2022 | O77: 9 | P77: -187.2280845 | Q77: -46.444176 | R77: 0
A78: 1010 | B78: R10-55Q1.22-P-0003 | C78: 10130410 | D78: UP | E78: R10-55Q1.22-P-0003 | F78: 202204 | G78: 5068.48 | H78: =VLOOKUP($B78,'WBS by Depr info'!$A$5:$G$147,2,0) -> 10WA01:304100 | I78: =VLOOKUP($H78,'WBS by Depr info'!$B$4:$G$147,4,0) -> 0.0258 | J78: =VLOOKUP($H78,'WBS by Depr info'!$B$4:$G$147,5,0) -> 0.0064 | K78: =VLOOKUP($H78,'WBS by Depr info'!$B$4:$G$147,6,0) -> 0 | L78: 2022 | M78: 04 | N78: 04/1/2022 | O78: 6 | P78: 65.383392 | Q78: 16.219136 | R78: 0
A79: 1010 | B79: R10-55Q1.22-P-0003 | C79: 10630410 | D79: UN | E79: R10-55Q1.22-P-0003 | F79: 202203 | G79: 5068.48 | H79: =VLOOKUP($B79,'WBS by Depr info'!$A$5:$G$147,2,0) -> 10WA01:304100 | I79: =VLOOKUP($H79,'WBS by Depr info'!$B$4:$G$147,4,0) -> 0.0258 | J79: =VLOOKUP($H79,'WBS by Depr info'!$B$4:$G$147,5,0) -> 0.0064 | K79: =VLOOKUP($H79,'WBS by Depr info'!$B$4:$G$147,6,0) -> 0 | L79: 2022 | M79: 03 | N79: 03/1/2022 | O79: 7 | P79: 76.280624 | Q79: 18.92232533 | R79: 0
A80: 1010 | B80: R10-55Q1.22-P-0003 | C80: 10630410 | D80: UP | E80: R10-55Q1.22-P-0003 | F80: 202204 | G80: -5068.48 | H80: =VLOOKUP($B80,'WBS by Depr info'!$A$5:$G$147,2,0) -> 10WA01:304100 | I80: =VLOOKUP($H80,'WBS by Depr info'!$B$4:$G$147,4,0) -> 0.0258 | J80: =VLOOKUP($H80,'WBS by Depr info'!$B$4:$G$147,5,0) -> 0.0064 | K80: =VLOOKUP($H80,'WBS by Depr info'!$B$4:$G$147,6,0) -> 0 | L80: 2022 | M80: 04 | N80: 04/1/2022 | O80: 6 | P80: -65.383392 | Q80: -16.219136 | R80: 0
A81: 1010 | B81: R10-55Q1.22-P-0005 | C81: 10130410 | D81: UP | E81: R10-55Q1.22-P-0005 | F81: 202206 | G81: 14100.12 | H81: =VLOOKUP($B81,'WBS by Depr info'!$A$5:$G$147,2,0) -> 10WA01:304100 | I81: =VLOOKUP($H81,'WBS by Depr info'!$B$4:$G$147,4,0) -> 0.0258 | J81: =VLOOKUP($H81,'WBS by Depr info'!$B$4:$G$147,5,0) -> 0.0064 | K81: =VLOOKUP($H81,'WBS by Depr info'!$B$4:$G$147,6,0) -> 0 | L81: 2022 | M81: 06 | N81: 06/1/2022 | O81: 4 | P81: 121.261032 | Q81: 30.080256 | R81: 0
A82: 1010 | B82: R10-55Q1.22-P-0005 | C82: 10630410 | D82: UN | E82: R10-55Q1.22-P-0005 | F82: 202205 | G82: 14100.12 | H82: =VLOOKUP($B82,'WBS by Depr info'!$A$5:$G$147,2,0) -> 10WA01:304100 | I82: =VLOOKUP($H82,'WBS by Depr info'!$B$4:$G$147,4,0) -> 0.0258 | J82: =VLOOKUP($H82,'WBS by Depr info'!$B$4:$G$147,5,0) -> 0.0064 | K82: =VLOOKUP($H82,'WBS by Depr info'!$B$4:$G$147,6,0) -> 0 | L82: 2022 | M82: 05 | N82: 05/1/2022 | O82: 5 | P82: 151.57629 | Q82: 37.60032 | R82: 0
A83: 1010 | B83: R10-55Q1.22-P-0005 | C83: 10630410 | D83: UP | E83: R10-55Q1.22-P-0005 | F83: 202206 | G83: -14100.12 | H83: =VLOOKUP($B83,'WBS by Depr info'!$A$5:$G$147,2,0) -> 10WA01:304100 | I83: =VLOOKUP($H83,'WBS by Depr info'!$B$4:$G$147,4,0) -> 0.0258 | J83: =VLOOKUP($H83,'WBS by Depr info'!$B$4:$G$147,5,0) -> 0.0064 | K83: =VLOOKUP($H83,'WBS by Depr info'!$B$4:$G$147,6,0) -> 0 | L83: 2022 | M83: 06 | N83: 06/1/2022 | O83: 4 | P83: -121.261032 | Q83: -30.080256 | R83: 0
A84: 1010 | B84: R10-60Q1.20-P-0037 | C84: 10634700 | D84: UN | E84: R10-60Q1.20-P-0037 | F84: 202010 | G84: 3956.84 | H84: =VLOOKUP($B84,'WBS by Depr info'!$A$5:$G$147,2,0) -> 10WA01:347000 | I84: =VLOOKUP($H84,'WBS by Depr info'!$B$4:$G$147,4,0) -> 0.05 | J84: =VLOOKUP($H84,'WBS by Depr info'!$B$4:$G$147,5,0) -> 0 | K84: =VLOOKUP($H84,'WBS by Depr info'!$B$4:$G$147,6,0) -> 0 | L84: 2020 | M84: 10 | N84: 10/1/2020 | O84: 24 | P84: 395.684 | Q84: 0 | R84: 0
A85: 1010 | B85: R10-60Q1.20-P-0037 | C85: 10634700 | D85: UN | E85: R10-60Q1.20-P-0037 | F85: 202012 | G85: 269.36 | H85: =VLOOKUP($B85,'WBS by Depr info'!$A$5:$G$147,2,0) -> 10WA01:347000 | I85: =VLOOKUP($H85,'WBS by Depr info'!$B$4:$G$147,4,0) -> 0.05 | J85: =VLOOKUP($H85,'WBS by Depr info'!$B$4:$G$147,5,0) -> 0 | K85: =VLOOKUP($H85,'WBS by Depr info'!$B$4:$G$147,6,0) -> 0 | L85: 2020 | M85: 12 | N85: 12/1/2020 | O85: 22 | P85: 24.69133333 | Q85: 0 | R85: 0
A86: 1010 | B86: R10-60Q1.20-P-0037 | C86: 10634700 | D86: UN | E86: R10-60Q1.20-P-0037 | F86: 202101 | G86: -2.15 | H86: =VLOOKUP($B86,'WBS by Depr info'!$A$5:$G$147,2,0) -> 10WA01:347000 | I86: =VLOOKUP($H86,'WBS by Depr info'!$B$4:$G$147,4,0) -> 0.05 | J86: =VLOOKUP($H86,'WBS by Depr info'!$B$4:$G$147,5,0) -> 0 | K86: =VLOOKUP($H86,'WBS by Depr info'!$B$4:$G$147,6,0) -> 0 | L86: 2021 | M86: 01 | N86: 01/1/2021 | O86: 21 | P86: -0.188125 | Q86: 0 | R86: 0
A87: 1010 | B87: R10-60Q1.20-P-0049 | C87: 10631000 | D87: UN | E87: R10-60Q1.20-P-0049 | F87: 202101 | G87: 2759.13 | H87: =VLOOKUP($B87,'WBS by Depr info'!$A$5:$G$147,2,0) -> 10WA01:310000 | I87: =VLOOKUP($H87,'WBS by Depr info'!$B$4:$G$147,4,0) -> 0.0207 | J87: =VLOOKUP($H87,'WBS by Depr info'!$B$4:$G$147,5,0) -> 0.0027 | K87: =VLOOKUP($H87,'WBS by Depr info'!$B$4:$G$147,6,0) -> -0.0006 | L87: 2021 | M87: 01 | N87: 01/1/2021 | O87: 21 | P87: 99.94948425 | Q87: 13.03688925 | R87: -2.8970865
A88: 1010 | B88: R10-60Q1.20-P-0049 | C88: 10631000 | D88: UN | E88: R10-60Q1.20-P-0049 | F88: 202102 | G88: 1233.68 | H88: =VLOOKUP($B88,'WBS by Depr info'!$A$5:$G$147,2,0) -> 10WA01:310000 | I88: =VLOOKUP($H88,'WBS by Depr info'!$B$4:$G$147,4,0) -> 0.0207 | J88: =VLOOKUP($H88,'WBS by Depr info'!$B$4:$G$147,5,0) -> 0.0027 | K88: =VLOOKUP($H88,'WBS by Depr info'!$B$4:$G$147,6,0) -> -0.0006 | L88: 2021 | M88: 02 | N88: 02/1/2021 | O88: 20 | P88: 42.56196 | Q88: 5.55156 | R88: -1.23368
A89: 1010 | B89: R10-60Q1.20-P-0049 | C89: 10631000 | D89: UN | E89: R10-60Q1.20-P-0049 | F89: 202105 | G89: 85.83 | H89: =VLOOKUP($B89,'WBS by Depr info'!$A$5:$G$147,2,0) -> 10WA01:310000 | I89: =VLOOKUP($H89,'WBS by Depr info'!$B$4:$G$147,4,0) -> 0.0207 | J89: =VLOOKUP($H89,'WBS by Depr info'!$B$4:$G$147,5,0) -> 0.0027 | K89: =VLOOKUP($H89,'WBS by Depr info'!$B$4:$G$147,6,0) -> -0.0006 | L89: 2021 | M89: 05 | N89: 05/1/2021 | O89: 17 | P89: 2.51696475 | Q89: 0.32829975 | R89: -0.0729555
A90: 1010 | B90: R10-65Q1.20-P-0009 | C90: 10134700 | D90: UP | E90: R10-65Q1.20-P-0009 | F90: 202101 | G90: 6310.26 | H90: =VLOOKUP($B90,'WBS by Depr info'!$A$5:$G$147,2,0) -> 10WA01:347000 | I90: =VLOOKUP($H90,'WBS by Depr info'!$B$4:$G$147,4,0) -> 0.05 | J90: =VLOOKUP($H90,'WBS by Depr info'!$B$4:$G$147,5,0) -> 0 | K90: =VLOOKUP($H90,'WBS by Depr info'!$B$4:$G$147,6,0) -> 0 | L90: 2021 | M90: 01 | N90: 01/1/2021 | O90: 21 | P90: 552.14775 | Q90: 0 | R90: 0
A91: 1010 | B91: R10-65Q1.20-P-0009 | C91: 10634700 | D91: UN | E91: R10-65Q1.20-P-0009 | F91: 202011 | G91: 6357.45 | H91: =VLOOKUP($B91,'WBS by Depr info'!$A$5:$G$147,2,0) -> 10WA01:347000 | I91: =VLOOKUP($H91,'WBS by Depr info'!$B$4:$G$147,4,0) -> 0.05 | J91: =VLOOKUP($H91,'WBS by Depr info'!$B$4:$G$147,5,0) -> 0 | K91: =VLOOKUP($H91,'WBS by Depr info'!$B$4:$G$147,6,0) -> 0 | L91: 2020 | M91: 11 | N91: 11/1/2020 | O91: 23 | P91: 609.255625 | Q91: 0 | R91: 0
A92: 1010 | B92: R10-65Q1.20-P-0009 | C92: 10634700 | D92: UP | E92: R10-65Q1.20-P-0009 | F92: 202101 | G92: -6357.45 | H92: =VLOOKUP($B92,'WBS by Depr info'!$A$5:$G$147,2,0) -> 10WA01:347000 | I92: =VLOOKUP($H92,'WBS by Depr info'!$B$4:$G$147,4,0) -> 0.05 | J92: =VLOOKUP($H92,'WBS by Depr info'!$B$4:$G$147,5,0) -> 0 | K92: =VLOOKUP($H92,'WBS by Depr info'!$B$4:$G$147,6,0) -> 0 | L92: 2021 | M92: 01 | N92: 01/1/2021 | O92: 21 | P92: -556.276875 | Q92: 0 | R92: 0
A93: 1010 | B93: R10-65Q1.20-P-0011 | C93: 10131150 | D93: UP | E93: R10-65Q1.20-P-0011 | F93: 202010 | G93: 20689.79 | H93: =VLOOKUP($B93,'WBS by Depr info'!$A$5:$G$147,2,0) -> 10WA01:311500 | I93: =VLOOKUP($H93,'WBS by Depr info'!$B$4:$G$147,4,0) -> 0.0273 | J93: =VLOOKUP($H93,'WBS by Depr info'!$B$4:$G$147,5,0) -> 0.0035 | K93: =VLOOKUP($H93,'WBS by Depr info'!$B$4:$G$147,6,0) -> -0.0008 | L93: 2020 | M93: 10 | N93: 10/1/2020 | O93: 24 | P93: 1129.662534 | Q93: 144.82853 | R93: -33.103664
A94: 1010 | B94: R10-65Q1.20-P-0012 | C94: 10131150 | D94: UP | E94: R10-65Q1.20-P-0012 | F94: 202108 | G94: 9709.37 | H94: =VLOOKUP($B94,'WBS by Depr info'!$A$5:$G$147,2,0) -> 10WA01:311500 | I94: =VLOOKUP($H94,'WBS by Depr info'!$B$4:$G$147,4,0) -> 0.0273 | J94: =VLOOKUP($H94,'WBS by Depr info'!$B$4:$G$147,5,0) -> 0.0035 | K94: =VLOOKUP($H94,'WBS by Depr info'!$B$4:$G$147,6,0) -> -0.0008 | L94: 2021 | M94: 08 | N94: 08/1/2021 | O94: 14 | P94: 309.2434345 | Q94: 39.64659417 | R94: -9.062078667
A95: 1010 | B95: R10-65Q1.20-P-0012 | C95: 10631150 | D95: UN | E95: R10-65Q1.20-P-0012 | F95: 202010 | G95: 9781.99 | H95: =VLOOKUP($B95,'WBS by Depr info'!$A$5:$G$147,2,0) -> 10WA01:311500 | I95: =VLOOKUP($H95,'WBS by Depr info'!$B$4:$G$147,4,0) -> 0.0273 | J95: =VLOOKUP($H95,'WBS by Depr info'!$B$4:$G$147,5,0) -> 0.0035 | K95: =VLOOKUP($H95,'WBS by Depr info'!$B$4:$G$147,6,0) -> -0.0008 | L95: 2020 | M95: 10 | N95: 10/1/2020 | O95: 24 | P95: 534.096654 | Q95: 68.47393 | R95: -15.651184
A96: 1010 | B96: R10-65Q1.20-P-0012 | C96: 10631150 | D96: UN | E96: R10-65Q1.20-P-0012 | F96: 202101 | G96: -72.62 | H96: =VLOOKUP($B96,'WBS by Depr info'!$A$5:$G$147,2,0) -> 10WA01:311500 | I96: =VLOOKUP($H96,'WBS by Depr info'!$B$4:$G$147,4,0) -> 0.0273 | J96: =VLOOKUP($H96,'WBS by Depr info'!$B$4:$G$147,5,0) -> 0.0035 | K96: =VLOOKUP($H96,'WBS by Depr info'!$B$4:$G$147,6,0) -> -0.0008 | L96: 2021 | M96: 01 | N96: 01/1/2021 | O96: 21 | P96: -3.4694205 | Q96: -0.4447975 | R96: 0.101668
A97: 1010 | B97: R10-65Q1.20-P-0012 | C97: 10631150 | D97: UP | E97: R10-65Q1.20-P-0012 | F97: 202108 | G97: -9709.37 | H97: =VLOOKUP($B97,'WBS by Depr info'!$A$5:$G$147,2,0) -> 10WA01:311500 | I97: =VLOOKUP($H97,'WBS by Depr info'!$B$4:$G$147,4,0) -> 0.0273 | J97: =VLOOKUP($H97,'WBS by Depr info'!$B$4:$G$147,5,0) -> 0.0035 | K97: =VLOOKUP($H97,'WBS by Depr info'!$B$4:$G$147,6,0) -> -0.0008 | L97: 2021 | M97: 08 | N97: 08/1/2021 | O97: 14 | P97: -309.2434345 | Q97: -39.64659417 | R97: 9.062078667
A98: 1010 | B98: R10-65Q1.20-P-0017 | C98: 10131152 | D98: UP | E98: R10-65Q1.20-P-0017 | F98: 202103 | G98: 7409.07 | H98: =VLOOKUP($B98,'WBS by Depr info'!$A$5:$G$147,2,0) -> 10WA01:311520 | I98: =VLOOKUP($H98,'WBS by Depr info'!$B$4:$G$147,4,0) -> 0.0273 | J98: =VLOOKUP($H98,'WBS by Depr info'!$B$4:$G$147,5,0) -> 0.0035 | K98: =VLOOKUP($H98,'WBS by Depr info'!$B$4:$G$147,6,0) -> -0.0008 | L98: 2021 | M98: 03 | N98: 03/1/2021 | O98: 19 | P98: 320.2570508 | Q98: 41.05859625 | R98: -9.384822
A99: 1010 | B99: R10-65Q1.20-P-0017 | C99: 10631152 | D99: UN | E99: R10-65Q1.20-P-0017 | F99: 202102 | G99: 7409.07 | H99: =VLOOKUP($B99,'WBS by Depr info'!$A$5:$G$147,2,0) -> 10WA01:311520 | I99: =VLOOKUP($H99,'WBS by Depr info'!$B$4:$G$147,4,0) -> 0.0273 | J99: =VLOOKUP($H99,'WBS by Depr info'!$B$4:$G$147,5,0) -> 0.0035 | K99: =VLOOKUP($H99,'WBS by Depr info'!$B$4:$G$147,6,0) -> -0.0008 | L99: 2021 | M99: 02 | N99: 02/1/2021 | O99: 20 | P99: 337.112685 | Q99: 43.219575 | R99: -9.87876
A100: 1010 | B100: R10-65Q1.20-P-0017 | C100: 10631152 | D100: UP | E100: R10-65Q1.20-P-0017 | F100: 202103 | G100: -7409.07 | H100: =VLOOKUP($B100,'WBS by Depr info'!$A$5:$G$147,2,0) -> 10WA01:311520 | I100: =VLOOKUP($H100,'WBS by Depr info'!$B$4:$G$147,4,0) -> 0.0273 | J100: =VLOOKUP($H100,'WBS by Depr info'!$B$4:$G$147,5,0) -> 0.0035 | K100: =VLOOKUP($H100,'WBS by Depr info'!$B$4:$G$147,6,0) -> -0.0008 | L100: 2021 | M100: 03 | N100: 03/1/2021 | O100: 19 | P100: -320.2570508 | Q100: -41.05859625 | R100: 9.384822
A101: 1010 | B101: R10-70Q1.20-P-0016 | C101: 10131150 | D101: UP | E101: R10-70Q1.20-P-0016 | F101: 202102 | G101: 17083.64 | H101: =VLOOKUP($B101,'WBS by Depr info'!$A$5:$G$147,2,0) -> 10WA01:311500 | I101: =VLOOKUP($H101,'WBS by Depr info'!$B$4:$G$147,4,0) -> 0.0273 | J101: =VLOOKUP($H101,'WBS by Depr info'!$B$4:$G$147,5,0) -> 0.0035 | K101: =VLOOKUP($H101,'WBS by Depr info'!$B$4:$G$147,6,0) -> -0.0008 | L101: 2021 | M101: 02 | N101: 02/1/2021 | O101: 20 | P101: 777.30562 | Q101: 99.65456667 | R101: -22.77818667
A102: 1010 | B102: R10-70Q1.20-P-0016 | C102: 10631150 | D102: UN | E102: R10-70Q1.20-P-0016 | F102: 202101 | G102: 17083.64 | H102: =VLOOKUP($B102,'WBS by Depr info'!$A$5:$G$147,2,0) -> 10WA01:311500 | I102: =VLOOKUP($H102,'WBS by Depr info'!$B$4:$G$147,4,0) -> 0.0273 | J102: =VLOOKUP($H102,'WBS by Depr info'!$B$4:$G$147,5,0) -> 0.0035 | K102: =VLOOKUP($H102,'WBS by Depr info'!$B$4:$G$147,6,0) -> -0.0008 | L102: 2021 | M102: 01 | N102: 01/1/2021 | O102: 21 | P102: 816.170901 | Q102: 104.637295 | R102: -23.917096
A103: 1010 | B103: R10-70Q1.20-P-0016 | C103: 10631150 | D103: UP | E103: R10-70Q1.20-P-0016 | F103: 202102 | G103: -17083.64 | H103: =VLOOKUP($B103,'WBS by Depr info'!$A$5:$G$147,2,0) -> 10WA01:311500 | I103: =VLOOKUP($H103,'WBS by Depr info'!$B$4:$G$147,4,0) -> 0.0273 | J103: =VLOOKUP($H103,'WBS by Depr info'!$B$4:$G$147,5,0) -> 0.0035 | K103: =VLOOKUP($H103,'WBS by Depr info'!$B$4:$G$147,6,0) -> -0.0008 | L103: 2021 | M103: 02 | N103: 02/1/2021 | O103: 20 | P103: -777.30562 | Q103: -99.65456667 | R103: 22.77818667
A104: 1010 | B104: R10-70Q1.20-P-0019 | C104: 10131150 | D104: UP | E104: R10-70Q1.20-P-0019 | F104: 202103 | G104: 26700.93 | H104: =VLOOKUP($B104,'WBS by Depr info'!$A$5:$G$147,2,0) -> 10WA01:311500 | I104: =VLOOKUP($H104,'WBS by Depr info'!$B$4:$G$147,4,0) -> 0.0273 | J104: =VLOOKUP($H104,'WBS by Depr info'!$B$4:$G$147,5,0) -> 0.0035 | K104: =VLOOKUP($H104,'WBS by Depr info'!$B$4:$G$147,6,0) -> -0.0008 | L104: 2021 | M104: 03 | N104: 03/1/2021 | O104: 19 | P104: 1154.147699 | Q104: 147.9676538 | R104: -33.821178
A105: 1010 | B105: R10-70Q1.20-P-0019 | C105: 10631150 | D105: UN | E105: R10-70Q1.20-P-0019 | F105: 202101 | G105: 26700.93 | H105: =VLOOKUP($B105,'WBS by Depr info'!$A$5:$G$147,2,0) -> 10WA01:311500 | I105: =VLOOKUP($H105,'WBS by Depr info'!$B$4:$G$147,4,0) -> 0.0273 | J105: =VLOOKUP($H105,'WBS by Depr info'!$B$4:$G$147,5,0) -> 0.0035 | K105: =VLOOKUP($H105,'WBS by Depr info'!$B$4:$G$147,6,0) -> -0.0008 | L105: 2021 | M105: 01 | N105: 01/1/2021 | O105: 21 | P105: 1275.636931 | Q105: 163.5431963 | R105: -37.381302
A106: 1010 | B106: R10-70Q1.20-P-0019 | C106: 10631150 | D106: UP | E106: R10-70Q1.20-P-0019 | F106: 202103 | G106: -26700.93 | H106: =VLOOKUP($B106,'WBS by Depr info'!$A$5:$G$147,2,0) -> 10WA01:311500 | I106: =VLOOKUP($H106,'WBS by Depr info'!$B$4:$G$147,4,0) -> 0.0273 | J106: =VLOOKUP($H106,'WBS by Depr info'!$B$4:$G$147,5,0) -> 0.0035 | K106: =VLOOKUP($H106,'WBS by Depr info'!$B$4:$G$147,6,0) -> -0.0008 | L106: 2021 | M106: 03 | N106: 03/1/2021 | O106: 19 | P106: -1154.147699 | Q106: -147.9676538 | R106: 33.821178
A107: 1010 | B107: R10-70Q1.20-P-0023 | C107: 10131150 | D107: UP | E107: R10-70Q1.20-P-0023 | F107: 202101 | G107: 11761.26 | H107: =VLOOKUP($B107,'WBS by Depr info'!$A$5:$G$147,2,0) -> 10WA01:311500 | I107: =VLOOKUP($H107,'WBS by Depr info'!$B$4:$G$147,4,0) -> 0.0273 | J107: =VLOOKUP($H107,'WBS by Depr info'!$B$4:$G$147,5,0) -> 0.0035 | K107: =VLOOKUP($H107,'WBS by Depr info'!$B$4:$G$147,6,0) -> -0.0008 | L107: 2021 | M107: 01 | N107: 01/1/2021 | O107: 21 | P107: 561.8941965 | Q107: 72.0377175 | R107: -16.465764
A108: 1010 | B108: R10-70Q1.21-P-0030 | C108: 10131150 | D108: UP | E108: R10-70Q1.21-P-0030 | F108: 202205 | G108: 41292.68 | H108: =VLOOKUP($B108,'WBS by Depr info'!$A$5:$G$147,2,0) -> 10WA01:311500 | I108: =VLOOKUP($H108,'WBS by Depr info'!$B$4:$G$147,4,0) -> 0.0273 | J108: =VLOOKUP($H108,'WBS by Depr info'!$B$4:$G$147,5,0) -> 0.0035 | K108: =VLOOKUP($H108,'WBS by Depr info'!$B$4:$G$147,6,0) -> -0.0008 | L108: 2022 | M108: 05 | N108: 05/1/2022 | O108: 5 | P108: 469.704235 | Q108: 60.21849167 | R108: -13.76422667
A109: 1010 | B109: R10-70Q1.21-P-0030 | C109: 10631150 | D109: UN | E109: R10-70Q1.21-P-0030 | F109: 202204 | G109: 41292.68 | H109: =VLOOKUP($B109,'WBS by Depr info'!$A$5:$G$147,2,0) -> 10WA01:311500 | I109: =VLOOKUP($H109,'WBS by Depr info'!$B$4:$G$147,4,0) -> 0.0273 | J109: =VLOOKUP($H109,'WBS by Depr info'!$B$4:$G$147,5,0) -> 0.0035 | K109: =VLOOKUP($H109,'WBS by Depr info'!$B$4:$G$147,6,0) -> -0.0008 | L109: 2022 | M109: 04 | N109: 04/1/2022 | O109: 6 | P109: 563.645082 | Q109: 72.26219 | R109: -16.517072
A110: 1010 | B110: R10-70Q1.21-P-0030 | C110: 10631150 | D110: UP | E110: R10-70Q1.21-P-0030 | F110: 202205 | G110: -41292.68 | H110: =VLOOKUP($B110,'WBS by Depr info'!$A$5:$G$147,2,0) -> 10WA01:311500 | I110: =VLOOKUP($H110,'WBS by Depr info'!$B$4:$G$147,4,0) -> 0.0273 | J110: =VLOOKUP($H110,'WBS by Depr info'!$B$4:$G$147,5,0) -> 0.0035 | K110: =VLOOKUP($H110,'WBS by Depr info'!$B$4:$G$147,6,0) -> -0.0008 | L110: 2022 | M110: 05 | N110: 05/1/2022 | O110: 5 | P110: -469.704235 | Q110: -60.21849167 | R110: 13.76422667
A111: 1010 | B111: R10-72Q1.22-P-0003 | C111: 10139400 | D111: UP | E111: R10-72Q1.22-P-0003 | F111: 202206 | G111: 1670.25 | H111: =VLOOKUP($B111,'WBS by Depr info'!$A$5:$G$147,2,0) -> 10SA01:394000 | I111: =VLOOKUP($H111,'WBS by Depr info'!$B$4:$G$147,4,0) -> 0.0667 | J111: =VLOOKUP($H111,'WBS by Depr info'!$B$4:$G$147,5,0) -> 0 | K111: =VLOOKUP($H111,'WBS by Depr info'!$B$4:$G$147,6,0) -> 0 | L111: 2022 | M111: 06 | N111: 06/1/2022 | O111: 4 | P111: 37.135225 | Q111: 0 | R111: 0
A112: 1010 | B112: R10-72Q1.22-P-0003 | C112: 10639400 | D112: UN | E112: R10-72Q1.22-P-0003 | F112: 202205 | G112: 1670.25 | H112: =VLOOKUP($B112,'WBS by Depr info'!$A$5:$G$147,2,0) -> 10SA01:394000 | I112: =VLOOKUP($H112,'WBS by Depr info'!$B$4:$G$147,4,0) -> 0.0667 | J112: =VLOOKUP($H112,'WBS by Depr info'!$B$4:$G$147,5,0) -> 0 | K112: =VLOOKUP($H112,'WBS by Depr info'!$B$4:$G$147,6,0) -> 0 | L112: 2022 | M112: 05 | N112: 05/1/2022 | O112: 5 | P112: 46.41903125 | Q112: 0 | R112: 0
A113: 1010 | B113: R10-72Q1.22-P-0003 | C113: 10639400 | D113: UP | E113: R10-72Q1.22-P-0003 | F113: 202206 | G113: -1670.25 | H113: =VLOOKUP($B113,'WBS by Depr info'!$A$5:$G$147,2,0) -> 10SA01:394000 | I113: =VLOOKUP($H113,'WBS by Depr info'!$B$4:$G$147,4,0) -> 0.0667 | J113: =VLOOKUP($H113,'WBS by Depr info'!$B$4:$G$147,5,0) -> 0 | K113: =VLOOKUP($H113,'WBS by Depr info'!$B$4:$G$147,6,0) -> 0 | L113: 2022 | M113: 06 | N113: 06/1/2022 | O113: 4 | P113: -37.135225 | Q113: 0 | R113: 0
A114: 1010 | B114: R10-75Q1.19-P-0016 | C114: 10634600 | D114: UN | E114: R10-75Q1.19-P-0016 | F114: 202102 | G114: 348121.82 | H114: =VLOOKUP($B114,'WBS by Depr info'!$A$5:$G$147,2,0) -> 10WA01:346190 | I114: =VLOOKUP($H114,'WBS by Depr info'!$B$4:$G$147,4,0) -> 0.0667 | J114: =VLOOKUP($H114,'WBS by Depr info'!$B$4:$G$147,5,0) -> 0 | K114: =VLOOKUP($H114,'WBS by Depr info'!$B$4:$G$147,6,0) -> 0 | L114: 2021 | M114: 02 | N114: 02/1/2021 | O114: 20 | P114: 38699.54232 | Q114: 0 | R114: 0
A115: 1010 | B115: R10-75Q1.20-P-0009 | C115: 10134600 | D115: UP | E115: R10-75Q1.20-P-0009 | F115: 202109 | G115: 69665.09 | H115: =VLOOKUP($B115,'WBS by Depr info'!$A$5:$G$147,2,0) -> 10WA01:346190 | I115: =VLOOKUP($H115,'WBS by Depr info'!$B$4:$G$147,4,0) -> 0.0667 | J115: =VLOOKUP($H115,'WBS by Depr info'!$B$4:$G$147,5,0) -> 0 | K115: =VLOOKUP($H115,'WBS by Depr info'!$B$4:$G$147,6,0) -> 0 | L115: 2021 | M115: 09 | N115: 09/1/2021 | O115: 13 | P115: 5033.883295 | Q115: 0 | R115: 0
A116: 1010 | B116: R10-75Q1.20-P-0009 | C116: 10134600 | D116: UP | E116: R10-75Q1.20-P-0009 | F116: 202112 | G116: 14347.46 | H116: =VLOOKUP($B116,'WBS by Depr info'!$A$5:$G$147,2,0) -> 10WA01:346190 | I116: =VLOOKUP($H116,'WBS by Depr info'!$B$4:$G$147,4,0) -> 0.0667 | J116: =VLOOKUP($H116,'WBS by Depr info'!$B$4:$G$147,5,0) -> 0 | K116: =VLOOKUP($H116,'WBS by Depr info'!$B$4:$G$147,6,0) -> 0 | L116: 2021 | M116: 12 | N116: 12/1/2021 | O116: 10 | P116: 797.4796517 | Q116: 0 | R116: 0
A117: 1010 | B117: R10-75Q1.20-P-0009 | C117: 10634600 | D117: UN | E117: R10-75Q1.20-P-0009 | F117: 202012 | G117: 70393.83 | H117: =VLOOKUP($B117,'WBS by Depr info'!$A$5:$G$147,2,0) -> 10WA01:346190 | I117: =VLOOKUP($H117,'WBS by Depr info'!$B$4:$G$147,4,0) -> 0.0667 | J117: =VLOOKUP($H117,'WBS by Depr info'!$B$4:$G$147,5,0) -> 0 | K117: =VLOOKUP($H117,'WBS by Depr info'!$B$4:$G$147,6,0) -> 0 | L117: 2020 | M117: 12 | N117: 12/1/2020 | O117: 22 | P117: 8607.992179 | Q117: 0 | R117: 0
A118: 1010 | B118: R10-75Q1.20-P-0009 | C118: 10634600 | D118: UN | E118: R10-75Q1.20-P-0009 | F118: 202101 | G118: -728.74 | H118: =VLOOKUP($B118,'WBS by Depr info'!$A$5:$G$147,2,0) -> 10WA01:346190 | I118: =VLOOKUP($H118,'WBS by Depr info'!$B$4:$G$147,4,0) -> 0.0667 | J118: =VLOOKUP($H118,'WBS by Depr info'!$B$4:$G$147,5,0) -> 0 | K118: =VLOOKUP($H118,'WBS by Depr info'!$B$4:$G$147,6,0) -> 0 | L118: 2021 | M118: 01 | N118: 01/1/2021 | O118: 21 | P118: -85.0621765 | Q118: 0 | R118: 0
A119: 1010 | B119: R10-75Q1.20-P-0009 | C119: 10634600 | D119: UP | E119: R10-75Q1.20-P-0009 | F119: 202109 | G119: -69665.09 | H119: =VLOOKUP($B119,'WBS by Depr info'!$A$5:$G$147,2,0) -> 10WA01:346190 | I119: =VLOOKUP($H119,'WBS by Depr info'!$B$4:$G$147,4,0) -> 0.0667 | J119: =VLOOKUP($H119,'WBS by Depr info'!$B$4:$G$147,5,0) -> 0 | K119: =VLOOKUP($H119,'WBS by Depr info'!$B$4:$G$147,6,0) -> 0 | L119: 2021 | M119: 09 | N119: 09/1/2021 | O119: 13 | P119: -5033.883295 | Q119: 0 | R119: 0
A120: 1010 | B120: R10-75Q1.20-P-0010 | C120: 10130410 | D120: UP | E120: R10-75Q1.20-P-0010 | F120: 202105 | G120: 120951.96 | H120: =VLOOKUP($B120,'WBS by Depr info'!$A$5:$G$147,2,0) -> 10WA01:304100 | I120: =VLOOKUP($H120,'WBS by Depr info'!$B$4:$G$147,4,0) -> 0.0258 | J120: =VLOOKUP($H120,'WBS by Depr info'!$B$4:$G$147,5,0) -> 0.0064 | K120: =VLOOKUP($H120,'WBS by Depr info'!$B$4:$G$147,6,0) -> 0 | L120: 2021 | M120: 05 | N120: 05/1/2021 | O120: 17 | P120: 4420.794138 | Q120: 1096.631104 | R120: 0
A121: 1010 | B121: R10-75Q1.20-P-0010 | C121: 10630410 | D121: UN | E121: R10-75Q1.20-P-0010 | F121: 202102 | G121: 120951.96 | H121: =VLOOKUP($B121,'WBS by Depr info'!$A$5:$G$147,2,0) -> 10WA01:304100 | I121: =VLOOKUP($H121,'WBS by Depr info'!$B$4:$G$147,4,0) -> 0.0258 | J121: =VLOOKUP($H121,'WBS by Depr info'!$B$4:$G$147,5,0) -> 0.0064 | K121: =VLOOKUP($H121,'WBS by Depr info'!$B$4:$G$147,6,0) -> 0 | L121: 2021 | M121: 02 | N121: 02/1/2021 | O121: 20 | P121: 5200.93428 | Q121: 1290.15424 | R121: 0
A122: 1010 | B122: R10-75Q1.20-P-0010 | C122: 10630410 | D122: UP | E122: R10-75Q1.20-P-0010 | F122: 202105 | G122: -120951.96 | H122: =VLOOKUP($B122,'WBS by Depr info'!$A$5:$G$147,2,0) -> 10WA01:304100 | I122: =VLOOKUP($H122,'WBS by Depr info'!$B$4:$G$147,4,0) -> 0.0258 | J122: =VLOOKUP($H122,'WBS by Depr info'!$B$4:$G$147,5,0) -> 0.0064 | K122: =VLOOKUP($H122,'WBS by Depr info'!$B$4:$G$147,6,0) -> 0 | L122: 2021 | M122: 05 | N122: 05/1/2021 | O122: 17 | P122: -4420.794138 | Q122: -1096.631104 | R122: 0
A123: 1010 | B123: R10-80Q1.20-P-0002 | C123: 10632010 | D123: UN | E123: R10-80Q1.20-P-0002 | F123: 202007 | G123: 28530.25 | H123: =VLOOKUP($B123,'WBS by Depr info'!$A$5:$G$147,2,0) -> 10WA01:320100 | I123: =VLOOKUP($H123,'WBS by Depr info'!$B$4:$G$147,4,0) -> 0.0185 | J123: =VLOOKUP($H123,'WBS by Depr info'!$B$4:$G$147,5,0) -> 0.0048 | K123: =VLOOKUP($H123,'WBS by Depr info'!$B$4:$G$147,6,0) -> -0.0002 | L123: 2020 | M123: 07 | N123: 07/1/2020 | O123: 27 | P123: 1187.571656 | Q123: 308.1267 | R123: -12.8386125
A124: 1010 | B124: R10-80Q1.20-P-0002 | C124: 10632010 | D124: UN | E124: R10-80Q1.20-P-0002 | F124: 202008 | G124: 0 | H124: =VLOOKUP($B124,'WBS by Depr info'!$A$5:$G$147,2,0) -> 10WA01:320100 | I124: =VLOOKUP($H124,'WBS by Depr info'!$B$4:$G$147,4,0) -> 0.0185 | J124: =VLOOKUP($H124,'WBS by Depr info'!$B$4:$G$147,5,0) -> 0.0048 | K124: =VLOOKUP($H124,'WBS by Depr info'!$B$4:$G$147,6,0) -> -0.0002 | L124: 2020 | M124: 08 | N124: 08/1/2020 | O124: 26 | P124: 0 | Q124: 0 | R124: 0
A125: 1010 | B125: R10-80Q1.20-P-0002 | C125: 10632010 | D125: UN | E125: R10-80Q1.20-P-0002 | F125: 202009 | G125: 0 | H125: =VLOOKUP($B125,'WBS by Depr info'!$A$5:$G$147,2,0) -> 10WA01:320100 | I125: =VLOOKUP($H125,'WBS by Depr info'!$B$4:$G$147,4,0) -> 0.0185 | J125: =VLOOKUP($H125,'WBS by Depr info'!$B$4:$G$147,5,0) -> 0.0048 | K125: =VLOOKUP($H125,'WBS by Depr info'!$B$4:$G$147,6,0) -> -0.0002 | L125: 2020 | M125: 09 | N125: 09/1/2020 | O125: 25 | P125: 0 | Q125: 0 | R125: 0
A126: 1010 | B126: R10-80Q1.20-P-0002 | C126: 10632010 | D126: UN | E126: R10-80Q1.20-P-0002 | F126: 202010 | G126: 0 | H126: =VLOOKUP($B126,'WBS by Depr info'!$A$5:$G$147,2,0) -> 10WA01:320100 | I126: =VLOOKUP($H126,'WBS by Depr info'!$B$4:$G$147,4,0) -> 0.0185 | J126: =VLOOKUP($H126,'WBS by Depr info'!$B$4:$G$147,5,0) -> 0.0048 | K126: =VLOOKUP($H126,'WBS by Depr info'!$B$4:$G$147,6,0) -> -0.0002 | L126: 2020 | M126: 10 | N126: 10/1/2020 | O126: 24 | P126: 0 | Q126: 0 | R126: 0
A127: 1010 | B127: R10-80Q1.20-P-0002 | C127: 10632010 | D127: UN | E127: R10-80Q1.20-P-0002 | F127: 202011 | G127: 0 | H127: =VLOOKUP($B127,'WBS by Depr info'!$A$5:$G$147,2,0) -> 10WA01:320100 | I127: =VLOOKUP($H127,'WBS by Depr info'!$B$4:$G$147,4,0) -> 0.0185 | J127: =VLOOKUP($H127,'WBS by Depr info'!$B$4:$G$147,5,0) -> 0.0048 | K127: =VLOOKUP($H127,'WBS by Depr info'!$B$4:$G$147,6,0) -> -0.0002 | L127: 2020 | M127: 11 | N127: 11/1/2020 | O127: 23 | P127: 0 | Q127: 0 | R127: 0
A128: 1010 | B128: R10-80Q1.20-P-0002 | C128: 10632010 | D128: UN | E128: R10-80Q1.20-P-0002 | F128: 202012 | G128: -1610.09 | H128: =VLOOKUP($B128,'WBS by Depr info'!$A$5:$G$147,2,0) -> 10WA01:320100 | I128: =VLOOKUP($H128,'WBS by Depr info'!$B$4:$G$147,4,0) -> 0.0185 | J128: =VLOOKUP($H128,'WBS by Depr info'!$B$4:$G$147,5,0) -> 0.0048 | K128: =VLOOKUP($H128,'WBS by Depr info'!$B$4:$G$147,6,0) -> -0.0002 | L128: 2020 | M128: 12 | N128: 12/1/2020 | O128: 22 | P128: -54.60888583 | Q128: -14.168792 | R128: 0.5903663333
A129: 1010 | B129: R10-80Q1.20-P-0003 | C129: 10631150 | D129: UN | E129: R10-80Q1.20-P-0003 | F129: 202007 | G129: 21759.6 | H129: =VLOOKUP($B129,'WBS by Depr info'!$A$5:$G$147,2,0) -> 10WA01:311500 | I129: =VLOOKUP($H129,'WBS by Depr info'!$B$4:$G$147,4,0) -> 0.0273 | J129: =VLOOKUP($H129,'WBS by Depr info'!$B$4:$G$147,5,0) -> 0.0035 | K129: =VLOOKUP($H129,'WBS by Depr info'!$B$4:$G$147,6,0) -> -0.0008 | L129: 2020 | M129: 07 | N129: 07/1/2020 | O129: 27 | P129: 1336.58343 | Q129: 171.35685 | R129: -39.16728
A130: 1010 | B130: R10-80Q1.20-P-0008 | C130: 10130700 | D130: UP | E130: R10-80Q1.20-P-0008 | F130: 202202 | G130: 8918.54 | H130: =VLOOKUP($B130,'WBS by Depr info'!$A$5:$G$147,2,0) -> 10WA01:307000 | I130: =VLOOKUP($H130,'WBS by Depr info'!$B$4:$G$147,4,0) -> 0.0241 | J130: =VLOOKUP($H130,'WBS by Depr info'!$B$4:$G$147,5,0) -> 0.0038 | K130: =VLOOKUP($H130,'WBS by Depr info'!$B$4:$G$147,6,0) -> -0.0002 | L130: 2022 | M130: 02 | N130: 02/1/2022 | O130: 8 | P130: 143.2912093 | Q130: 22.59363467 | R130: -1.189138667
A131: 1010 | B131: R10-80Q1.20-P-0008 | C131: 10630700 | D131: UN | E131: R10-80Q1.20-P-0008 | F131: 202008 | G131: 8918.54 | H131: =VLOOKUP($B131,'WBS by Depr info'!$A$5:$G$147,2,0) -> 10WA01:307000 | I131: =VLOOKUP($H131,'WBS by Depr info'!$B$4:$G$147,4,0) -> 0.0241 | J131: =VLOOKUP($H131,'WBS by Depr info'!$B$4:$G$147,5,0) -> 0.0038 | K131: =VLOOKUP($H131,'WBS by Depr info'!$B$4:$G$147,6,0) -> -0.0002 | L131: 2020 | M131: 08 | N131: 08/1/2020 | O131: 26 | P131: 465.6964303 | Q131: 73.42931267 | R131: -3.864700667
A132: 1010 | B132: R10-80Q1.20-P-0008 | C132: 10630700 | D132: UP | E132: R10-80Q1.20-P-0008 | F132: 202202 | G132: -8918.54 | H132: =VLOOKUP($B132,'WBS by Depr info'!$A$5:$G$147,2,0) -> 10WA01:307000 | I132: =VLOOKUP($H132,'WBS by Depr info'!$B$4:$G$147,4,0) -> 0.0241 | J132: =VLOOKUP($H132,'WBS by Depr info'!$B$4:$G$147,5,0) -> 0.0038 | K132: =VLOOKUP($H132,'WBS by Depr info'!$B$4:$G$147,6,0) -> -0.0002 | L132: 2022 | M132: 02 | N132: 02/1/2022 | O132: 8 | P132: -143.2912093 | Q132: -22.59363467 | R132: 1.189138667
A133: 1010 | B133: R10-80Q1.20-P-0010 | C133: 10630700 | D133: UN | E133: R10-80Q1.20-P-0010 | F133: 202012 | G133: 7883.88 | H133: =VLOOKUP($B133,'WBS by Depr info'!$A$5:$G$147,2,0) -> 10WA01:307000 | I133: =VLOOKUP($H133,'WBS by Depr info'!$B$4:$G$147,4,0) -> 0.0241 | J133: =VLOOKUP($H133,'WBS by Depr info'!$B$4:$G$147,5,0) -> 0.0038 | K133: =VLOOKUP($H133,'WBS by Depr info'!$B$4:$G$147,6,0) -> -0.0002 | L133: 2020 | M133: 12 | N133: 12/1/2020 | O133: 22 | P133: 348.336098 | Q133: 54.924364 | R133: -2.890756
A134: 1010 | B134: R10-80Q1.20-P-0010 | C134: 10630700 | D134: UN | E134: R10-80Q1.20-P-0010 | F134: 202101 | G134: -62.06 | H134: =VLOOKUP($B134,'WBS by Depr info'!$A$5:$G$147,2,0) -> 10WA01:307000 | I134: =VLOOKUP($H134,'WBS by Depr info'!$B$4:$G$147,4,0) -> 0.0241 | J134: =VLOOKUP($H134,'WBS by Depr info'!$B$4:$G$147,5,0) -> 0.0038 | K134: =VLOOKUP($H134,'WBS by Depr info'!$B$4:$G$147,6,0) -> -0.0002 | L134: =LEFT(F134,4) -> 2021 | M134: =RIGHT(F134,2) -> 01 | N134: =CONCATENATE(M134,"/",1,"/",L134) -> 01/1/2021 | O134: 21 | P134: =$G134*($I134/12)*$O134 -> -2.6173805 | Q134: =$G134*($J134/12)*$O134 -> -0.412699 | R134: =$G134*($K134/12)*$O134 -> 0.021721
A135: 1010 | B135: R10-80Q1.20-P-0011 | C135: 10630700 | D135: UN | E135: R10-80Q1.20-P-0011 | F135: 202012 | G135: 14967.87 | H135: =VLOOKUP($B135,'WBS by Depr info'!$A$5:$G$147,2,0) -> 10WA01:307000 | I135: =VLOOKUP($H135,'WBS by Depr info'!$B$4:$G$147,4,0) -> 0.0241 | J135: =VLOOKUP($H135,'WBS by Depr info'!$B$4:$G$147,5,0) -> 0.0038 | K135: =VLOOKUP($H135,'WBS by Depr info'!$B$4:$G$147,6,0) -> -0.0002 | L135: 2020 | M135: 12 | N135: 12/1/2020 | O135: =((DAYS360($N135,$N$1)/30)) -> 22 | P135: 661.3303895 | Q135: 104.276161 | R135: -5.488219
A136: 1010 | B136: R10-80Q1.20-P-0011 | C136: 10630700 | D136: UN | E136: R10-80Q1.20-P-0011 | F136: 202101 | G136: -119 | H136: =VLOOKUP($B136,'WBS by Depr info'!$A$5:$G$147,2,0) -> 10WA01:307000 | I136: =VLOOKUP($H136,'WBS by Depr info'!$B$4:$G$147,4,0) -> 0.0241 | J136: =VLOOKUP($H136,'WBS by Depr info'!$B$4:$G$147,5,0) -> 0.0038 | K136: =VLOOKUP($H136,'WBS by Depr info'!$B$4:$G$147,6,0) -> -0.0002 | L136: 2021 | M136: 01 | N136: 01/1/2021 | O136: 21 | P136: -5.018825 | Q136: -0.79135 | R136: 0.04165
A137: 1010 | B137: R10-80Q1.21-P-0002 | C137: 10632010 | D137: UN | E137: R10-80Q1.21-P-0002 | F137: 202106 | G137: 29698.33 | H137: =VLOOKUP($B137,'WBS by Depr info'!$A$5:$G$147,2,0) -> 10WA01:320100 | I137: =VLOOKUP($H137,'WBS by Depr info'!$B$4:$G$147,4,0) -> 0.0185 | J137: =VLOOKUP($H137,'WBS by Depr info'!$B$4:$G$147,5,0) -> 0.0048 | K137: =VLOOKUP($H137,'WBS by Depr info'!$B$4:$G$147,6,0) -> -0.0002 | L137: 2021 | M137: 06 | N137: 06/1/2021 | O137: 16 | P137: 732.5588067 | Q137: 190.069312 | R137: -7.919554667
A138: 1010 | B138: R10-80Q1.21-P-0002 | C138: 10632010 | D138: UN | E138: R10-80Q1.21-P-0002 | F138: 202107 | G138: 0 | H138: =VLOOKUP($B138,'WBS by Depr info'!$A$5:$G$147,2,0) -> 10WA01:320100 | I138: =VLOOKUP($H138,'WBS by Depr info'!$B$4:$G$147,4,0) -> 0.0185 | J138: =VLOOKUP($H138,'WBS by Depr info'!$B$4:$G$147,5,0) -> 0.0048 | K138: =VLOOKUP($H138,'WBS by Depr info'!$B$4:$G$147,6,0) -> -0.0002 | L138: 2021 | M138: 07 | N138: 07/1/2021 | O138: 15 | P138: 0 | Q138: 0 | R138: 0
A139: 1010 | B139: R10-80Q1.21-P-0002 | C139: 10632010 | D139: UN | E139: R10-80Q1.21-P-0002 | F139: 202108 | G139: 0 | H139: =VLOOKUP($B139,'WBS by Depr info'!$A$5:$G$147,2,0) -> 10WA01:320100 | I139: =VLOOKUP($H139,'WBS by Depr info'!$B$4:$G$147,4,0) -> 0.0185 | J139: =VLOOKUP($H139,'WBS by Depr info'!$B$4:$G$147,5,0) -> 0.0048 | K139: =VLOOKUP($H139,'WBS by Depr info'!$B$4:$G$147,6,0) -> -0.0002 | L139: 2021 | M139: 08 | N139: 08/1/2021 | O139: 14 | P139: 0 | Q139: 0 | R139: 0
A140: 1010 | B140: R10-80Q1.21-P-0002 | C140: 10632010 | D140: UN | E140: R10-80Q1.21-P-0002 | F140: 202109 | G140: 0 | H140: =VLOOKUP($B140,'WBS by Depr info'!$A$5:$G$147,2,0) -> 10WA01:320100 | I140: =VLOOKUP($H140,'WBS by Depr info'!$B$4:$G$147,4,0) -> 0.0185 | J140: =VLOOKUP($H140,'WBS by Depr info'!$B$4:$G$147,5,0) -> 0.0048 | K140: =VLOOKUP($H140,'WBS by Depr info'!$B$4:$G$147,6,0) -> -0.0002 | L140: 2021 | M140: 09 | N140: 09/1/2021 | O140: 13 | P140: 0 | Q140: 0 | R140: 0
A141: 1010 | B141: R10-80Q1.21-P-0002 | C141: 10632010 | D141: UN | E141: R10-80Q1.21-P-0002 | F141: 202110 | G141: 0 | H141: =VLOOKUP($B141,'WBS by Depr info'!$A$5:$G$147,2,0) -> 10WA01:320100 | I141: =VLOOKUP($H141,'WBS by Depr info'!$B$4:$G$147,4,0) -> 0.0185 | J141: =VLOOKUP($H141,'WBS by Depr info'!$B$4:$G$147,5,0) -> 0.0048 | K141: =VLOOKUP($H141,'WBS by Depr info'!$B$4:$G$147,6,0) -> -0.0002 | L141: 2021 | M141: 10 | N141: 10/1/2021 | O141: 12 | P141: 0 | Q141: 0 | R141: 0
A142: 1010 | B142: R10-80Q1.21-P-0002 | C142: 10632010 | D142: UN | E142: R10-80Q1.21-P-0002 | F142: 202111 | G142: 0 | H142: =VLOOKUP($B142,'WBS by Depr info'!$A$5:$G$147,2,0) -> 10WA01:320100 | I142: =VLOOKUP($H142,'WBS by Depr info'!$B$4:$G$147,4,0) -> 0.0185 | J142: =VLOOKUP($H142,'WBS by Depr info'!$B$4:$G$147,5,0) -> 0.0048 | K142: =VLOOKUP($H142,'WBS by Depr info'!$B$4:$G$147,6,0) -> -0.0002 | L142: 2021 | M142: 11 | N142: 11/1/2021 | O142: 11 | P142: 0 | Q142: 0 | R142: 0
A143: 1010 | B143: R10-80Q1.21-P-0002 | C143: 10632010 | D143: UN | E143: R10-80Q1.21-P-0002 | F143: 202112 | G143: 0 | H143: =VLOOKUP($B143,'WBS by Depr info'!$A$5:$G$147,2,0) -> 10WA01:320100 | I143: =VLOOKUP($H143,'WBS by Depr info'!$B$4:$G$147,4,0) -> 0.0185 | J143: =VLOOKUP($H143,'WBS by Depr info'!$B$4:$G$147,5,0) -> 0.0048 | K143: =VLOOKUP($H143,'WBS by Depr info'!$B$4:$G$147,6,0) -> -0.0002 | L143: 2021 | M143: 12 | N143: 12/1/2021 | O143: 10 | P143: 0 | Q143: 0 | R143: 0
A144: 1010 | B144: R10-80Q1.21-P-0002 | C144: 10632010 | D144: UN | E144: R10-80Q1.21-P-0002 | F144: 202201 | G144: 0 | H144: =VLOOKUP($B144,'WBS by Depr info'!$A$5:$G$147,2,0) -> 10WA01:320100 | I144: =VLOOKUP($H144,'WBS by Depr info'!$B$4:$G$147,4,0) -> 0.0185 | J144: =VLOOKUP($H144,'WBS by Depr info'!$B$4:$G$147,5,0) -> 0.0048 | K144: =VLOOKUP($H144,'WBS by Depr info'!$B$4:$G$147,6,0) -> -0.0002 | L144: 2022 | M144: 01 | N144: 01/1/2022 | O144: 9 | P144: 0 | Q144: 0 | R144: 0
A145: 1010 | B145: R10-80Q1.21-P-0002 | C145: 10632010 | D145: UN | E145: R10-80Q1.21-P-0002 | F145: 202202 | G145: 0 | H145: =VLOOKUP($B145,'WBS by Depr info'!$A$5:$G$147,2,0) -> 10WA01:320100 | I145: =VLOOKUP($H145,'WBS by Depr info'!$B$4:$G$147,4,0) -> 0.0185 | J145: =VLOOKUP($H145,'WBS by Depr info'!$B$4:$G$147,5,0) -> 0.0048 | K145: =VLOOKUP($H145,'WBS by Depr info'!$B$4:$G$147,6,0) -> -0.0002 | L145: 2022 | M145: 02 | N145: 02/1/2022 | O145: 8 | P145: 0 | Q145: 0 | R145: 0
A146: 1010 | B146: R10-80Q1.21-P-0002 | C146: 10632010 | D146: UN | E146: R10-80Q1.21-P-0002 | F146: 202203 | G146: -1340.71 | H146: =VLOOKUP($B146,'WBS by Depr info'!$A$5:$G$147,2,0) -> 10WA01:320100 | I146: =VLOOKUP($H146,'WBS by Depr info'!$B$4:$G$147,4,0) -> 0.0185 | J146: =VLOOKUP($H146,'WBS by Depr info'!$B$4:$G$147,5,0) -> 0.0048 | K146: =VLOOKUP($H146,'WBS by Depr info'!$B$4:$G$147,6,0) -> -0.0002 | L146: 2022 | M146: 03 | N146: 03/1/2022 | O146: 7 | P146: -14.46849542 | Q146: -3.753988 | R146: 0.1564161667
A147: 1010 | B147: R10-80Q1.21-P-0005 | C147: 10630700 | D147: UN | E147: R10-80Q1.21-P-0005 | F147: 202108 | G147: 7349.93 | H147: =VLOOKUP($B147,'WBS by Depr info'!$A$5:$G$147,2,0) -> 10WA01:307000 | I147: =VLOOKUP($H147,'WBS by Depr info'!$B$4:$G$147,4,0) -> 0.0241 | J147: =VLOOKUP($H147,'WBS by Depr info'!$B$4:$G$147,5,0) -> 0.0038 | K147: =VLOOKUP($H147,'WBS by Depr info'!$B$4:$G$147,6,0) -> -0.0002 | L147: 2021 | M147: 08 | N147: 08/1/2021 | O147: 14 | P147: 206.6555318 | Q147: 32.58468967 | R147: -1.714983667
A148: 1010 | B148: R10-80Q1.21-P-0006 | C148: 10630700 | D148: UN | E148: R10-80Q1.21-P-0006 | F148: 202111 | G148: 5800.18 | H148: =VLOOKUP($B148,'WBS by Depr info'!$A$5:$G$147,2,0) -> 10WA01:307000 | I148: =VLOOKUP($H148,'WBS by Depr info'!$B$4:$G$147,4,0) -> 0.0241 | J148: =VLOOKUP($H148,'WBS by Depr info'!$B$4:$G$147,5,0) -> 0.0038 | K148: =VLOOKUP($H148,'WBS by Depr info'!$B$4:$G$147,6,0) -> -0.0002 | L148: 2021 | M148: 11 | N148: 11/1/2021 | O148: 11 | P148: 128.1356432 | Q148: 20.20396033 | R148: -1.063366333
A149: 1010 | B149: R10-80Q1.21-P-0006 | C149: 10630700 | D149: UN | E149: R10-80Q1.21-P-0006 | F149: 202112 | G149: 514.92 | H149: =VLOOKUP($B149,'WBS by Depr info'!$A$5:$G$147,2,0) -> 10WA01:307000 | I149: =VLOOKUP($H149,'WBS by Depr info'!$B$4:$G$147,4,0) -> 0.0241 | J149: =VLOOKUP($H149,'WBS by Depr info'!$B$4:$G$147,5,0) -> 0.0038 | K149: =VLOOKUP($H149,'WBS by Depr info'!$B$4:$G$147,6,0) -> -0.0002 | L149: 2021 | M149: 12 | N149: 12/1/2021 | O149: 10 | P149: 10.34131 | Q149: 1.63058 | R149: -0.08582
A150: 1010 | B150: R10-80Q1.22-P-0006 | C150: 10632010 | D150: UN | E150: R10-80Q1.22-P-0006 | F150: 202206 | G150: 4587.46 | H150: =VLOOKUP($B150,'WBS by Depr info'!$A$5:$G$147,2,0) -> 10WA01:320100 | I150: =VLOOKUP($H150,'WBS by Depr info'!$B$4:$G$147,4,0) -> 0.0185 | J150: =VLOOKUP($H150,'WBS by Depr info'!$B$4:$G$147,5,0) -> 0.0048 | K150: =VLOOKUP($H150,'WBS by Depr info'!$B$4:$G$147,6,0) -> -0.0002 | L150: 2022 | M150: 06 | N150: 06/1/2022 | O150: 4 | P150: 28.28933667 | Q150: 7.339936 | R150: -0.3058306667
A151: 1010 | B151: R10-85Q1.20-P-0002 | C151: 10132010 | D151: UP | E151: R10-85Q1.20-P-0002 | F151: 202201 | G151: 4284.11 | H151: =VLOOKUP($B151,'WBS by Depr info'!$A$5:$G$147,2,0) -> 10WA01:320200 | I151: =VLOOKUP($H151,'WBS by Depr info'!$B$4:$G$147,4,0) -> 0.094 | J151: =VLOOKUP($H151,'WBS by Depr info'!$B$4:$G$147,5,0) -> 0 | K151: =VLOOKUP($H151,'WBS by Depr info'!$B$4:$G$147,6,0) -> 0 | L151: 2022 | M151: 01 | N151: 01/1/2022 | O151: 9 | P151: 302.029755 | Q151: 0 | R151: 0
A152: 1010 | B152: R10-85Q1.20-P-0002 | C152: 10632010 | D152: UN | E152: R10-85Q1.20-P-0002 | F152: 202102 | G152: 4284.11 | H152: =VLOOKUP($B152,'WBS by Depr info'!$A$5:$G$147,2,0) -> 10WA01:320200 | I152: =VLOOKUP($H152,'WBS by Depr info'!$B$4:$G$147,4,0) -> 0.094 | J152: =VLOOKUP($H152,'WBS by Depr info'!$B$4:$G$147,5,0) -> 0 | K152: =VLOOKUP($H152,'WBS by Depr info'!$B$4:$G$147,6,0) -> 0 | L152: 2021 | M152: 02 | N152: 02/1/2021 | O152: 20 | P152: 671.1772333 | Q152: 0 | R152: 0
A153: 1010 | B153: R10-85Q1.20-P-0002 | C153: 10632010 | D153: UP | E153: R10-85Q1.20-P-0002 | F153: 202201 | G153: -4284.11 | H153: =VLOOKUP($B153,'WBS by Depr info'!$A$5:$G$147,2,0) -> 10WA01:320200 | I153: =VLOOKUP($H153,'WBS by Depr info'!$B$4:$G$147,4,0) -> 0.094 | J153: =VLOOKUP($H153,'WBS by Depr info'!$B$4:$G$147,5,0) -> 0 | K153: =VLOOKUP($H153,'WBS by Depr info'!$B$4:$G$147,6,0) -> 0 | L153: 2022 | M153: 01 | N153: 01/1/2022 | O153: 9 | P153: -302.029755 | Q153: 0 | R153: 0
A154: 1010 | B154: R10-85Q1.20-P-0009 | C154: 10130410 | D154: UP | E154: R10-85Q1.20-P-0009 | F154: 202201 | G154: 10549.48 | H154: =VLOOKUP($B154,'WBS by Depr info'!$A$5:$G$147,2,0) -> 10WA01:304100 | I154: =VLOOKUP($H154,'WBS by Depr info'!$B$4:$G$147,4,0) -> 0.0258 | J154: =VLOOKUP($H154,'WBS by Depr info'!$B$4:$G$147,5,0) -> 0.0064 | K154: =VLOOKUP($H154,'WBS by Depr info'!$B$4:$G$147,6,0) -> 0 | L154: 2022 | M154: 01 | N154: 01/1/2022 | O154: 9 | P154: 204.132438 | Q154: 50.637504 | R154: 0
A155: 1010 | B155: R10-85Q1.20-P-0009 | C155: 10630410 | D155: UN | E155: R10-85Q1.20-P-0009 | F155: 202012 | G155: 10635.07 | H155: =VLOOKUP($B155,'WBS by Depr info'!$A$5:$G$147,2,0) -> 10WA01:304100 | I155: =VLOOKUP($H155,'WBS by Depr info'!$B$4:$G$147,4,0) -> 0.0258 | J155: =VLOOKUP($H155,'WBS by Depr info'!$B$4:$G$147,5,0) -> 0.0064 | K155: =VLOOKUP($H155,'WBS by Depr info'!$B$4:$G$147,6,0) -> 0 | L155: 2020 | M155: 12 | N155: 12/1/2020 | O155: 22 | P155: 503.038811 | Q155: 124.7848213 | R155: 0
A156: 1010 | B156: R10-85Q1.20-P-0009 | C156: 10630410 | D156: UN | E156: R10-85Q1.20-P-0009 | F156: 202101 | G156: -85.59 | H156: =VLOOKUP($B156,'WBS by Depr info'!$A$5:$G$147,2,0) -> 10WA01:304100 | I156: =VLOOKUP($H156,'WBS by Depr info'!$B$4:$G$147,4,0) -> 0.0258 | J156: =VLOOKUP($H156,'WBS by Depr info'!$B$4:$G$147,5,0) -> 0.0064 | K156: =VLOOKUP($H156,'WBS by Depr info'!$B$4:$G$147,6,0) -> 0 | L156: 2021 | M156: 01 | N156: 01/1/2021 | O156: 21 | P156: -3.8643885 | Q156: -0.958608 | R156: 0
A157: 1010 | B157: R10-85Q1.20-P-0009 | C157: 10630410 | D157: UP | E157: R10-85Q1.20-P-0009 | F157: 202201 | G157: -10549.48 | H157: =VLOOKUP($B157,'WBS by Depr info'!$A$5:$G$147,2,0) -> 10WA01:304100 | I157: =VLOOKUP($H157,'WBS by Depr info'!$B$4:$G$147,4,0) -> 0.0258 | J157: =VLOOKUP($H157,'WBS by Depr info'!$B$4:$G$147,5,0) -> 0.0064 | K157: =VLOOKUP($H157,'WBS by Depr info'!$B$4:$G$147,6,0) -> 0 | L157: 2022 | M157: 01 | N157: 01/1/2022 | O157: 9 | P157: -204.132438 | Q157: -50.637504 | R157: 0
A158: 1010 | B158: R10-85Q1.20-P-0010 | C158: 10130410 | D158: UP | E158: R10-85Q1.20-P-0010 | F158: 202201 | G158: 7573.29 | H158: =VLOOKUP($B158,'WBS by Depr info'!$A$5:$G$147,2,0) -> 10WA01:304100 | I158: =VLOOKUP($H158,'WBS by Depr info'!$B$4:$G$147,4,0) -> 0.0258 | J158: =VLOOKUP($H158,'WBS by Depr info'!$B$4:$G$147,5,0) -> 0.0064 | K158: =VLOOKUP($H158,'WBS by Depr info'!$B$4:$G$147,6,0) -> 0 | L158: 2022 | M158: 01 | N158: 01/1/2022 | O158: 9 | P158: 146.5431615 | Q158: 36.351792 | R158: 0
A159: 1010 | B159: R10-85Q1.20-P-0010 | C159: 10630410 | D159: UN | E159: R10-85Q1.20-P-0010 | F159: 202101 | G159: 7573.29 | H159: =VLOOKUP($B159,'WBS by Depr info'!$A$5:$G$147,2,0) -> 10WA01:304100 | I159: =VLOOKUP($H159,'WBS by Depr info'!$B$4:$G$147,4,0) -> 0.0258 | J159: =VLOOKUP($H159,'WBS by Depr info'!$B$4:$G$147,5,0) -> 0.0064 | K159: =VLOOKUP($H159,'WBS by Depr info'!$B$4:$G$147,6,0) -> 0 | L159: 2021 | M159: 01 | N159: 01/1/2021 | O159: 21 | P159: 341.9340435 | Q159: 84.820848 | R159: 0
A160: 1010 | B160: R10-85Q1.20-P-0010 | C160: 10630410 | D160: UP | E160: R10-85Q1.20-P-0010 | F160: 202201 | G160: -7573.29 | H160: =VLOOKUP($B160,'WBS by Depr info'!$A$5:$G$147,2,0) -> 10WA01:304100 | I160: =VLOOKUP($H160,'WBS by Depr info'!$B$4:$G$147,4,0) -> 0.0258 | J160: =VLOOKUP($H160,'WBS by Depr info'!$B$4:$G$147,5,0) -> 0.0064 | K160: =VLOOKUP($H160,'WBS by Depr info'!$B$4:$G$147,6,0) -> 0 | L160: 2022 | M160: 01 | N160: 01/1/2022 | O160: 9 | P160: -146.5431615 | Q160: -36.351792 | R160: 0
A161: 1010 | B161: R10-85Q1.21-P-0005 | C161: 10631150 | D161: UN | E161: R10-85Q1.21-P-0005 | F161: 202111 | G161: 24813.58 | H161: =VLOOKUP($B161,'WBS by Depr info'!$A$5:$G$147,2,0) -> 10WA01:311500 | I161: =VLOOKUP($H161,'WBS by Depr info'!$B$4:$G$147,4,0) -> 0.0273 | J161: =VLOOKUP($H161,'WBS by Depr info'!$B$4:$G$147,5,0) -> 0.0035 | K161: =VLOOKUP($H161,'WBS by Depr info'!$B$4:$G$147,6,0) -> -0.0008 | L161: 2021 | M161: 11 | N161: 11/1/2021 | O161: 11 | P161: 620.9598395 | Q161: 79.61023583 | R161: -18.19662533
A162: 1010 | B162: R10-85Q1.21-P-0005 | C162: 10631150 | D162: UN | E162: R10-85Q1.21-P-0005 | F162: 202112 | G162: -290.88 | H162: =VLOOKUP($B162,'WBS by Depr info'!$A$5:$G$147,2,0) -> 10WA01:311500 | I162: =VLOOKUP($H162,'WBS by Depr info'!$B$4:$G$147,4,0) -> 0.0273 | J162: =VLOOKUP($H162,'WBS by Depr info'!$B$4:$G$147,5,0) -> 0.0035 | K162: =VLOOKUP($H162,'WBS by Depr info'!$B$4:$G$147,6,0) -> -0.0008 | L162: 2021 | M162: 12 | N162: 12/1/2021 | O162: 10 | P162: -6.61752 | Q162: -0.8484 | R162: 0.19392
A163: 1010 | B163: R10-85Q1.21-P-0005 | C163: 10631150 | D163: UN | E163: R10-85Q1.21-P-0005 | F163: 202203 | G163: -3.73 | H163: =VLOOKUP($B163,'WBS by Depr info'!$A$5:$G$147,2,0) -> 10WA01:311500 | I163: =VLOOKUP($H163,'WBS by Depr info'!$B$4:$G$147,4,0) -> 0.0273 | J163: =VLOOKUP($H163,'WBS by Depr info'!$B$4:$G$147,5,0) -> 0.0035 | K163: =VLOOKUP($H163,'WBS by Depr info'!$B$4:$G$147,6,0) -> -0.0008 | L163: 2022 | M163: 03 | N163: 03/1/2022 | O163: 7 | P163: -0.05940025 | Q163: -0.007615416667 | R163: 0.001740666667
A164: 1010 | B164: R10-85Q1.21-P-0006 | C164: 10131000 | D164: UP | E164: R10-85Q1.21-P-0006 | F164: 202112 | G164: 5338.57 | H164: =VLOOKUP($B164,'WBS by Depr info'!$A$5:$G$147,2,0) -> 10WA01:310000 | I164: =VLOOKUP($H164,'WBS by Depr info'!$B$4:$G$147,4,0) -> 0.0207 | J164: =VLOOKUP($H164,'WBS by Depr info'!$B$4:$G$147,5,0) -> 0.0027 | K164: =VLOOKUP($H164,'WBS by Depr info'!$B$4:$G$147,6,0) -> -0.0006 | L164: 2021 | M164: 12 | N164: 12/1/2021 | O164: 10 | P164: 92.0903325 | Q164: 12.0117825 | R164: -2.669285
A165: 1010 | B165: R10-85Q1.21-P-0006 | C165: 10631000 | D165: UN | E165: R10-85Q1.21-P-0006 | F165: 202109 | G165: 4580.66 | H165: =VLOOKUP($B165,'WBS by Depr info'!$A$5:$G$147,2,0) -> 10WA01:310000 | I165: =VLOOKUP($H165,'WBS by Depr info'!$B$4:$G$147,4,0) -> 0.0207 | J165: =VLOOKUP($H165,'WBS by Depr info'!$B$4:$G$147,5,0) -> 0.0027 | K165: =VLOOKUP($H165,'WBS by Depr info'!$B$4:$G$147,6,0) -> -0.0006 | L165: 2021 | M165: 09 | N165: 09/1/2021 | O165: 13 | P165: 102.7213005 | Q165: 13.3984305 | R165: -2.977429
A166: 1010 | B166: R10-85Q1.21-P-0006 | C166: 10631000 | D166: UN | E166: R10-85Q1.21-P-0006 | F166: 202111 | G166: 1506.39 | H166: =VLOOKUP($B166,'WBS by Depr info'!$A$5:$G$147,2,0) -> 10WA01:310000 | I166: =VLOOKUP($H166,'WBS by Depr info'!$B$4:$G$147,4,0) -> 0.0207 | J166: =VLOOKUP($H166,'WBS by Depr info'!$B$4:$G$147,5,0) -> 0.0027 | K166: =VLOOKUP($H166,'WBS by Depr info'!$B$4:$G$147,6,0) -> -0.0006 | L166: 2021 | M166: 11 | N166: 11/1/2021 | O166: 11 | P166: 28.58375025 | Q166: 3.72831525 | R166: -0.8285145
A167: 1010 | B167: R10-85Q1.21-P-0006 | C167: 10631000 | D167: UP | E167: R10-85Q1.21-P-0006 | F167: 202112 | G167: -6087.05 | H167: =VLOOKUP($B167,'WBS by Depr info'!$A$5:$G$147,2,0) -> 10WA01:310000 | I167: =VLOOKUP($H167,'WBS by Depr info'!$B$4:$G$147,4,0) -> 0.0207 | J167: =VLOOKUP($H167,'WBS by Depr info'!$B$4:$G$147,5,0) -> 0.0027 | K167: =VLOOKUP($H167,'WBS by Depr info'!$B$4:$G$147,6,0) -> -0.0006 | L167: 2021 | M167: 12 | N167: 12/1/2021 | O167: 10 | P167: -105.0016125 | Q167: -13.6958625 | R167: 3.043525
A168: 1010 | B168: R10-85Q1.21-P-0009 | C168: 10630410 | D168: UN | E168: R10-85Q1.21-P-0009 | F168: 202110 | G168: 4529.52 | H168: =VLOOKUP($B168,'WBS by Depr info'!$A$5:$G$147,2,0) -> 10WA01:304100 | I168: =VLOOKUP($H168,'WBS by Depr info'!$B$4:$G$147,4,0) -> 0.0258 | J168: =VLOOKUP($H168,'WBS by Depr info'!$B$4:$G$147,5,0) -> 0.0064 | K168: =VLOOKUP($H168,'WBS by Depr info'!$B$4:$G$147,6,0) -> 0 | L168: 2021 | M168: 10 | N168: 10/1/2021 | O168: 12 | P168: 116.861616 | Q168: 28.988928 | R168: 0
A169: 1010 | B169: R10-85Q1.21-P-0009 | C169: 10630410 | D169: UN | E169: R10-85Q1.21-P-0009 | F169: 202203 | G169: 769.49 | H169: =VLOOKUP($B169,'WBS by Depr info'!$A$5:$G$147,2,0) -> 10WA01:304100 | I169: =VLOOKUP($H169,'WBS by Depr info'!$B$4:$G$147,4,0) -> 0.0258 | J169: =VLOOKUP($H169,'WBS by Depr info'!$B$4:$G$147,5,0) -> 0.0064 | K169: =VLOOKUP($H169,'WBS by Depr info'!$B$4:$G$147,6,0) -> 0 | L169: 2022 | M169: 03 | N169: 03/1/2022 | O169: 7 | P169: 11.5808245 | Q169: 2.872762667 | R169: 0
A170: 1010 | B170: R10-85Q1.21-P-0010 | C170: 10131150 | D170: UP | E170: R10-85Q1.21-P-0010 | F170: 202205 | G170: 13200.19 | H170: =VLOOKUP($B170,'WBS by Depr info'!$A$5:$G$147,2,0) -> 10WA01:311500 | I170: =VLOOKUP($H170,'WBS by Depr info'!$B$4:$G$147,4,0) -> 0.0273 | J170: =VLOOKUP($H170,'WBS by Depr info'!$B$4:$G$147,5,0) -> 0.0035 | K170: =VLOOKUP($H170,'WBS by Depr info'!$B$4:$G$147,6,0) -> -0.0008 | L170: 2022 | M170: 05 | N170: 05/1/2022 | O170: 5 | P170: 150.1521613 | Q170: 19.25027708 | R170: -4.400063333
A171: 1010 | B171: R10-85Q1.21-P-0010 | C171: 10631150 | D171: UN | E171: R10-85Q1.21-P-0010 | F171: 202201 | G171: 13200.19 | H171: =VLOOKUP($B171,'WBS by Depr info'!$A$5:$G$147,2,0) -> 10WA01:311500 | I171: =VLOOKUP($H171,'WBS by Depr info'!$B$4:$G$147,4,0) -> 0.0273 | J171: =VLOOKUP($H171,'WBS by Depr info'!$B$4:$G$147,5,0) -> 0.0035 | K171: =VLOOKUP($H171,'WBS by Depr info'!$B$4:$G$147,6,0) -> -0.0008 | L171: 2022 | M171: 01 | N171: 01/1/2022 | O171: 9 | P171: 270.2738903 | Q171: 34.65049875 | R171: -7.920114
A172: 1010 | B172: R10-85Q1.21-P-0010 | C172: 10631150 | D172: UP | E172: R10-85Q1.21-P-0010 | F172: 202205 | G172: -13200.19 | H172: =VLOOKUP($B172,'WBS by Depr info'!$A$5:$G$147,2,0) -> 10WA01:311500 | I172: =VLOOKUP($H172,'WBS by Depr info'!$B$4:$G$147,4,0) -> 0.0273 | J172: =VLOOKUP($H172,'WBS by Depr info'!$B$4:$G$147,5,0) -> 0.0035 | K172: =VLOOKUP($H172,'WBS by Depr info'!$B$4:$G$147,6,0) -> -0.0008 | L172: 2022 | M172: 05 | N172: 05/1/2022 | O172: 5 | P172: -150.1521613 | Q172: -19.25027708 | R172: 4.400063333
A173: 1010 | B173: R10-85Q1.21-P-0013 | C173: 10630700 | D173: UN | E173: R10-85Q1.21-P-0013 | F173: 202201 | G173: 6861.3 | H173: =VLOOKUP($B173,'WBS by Depr info'!$A$5:$G$147,2,0) -> 10WA01:307000 | I173: =VLOOKUP($H173,'WBS by Depr info'!$B$4:$G$147,4,0) -> 0.0241 | J173: =VLOOKUP($H173,'WBS by Depr info'!$B$4:$G$147,5,0) -> 0.0038 | K173: =VLOOKUP($H173,'WBS by Depr info'!$B$4:$G$147,6,0) -> -0.0002 | L173: 2022 | M173: 01 | N173: 01/1/2022 | O173: 9 | P173: 124.0179975 | Q173: 19.554705 | R173: -1.029195
A174: 1010 | B174: R10-85Q1.22-P-0005 | C174: 10634400 | D174: UN | E174: R10-85Q1.22-P-0005 | F174: 202203 | G174: 4880.2 | H174: =VLOOKUP($B174,'WBS by Depr info'!$A$5:$G$147,2,0) -> 10WA01:344000 | I174: =VLOOKUP($H174,'WBS by Depr info'!$B$4:$G$147,4,0) -> 0.0667 | J174: =VLOOKUP($H174,'WBS by Depr info'!$B$4:$G$147,5,0) -> 0 | K174: =VLOOKUP($H174,'WBS by Depr info'!$B$4:$G$147,6,0) -> 0 | L174: 2022 | M174: 03 | N174: 03/1/2022 | O174: 7 | P174: 189.8804483 | Q174: 0 | R174: 0
A175: 1010 | B175: R10-90Q1.19-P-0067 | C175: 10132010 | D175: UP | E175: R10-90Q1.19-P-0067 | F175: 202009 | G175: 4336.3 | H175: =VLOOKUP($B175,'WBS by Depr info'!$A$5:$G$147,2,0) -> 10WA01:320193 | I175: =VLOOKUP($H175,'WBS by Depr info'!$B$4:$G$147,4,0) -> 0.0215 | J175: =VLOOKUP($H175,'WBS by Depr info'!$B$4:$G$147,5,0) -> 0.0056 | K175: =VLOOKUP($H175,'WBS by Depr info'!$B$4:$G$147,6,0) -> -0.0002 | L175: 2020 | M175: 09 | N175: 09/1/2020 | O175: 25 | P175: 194.2301042 | Q175: 50.59016667 | R175: -1.806791667
A176: 1010 | B176: R10-90Q1.19-P-0067 | C176: 10132010 | D176: UP | E176: R10-90Q1.19-P-0067 | F176: 202010 | G176: 211.82 | H176: =VLOOKUP($B176,'WBS by Depr info'!$A$5:$G$147,2,0) -> 10WA01:320193 | I176: =VLOOKUP($H176,'WBS by Depr info'!$B$4:$G$147,4,0) -> 0.0215 | J176: =VLOOKUP($H176,'WBS by Depr info'!$B$4:$G$147,5,0) -> 0.0056 | K176: =VLOOKUP($H176,'WBS by Depr info'!$B$4:$G$147,6,0) -> -0.0002 | L176: 2020 | M176: 10 | N176: 10/1/2020 | O176: 24 | P176: 9.10826 | Q176: 2.372384 | R176: -0.084728
A177: 1010 | B177: R10-90Q1.19-P-0067 | C177: 10132010 | D177: UP | E177: R10-90Q1.19-P-0067 | F177: 202011 | G177: -106.09 | H177: =VLOOKUP($B177,'WBS by Depr info'!$A$5:$G$147,2,0) -> 10WA01:320193 | I177: =VLOOKUP($H177,'WBS by Depr info'!$B$4:$G$147,4,0) -> 0.0215 | J177: =VLOOKUP($H177,'WBS by Depr info'!$B$4:$G$147,5,0) -> 0.0056 | K177: =VLOOKUP($H177,'WBS by Depr info'!$B$4:$G$147,6,0) -> -0.0002 | L177: 2020 | M177: 11 | N177: 11/1/2020 | O177: 23 | P177: -4.371792083 | Q177: -1.138699333 | R177: 0.04066783333
A178: 1010 | B178: R10-90Q1.19-P-0067 | C178: 10632010 | D178: UN | E178: R10-90Q1.19-P-0067 | F178: 202008 | G178: 4232.83 | H178: =VLOOKUP($B178,'WBS by Depr info'!$A$5:$G$147,2,0) -> 10WA01:320193 | I178: =VLOOKUP($H178,'WBS by Depr info'!$B$4:$G$147,4,0) -> 0.0215 | J178: =VLOOKUP($H178,'WBS by Depr info'!$B$4:$G$147,5,0) -> 0.0056 | K178: =VLOOKUP($H178,'WBS by Depr info'!$B$4:$G$147,6,0) -> -0.0002 | L178: 2020 | M178: 08 | N178: 08/1/2020 | O178: 26 | P178: 197.1793308 | Q178: 51.35833733 | R178: -1.834226333
A179: 1010 | B179: R10-90Q1.19-P-0067 | C179: 10632010 | D179: UP | E179: R10-90Q1.19-P-0067 | F179: 202009 | G179: -4232.83 | H179: =VLOOKUP($B179,'WBS by Depr info'!$A$5:$G$147,2,0) -> 10WA01:320193 | I179: =VLOOKUP($H179,'WBS by Depr info'!$B$4:$G$147,4,0) -> 0.0215 | J179: =VLOOKUP($H179,'WBS by Depr info'!$B$4:$G$147,5,0) -> 0.0056 | K179: =VLOOKUP($H179,'WBS by Depr info'!$B$4:$G$147,6,0) -> -0.0002 | L179: 2020 | M179: 09 | N179: 09/1/2020 | O179: 25 | P179: -189.5955104 | Q179: -49.38301667 | R179: 1.763679167
A180: 1010 | B180: R10-90Q1.20-P-0007 | C180: 10130430 | D180: UP | E180: R10-90Q1.20-P-0007 | F180: 202102 | G180: 5639.25 | H180: =VLOOKUP($B180,'WBS by Depr info'!$A$5:$G$147,2,0) -> 10WA01:304300 | I180: =VLOOKUP($H180,'WBS by Depr info'!$B$4:$G$147,4,0) -> 0.0198 | J180: =VLOOKUP($H180,'WBS by Depr info'!$B$4:$G$147,5,0) -> 0.005 | K180: =VLOOKUP($H180,'WBS by Depr info'!$B$4:$G$147,6,0) -> 0 | L180: 2021 | M180: 02 | N180: 02/1/2021 | O180: 20 | P180: 186.09525 | Q180: 46.99375 | R180: 0
A181: 1010 | B181: R10-90Q1.20-P-0007 | C181: 10630430 | D181: UN | E181: R10-90Q1.20-P-0007 | F181: 202011 | G181: 5639.25 | H181: =VLOOKUP($B181,'WBS by Depr info'!$A$5:$G$147,2,0) -> 10WA01:304300 | I181: =VLOOKUP($H181,'WBS by Depr info'!$B$4:$G$147,4,0) -> 0.0198 | J181: =VLOOKUP($H181,'WBS by Depr info'!$B$4:$G$147,5,0) -> 0.005 | K181: =VLOOKUP($H181,'WBS by Depr info'!$B$4:$G$147,6,0) -> 0 | L181: 2020 | M181: 11 | N181: 11/1/2020 | O181: 23 | P181: 214.0095375 | Q181: 54.0428125 | R181: 0
A182: 1010 | B182: R10-90Q1.20-P-0007 | C182: 10630430 | D182: UP | E182: R10-90Q1.20-P-0007 | F182: 202102 | G182: -5639.25 | H182: =VLOOKUP($B182,'WBS by Depr info'!$A$5:$G$147,2,0) -> 10WA01:304300 | I182: =VLOOKUP($H182,'WBS by Depr info'!$B$4:$G$147,4,0) -> 0.0198 | J182: =VLOOKUP($H182,'WBS by Depr info'!$B$4:$G$147,5,0) -> 0.005 | K182: =VLOOKUP($H182,'WBS by Depr info'!$B$4:$G$147,6,0) -> 0 | L182: 2021 | M182: 02 | N182: 02/1/2021 | O182: 20 | P182: -186.09525 | Q182: -46.99375 | R182: 0
A183: 1010 | B183: R10-90Q1.20-P-0011 | C183: 10131150 | D183: UP | E183: R10-90Q1.20-P-0011 | F183: 202108 | G183: 87129.92 | H183: =VLOOKUP($B183,'WBS by Depr info'!$A$5:$G$147,2,0) -> 10WA01:311500 | I183: =VLOOKUP($H183,'WBS by Depr info'!$B$4:$G$147,4,0) -> 0.0273 | J183: =VLOOKUP($H183,'WBS by Depr info'!$B$4:$G$147,5,0) -> 0.0035 | K183: =VLOOKUP($H183,'WBS by Depr info'!$B$4:$G$147,6,0) -> -0.0008 | L183: 2021 | M183: 08 | N183: 08/1/2021 | O183: 14 | P183: 2775.087952 | Q183: 355.7805067 | R183: -81.32125867
A184: 1010 | B184: R10-90Q1.20-P-0011 | C184: 10631150 | D184: UN | E184: R10-90Q1.20-P-0011 | F184: 202102 | G184: 87129.92 | H184: =VLOOKUP($B184,'WBS by Depr info'!$A$5:$G$147,2,0) -> 10WA01:311500 | I184: =VLOOKUP($H184,'WBS by Depr info'!$B$4:$G$147,4,0) -> 0.0273 | J184: =VLOOKUP($H184,'WBS by Depr info'!$B$4:$G$147,5,0) -> 0.0035 | K184: =VLOOKUP($H184,'WBS by Depr info'!$B$4:$G$147,6,0) -> -0.0008 | L184: 2021 | M184: 02 | N184: 02/1/2021 | O184: 20 | P184: 3964.41136 | Q184: 508.2578667 | R184: -116.1732267
A185: 1010 | B185: R10-90Q1.20-P-0011 | C185: 10631150 | D185: UP | E185: R10-90Q1.20-P-0011 | F185: 202108 | G185: -87129.92 | H185: =VLOOKUP($B185,'WBS by Depr info'!$A$5:$G$147,2,0) -> 10WA01:311500 | I185: =VLOOKUP($H185,'WBS by Depr info'!$B$4:$G$147,4,0) -> 0.0273 | J185: =VLOOKUP($H185,'WBS by Depr info'!$B$4:$G$147,5,0) -> 0.0035 | K185: =VLOOKUP($H185,'WBS by Depr info'!$B$4:$G$147,6,0) -> -0.0008 | L185: 2021 | M185: 08 | N185: 08/1/2021 | O185: 14 | P185: -2775.087952 | Q185: -355.7805067 | R185: 81.32125867
A186: 1010 | B186: R10-90Q1.20-P-0020 | C186: 10634500 | D186: UN | E186: R10-90Q1.20-P-0020 | F186: 202103 | G186: 286128.17 | H186: =VLOOKUP($B186,'WBS by Depr info'!$A$5:$G$147,2,0) -> 10WA01:345000 | I186: =VLOOKUP($H186,'WBS by Depr info'!$B$4:$G$147,4,0) -> 0.0237 | J186: =VLOOKUP($H186,'WBS by Depr info'!$B$4:$G$147,5,0) -> 0 | K186: =VLOOKUP($H186,'WBS by Depr info'!$B$4:$G$147,6,0) -> -0.0012 | L186: 2021 | M186: 03 | N186: 03/1/2021 | O186: 19 | P186: 10736.95958 | Q186: 0 | R186: -543.643523
A187: 1010 | B187: R10-90Q1.20-P-0020 | C187: 10634700 | D187: UN | E187: R10-90Q1.20-P-0020 | F187: 202103 | G187: 7847.43 | H187: =VLOOKUP($B187,'WBS by Depr info'!$A$5:$G$147,2,0) -> 10WA01:345000 | I187: =VLOOKUP($H187,'WBS by Depr info'!$B$4:$G$147,4,0) -> 0.0237 | J187: =VLOOKUP($H187,'WBS by Depr info'!$B$4:$G$147,5,0) -> 0 | K187: =VLOOKUP($H187,'WBS by Depr info'!$B$4:$G$147,6,0) -> -0.0012 | L187: 2021 | M187: 03 | N187: 03/1/2021 | O187: 19 | P187: 294.4748107 | Q187: 0 | R187: -14.910117
A188: 1010 | B188: R10-90Q1.20-P-0023 | C188: 10131154 | D188: UP | E188: R10-90Q1.20-P-0023 | F188: 202103 | G188: 17378.02 | H188: =VLOOKUP($B188,'WBS by Depr info'!$A$5:$G$147,2,0) -> 10WA01:311540 | I188: =VLOOKUP($H188,'WBS by Depr info'!$B$4:$G$147,4,0) -> 0.0273 | J188: =VLOOKUP($H188,'WBS by Depr info'!$B$4:$G$147,5,0) -> 0.0035 | K188: =VLOOKUP($H188,'WBS by Depr info'!$B$4:$G$147,6,0) -> -0.0008 | L188: 2021 | M188: 03 | N188: 03/1/2021 | O188: 19 | P188: 751.1649145 | Q188: 96.30319417 | R188: -22.01215867
A189: 1010 | B189: R10-90Q1.20-P-0023 | C189: 10631154 | D189: UN | E189: R10-90Q1.20-P-0023 | F189: 202101 | G189: 17378.02 | H189: =VLOOKUP($B189,'WBS by Depr info'!$A$5:$G$147,2,0) -> 10WA01:311540 | I189: =VLOOKUP($H189,'WBS by Depr info'!$B$4:$G$147,4,0) -> 0.0273 | J189: =VLOOKUP($H189,'WBS by Depr info'!$B$4:$G$147,5,0) -> 0.0035 | K189: =VLOOKUP($H189,'WBS by Depr info'!$B$4:$G$147,6,0) -> -0.0008 | L189: 2021 | M189: 01 | N189: 01/1/2021 | O189: 21 | P189: 830.2349055 | Q189: 106.4403725 | R189: -24.329228
A190: 1010 | B190: R10-90Q1.20-P-0023 | C190: 10631154 | D190: UP | E190: R10-90Q1.20-P-0023 | F190: 202103 | G190: -17378.02 | H190: =VLOOKUP($B190,'WBS by Depr info'!$A$5:$G$147,2,0) -> 10WA01:311540 | I190: =VLOOKUP($H190,'WBS by Depr info'!$B$4:$G$147,4,0) -> 0.0273 | J190: =VLOOKUP($H190,'WBS by Depr info'!$B$4:$G$147,5,0) -> 0.0035 | K190: =VLOOKUP($H190,'WBS by Depr info'!$B$4:$G$147,6,0) -> -0.0008 | L190: 2021 | M190: 03 | N190: 03/1/2021 | O190: 19 | P190: -751.1649145 | Q190: -96.30319417 | R190: 22.01215867
A191: 1010 | B191: R10-90Q1.20-P-0024 | C191: 10134400 | D191: UP | E191: R10-90Q1.20-P-0024 | F191: 202010 | G191: 3212.74 | H191: =VLOOKUP($B191,'WBS by Depr info'!$A$5:$G$147,2,0) -> 10WA01:344000 | I191: =VLOOKUP($H191,'WBS by Depr info'!$B$4:$G$147,4,0) -> 0.0667 | J191: =VLOOKUP($H191,'WBS by Depr info'!$B$4:$G$147,5,0) -> 0 | K191: =VLOOKUP($H191,'WBS by Depr info'!$B$4:$G$147,6,0) -> 0 | L191: 2020 | M191: 10 | N191: 10/1/2020 | O191: 24 | P191: 428.579516 | Q191: 0 | R191: 0
A192: 1010 | B192: R10-90Q1.20-P-0024 | C192: 10634400 | D192: UN | E192: R10-90Q1.20-P-0024 | F192: 202007 | G192: 3212.74 | H192: =VLOOKUP($B192,'WBS by Depr info'!$A$5:$G$147,2,0) -> 10WA01:344000 | I192: =VLOOKUP($H192,'WBS by Depr info'!$B$4:$G$147,4,0) -> 0.0667 | J192: =VLOOKUP($H192,'WBS by Depr info'!$B$4:$G$147,5,0) -> 0 | K192: =VLOOKUP($H192,'WBS by Depr info'!$B$4:$G$147,6,0) -> 0 | L192: 2020 | M192: 07 | N192: 07/1/2020 | O192: 27 | P192: 482.1519555 | Q192: 0 | R192: 0
A193: 1010 | B193: R10-90Q1.20-P-0024 | C193: 10634400 | D193: UP | E193: R10-90Q1.20-P-0024 | F193: 202010 | G193: -3212.74 | H193: =VLOOKUP($B193,'WBS by Depr info'!$A$5:$G$147,2,0) -> 10WA01:344000 | I193: =VLOOKUP($H193,'WBS by Depr info'!$B$4:$G$147,4,0) -> 0.0667 | J193: =VLOOKUP($H193,'WBS by Depr info'!$B$4:$G$147,5,0) -> 0 | K193: =VLOOKUP($H193,'WBS by Depr info'!$B$4:$G$147,6,0) -> 0 | L193: 2020 | M193: 10 | N193: 10/1/2020 | O193: 24 | P193: -428.579516 | Q193: 0 | R193: 0
A194: 1010 | B194: R10-90Q1.20-P-0028 | C194: 10130450 | D194: UP | E194: R10-90Q1.20-P-0028 | F194: 202010 | G194: 9193.09 | H194: =VLOOKUP($B194,'WBS by Depr info'!$A$5:$G$147,2,0) -> 10WA01:304500 | I194: =VLOOKUP($H194,'WBS by Depr info'!$B$4:$G$147,4,0) -> 0.03 | J194: =VLOOKUP($H194,'WBS by Depr info'!$B$4:$G$147,5,0) -> 0.0075 | K194: =VLOOKUP($H194,'WBS by Depr info'!$B$4:$G$147,6,0) -> 0 | L194: 2020 | M194: 10 | N194: 10/1/2020 | O194: 24 | P194: 551.5854 | Q194: 137.89635 | R194: 0
A195: 1010 | B195: R10-90Q1.20-P-0028 | C195: 10130450 | D195: UP | E195: R10-90Q1.20-P-0028 | F195: 202011 | G195: -13.18 | H195: =VLOOKUP($B195,'WBS by Depr info'!$A$5:$G$147,2,0) -> 10WA01:304500 | I195: =VLOOKUP($H195,'WBS by Depr info'!$B$4:$G$147,4,0) -> 0.03 | J195: =VLOOKUP($H195,'WBS by Depr info'!$B$4:$G$147,5,0) -> 0.0075 | K195: =VLOOKUP($H195,'WBS by Depr info'!$B$4:$G$147,6,0) -> 0 | L195: 2020 | M195: 11 | N195: 11/1/2020 | O195: 23 | P195: -0.75785 | Q195: -0.1894625 | R195: 0
A196: 1010 | B196: R10-90Q1.20-P-0028 | C196: 10630450 | D196: UN | E196: R10-90Q1.20-P-0028 | F196: 202008 | G196: 9193.09 | H196: =VLOOKUP($B196,'WBS by Depr info'!$A$5:$G$147,2,0) -> 10WA01:304500 | I196: =VLOOKUP($H196,'WBS by Depr info'!$B$4:$G$147,4,0) -> 0.03 | J196: =VLOOKUP($H196,'WBS by Depr info'!$B$4:$G$147,5,0) -> 0.0075 | K196: =VLOOKUP($H196,'WBS by Depr info'!$B$4:$G$147,6,0) -> 0 | L196: 2020 | M196: 08 | N196: 08/1/2020 | O196: 26 | P196: 597.55085 | Q196: 149.3877125 | R196: 0
A197: 1010 | B197: R10-90Q1.20-P-0028 | C197: 10630450 | D197: UP | E197: R10-90Q1.20-P-0028 | F197: 202010 | G197: -9193.09 | H197: =VLOOKUP($B197,'WBS by Depr info'!$A$5:$G$147,2,0) -> 10WA01:304500 | I197: =VLOOKUP($H197,'WBS by Depr info'!$B$4:$G$147,4,0) -> 0.03 | J197: =VLOOKUP($H197,'WBS by Depr info'!$B$4:$G$147,5,0) -> 0.0075 | K197: =VLOOKUP($H197,'WBS by Depr info'!$B$4:$G$147,6,0) -> 0 | L197: 2020 | M197: 10 | N197: 10/1/2020 | O197: 24 | P197: -551.5854 | Q197: -137.89635 | R197: 0
A198: 1010 | B198: R10-90Q1.20-P-0029 | C198: 10131150 | D198: UP | E198: R10-90Q1.20-P-0029 | F198: 202102 | G198: 44895.13 | H198: =VLOOKUP($B198,'WBS by Depr info'!$A$5:$G$147,2,0) -> 10WA01:311500 | I198: =VLOOKUP($H198,'WBS by Depr info'!$B$4:$G$147,4,0) -> 0.0273 | J198: =VLOOKUP($H198,'WBS by Depr info'!$B$4:$G$147,5,0) -> 0.0035 | K198: =VLOOKUP($H198,'WBS by Depr info'!$B$4:$G$147,6,0) -> -0.0008 | L198: =LEFT(F198,4) -> 2021 | M198: =RIGHT(F198,2) -> 02 | N198: =CONCATENATE(M198,"/",1,"/",L198) -> 02/1/2021 | O198: 20 | P198: =$G198*($I198/12)*$O198 -> 2042.728415 | Q198: =$G198*($J198/12)*$O198 -> 261.8882583 | R198: =$G198*($K198/12)*$O198 -> -59.86017333
A199: 1010 | B199: R10-90Q1.20-P-0029 | C199: 10631150 | D199: UN | E199: R10-90Q1.20-P-0029 | F199: 202101 | G199: 44895.13 | H199: =VLOOKUP($B199,'WBS by Depr info'!$A$5:$G$147,2,0) -> 10WA01:311500 | I199: =VLOOKUP($H199,'WBS by Depr info'!$B$4:$G$147,4,0) -> 0.0273 | J199: =VLOOKUP($H199,'WBS by Depr info'!$B$4:$G$147,5,0) -> 0.0035 | K199: =VLOOKUP($H199,'WBS by Depr info'!$B$4:$G$147,6,0) -> -0.0008 | L199: 2021 | M199: 01 | N199: 01/1/2021 | O199: =((DAYS360($N199,$N$1)/30)) -> 21 | P199: 2144.864836 | Q199: 274.9826713 | R199: -62.853182
A200: 1010 | B200: R10-90Q1.20-P-0029 | C200: 10631150 | D200: UP | E200: R10-90Q1.20-P-0029 | F200: 202102 | G200: -44895.13 | H200: =VLOOKUP($B200,'WBS by Depr info'!$A$5:$G$147,2,0) -> 10WA01:311500 | I200: =VLOOKUP($H200,'WBS by Depr info'!$B$4:$G$147,4,0) -> 0.0273 | J200: =VLOOKUP($H200,'WBS by Depr info'!$B$4:$G$147,5,0) -> 0.0035 | K200: =VLOOKUP($H200,'WBS by Depr info'!$B$4:$G$147,6,0) -> -0.0008 | L200: 2021 | M200: 02 | N200: 02/1/2021 | O200: 20 | P200: -2042.728415 | Q200: -261.8882583 | R200: 59.86017333
A201: 1010 | B201: R10-90Q1.20-P-0031 | C201: 10131150 | D201: UP | E201: R10-90Q1.20-P-0031 | F201: 202010 | G201: 5296.69 | H201: =VLOOKUP($B201,'WBS by Depr info'!$A$5:$G$147,2,0) -> 10WA01:311500 | I201: =VLOOKUP($H201,'WBS by Depr info'!$B$4:$G$147,4,0) -> 0.0273 | J201: =VLOOKUP($H201,'WBS by Depr info'!$B$4:$G$147,5,0) -> 0.0035 | K201: =VLOOKUP($H201,'WBS by Depr info'!$B$4:$G$147,6,0) -> -0.0008 | L201: 2020 | M201: 10 | N201: 10/1/2020 | O201: 24 | P201: 289.199274 | Q201: 37.07683 | R201: -8.474704
... 89 more rows

Sheet Total PIS
A1: CWIP only all months is source | D1: 85000000 | E1: 70510000
A2: Represents Yr and Mo in Service | D2: 0.001645 | E2: 0.00356083
A3: Row Labels | B3: Sum of Amount | C3: Allocation | D3: Debt | E3: Equity | F3: Code | G3: Cost Center
A4: 2020-06-30 | B4: =SUM(B5:B10) -> 42496.04
A5: R10-55Q1.20-P-0010 | B5: 3967.49 | C5: =+B5/$B$4 -> 0.09336140497 | D5: =+C5*'062020 PIS Summary'!$K$5 -> 199.3116618 | E5: =+C5*'062020 PIS Summary'!$J$5 -> 431.438457 | F5: 10-55 | G5: 10-5505
A6: R10-55Q1.20-P-0011 | B6: 5498.6 | C6: =+B6/$B$4 -> 0.1293908797 | D6: =+C6*'062020 PIS Summary'!$K$5 -> 276.2288257 | E6: =+C6*'062020 PIS Summary'!$J$5 -> 597.9366047 | F6: 10-55 | G6: 10-5505
A7: R10-47Q1.20-P-0008 | B7: 4918.67 | C7: 0.1157441964 | D7: =+C7*'062020 PIS Summary'!$K$5 -> 247.0953402 | E7: =+C7*'062020 PIS Summary'!$J$5 -> 534.8730294 | F7: 10-47 | G7: 10-4705
A8: R10-47Q1.20-P-0011 | B8: 8667.13 | C8: 0.2039514741 | D8: =+C8*'062020 PIS Summary'!$K$5 -> 435.4037649 | E8: =+C8*'062020 PIS Summary'!$J$5 -> 942.4934137 | F8: 10-47 | G8: 10-4705
A9: R10-55Q1.20-P-0007 | B9: 10498.47 | C9: 0.2470458424 | D9: =+C9*'062020 PIS Summary'!$K$5 -> 527.4033462 | E9: =+C9*'062020 PIS Summary'!$J$5 -> 1141.6396 | F9: 10-55 | G9: 10-5505
A10: R10-55Q1.20-P-0012 | B10: 8945.68 | C10: 0.2105062025 | D10: =+C10*'062020 PIS Summary'!$K$5 -> 449.3970613 | E10: =+C10*'062020 PIS Summary'!$J$5 -> 972.7838951 | F10: 10-55 | G10: 10-5505
A11: 2020-07-31 | B11: =SUM(B12:B16) -> 66369.1
A12: R10-80Q1.20-P-0002 | B12: 26920.16 | C12: =+B12/$B$11 -> 0.405612853 | D12: =+C12*'072020 PIS Summary'!$K$5 -> 1302.94814 | E12: =+C12*'072020 PIS Summary'!$J$5 -> 2820.439113 | F12: 10-80 | G12: 10-8005
A13: R10-80Q1.20-P-0003 | B13: 21759.6 | C13: =+B13/$B$11 -> 0.3278573915 | D13: =+C13*'072020 PIS Summary'!$K$5 -> 1053.174659 | E13: =+C13*'072020 PIS Summary'!$J$5 -> 2279.764568 | F13: 10-80 | G13: 10-8005
A14: R10-90Q1.20-P-0028 | B14: 9179.91 | C14: 0.1383160236 | D14: =+C14*'072020 PIS Summary'!$K$5 -> 444.3118709 | E14: =+C14*'072020 PIS Summary'!$J$5 -> 961.7839278 | F14: 10-90 | G14: 10-9005
A15: R10-90Q1.20-P-0031 | B15: 5296.69 | C15: 0.07980656661 | D15: =+C15*'072020 PIS Summary'!$K$5 -> 256.3622349 | E15: =+C15*'072020 PIS Summary'!$J$5 -> 554.9369561 | F15: 10-90 | G15: 10-9005
A16: R10-90Q1.20-P-0024 | B16: 3212.74 | C16: 0.04840716538 | D16: =+C16*'072020 PIS Summary'!$K$5 -> 155.4980953 | E16: =+C16*'072020 PIS Summary'!$J$5 -> 336.6004347 | F16: 10-90 | G16: 10-9005
A17: 2020-08-30 | B17: =SUM(B18:B20) -> 36703.69
A18: R10-45Q1.20-P-0004 | B18: 23343.12 | C18: =+B18/$B$17 -> 0.6359883707 | D18: =+C18*'082020 PIS Summary'!$K$5 -> 1085.190137 | E18: =+C18*'082020 PIS Summary'!$J$5 -> 2349.029407 | F18: 10-45 | G18: 10-4505
A19: R10-80Q1.20-P-0008 | B19: 8918.54 | C19: =+B19/$B$17 -> 0.2429875579 | D19: =+C19*'082020 PIS Summary'!$K$5 -> 414.610885 | E19: =+C19*'082020 PIS Summary'!$J$5 -> 897.4769751 | F19: 10-80 | G19: 10-8005
A20: R10-90Q1.19-P-0067 | B20: 4442.03 | C20: 0.1210240714 | D20: =+C20*'082020 PIS Summary'!$K$5 -> 206.5039782 | E20: =+C20*'082020 PIS Summary'!$J$5 -> 447.003618 | F20: 10-90 | G20: 10-9005
A21: 2020-09-30 | B21: =SUM(B22:B23) -> 42439.47
A22: R10-90Q1.20-P-0032 | B22: 21749.68 | C22: =+B22/$B$21 -> 0.5124870787 | D22: =+C22*'092020 PIS Summary'!$K$5 -> 965.7537129 | E22: =+C22*'092020 PIS Summary'!$J$5 -> 2090.488605 | F22: 10-90 | G22: 10-9005
A23: R10-65Q1.20-P-0011 | B23: 20689.79 | C23: =+B23/$B$21 -> 0.4875129213 | D23: =+C23*'092020 PIS Summary'!$K$5 -> 918.6912871 | E23: =+C23*'092020 PIS Summary'!$J$5 -> 1988.616395 | F23: 10-65 | G23: 10-6505
A24: 2020-10-31 | B24: =SUM(B25:B29) -> 38717.73
A25: R10-65Q1.20-P-0009 | B25: 6310.26 | C25: =+B25/$B$24 -> 0.1629811458 | D25: =+C25*'102020 PIS Summary'!$K$5 -> 267.8644026 | E25: =+C25*'102020 PIS Summary'!$J$5 -> 579.8266139 | F25: 10-65 | G25: 10-6505
A26: R10-65Q1.20-P-0012 | B26: 9709.37 | C26: =+B26/$B$24 -> 0.2507732246 | D26: =+C26*'102020 PIS Summary'!$K$5 -> 412.1533178 | E26: =+C26*'102020 PIS Summary'!$J$5 -> 892.1583469 | F26: 10-65 | G26: 10-6505
A27: R10-60Q1.20-P-0037 | B27: 4224.05 | C27: 0.1090985964 | D27: =+C27*'102020 PIS Summary'!$K$5 -> 179.3068162 | E27: =+C27*'102020 PIS Summary'!$J$5 -> 388.1324396 | F27: 10-60 | G27: 10-6005
A28: R10-47Q1.20-P-0016 | B28: 8857.67 | C28: 0.2287755506 | D28: =+C28*'102020 PIS Summary'!$K$5 -> 375.9994807 | E28: =+C28*'102020 PIS Summary'!$J$5 -> 813.8987622 | F28: 10-47 | G28: 10-4705
A29: R10-47Q1.20-P-0017 | B29: 9616.38 | C29: 0.2483714825 | D29: =+C29*'102020 PIS Summary'!$K$5 -> 408.2059827 | E29: =+C29*'102020 PIS Summary'!$J$5 -> 883.6138374 | F29: 10-47 | G29: 10-4705
A30: 2020-11-30 | B30: =SUM(B31:B36) -> 560354.01
A31: R10-75Q1.19-P-0016 | B31: 348121.82 | C31: =+B31/$B$30 -> 0.6212533752 | D31: =+C31*'112020 PIS Summary'!$K$5 -> 13910.94405 | E31: =+C31*'112020 PIS Summary'!$J$5 -> 30112.12935 | F31: 10-75 | G31: 10-7505
A32: R10-75Q1.20-P-0009 | B32: 84012.55 | C32: =+B32/$B$30 -> 0.1499276324 | D32: =+C32*'112020 PIS Summary'!$K$5 -> 3357.140563 | E32: =+C32*'112020 PIS Summary'!$J$5 -> 7266.987093 | F32: 10-75 | G32: 10-7505
A33: R10-90Q1.20-P-0034 | B33: 65876 | C33: 0.1175613966 | D33: =+C33*'112020 PIS Summary'!$K$5 -> 2632.404226 | E33: =+C33*'112020 PIS Summary'!$J$5 -> 5698.196778 | F33: 10-90 | G33: 10-9005
A34: R10-90Q1.20-P-0029 | B34: 44895.13 | C34: 0.08011922677 | D34: =+C34*'112020 PIS Summary'!$K$5 -> 1794.008895 | E34: =+C34*'112020 PIS Summary'!$J$5 -> 3883.376117 | F34: 10-90 | G34: 10-9005
A35: R10-90Q1.20-P-0007 | B35: 5639.25 | C35: 0.01006372739 | D35: =+C35*'112020 PIS Summary'!$K$5 -> 225.3443672 | E35: =+C35*'112020 PIS Summary'!$J$5 -> 487.7885145 | F35: 10-90 | G35: 10-9005
A36: R10-90Q1.20-P-0036 | B36: 11809.26 | C36: 0.02107464173 | D36: =+C36*'112020 PIS Summary'!$K$5 -> 471.8978981 | E36: =+C36*'112020 PIS Summary'!$J$5 -> 1021.487147 | F36: 10-90 | G36: 10-9005
A37: 2020-12-31 | B37: =SUM(B38:B50) -> 438094.38
A38: R10-90Q1.20-P-0060 | B38: 7168.94 | C38: =+B38/$B$37 -> 0.01636391683 | D38: =+C38*'122020 PIS Summary'!$K$5 -> 279.1973853 | E38: =+C38*'122020 PIS Summary'!$J$5 -> 604.361504 | F38: 10-90 | G38: 10-9005
A39: R10-01L6.20-P-0012 | B39: 15901.79 | C39: =+B39/$B$37 -> 0.03629763523 | D39: =+C39*'122020 PIS Summary'!$K$5 -> 619.3019038 | E39: =+C39*'122020 PIS Summary'!$J$5 -> 1340.564954 | F39: 10-01 | G39: 10-0105
A40: R10-01L6.20-P-0017 | B40: 7639.53 | C40: 0.01743809176 | D40: =+C40*'122020 PIS Summary'!$K$5 -> 297.5247109 | E40: =+C40*'122020 PIS Summary'!$J$5 -> 644.0335448 | F40: 10-01 | G40: 10-0105
A41: R10-90Q1.20-P-0042 | B41: 4993.87 | C41: 0.01139907341 | D41: =+C41*'122020 PIS Summary'!$K$5 -> 194.4883688 | E41: =+C41*'122020 PIS Summary'!$J$5 -> 420.9970768 | F41: 10-90 | G41: 10-9005
A42: R10-90Q1.20-P-0020 | B42: 293975.6 | C42: 0.6710325752 | D42: =+C42*'122020 PIS Summary'!$K$5 -> 11449.00346 | E42: =+C42*'122020 PIS Summary'!$J$5 -> 24782.95756 | F42: 10-90 | G42: 10-9005
A43: R10-55Q1.20-P-0022 | B43: 11780.98 | C43: 0.02689142006 | D43: =+C43*'122020 PIS Summary'!$K$5 -> 458.8152241 | E43: =+C43*'122020 PIS Summary'!$J$5 -> 993.1692539 | F43: 10-55 | G43: 10-5505
A44: R10-80Q1.20-P-0010 | B44: 7821.82 | C44: 0.01785418932 | D44: =+C44*'122020 PIS Summary'!$K$5 -> 304.6240717 | E44: =+C44*'122020 PIS Summary'!$J$5 -> 659.4010968 | F44: 10-80 | G44: 10-8005
A45: R10-80Q1.20-P-0011 | B45: 14848.87 | C45: 0.03389422617 | D45: =+C45*'122020 PIS Summary'!$K$5 -> 578.2954913 | E45: =+C45*'122020 PIS Summary'!$J$5 -> 1251.800881 | F45: 10-80 | G45: 10-8005
A46: R10-85Q1.20-P-0010 | B46: 7573.29 | C46: 0.01728689147 | D46: =+C46*'122020 PIS Summary'!$K$5 -> 294.9449662 | E46: =+C46*'122020 PIS Summary'!$J$5 -> 638.4493292 | F46: 10-85 | G46: 10-8505
A47: R10-85Q1.20-P-0009 | B47: 10549.48 | C47: 0.02408038195 | D47: =+C47*'122020 PIS Summary'!$K$5 -> 410.8539383 | E47: =+C47*'122020 PIS Summary'!$J$5 -> 889.3503919 | F47: 10-85 | G47: 10-8505
A48: R10-70Q1.20-P-0019 | B48: 26700.93 | C48: 0.06094789438 | D48: =+C48*'122020 PIS Summary'!$K$5 -> 1039.878956 | E48: =+C48*'122020 PIS Summary'!$J$5 -> 2250.962375 | F48: 10-70 | G48: 10-7005
A49: R10-70Q1.20-P-0023 | B49: 11761.26 | C49: 0.02684640693 | D49: =+C49*'122020 PIS Summary'!$K$5 -> 458.0472204 | E49: =+C49*'122020 PIS Summary'!$J$5 -> 991.5068033 | F49: 10-70 | G49: 10-7005
A50: R10-90Q1.20-P-0023 | B50: 17378.02 | C50: 0.03966729726 | D50: =+C50*'122020 PIS Summary'!$K$5 -> 676.7943024 | E50: =+C50*'122020 PIS Summary'!$J$5 -> 1465.015233 | F50: 10-90 | G50: 10-9005
A51: 2021-01-31 | B51: =SUM(B52:B55) -> 112720.46
A52: R10-60Q1.20-P-0049 | B52: 4078.64 | C52: =+B52/$B$51 -> 0.03618367065 | D52: =+C52*'012021 PIS Summary'!$K$5 -> 152.1166942 | E52: =+C52*'012021 PIS Summary'!$J$5 -> 329.2762877 | F52: 10-60 | G52: 10-6005
A53: R10-70Q1.20-P-0016 | B53: 17083.64 | C53: =+B53/$B$51 -> 0.1515575788 | D53: =+C53*'012021 PIS Summary'!$K$5 -> 637.1503347 | E53: =+C53*'012021 PIS Summary'!$J$5 -> 1379.194427 | F53: 10-70 | G53: 10-7005
A54: R10-90Q1.20-P-0011 | B54: 87129.92 | C54: 0.7729734247 | D54: =+C54*'012021 PIS Summary'!$K$5 -> 3249.591872 | E54: =+C54*'012021 PIS Summary'!$J$5 -> 7034.162516 | F54: 10-90 | G54: 10-9005
A55: R10-90Q1.20-P-0054 | B55: 4428.26 | C55: 0.03928532584 | D55: =+C55*'012021 PIS Summary'!$K$5 -> 165.1560991 | E55: =+C55*'012021 PIS Summary'!$J$5 -> 357.5017687 | F55: 10-90 | G55: 10-9005
A56: 2021-02-28 | B56: =SUM(B57:B62) -> 220877
A57: R10-75Q1.20-P-0010 | B57: 120951.96 | C57: =+B57/$B$56 -> 0.5475987088 | D57: =+C57*'022021 PIS Summary'!$K$5 -> 4297.042662 | E57: =+C57*'022021 PIS Summary'!$J$5 -> 9301.514405 | F57: 10-75 | G57: 10-7505
A58: R10-90Q1.20-P-0043 | B58: 15285.36 | C58: =+B58/$B$56 -> 0.06920304061 | D58: =+C58*'022021 PIS Summary'!$K$5 -> 543.0407578 | E58: =+C58*'022021 PIS Summary'!$J$5 -> 1175.483194 | F58: 10-90 | G58: 10-9005
A59: R10-90Q1.20-P-0049 | B59: 6726.02 | C59: 0.03045142772 | D59: =+C59*'022021 PIS Summary'!$K$5 -> 238.9543326 | E59: =+C59*'022021 PIS Summary'!$J$5 -> 517.2481035 | F59: 10-90 | G59: 10-9005
A60: R10-90Q1.20-P-0059 | B60: 66220.48 | C60: 0.2998070419 | D60: =+C60*'022021 PIS Summary'!$K$5 -> 2352.605345 | E60: =+C60*'022021 PIS Summary'!$J$5 -> 5092.523913 | F60: 10-90 | G60: 10-9005
A61: R10-65Q1.20-P-0017 | B61: 7409.07 | C61: 0.03354387283 | D61: =+C61*'022021 PIS Summary'!$K$5 -> 263.2209505 | E61: =+C61*'022021 PIS Summary'!$J$5 -> 569.7763917 | F61: 10-65 | G61: 10-6505
A62: R10-85Q1.20-P-0002 | B62: 4284.11 | C62: 0.01939590813 | D62: =+C62*'022021 PIS Summary'!$K$5 -> 152.2009518 | E62: =+C62*'022021 PIS Summary'!$J$5 -> 329.4589925 | F62: 10-85 | G62: 10-8505
A63: 2021-04-30 | B63: =+B64 -> 33301.29
A64: R10-90Q1.21-P-0007 | B64: 33301.29 | C64: =+B64/$B$63 -> 1 | D64: =+C64*'042021 PIS Summary'!$K$5 -> 1060.95 | E64: =+C64*'042021 PIS Summary'!$J$5 -> 2296.575 | F64: 10-90 | G64: 10-9005
A65: 2021-05-31 | B65: =SUM(B66:B67) -> 23257.74
A66: R10-90Q1.21-P-0008 | B66: 15832 | C66: =+B66/$B$65 -> 0.6807196228 | D66: =+C66*'052021 PIS Summary'!$K$5 -> 466.5039647 | E66: =+C66*'052021 PIS Summary'!$J$5 -> 1009.850964 | F66: 10-90 | G66: 10-9005
A67: R10-47Q1.21-P-0009 | B67: 7425.74 | C67: =+B67/$B$65 -> 0.3192803772 | D67: =+C67*'052021 PIS Summary'!$K$5 -> 218.8060353 | E67: =+C67*'052021 PIS Summary'!$J$5 -> 473.654036 | F67: 10-47 | G67: 10-4705
A68: 2021-06-30 | B68: =SUM(B69:B71) -> 45929.24
A69: R10-90Q1.21-P-0009 | B69: 11777.64 | C69: =+B69/$B$68 -> 0.2564301086 | D69: =+C69*'062021 PIS Summary'!$K$5 -> 332.9014134 | E69: =+C69*'062021 PIS Summary'!$J$5 -> 720.6147625 | F69: 10-90 | G69: 10-9005
A70: R10-55Q1.21-P-0007 | B70: 5793.98 | C70: =+B70/$B$68 -> 0.1261501388 | D70: =+C70*'062021 PIS Summary'!$K$5 -> 163.7700024 | E70: =+C70*'062021 PIS Summary'!$J$5 -> 354.504597 | F70: 10-55 | G70: 10-5505
A71: R10-80Q1.21-P-0002 | B71: 28357.62 | C71: 0.6174197526 | D71: =+C71*'062021 PIS Summary'!$K$5 -> 801.5435842 | E71: =+C71*'062021 PIS Summary'!$J$5 -> 1735.06064 | F71: 10-80 | G71: 10-8005
A72: 2021-07-31 | B72: =SUM(B73:B74) -> 25382.77
A73: R10-90Q1.21-P-0023 | B73: 9474.55 | C73: =+B73/$B$72 -> 0.3732669839 | D73: =+C73*'072021 PIS Summary'!$K$5 -> 251.6192738 | E73: =+C73*'072021 PIS Summary'!$J$5 -> 544.6711829 | F73: 10-90 | G73: 10-9005
A74: R10-90Q1.21-P-0016 | B74: 15908.22 | C74: =+B74/$B$72 -> 0.6267330161 | D74: =+C74*'072021 PIS Summary'!$K$5 -> 422.4807262 | E74: =+C74*'072021 PIS Summary'!$J$5 -> 914.5288171 | F74: 10-90 | G74: 10-9005
A75: 2021-08-31 | B75: =SUM(B76:B77) -> 48167.22
A76: R10-80Q1.21-P-0005 | B76: 7349.93 | C76: =+B76/$B$75 -> 0.1525919495 | D76: =+C76*'082021 PIS Summary'!$K$5 -> 181.6080716 | E76: =+C76*'082021 PIS Summary'!$J$5 -> 393.1218764 | F76: 10-80 | G76: 10-8005
A77: R10-90Q1.21-P-0002 | B77: 40817.29 | C77: =+B77/$B$75 -> 0.8474080505 | D77: =+C77*'082021 PIS Summary'!$K$5 -> 1008.546928 | E77: =+C77*'082021 PIS Summary'!$J$5 -> 2183.173124 | F77: 10-90 | G77: 10-9005
A78: 2021-09-30 | B78: =SUM(B79:B82) -> 23504.5
A79: R10-90Q1.21-P-0033 | B79: 6369.72 | C79: =+B79/$B$78 -> 0.2710000213 | D79: =+C79*'092021 PIS Summary'!$K$5 -> 145.7925914 | E79: =+C79*'092021 PIS Summary'!$J$5 -> 315.5849448 | F79: 10-90 | G79: 10-9005
A80: R10-90Q1.21-P-0028 | B80: 7183.03 | C80: =+B80/$B$78 -> 0.3056023315 | D80: =+C80*'092021 PIS Summary'!$K$5 -> 164.4079423 | E80: =+C80*'092021 PIS Summary'!$J$5 -> 355.880027 | F80: 10-90 | G80: 10-9005
A81: R10-90Q1.21-P-0035 | B81: 4613.18 | C81: 0.1962679487 | D81: =+C81*'092021 PIS Summary'!$K$5 -> 105.588231 | E81: =+C81*'092021 PIS Summary'!$J$5 -> 228.5579516 | F81: 10-90 | G81: 10-9005
A82: R10-85Q1.21-P-0006 | B82: 5338.57 | C82: 0.2271296986 | D82: =+C82*'092021 PIS Summary'!$K$5 -> 122.1912352 | E82: =+C82*'092021 PIS Summary'!$J$5 -> 264.4970766 | F82: 10-85 | G82: 10-8505
A83: 2021-10-31 | B83: =SUM(B84:B87) -> 31816.54
A84: R10-90Q1.21-P-0029 | B84: 4792.41 | C84: =+B84/$B$83 -> 0.1506263723 | D84: =+C84*'102021 PIS Summary'!$K$5 -> 99.99708292 | E84: =+C84*'102021 PIS Summary'!$J$5 -> 216.4606409 | F84: 10-90 | G84: 10-9005
A85: R10-85Q1.21-P-0009 | B85: 5299.01 | C85: =+B85/$B$83 -> 0.1665489082 | D85: =+C85*'102021 PIS Summary'!$K$5 -> 110.5676564 | E85: =+C85*'102021 PIS Summary'!$J$5 -> 239.3424395 | F85: 10-85 | G85: 10-8505
A86: R10-85Q1.21-P-0010 | B86: 13200.19 | C86: 0.4148845223 | D86: =+C86*'102021 PIS Summary'!$K$5 -> 275.4314623 | E86: =+C86*'102021 PIS Summary'!$J$5 -> 596.2181005 | F86: 10-85 | G86: 10-8505
A87: R10-47Q1.21-P-0011 | B87: 8524.93 | C87: 0.2679401971 | D87: =+C87*'102021 PIS Summary'!$K$5 -> 177.8787984 | E87: =+C87*'102021 PIS Summary'!$J$5 -> 385.0488191 | F87: 10-47 | G87: 10-4705
A88: 2021-11-30 | B88: =SUM(B89:B91) -> 38526.06
A89: R10-55Q1.21-P-0016 | B89: 7691.99 | C89: =+B89/$B$88 -> 0.1996568037 | D89: =+C89*'112021 PIS Summary'!$K$5 -> 146.850574 | E89: =+C89*'112021 PIS Summary'!$J$5 -> 317.8745955 | F89: 10-55 | G89: 10-5505
A90: R10-85Q1.21-P-0005 | B90: 24518.97 | C90: =+B90/$B$88 -> 0.6364255779 | D90: =+C90*'112021 PIS Summary'!$K$5 -> 468.1005589 | E90: =+C90*'112021 PIS Summary'!$J$5 -> 1013.256345 | F90: 10-85 | G90: 10-8505
A91: R10-80Q1.21-P-0006 | B91: 6315.1 | C91: 0.1639176184 | D91: =+C91*'112021 PIS Summary'!$K$5 -> 120.5638671 | E91: =+C91*'112021 PIS Summary'!$J$5 -> 260.9740598 | F91: 10-80 | G91: 10-8005
A92: 2021-12-31 | B92: =SUM(B93:B98) -> 122086.43
A93: R10-25Q1.21-P-0011 | B93: 23779.7 | C93: =+B93/$B$92 -> 0.194777585 | D93: =+C93*'122021 PIS Summary'!$K$5 -> 411.1287354 | E93: =+C93*'122021 PIS Summary'!$J$5 -> 889.9485249 | F93: 10-25 | G93: 10-2505
A94: R10-47Q1.21-P-0020 | B94: 19701.67 | C94: =+B94/$B$92 -> 0.1613747736 | D94: =+C94*'122021 PIS Summary'!$K$5 -> 340.6234171 | E94: =+C94*'122021 PIS Summary'!$J$5 -> 737.3294093 | F94: 10-47 | G94: 10-4705
A95: R10-55Q1.21-P-0019 | B95: 4526.68 | C95: 0.03707766703 | D95: =+C95*'122021 PIS Summary'!$K$5 -> 78.26205645 | E95: =+C95*'122021 PIS Summary'!$J$5 -> 169.4097145
A96: R10-55Q1.21-P-0024 | B96: 5945.25 | C96: 0.04869705831 | D96: =+C96*'122021 PIS Summary'!$K$5 -> 102.7878028 | E96: =+C96*'122021 PIS Summary'!$J$5 -> 222.4992942 | F96: 10-55 | G96: 10-5505
A97: R10-55Q1.21-P-0026 | B97: 9675.87 | C97: 0.07925426274 | D97: =+C97*'122021 PIS Summary'!$K$5 -> 167.2867276 | E97: =+C97*'122021 PIS Summary'!$J$5 -> 362.1166892 | F97: 10-55 | G97: 10-5505
A98: R10-47Q1.21-P-0014 | B98: 58457.26 | C98: 0.4788186533 | D98: =+C98*'122021 PIS Summary'!$K$5 -> 1010.671261 | E98: =+C98*'122021 PIS Summary'!$J$5 -> 2187.746368 | F98: 10-47 | G98: 10-4705
A99: 2022-01-31 | B99: =SUM(B100:B101) -> 25927.48
A100: R10-85Q1.21-P-0013 | B100: 6861.3 | C100: =+B100/$B$99 -> 0.2646342799 | D100: =+C100*'012022 PIS Summary'!$K$5 -> 109.62872 | E100: =+C100*'012022 PIS Summary'!$J$5 -> 237.3134369 | F100: 10-85 | G100: 10-8505
A101: R10-45Q1.21-P-0011 | B101: 19066.18 | C101: =+B101/$B$99 -> 0.7353657201 | D101: =+C101*'012022 PIS Summary'!$K$5 -> 304.63628 | E101: =+C101*'012022 PIS Summary'!$J$5 -> 659.4465631 | F101: 10-45 | G101: 10-4505
A102: 2022-03-31 | B102: =SUM(B103:B104) -> 9948.68
A103: R10-55Q1.22-P-0003 | B103: 5068.48 | C103: =+B103/$B$102 -> 0.5094625619 | D103: =+C103*'032022 PIS Summary'!$K$5 -> 62.54926603 | E103: =+C103*'032022 PIS Summary'!$J$5 -> 135.3947704 | F103: 10-55 | G103: 10-5505
A104: R10-85Q1.22-P-0005 | B104: 4880.2 | C104: =+B104/$B$102 -> 0.4905374381 | D104: =+C104*'032022 PIS Summary'!$K$5 -> 60.22573397 | E104: =+C104*'032022 PIS Summary'!$J$5 -> 130.3652296 | F104: 10-85 | G104: 10-8505
A105: 2022-04-30 | B105: =SUM(B106:B113) -> 221379.81
A106: R10-90Q1.21-P-0048 | B106: 5750.21 | C106: =+B106/$B$105 -> 0.02597441022 | D106: =+C106*'042022 PIS Summary'!$K$5 -> 59.79945606 | E106: =+C106*'042022 PIS Summary'!$J$5 -> 129.4442526 | F106: 10-90 | G106: 10-9005
A107: R10-70Q1.21-P-0030 | B107: 41292.68 | C107: =+B107/$B$105 -> 0.186524146 | D107: =+C107*'042022 PIS Summary'!$K$5 -> 429.4242825 | E107: =+C107*'042022 PIS Summary'!$J$5 -> 929.5486773 | F107: 10-70 | G107: 10-7005
A108: R10-90Q1.20-P-0038 | B108: 120180.86 | C108: 0.5428718183 | D108: =+C108*'042022 PIS Summary'!$K$5 -> 1249.823929 | E108: =+C108*'042022 PIS Summary'!$J$5 -> 2705.417993 | F108: 10-90 | G108: 10-9005
A109: R10-90Q1.21-P-0045 | B109: 16243.52 | C109: 0.07337399016 | D109: =+C109*'042022 PIS Summary'!$K$5 -> 168.924902 | E109: =+C109*'042022 PIS Summary'!$J$5 -> 365.6614812 | F109: 10-90 | G109: 10-9005
A110: R10-47Q1.21-P-0018 | B110: 2347.62 | C110: 0.01060449008 | D110: =+C110*'042022 PIS Summary'!$K$5 -> 24.41413427 | E110: =+C110*'042022 PIS Summary'!$J$5 -> 52.84779447 | F110: 10-47 | G110: 10-4705
A111: R10-47Q1.21-P-0019 | B111: 8757.52 | C111: 0.03955880168 | D111: =+C111*'042022 PIS Summary'!$K$5 -> 91.07405338 | E111: =+C111*'042022 PIS Summary'!$J$5 -> 197.1424749 | F111: 10-47 | G111: 10-4705
A112: R10-47Q1.22-P-0003 | B112: 6643 | C112: 0.03000725315 | D112: =+C112*'042022 PIS Summary'!$K$5 -> 69.08404852 | E112: =+C112*'042022 PIS Summary'!$J$5 -> 149.5420463 | F112: 10-47 | G112: 10-4705
A113: R10-90Q1.21-P-0031 | B113: 20164.4 | C113: 0.09108509037 | D113: =+C113*'042022 PIS Summary'!$K$5 -> 209.7001939 | E113: =+C113*'042022 PIS Summary'!$J$5 -> 453.9252804 | F113: 10-90 | G113: 10-9005
A114: 2022-05-31 | B114: =SUM(B115:B119) -> 79514.46
A115: R10-55Q1.22-P-0005 | B115: 14100.12 | C115: =+B115/$B$114 -> 0.1773277464 | D115: =+C115*'052022 PIS Summary'!$K$5 -> 129.0281015 | E115: =+C115*'052022 PIS Summary'!$J$5 -> 279.300067 | F115: 10-55 | G115: 10-5505
A116: R10-90Q1.21-P-0054 | B116: 16865.07 | C116: =+B116/$B$114 -> 0.212100667 | D116: =+C116*'052022 PIS Summary'!$K$5 -> 154.3297478 | E116: =+C116*'052022 PIS Summary'!$J$5 -> 334.0691555 | F116: 10-90 | G116: 10-9005
A117: R10-47Q1.22-P-0007 | B117: 2126.98 | C117: 0.02674960001 | D117: =+C117*'052022 PIS Summary'!$K$5 -> 19.46367771 | E117: =+C117*'052022 PIS Summary'!$J$5 -> 42.1319575 | F117: 10-47 | G117: 10-4705
A118: R10-47Q1.22-P-0002 | B118: 44752.04 | C118: 0.5628163733 | D118: =+C118*'052022 PIS Summary'!$K$5 -> 409.5192636 | E118: =+C118*'052022 PIS Summary'!$J$5 -> 886.4639287 | F118: 10-47 | G118: 10-4705
A119: R10-72Q1.22-P-0003 | B119: 1670.25 | C119: 0.02100561332 | D119: =+C119*'052022 PIS Summary'!$K$5 -> 15.28420939 | E119: =+C119*'052022 PIS Summary'!$J$5 -> 33.08489126 | F119: 10-72 | G119: 10-7205 | K119: 15.28420939 | L119: 33.08489126
A120: 2022-06-30 | B120: =SUM(B121:B122) -> 80207.29
A121: R10-90Q1.21-P-0005 | B121: 75619.83 | C121: =+B121/$B$120 -> 0.9428049495 | D121: =+C121*'062022 PIS Summary'!$K$5 -> 568.7470858 | E121: =+C121*'062022 PIS Summary'!$J$5 -> 1231.142987 | F121: 10-90 | G121: 10-9005
A122: R10-80Q1.22-P-0006 | B122: 4587.46 | C122: =+B122/$B$120 -> 0.05719505047 | D122: =+C122*'062022 PIS Summary'!$K$5 -> 34.5029142 | E122: =+C122*'062022 PIS Summary'!$J$5 -> 74.68701276 | F122: 10-80 | G122: 10-8005
A123: 2022-07-31 | B123: =SUM(B124) -> 74124.52
A124: R10-01Q1.21-P-0007 | B124: 74124.52 | C124: =+B124/$B$123 -> 1 | D124: =+C124*'072022 PIS Summary'!$K$5 -> 244.66 | E124: =+C124*'072022 PIS Summary'!$J$5 -> 529.605 | F124: 10-01 | G124: 10-0105
A125: Grand Total | B125: =+B4+B11+B17+B21+B24+B30+B37+B51+B56+B63+B65+B68+B72+B75+B78+B83+B88+B92+B99+B102+B105+B114+B120+B123 -> 2441845.91
C126: Totals | D126: =SUM(D5:D124) -> 75457.685 | E126: =SUM(E5:E124) -> 163338.645
C129: Originally Filed | D129: 1077396.8
C130: Revised Numbers | D130: =+D126+E126 -> 238796.33 | F130: =+D130-K119-L119 -> 238747.9609 | G130: Rebuttal
D131: =+D130-D129 -> -838600.47

Sheet 052020 PIS Summary (hidden)
A1: Indiana American Water | J1: =SUM('CR CWIP query 052020 ISD'!H:H)+J5+K5-G48 -> 0 | K1: check
A2: Post In Service AFUDC Calc
A3: 05/1/2020-
J5: =SUM(J21,J35,J37:J46) -> 0 | K5: =SUM(K21,K35,K37:K46) -> 0 | L5: =SUM(L21,L35,L37:L46) -> 0
A7: Year | B7: Month | C7: Current Month CWIP | D7: Beginning AFUDC Base | E7: Current Month Charges | F7: 50% Charge Current Charge | G7: Current Base | H7: PIS AFUDC Monthly Equity Rate | I7: PIS AFUDC Monthly Debt Rate | J7: PIS AFUDC Equity to be Recorded | K7: PIS AFUDC Debt to be Recorded | L7: AFUDC PIS Equity Reduction to record
A9: 2020 | B9: 1 | H9: 0.00356083 | I9: 0.001645
A10: 2020 | B10: 2 | C10: =SUMIFS('CR CWIP query 052020 ISD'!$H:$H,'CR CWIP query 052020 ISD'!$L:$L,'052020 PIS Summary'!A10,'CR CWIP query 052020 ISD'!$K:$K,'052020 PIS Summary'!B10) -> 0 | D10: =+D9+E9 -> 0 | E10: =C10 -> 0 | F10: =0.5*E10 -> 0 | G10: =+D10+F10 -> 0 | H10: 0.00356083 | I10: 0.001645
A11: 2020 | B11: 3 | C11: =SUMIFS('CR CWIP query 052020 ISD'!$H:$H,'CR CWIP query 052020 ISD'!$L:$L,'052020 PIS Summary'!A11,'CR CWIP query 052020 ISD'!$K:$K,'052020 PIS Summary'!B11) -> 0 | D11: 0 | E11: 0 | F11: 0 | G11: 0 | H11: 0.00356083 | I11: 0.001645
A12: 2020 | B12: 4 | C12: =SUMIFS('CR CWIP query 052020 ISD'!$H:$H,'CR CWIP query 052020 ISD'!$L:$L,'052020 PIS Summary'!A12,'CR CWIP query 052020 ISD'!$K:$K,'052020 PIS Summary'!B12) -> 0 | D12: =+D11+E11 -> 0 | E12: =C12 -> 0 | F12: =0.5*E12 -> 0 | G12: =+D12+F12 -> 0 | H12: 0.00356083 | I12: 0.001645
A13: 2020 | B13: 5 | C13: =SUMIFS('CR CWIP query 052020 ISD'!$H:$H,'CR CWIP query 052020 ISD'!$L:$L,'052020 PIS Summary'!A13,'CR CWIP query 052020 ISD'!$K:$K,'052020 PIS Summary'!B13) -> 0 | D13: =+D12+E12 -> 0 | E13: =C13 -> 0 | F13: =0.5*E13 -> 0 | G13: =+D13+F13 -> 0 | H13: 0.00356083 | I13: 0.001645 | J13: =ROUND($G13*H13,2)*0.5 -> 0 | K13: =ROUND($G13*I13,2)*0.5 -> 0 | L13: =+J13-K13 -> 0
A14: 2020 | B14: 6 | C14: =SUMIFS('CR CWIP query 052020 ISD'!$H:$H,'CR CWIP query 052020 ISD'!$L:$L,'052020 PIS Summary'!A14,'CR CWIP query 052020 ISD'!$K:$K,'052020 PIS Summary'!B14) -> 0 | D14: =+D13+E13+J13+K13 -> 0 | E14: 0 | F14: 0 | G14: 0 | H14: 0.00356083 | I14: 0.001645 | J14: =ROUND($G14*H14,2) -> 0 | K14: =ROUND($G14*I14,2) -> 0 | L14: 0
A15: 2020 | B15: 7 | C15: =SUMIFS('CR CWIP query 052020 ISD'!$H:$H,'CR CWIP query 052020 ISD'!$L:$L,'052020 PIS Summary'!A15,'CR CWIP query 052020 ISD'!$K:$K,'052020 PIS Summary'!B15) -> 0 | D15: =+D14+E14+J14+K14 -> 0 | E15: 0 | F15: 0 | G15: 0 | H15: 0.00356083 | I15: 0.001645 | J15: 0 | K15: 0 | L15: 0
A16: 2020 | B16: 8 | C16: =SUMIFS('CR CWIP query 052020 ISD'!$H:$H,'CR CWIP query 052020 ISD'!$L:$L,'052020 PIS Summary'!A16,'CR CWIP query 052020 ISD'!$K:$K,'052020 PIS Summary'!B16) -> 0 | D16: 0 | E16: 0 | F16: 0 | G16: 0 | H16: 0.00356083 | I16: 0.001645 | J16: 0 | K16: 0 | L16: 0
A17: 2020 | B17: 9 | C17: =SUMIFS('CR CWIP query 052020 ISD'!$H:$H,'CR CWIP query 052020 ISD'!$L:$L,'052020 PIS Summary'!A17,'CR CWIP query 052020 ISD'!$K:$K,'052020 PIS Summary'!B17) -> 0 | D17: 0 | E17: 0 | F17: 0 | G17: 0 | H17: 0.00356083 | I17: 0.001645 | J17: 0 | K17: 0 | L17: 0
A18: 2020 | B18: 10 | C18: =SUMIFS('CR CWIP query 052020 ISD'!$H:$H,'CR CWIP query 052020 ISD'!$L:$L,'052020 PIS Summary'!A18,'CR CWIP query 052020 ISD'!$K:$K,'052020 PIS Summary'!B18) -> 0 | D18: 0 | E18: 0 | F18: 0 | G18: 0 | H18: 0.00356083 | I18: 0.001645 | J18: 0 | K18: 0 | L18: 0
A19: 2020 | B19: 11 | C19: =SUMIFS('CR CWIP query 052020 ISD'!$H:$H,'CR CWIP query 052020 ISD'!$L:$L,'052020 PIS Summary'!A19,'CR CWIP query 052020 ISD'!$K:$K,'052020 PIS Summary'!B19) -> 0 | D19: 0 | E19: 0 | F19: 0 | G19: 0 | H19: 0.00356083 | I19: 0.001645 | J19: 0 | K19: 0 | L19: 0
A20: 2020 | B20: 12 | C20: =SUMIFS('CR CWIP query 052020 ISD'!$H:$H,'CR CWIP query 052020 ISD'!$L:$L,'052020 PIS Summary'!A20,'CR CWIP query 052020 ISD'!$K:$K,'052020 PIS Summary'!B20) -> 0 | D20: 0 | E20: =C20 -> 0 | F20: =0.5*E20 -> 0 | G20: =+D20+F20 -> 0 | H20: 0.00356083 | I20: 0.001645 | J20: 0 | K20: 0 | L20: 0
A21: 20 Total | C21: =SUM(C20) -> 0 | E21: =SUM(E9:E20) -> 0 | J21: =SUM(J12:J20) -> 0 | K21: =SUM(K12:K20) -> 0 | L21: =SUM(L12:L20) -> 0
A23: 2021 | B23: 1 | C23: =SUMIFS('CR CWIP query 052020 ISD'!$H:$H,'CR CWIP query 052020 ISD'!$L:$L,'052020 PIS Summary'!A23,'CR CWIP query 052020 ISD'!$K:$K,'052020 PIS Summary'!B23) -> 0 | D23: =+D20+E20+J20+K20 -> 0 | E23: =C23 -> 0 | F23: =0.5*E23 -> 0 | G23: =+D23+F23 -> 0 | H23: 0.00356083 | I23: 0.001645 | J23: =ROUND($G23*H23,2) -> 0 | K23: 0 | L23: =+J23-K23 -> 0
A24: 2021 | B24: 2 | C24: =SUMIFS('CR CWIP query 052020 ISD'!$H:$H,'CR CWIP query 052020 ISD'!$L:$L,'052020 PIS Summary'!A24,'CR CWIP query 052020 ISD'!$K:$K,'052020 PIS Summary'!B24) -> 0 | D24: =+D23+E23+J23+K23 -> 0 | E24: 0 | F24: =0.5*E24 -> 0 | G24: =+D24+F24 -> 0 | H24: 0.00356083 | I24: 0.001645 | J24: 0 | K24: 0 | L24: 0
A25: 2021 | B25: 3 | C25: =SUMIFS('CR CWIP query 052020 ISD'!$H:$H,'CR CWIP query 052020 ISD'!$L:$L,'052020 PIS Summary'!A25,'CR CWIP query 052020 ISD'!$K:$K,'052020 PIS Summary'!B25) -> 0 | D25: =+D24+E24+J24+K24 -> 0 | E25: 0 | F25: 0 | G25: 0 | H25: 0.00356083 | I25: 0.001645 | J25: 0 | K25: 0 | L25: 0
A26: 2021 | B26: 4 | C26: =SUMIFS('CR CWIP query 052020 ISD'!$H:$H,'CR CWIP query 052020 ISD'!$L:$L,'052020 PIS Summary'!A26,'CR CWIP query 052020 ISD'!$K:$K,'052020 PIS Summary'!B26) -> 0 | D26: =+D25+E25+J25+K25 -> 0 | E26: 0 | F26: 0 | G26: 0 | H26: 0.00356083 | I26: 0.001645 | J26: 0 | K26: 0 | L26: 0
A27: 2021 | B27: 5 | C27: =SUMIFS('CR CWIP query 052020 ISD'!$H:$H,'CR CWIP query 052020 ISD'!$L:$L,'052020 PIS Summary'!A27,'CR CWIP query 052020 ISD'!$K:$K,'052020 PIS Summary'!B27) -> 0 | D27: =+D26+E26+J26+K26 -> 0 | E27: 0 | F27: 0 | G27: 0 | H27: 0.00356083 | I27: 0.001645 | J27: 0 | K27: 0 | L27: 0
A28: 2021 | B28: 6 | C28: =SUMIFS('CR CWIP query 052020 ISD'!$H:$H,'CR CWIP query 052020 ISD'!$L:$L,'052020 PIS Summary'!A28,'CR CWIP query 052020 ISD'!$K:$K,'052020 PIS Summary'!B28) -> 0 | D28: 0 | E28: 0 | F28: 0 | G28: 0 | H28: 0.00356083 | I28: 0.001645 | J28: 0 | K28: 0 | L28: 0
A29: 2021 | B29: 7 | C29: =SUMIFS('CR CWIP query 052020 ISD'!$H:$H,'CR CWIP query 052020 ISD'!$L:$L,'052020 PIS Summary'!A29,'CR CWIP query 052020 ISD'!$K:$K,'052020 PIS Summary'!B29) -> 0 | D29: 0 | E29: 0 | F29: 0 | G29: 0 | H29: 0.00356083 | I29: 0.001645 | J29: 0 | K29: 0 | L29: 0
A30: 2021 | B30: 8 | C30: =SUMIFS('CR CWIP query 052020 ISD'!$H:$H,'CR CWIP query 052020 ISD'!$L:$L,'052020 PIS Summary'!A30,'CR CWIP query 052020 ISD'!$K:$K,'052020 PIS Summary'!B30) -> 0 | D30: 0 | E30: 0 | F30: 0 | G30: 0 | H30: 0.00356083 | I30: 0.001645 | J30: 0 | K30: 0 | L30: 0
A31: 2021 | B31: 9 | C31: =SUMIFS('CR CWIP query 052020 ISD'!$H:$H,'CR CWIP query 052020 ISD'!$L:$L,'052020 PIS Summary'!A31,'CR CWIP query 052020 ISD'!$K:$K,'052020 PIS Summary'!B31) -> 0 | D31: 0 | E31: 0 | F31: 0 | G31: 0 | H31: 0.00356083 | I31: 0.001645 | J31: 0 | K31: 0 | L31: 0
A32: 2021 | B32: 10 | C32: =SUMIFS('CR CWIP query 052020 ISD'!$H:$H,'CR CWIP query 052020 ISD'!$L:$L,'052020 PIS Summary'!A32,'CR CWIP query 052020 ISD'!$K:$K,'052020 PIS Summary'!B32) -> 0 | D32: 0 | E32: 0 | F32: 0 | G32: 0 | H32: 0.00356083 | I32: 0.001645 | J32: 0 | K32: 0 | L32: 0
A33: 2021 | B33: 11 | C33: =SUMIFS('CR CWIP query 052020 ISD'!$H:$H,'CR CWIP query 052020 ISD'!$L:$L,'052020 PIS Summary'!A33,'CR CWIP query 052020 ISD'!$K:$K,'052020 PIS Summary'!B33) -> 0 | D33: 0 | E33: 0 | F33: 0 | G33: 0 | H33: 0.00356083 | I33: 0.001645 | J33: 0 | K33: 0 | L33: 0
A34: 2021 | B34: 12 | C34: =SUMIFS('CR CWIP query 052020 ISD'!$H:$H,'CR CWIP query 052020 ISD'!$L:$L,'052020 PIS Summary'!A34,'CR CWIP query 052020 ISD'!$K:$K,'052020 PIS Summary'!B34) -> 0 | D34: 0 | E34: 0 | F34: 0 | G34: 0 | H34: 0.00356083 | I34: 0.001645 | J34: 0 | K34: 0 | L34: 0
A35: 21 Total | C35: =SUM(C23:C34) -> 0 | E35: =SUM(E23:E34) -> 0 | J35: =SUM(J23:J34) -> 0 | K35: =SUM(K23:K34) -> 0 | L35: =SUM(L23:L34) -> 0
A37: 2022 | B37: 1 | C37: =SUMIFS('CR CWIP query 052020 ISD'!$H:$H,'CR CWIP query 052020 ISD'!$L:$L,'052020 PIS Summary'!A37,'CR CWIP query 052020 ISD'!$K:$K,'052020 PIS Summary'!B37) -> 0 | D37: =+D34+E34+J34+K34 -> 0 | E37: =C37 -> 0 | F37: =0.5*E37 -> 0 | G37: =+D37+F37 -> 0 | H37: 0.00356083 | I37: 0.001645 | J37: =ROUND($G37*H37,2) -> 0 | K37: =ROUND($G37*I37,2) -> 0 | L37: =+J37-K37 -> 0
A38: 2022 | B38: 2 | C38: =SUMIFS('CR CWIP query 052020 ISD'!$H:$H,'CR CWIP query 052020 ISD'!$L:$L,'052020 PIS Summary'!A38,'CR CWIP query 052020 ISD'!$K:$K,'052020 PIS Summary'!B38) -> 0 | D38: =+D37+E37+J37+K37 -> 0 | E38: 0 | F38: =0.5*E38 -> 0 | G38: =+D38+F38 -> 0 | H38: 0.00356083 | I38: 0.001645 | J38: =ROUND($G38*H38,2) -> 0 | K38: 0 | L38: =+J38-K38 -> 0
A39: 2022 | B39: 3 | C39: =SUMIFS('CR CWIP query 052020 ISD'!$H:$H,'CR CWIP query 052020 ISD'!$L:$L,'052020 PIS Summary'!A39,'CR CWIP query 052020 ISD'!$K:$K,'052020 PIS Summary'!B39) -> 0 | D39: =+D38+E38+J38+K38 -> 0 | E39: 0 | F39: 0 | G39: 0 | H39: 0.00356083 | I39: 0.001645 | J39: 0 | K39: 0 | L39: 0
A40: 2022 | B40: 4 | C40: =SUMIFS('CR CWIP query 052020 ISD'!$H:$H,'CR CWIP query 052020 ISD'!$L:$L,'052020 PIS Summary'!A40,'CR CWIP query 052020 ISD'!$K:$K,'052020 PIS Summary'!B40) -> 0 | D40: 0 | E40: 0 | F40: 0 | G40: 0 | H40: 0.00356083 | I40: 0.001645 | J40: =ROUND($G40*H40,2) -> 0 | K40: 0 | L40: 0
A41: 2022 | B41: 5 | C41: =SUMIFS('CR CWIP query 052020 ISD'!$H:$H,'CR CWIP query 052020 ISD'!$L:$L,'052020 PIS Summary'!A41,'CR CWIP query 052020 ISD'!$K:$K,'052020 PIS Summary'!B41) -> 0 | D41: 0 | E41: 0 | F41: 0 | G41: 0 | H41: 0.00356083 | I41: 0.001645 | J41: 0 | K41: 0 | L41: 0
A42: 2022 | B42: 6 | C42: =SUMIFS('CR CWIP query 052020 ISD'!$H:$H,'CR CWIP query 052020 ISD'!$L:$L,'052020 PIS Summary'!A42,'CR CWIP query 052020 ISD'!$K:$K,'052020 PIS Summary'!B42) -> 0 | D42: 0 | E42: 0 | F42: 0 | G42: 0 | H42: 0.00356083 | I42: 0.001645 | J42: 0 | K42: 0 | L42: 0
A43: 2022 | B43: 7 | C43: =SUMIFS('CR CWIP query 052020 ISD'!$H:$H,'CR CWIP query 052020 ISD'!$L:$L,'052020 PIS Summary'!A43,'CR CWIP query 052020 ISD'!$K:$K,'052020 PIS Summary'!B43) -> 0 | D43: 0 | E43: 0 | F43: 0 | G43: 0 | H43: 0.00356083 | I43: 0.001645 | J43: 0 | K43: 0 | L43: 0
A44: 2022 | B44: 8 | C44: =SUMIFS('CR CWIP query 052020 ISD'!$H:$H,'CR CWIP query 052020 ISD'!$L:$L,'052020 PIS Summary'!A44,'CR CWIP query 052020 ISD'!$K:$K,'052020 PIS Summary'!B44) -> 0 | D44: 0 | E44: 0 | F44: 0 | G44: 0 | H44: 0.00356083 | I44: 0.001645 | J44: =ROUND($G44*H44,2) -> 0 | K44: =ROUND($G44*I44,2) -> 0 | L44: =+J44-K44 -> 0
A45: 2022 | B45: 9 | C45: =SUMIFS('CR CWIP query 052020 ISD'!$H:$H,'CR CWIP query 052020 ISD'!$L:$L,'052020 PIS Summary'!A45,'CR CWIP query 052020 ISD'!$K:$K,'052020 PIS Summary'!B45) -> 0 | D45: 0 | E45: 0 | F45: 0 | G45: 0 | H45: 0.00356083 | I45: 0.001645 | J45: 0 | K45: 0 | L45: 0
A46: 2022 | B46: 10 | C46: =SUMIFS('CR CWIP query 052020 ISD'!$H:$H,'CR CWIP query 052020 ISD'!$L:$L,'052020 PIS Summary'!A46,'CR CWIP query 052020 ISD'!$K:$K,'052020 PIS Summary'!B46) -> 0 | D46: 0 | E46: 0 | F46: 0 | G46: 0 | H46: 0.00356083 | I46: 0.001645 | J46: 0 | K46: 0 | L46: 0
A47: 2022 | B47: 11 | C47: =SUMIFS('CR CWIP query 052020 ISD'!$H:$H,'CR CWIP query 052020 ISD'!$L:$L,'052020 PIS Summary'!A47,'CR CWIP query 052020 ISD'!$K:$K,'052020 PIS Summary'!B47) -> 0 | D47: 0 | E47: 0 | F47: 0 | G47: 0 | H47: 0.00356083 | I47: 0.001645
A48: 2022 | B48: 12 | C48: =SUMIFS('CR CWIP query 052020 ISD'!$H:$H,'CR CWIP query 052020 ISD'!$L:$L,'052020 PIS Summary'!A48,'CR CWIP query 052020 ISD'!$K:$K,'052020 PIS Summary'!B48) -> 0 | D48: 0 | E48: 0 | F48: 0 | G48: 0 | H48: 0.00356083 | I48: 0.001645
A49: 22 Total | C49: =SUM(C37:C48) -> 0 | E49: =SUM(E37:E48) -> 0 | J49: =SUM(J37:J48) -> 0 | K49: =SUM(K37:K48) -> 0 | L49: 0

Sheet 062020 PIS Summary (hidden)
A1: Indiana American Water
A2: Post In Service AFUDC Calc
A3: 6/1/2020- | J3: =SUM('CR CWIP query 062020 ISD'!H:H)+J5+K5-G48 -> 0 | K3: check
J5: =SUM(J21,J35,J37:J47) -> 4621.165 | K5: =SUM(K21,K35,K37:K47) -> 2134.84 | L5: =SUM(L21,L35,L37:L47) -> 2486.325
A7: Year | B7: Month | C7: Grand Total CWIP | D7: Beginning AFUDC Base | E7: Current Month Charges | F7: 50% Charge Current Charge | G7: Current Base | H7: PIS AFUDC Monthly Equity Rate | I7: PIS AFUDC Monthly Debt Rate | J7: PIS AFUDC Equity to be Recorded | K7: PIS AFUDC Debt to be Recorded | L7: AFUDC PIS Equity Reduction to record
A9: 2020 | B9: 1 | H9: 0.00356083 | I9: 0.001645
A10: 2020 | B10: 2 | C10: =SUMIFS('CR CWIP query 062020 ISD'!$H:$H,'CR CWIP query 062020 ISD'!$L:$L,'062020 PIS Summary'!A10,'CR CWIP query 062020 ISD'!$K:$K,'062020 PIS Summary'!B10) -> 0 | D10: =+D9+E9 -> 0 | E10: =C10 -> 0 | F10: =0.5*E10 -> 0 | G10: =+D10+F10 -> 0 | H10: 0.00356083 | I10: 0.001645
A11: 2020 | B11: 3 | C11: =SUMIFS('CR CWIP query 062020 ISD'!$H:$H,'CR CWIP query 062020 ISD'!$L:$L,'062020 PIS Summary'!A11,'CR CWIP query 062020 ISD'!$K:$K,'062020 PIS Summary'!B11) -> 0 | D11: 0 | E11: 0 | F11: 0 | G11: 0 | H11: 0.00356083 | I11: 0.001645
A12: 2020 | B12: 4 | C12: =SUMIFS('CR CWIP query 062020 ISD'!$H:$H,'CR CWIP query 062020 ISD'!$L:$L,'062020 PIS Summary'!A12,'CR CWIP query 062020 ISD'!$K:$K,'062020 PIS Summary'!B12) -> 10498.47 | D12: =+D11+E11 -> 0 | E12: =C12 -> 10498.47 | F12: =0.5*E12 -> 5249.235 | G12: =+D12+F12 -> 5249.235 | H12: 0.00356083 | I12: 0.001645
A13: 2020 | B13: 5 | C13: =SUMIFS('CR CWIP query 062020 ISD'!$H:$H,'CR CWIP query 062020 ISD'!$L:$L,'062020 PIS Summary'!A13,'CR CWIP query 062020 ISD'!$K:$K,'062020 PIS Summary'!B13) -> 17443.18 | D13: =+D12+E12 -> 10498.47 | E13: =C13 -> 17443.18 | F13: =0.5*E13 -> 8721.59 | G13: =+D13+F13 -> 19220.06 | H13: 0.00356083 | I13: 0.001645
A14: 2020 | B14: 6 | C14: =SUMIFS('CR CWIP query 062020 ISD'!$H:$H,'CR CWIP query 062020 ISD'!$L:$L,'062020 PIS Summary'!A14,'CR CWIP query 062020 ISD'!$K:$K,'062020 PIS Summary'!B14) -> 14554.39 | D14: =+D13+E13+J13+K13 -> 27941.65 | E14: 14554.39 | F14: 7277.195 | G14: 35218.845 | H14: 0.00356083 | I14: 0.001645 | J14: =ROUND($G14*H14,2)*0.5 -> 62.705 | K14: =ROUND($G14*I14,2)*0.5 -> 28.97 | L14: =+J14-K14 -> 33.735
A15: 2020 | B15: 7 | C15: =SUMIFS('CR CWIP query 062020 ISD'!$H:$H,'CR CWIP query 062020 ISD'!$L:$L,'062020 PIS Summary'!A15,'CR CWIP query 062020 ISD'!$K:$K,'062020 PIS Summary'!B15) -> 0 | D15: =+D14+E14+J14+K14 -> 42587.715 | E15: 0 | F15: 0 | G15: 42587.715 | H15: 0.00356083 | I15: 0.001645 | J15: =ROUND($G15*H15,2) -> 151.65 | K15: =ROUND($G15*I15,2) -> 70.06 | L15: 81.59
A16: 2020 | B16: 8 | C16: =SUMIFS('CR CWIP query 062020 ISD'!$H:$H,'CR CWIP query 062020 ISD'!$L:$L,'062020 PIS Summary'!A16,'CR CWIP query 062020 ISD'!$K:$K,'062020 PIS Summary'!B16) -> 0 | D16: =+D15+E15+J15+K15 -> 42809.425 | E16: 0 | F16: 0 | G16: 42809.425 | H16: 0.00356083 | I16: 0.001645 | J16: 152.44 | K16: 70.42 | L16: 82.02
A17: 2020 | B17: 9 | C17: =SUMIFS('CR CWIP query 062020 ISD'!$H:$H,'CR CWIP query 062020 ISD'!$L:$L,'062020 PIS Summary'!A17,'CR CWIP query 062020 ISD'!$K:$K,'062020 PIS Summary'!B17) -> 0 | D17: =+D16+E16+J16+K16 -> 43032.285 | E17: 0 | F17: 0 | G17: 43032.285 | H17: 0.00356083 | I17: 0.001645 | J17: 153.23 | K17: 70.79 | L17: 82.44
A18: 2020 | B18: 10 | C18: =SUMIFS('CR CWIP query 062020 ISD'!$H:$H,'CR CWIP query 062020 ISD'!$L:$L,'062020 PIS Summary'!A18,'CR CWIP query 062020 ISD'!$K:$K,'062020 PIS Summary'!B18) -> 0 | D18: =+D17+E17+J17+K17 -> 43256.305 | E18: 0 | F18: 0 | G18: 43256.305 | H18: 0.00356083 | I18: 0.001645 | J18: 154.03 | K18: 71.16 | L18: 82.87
A19: 2020 | B19: 11 | C19: =SUMIFS('CR CWIP query 062020 ISD'!$H:$H,'CR CWIP query 062020 ISD'!$L:$L,'062020 PIS Summary'!A19,'CR CWIP query 062020 ISD'!$K:$K,'062020 PIS Summary'!B19) -> 0 | D19: =+D18+E18+J18+K18 -> 43481.495 | E19: 0 | F19: 0 | G19: 43481.495 | H19: 0.00356083 | I19: 0.001645 | J19: 154.83 | K19: 71.53 | L19: 83.3
A20: 2020 | B20: 12 | C20: =SUMIFS('CR CWIP query 062020 ISD'!$H:$H,'CR CWIP query 062020 ISD'!$L:$L,'062020 PIS Summary'!A20,'CR CWIP query 062020 ISD'!$K:$K,'062020 PIS Summary'!B20) -> 0 | D20: 43707.855 | E20: =C20 -> 0 | F20: =0.5*E20 -> 0 | G20: =+D20+F20 -> 43707.855 | H20: 0.00356083 | I20: 0.001645 | J20: 155.64 | K20: 71.9 | L20: 83.74
A21: 20 Total | C21: =SUM(C9:C20) -> 42496.04 | E21: =SUM(E9:E20) -> 42496.04 | J21: =SUM(J12:J20) -> 984.525 | K21: =SUM(K12:K20) -> 454.83 | L21: =SUM(L12:L20) -> 529.695
A23: 2021 | B23: 1 | C23: =SUMIFS('CR CWIP query 062020 ISD'!$H:$H,'CR CWIP query 062020 ISD'!$L:$L,'062020 PIS Summary'!A23,'CR CWIP query 062020 ISD'!$K:$K,'062020 PIS Summary'!B23) -> 0 | D23: =+D20+E20+J20+K20 -> 43935.395 | E23: =C23 -> 0 | F23: =0.5*E23 -> 0 | G23: =+D23+F23 -> 43935.395 | H23: 0.00356083 | I23: 0.001645 | J23: =ROUND($G23*H23,2) -> 156.45 | K23: 72.27 | L23: =+J23-K23 -> 84.18
A24: 2021 | B24: 2 | C24: =SUMIFS('CR CWIP query 062020 ISD'!$H:$H,'CR CWIP query 062020 ISD'!$L:$L,'062020 PIS Summary'!A24,'CR CWIP query 062020 ISD'!$K:$K,'062020 PIS Summary'!B24) -> 0 | D24: =+D23+E23+J23+K23 -> 44164.115 | E24: 0 | F24: =0.5*E24 -> 0 | G24: =+D24+F24 -> 44164.115 | H24: 0.00356083 | I24: 0.001645 | J24: 157.26 | K24: 72.65 | L24: 84.61
A25: 2021 | B25: 3 | C25: =SUMIFS('CR CWIP query 062020 ISD'!$H:$H,'CR CWIP query 062020 ISD'!$L:$L,'062020 PIS Summary'!A25,'CR CWIP query 062020 ISD'!$K:$K,'062020 PIS Summary'!B25) -> 0 | D25: =+D24+E24+J24+K24 -> 44394.025 | E25: 0 | F25: 0 | G25: 44394.025 | H25: 0.00356083 | I25: 0.001645 | J25: 158.08 | K25: 73.03 | L25: 85.05
A26: 2021 | B26: 4 | C26: =SUMIFS('CR CWIP query 062020 ISD'!$H:$H,'CR CWIP query 062020 ISD'!$L:$L,'062020 PIS Summary'!A26,'CR CWIP query 062020 ISD'!$K:$K,'062020 PIS Summary'!B26) -> 0 | D26: =+D25+E25+J25+K25 -> 44625.135 | E26: 0 | F26: 0 | G26: 44625.135 | H26: 0.00356083 | I26: 0.001645 | J26: 158.9 | K26: 73.41 | L26: 85.49
A27: 2021 | B27: 5 | C27: =SUMIFS('CR CWIP query 062020 ISD'!$H:$H,'CR CWIP query 062020 ISD'!$L:$L,'062020 PIS Summary'!A27,'CR CWIP query 062020 ISD'!$K:$K,'062020 PIS Summary'!B27) -> 0 | D27: =+D26+E26+J26+K26 -> 44857.445 | E27: 0 | F27: 0 | G27: 44857.445 | H27: 0.00356083 | I27: 0.001645 | J27: 159.73 | K27: 73.79 | L27: 85.94
A28: 2021 | B28: 6 | C28: =SUMIFS('CR CWIP query 062020 ISD'!$H:$H,'CR CWIP query 062020 ISD'!$L:$L,'062020 PIS Summary'!A28,'CR CWIP query 062020 ISD'!$K:$K,'062020 PIS Summary'!B28) -> 0 | D28: 45090.965 | E28: 0 | F28: 0 | G28: 45090.965 | H28: 0.00356083 | I28: 0.001645 | J28: 160.56 | K28: 74.17 | L28: 86.39
A29: 2021 | B29: 7 | C29: =SUMIFS('CR CWIP query 062020 ISD'!$H:$H,'CR CWIP query 062020 ISD'!$L:$L,'062020 PIS Summary'!A29,'CR CWIP query 062020 ISD'!$K:$K,'062020 PIS Summary'!B29) -> 0 | D29: 45325.695 | E29: 0 | F29: 0 | G29: 45325.695 | H29: 0.00356083 | I29: 0.001645 | J29: 161.4 | K29: 74.56 | L29: 86.84
A30: 2021 | B30: 8 | C30: =SUMIFS('CR CWIP query 062020 ISD'!$H:$H,'CR CWIP query 062020 ISD'!$L:$L,'062020 PIS Summary'!A30,'CR CWIP query 062020 ISD'!$K:$K,'062020 PIS Summary'!B30) -> 0 | D30: 45561.655 | E30: 0 | F30: 0 | G30: 45561.655 | H30: 0.00356083 | I30: 0.001645 | J30: 162.24 | K30: 74.95 | L30: 87.29
A31: 2021 | B31: 9 | C31: =SUMIFS('CR CWIP query 062020 ISD'!$H:$H,'CR CWIP query 062020 ISD'!$L:$L,'062020 PIS Summary'!A31,'CR CWIP query 062020 ISD'!$K:$K,'062020 PIS Summary'!B31) -> 0 | D31: 45798.845 | E31: 0 | F31: 0 | G31: 45798.845 | H31: 0.00356083 | I31: 0.001645 | J31: 163.08 | K31: 75.34 | L31: 87.74
A32: 2021 | B32: 10 | C32: =SUMIFS('CR CWIP query 062020 ISD'!$H:$H,'CR CWIP query 062020 ISD'!$L:$L,'062020 PIS Summary'!A32,'CR CWIP query 062020 ISD'!$K:$K,'062020 PIS Summary'!B32) -> 0 | D32: 46037.265 | E32: 0 | F32: 0 | G32: 46037.265 | H32: 0.00356083 | I32: 0.001645 | J32: 163.93 | K32: 75.73 | L32: 88.2
A33: 2021 | B33: 11 | C33: =SUMIFS('CR CWIP query 062020 ISD'!$H:$H,'CR CWIP query 062020 ISD'!$L:$L,'062020 PIS Summary'!A33,'CR CWIP query 062020 ISD'!$K:$K,'062020 PIS Summary'!B33) -> 0 | D33: 46276.925 | E33: 0 | F33: 0 | G33: 46276.925 | H33: 0.00356083 | I33: 0.001645 | J33: 164.78 | K33: 76.13 | L33: 88.65
A34: 2021 | B34: 12 | C34: =SUMIFS('CR CWIP query 062020 ISD'!$H:$H,'CR CWIP query 062020 ISD'!$L:$L,'062020 PIS Summary'!A34,'CR CWIP query 062020 ISD'!$K:$K,'062020 PIS Summary'!B34) -> 0 | D34: 46517.835 | E34: 0 | F34: 0 | G34: 46517.835 | H34: 0.00356083 | I34: 0.001645 | J34: 165.64 | K34: 76.52 | L34: 89.12
A35: 21 Total | C35: =SUM(C23:C34) -> 0 | E35: =SUM(E23:E34) -> 0 | J35: =SUM(J23:J34) -> 1932.05 | K35: =SUM(K23:K34) -> 892.55 | L35: 1039.5
A37: 2022 | B37: 1 | C37: =SUMIFS('CR CWIP query 062020 ISD'!$H:$H,'CR CWIP query 062020 ISD'!$L:$L,'062020 PIS Summary'!A37,'CR CWIP query 062020 ISD'!$K:$K,'062020 PIS Summary'!B37) -> 0 | D37: =+D34+E34+J34+K34 -> 46759.995 | E37: =C37 -> 0 | F37: =0.5*E37 -> 0 | G37: =+D37+F37 -> 46759.995 | H37: 0.00356083 | I37: 0.001645 | J37: =ROUND($G37*H37,2) -> 166.5 | K37: =ROUND($G37*I37,2) -> 76.92 | L37: =+J37-K37 -> 89.58
A38: 2022 | B38: 2 | C38: =SUMIFS('CR CWIP query 062020 ISD'!$H:$H,'CR CWIP query 062020 ISD'!$L:$L,'062020 PIS Summary'!A38,'CR CWIP query 062020 ISD'!$K:$K,'062020 PIS Summary'!B38) -> 0 | D38: =+D37+E37+J37+K37 -> 47003.415 | E38: 0 | F38: =0.5*E38 -> 0 | G38: =+D38+F38 -> 47003.415 | H38: 0.00356083 | I38: 0.001645 | J38: =ROUND($G38*H38,2) -> 167.37 | K38: 77.32 | L38: =+J38-K38 -> 90.05
A39: 2022 | B39: 3 | C39: =SUMIFS('CR CWIP query 062020 ISD'!$H:$H,'CR CWIP query 062020 ISD'!$L:$L,'062020 PIS Summary'!A39,'CR CWIP query 062020 ISD'!$K:$K,'062020 PIS Summary'!B39) -> 0 | D39: =+D38+E38+J38+K38 -> 47248.105 | E39: 0 | F39: 0 | G39: 47248.105 | H39: 0.00356083 | I39: 0.001645 | J39: 168.24 | K39: 77.72 | L39: 90.52
A40: 2022 | B40: 4 | C40: =SUMIFS('CR CWIP query 062020 ISD'!$H:$H,'CR CWIP query 062020 ISD'!$L:$L,'062020 PIS Summary'!A40,'CR CWIP query 062020 ISD'!$K:$K,'062020 PIS Summary'!B40) -> 0 | D40: =+D39+E39+J39+K39 -> 47494.065 | E40: 0 | F40: 0 | G40: 47494.065 | H40: 0.00356083 | I40: 0.001645 | J40: =ROUND($G40*H40,2) -> 169.12 | K40: 78.13 | L40: 90.99
A41: 2022 | B41: 5 | C41: =SUMIFS('CR CWIP query 062020 ISD'!$H:$H,'CR CWIP query 062020 ISD'!$L:$L,'062020 PIS Summary'!A41,'CR CWIP query 062020 ISD'!$K:$K,'062020 PIS Summary'!B41) -> 0 | D41: =+D40+E40+J40+K40 -> 47741.315 | E41: 0 | F41: 0 | G41: 47741.315 | H41: 0.00356083 | I41: 0.001645 | J41: 170 | K41: 78.53 | L41: 91.47
A42: 2022 | B42: 6 | C42: =SUMIFS('CR CWIP query 062020 ISD'!$H:$H,'CR CWIP query 062020 ISD'!$L:$L,'062020 PIS Summary'!A42,'CR CWIP query 062020 ISD'!$K:$K,'062020 PIS Summary'!B42) -> 0 | D42: 47989.845 | E42: 0 | F42: 0 | G42: 47989.845 | H42: 0.00356083 | I42: 0.001645 | J42: 170.88 | K42: 78.94 | L42: 91.94
A43: 2022 | B43: 7 | C43: =SUMIFS('CR CWIP query 062020 ISD'!$H:$H,'CR CWIP query 062020 ISD'!$L:$L,'062020 PIS Summary'!A43,'CR CWIP query 062020 ISD'!$K:$K,'062020 PIS Summary'!B43) -> 0 | D43: 48239.665 | E43: 0 | F43: 0 | G43: 48239.665 | H43: 0.00356083 | I43: 0.001645 | J43: 171.77 | K43: 79.35 | L43: 92.42
A44: 2022 | B44: 8 | C44: =SUMIFS('CR CWIP query 062020 ISD'!$H:$H,'CR CWIP query 062020 ISD'!$L:$L,'062020 PIS Summary'!A44,'CR CWIP query 062020 ISD'!$K:$K,'062020 PIS Summary'!B44) -> 0 | D44: 48490.785 | E44: 0 | F44: 0 | G44: 48490.785 | H44: 0.00356083 | I44: 0.001645 | J44: =ROUND($G44*H44,2) -> 172.67 | K44: =ROUND($G44*I44,2) -> 79.77 | L44: =+J44-K44 -> 92.9
A45: 2022 | B45: 9 | C45: =SUMIFS('CR CWIP query 062020 ISD'!$H:$H,'CR CWIP query 062020 ISD'!$L:$L,'062020 PIS Summary'!A45,'CR CWIP query 062020 ISD'!$K:$K,'062020 PIS Summary'!B45) -> 0 | D45: 48743.225 | E45: 0 | F45: 0 | G45: 48743.225 | H45: 0.00356083 | I45: 0.001645 | J45: 173.57 | K45: 80.18 | L45: 93.39
A46: 2022 | B46: 10 | C46: =SUMIFS('CR CWIP query 062020 ISD'!$H:$H,'CR CWIP query 062020 ISD'!$L:$L,'062020 PIS Summary'!A46,'CR CWIP query 062020 ISD'!$K:$K,'062020 PIS Summary'!B46) -> 0 | D46: 48996.975 | E46: 0 | F46: 0 | G46: 48996.975 | H46: 0.00356083 | I46: 0.001645 | J46: 174.47 | K46: 80.6 | L46: 93.87
A47: 2022 | B47: 11 | C47: =SUMIFS('CR CWIP query 062020 ISD'!$H:$H,'CR CWIP query 062020 ISD'!$L:$L,'062020 PIS Summary'!A47,'CR CWIP query 062020 ISD'!$K:$K,'062020 PIS Summary'!B47) -> 0 | D47: 49252.045 | E47: 0 | F47: 0 | G47: 49252.045 | H47: 0.00356083 | I47: 0.001645
A48: 2022 | B48: 12 | C48: =SUMIFS('CR CWIP query 062020 ISD'!$H:$H,'CR CWIP query 062020 ISD'!$L:$L,'062020 PIS Summary'!A48,'CR CWIP query 062020 ISD'!$K:$K,'062020 PIS Summary'!B48) -> 0 | D48: 49252.045 | E48: 0 | F48: 0 | G48: 49252.045 | H48: 0.00356083 | I48: 0.001645
A49: 22 Total | C49: =SUM(C37:C48) -> 0 | E49: =SUM(E37:E48) -> 0 | J49: =SUM(J37:J48) -> 1704.59 | K49: =SUM(K37:K48) -> 787.46 | L49: 917.13

Sheet 072020 PIS Summary (hidden)
A1: Indiana American Water
A2: Post In Service AFUDC Calc
A3: 7/1/2020- | J3: =SUM('CR CWIP query 072020 ISD'!H:H)+J5+K5-G48 -> 0 | K3: check
J5: =SUM(J21,J35,J37:J47) -> 6953.525 | K5: =SUM(K21,K35,K37:K47) -> 3212.295 | L5: =SUM(L21,L35,L37:L47) -> 3741.23
A7: Year | B7: Month | C7: Grand Total CWIP | D7: Beginning AFUDC Base | E7: Current Month Charges | F7: 50% Charge Current Charge | G7: Current Base | H7: PIS AFUDC Monthly Equity Rate | I7: PIS AFUDC Monthly Debt Rate | J7: PIS AFUDC Equity to be Recorded | K7: PIS AFUDC Debt to be Recorded | L7: AFUDC PIS Equity Reduction to record
A9: 2020 | B9: 1 | H9: 0.00356083 | I9: 0.001645
A10: 2020 | B10: 2 | C10: =SUMIFS('CR CWIP query 072020 ISD'!$H:$H,'CR CWIP query 072020 ISD'!$L:$L,'072020 PIS Summary'!A10,'CR CWIP query 072020 ISD'!$K:$K,'072020 PIS Summary'!B10) -> 0 | D10: =+D9+E9+J9+K9 -> 0 | E10: =C10 -> 0 | F10: =0.5*E10 -> 0 | G10: =+D10+F10 -> 0 | H10: 0.00356083 | I10: 0.001645
A11: 2020 | B11: 3 | C11: =SUMIFS('CR CWIP query 072020 ISD'!$H:$H,'CR CWIP query 072020 ISD'!$L:$L,'072020 PIS Summary'!A11,'CR CWIP query 072020 ISD'!$K:$K,'072020 PIS Summary'!B11) -> 7662.48 | D11: =+D10+E10+J10+K10 -> 0 | E11: 7662.48 | F11: 3831.24 | G11: 3831.24 | H11: 0.00356083 | I11: 0.001645
A12: 2020 | B12: 4 | C12: =SUMIFS('CR CWIP query 072020 ISD'!$H:$H,'CR CWIP query 072020 ISD'!$L:$L,'072020 PIS Summary'!A12,'CR CWIP query 072020 ISD'!$K:$K,'072020 PIS Summary'!B12) -> 20908.05 | D12: 7662.48 | E12: =C12 -> 20908.05 | F12: =0.5*E12 -> 10454.025 | G12: =+D12+F12 -> 18116.505 | H12: 0.00356083 | I12: 0.001645
A13: 2020 | B13: 5 | C13: =SUMIFS('CR CWIP query 072020 ISD'!$H:$H,'CR CWIP query 072020 ISD'!$L:$L,'072020 PIS Summary'!A13,'CR CWIP query 072020 ISD'!$K:$K,'072020 PIS Summary'!B13) -> 23219.09 | D13: 28570.53 | E13: =C13 -> 23219.09 | F13: =0.5*E13 -> 11609.545 | G13: =+D13+F13 -> 40180.075 | H13: 0.00356083 | I13: 0.001645
A14: 2020 | B14: 6 | C14: =SUMIFS('CR CWIP query 072020 ISD'!$H:$H,'CR CWIP query 072020 ISD'!$L:$L,'072020 PIS Summary'!A14,'CR CWIP query 072020 ISD'!$K:$K,'072020 PIS Summary'!B14) -> 269.6 | D14: 51789.62 | E14: 269.6 | F14: 134.8 | G14: 51924.42 | H14: 0.00356083 | I14: 0.001645
A15: 2020 | B15: 7 | C15: =SUMIFS('CR CWIP query 072020 ISD'!$H:$H,'CR CWIP query 072020 ISD'!$L:$L,'072020 PIS Summary'!A15,'CR CWIP query 072020 ISD'!$K:$K,'072020 PIS Summary'!B15) -> 14308.29 | D15: =+D14+E14+J14+K14 -> 52059.22 | E15: 14308.29 | F15: 7154.145 | G15: 59213.365 | H15: 0.00356083 | I15: 0.001645 | J15: =ROUND($G15*H15,2)*0.5 -> 105.425 | K15: =ROUND($G15*I15,2)*0.5 -> 48.705 | L15: =+J15-K15 -> 56.72
A16: 2020 | B16: 8 | C16: =SUMIFS('CR CWIP query 072020 ISD'!$H:$H,'CR CWIP query 072020 ISD'!$L:$L,'072020 PIS Summary'!A16,'CR CWIP query 072020 ISD'!$K:$K,'072020 PIS Summary'!B16) -> 14.77 | D16: =+D15+E15+J15+K15 -> 66521.64 | E16: 14.77 | F16: 7.385 | G16: 66529.025 | H16: 0.00356083 | I16: 0.001645 | J16: =ROUND($G16*H16,2) -> 236.9 | K16: 109.44 | L16: =+J16-K16 -> 127.46
A17: 2020 | B17: 9 | C17: =SUMIFS('CR CWIP query 072020 ISD'!$H:$H,'CR CWIP query 072020 ISD'!$L:$L,'072020 PIS Summary'!A17,'CR CWIP query 072020 ISD'!$K:$K,'072020 PIS Summary'!B17) -> 0 | D17: =+D16+E16+J16+K16 -> 66882.75 | E17: 0 | F17: 0 | G17: 66882.75 | H17: 0.00356083 | I17: 0.001645 | J17: 238.16 | K17: 110.02 | L17: 128.14
A18: 2020 | B18: 10 | C18: =SUMIFS('CR CWIP query 072020 ISD'!$H:$H,'CR CWIP query 072020 ISD'!$L:$L,'072020 PIS Summary'!A18,'CR CWIP query 072020 ISD'!$K:$K,'072020 PIS Summary'!B18) -> 0 | D18: 67230.93 | E18: 0 | F18: 0 | G18: 67230.93 | H18: 0.00356083 | I18: 0.001645 | J18: 239.4 | K18: 110.59 | L18: 128.81
A19: 2020 | B19: 11 | C19: =SUMIFS('CR CWIP query 072020 ISD'!$H:$H,'CR CWIP query 072020 ISD'!$L:$L,'072020 PIS Summary'!A19,'CR CWIP query 072020 ISD'!$K:$K,'072020 PIS Summary'!B19) -> -13.18 | D19: =+D18+E18+J18+K18 -> 67580.92 | E19: -13.18 | F19: -6.59 | G19: 67574.33 | H19: 0.00356083 | I19: 0.001645 | J19: 240.62 | K19: 111.16 | L19: 129.46
A20: 2020 | B20: 12 | C20: =SUMIFS('CR CWIP query 072020 ISD'!$H:$H,'CR CWIP query 072020 ISD'!$L:$L,'072020 PIS Summary'!A20,'CR CWIP query 072020 ISD'!$K:$K,'072020 PIS Summary'!B20) -> 0 | D20: =+D19+E19+J19+K19 -> 67919.52 | E20: =C20 -> 0 | F20: =0.5*E20 -> 0 | G20: =+D20+F20 -> 67919.52 | H20: 0.00356083 | I20: 0.001645 | J20: 241.85 | K20: 111.73 | L20: 130.12
A21: 20 Total | C21: =SUM(C20) -> 0 | E21: =SUM(E10:E20) -> 66369.1 | J21: =SUM(J12:J20) -> 1302.355 | K21: =SUM(K12:K20) -> 601.645 | L21: =SUM(L12:L20) -> 700.71
A23: 2021 | B23: 1 | C23: =SUMIFS('CR CWIP query 072020 ISD'!$H:$H,'CR CWIP query 072020 ISD'!$L:$L,'072020 PIS Summary'!A23,'CR CWIP query 072020 ISD'!$K:$K,'072020 PIS Summary'!B23) -> 0 | D23: =+D20+E20+J20+K20 -> 68273.1 | E23: =C23 -> 0 | F23: =0.5*E23 -> 0 | G23: =+D23+F23 -> 68273.1 | H23: 0.00356083 | I23: 0.001645 | J23: =ROUND($G23*H23,2) -> 243.11 | K23: 112.31 | L23: =+J23-K23 -> 130.8
A24: 2021 | B24: 2 | C24: =SUMIFS('CR CWIP query 072020 ISD'!$H:$H,'CR CWIP query 072020 ISD'!$L:$L,'072020 PIS Summary'!A24,'CR CWIP query 072020 ISD'!$K:$K,'072020 PIS Summary'!B24) -> 0 | D24: =+D23+E23+J23+K23 -> 68628.52 | E24: 0 | F24: =0.5*E24 -> 0 | G24: =+D24+F24 -> 68628.52 | H24: 0.00356083 | I24: 0.001645 | J24: 244.37 | K24: 112.89 | L24: 131.48
A25: 2021 | B25: 3 | C25: =SUMIFS('CR CWIP query 072020 ISD'!$H:$H,'CR CWIP query 072020 ISD'!$L:$L,'072020 PIS Summary'!A25,'CR CWIP query 072020 ISD'!$K:$K,'072020 PIS Summary'!B25) -> 0 | D25: =+D24+E24+J24+K24 -> 68985.78 | E25: 0 | F25: 0 | G25: 68985.78 | H25: 0.00356083 | I25: 0.001645 | J25: 245.65 | K25: 113.48 | L25: 132.17
A26: 2021 | B26: 4 | C26: =SUMIFS('CR CWIP query 072020 ISD'!$H:$H,'CR CWIP query 072020 ISD'!$L:$L,'072020 PIS Summary'!A26,'CR CWIP query 072020 ISD'!$K:$K,'072020 PIS Summary'!B26) -> 0 | D26: =+D25+E25+J25+K25 -> 69344.91 | E26: 0 | F26: 0 | G26: 69344.91 | H26: 0.00356083 | I26: 0.001645 | J26: 246.93 | K26: 114.07 | L26: 132.86
A27: 2021 | B27: 5 | C27: =SUMIFS('CR CWIP query 072020 ISD'!$H:$H,'CR CWIP query 072020 ISD'!$L:$L,'072020 PIS Summary'!A27,'CR CWIP query 072020 ISD'!$K:$K,'072020 PIS Summary'!B27) -> 0 | D27: =+D26+E26+J26+K26 -> 69705.91 | E27: 0 | F27: 0 | G27: 69705.91 | H27: 0.00356083 | I27: 0.001645 | J27: 248.21 | K27: 114.67 | L27: 133.54
A28: 2021 | B28: 6 | C28: =SUMIFS('CR CWIP query 072020 ISD'!$H:$H,'CR CWIP query 072020 ISD'!$L:$L,'072020 PIS Summary'!A28,'CR CWIP query 072020 ISD'!$K:$K,'072020 PIS Summary'!B28) -> 0 | D28: 70068.79 | E28: 0 | F28: 0 | G28: 70068.79 | H28: 0.00356083 | I28: 0.001645 | J28: 249.5 | K28: 115.26 | L28: 134.24
A29: 2021 | B29: 7 | C29: =SUMIFS('CR CWIP query 072020 ISD'!$H:$H,'CR CWIP query 072020 ISD'!$L:$L,'072020 PIS Summary'!A29,'CR CWIP query 072020 ISD'!$K:$K,'072020 PIS Summary'!B29) -> 0 | D29: 70433.55 | E29: 0 | F29: 0 | G29: 70433.55 | H29: 0.00356083 | I29: 0.001645 | J29: 250.8 | K29: 115.86 | L29: 134.94
A30: 2021 | B30: 8 | C30: =SUMIFS('CR CWIP query 072020 ISD'!$H:$H,'CR CWIP query 072020 ISD'!$L:$L,'072020 PIS Summary'!A30,'CR CWIP query 072020 ISD'!$K:$K,'072020 PIS Summary'!B30) -> 0 | D30: 70800.21 | E30: 0 | F30: 0 | G30: 70800.21 | H30: 0.00356083 | I30: 0.001645 | J30: 252.11 | K30: 116.47 | L30: 135.64
A31: 2021 | B31: 9 | C31: =SUMIFS('CR CWIP query 072020 ISD'!$H:$H,'CR CWIP query 072020 ISD'!$L:$L,'072020 PIS Summary'!A31,'CR CWIP query 072020 ISD'!$K:$K,'072020 PIS Summary'!B31) -> 0 | D31: 71168.79 | E31: 0 | F31: 0 | G31: 71168.79 | H31: 0.00356083 | I31: 0.001645 | J31: 253.42 | K31: 117.07 | L31: 136.35
A32: 2021 | B32: 10 | C32: =SUMIFS('CR CWIP query 072020 ISD'!$H:$H,'CR CWIP query 072020 ISD'!$L:$L,'072020 PIS Summary'!A32,'CR CWIP query 072020 ISD'!$K:$K,'072020 PIS Summary'!B32) -> 0 | D32: 71539.28 | E32: 0 | F32: 0 | G32: 71539.28 | H32: 0.00356083 | I32: 0.001645 | J32: 254.74 | K32: 117.68 | L32: 137.06
A33: 2021 | B33: 11 | C33: =SUMIFS('CR CWIP query 072020 ISD'!$H:$H,'CR CWIP query 072020 ISD'!$L:$L,'072020 PIS Summary'!A33,'CR CWIP query 072020 ISD'!$K:$K,'072020 PIS Summary'!B33) -> 0 | D33: 71911.7 | E33: 0 | F33: 0 | G33: 71911.7 | H33: 0.00356083 | I33: 0.001645 | J33: 256.07 | K33: 118.29 | L33: 137.78
A34: 2021 | B34: 12 | C34: =SUMIFS('CR CWIP query 072020 ISD'!$H:$H,'CR CWIP query 072020 ISD'!$L:$L,'072020 PIS Summary'!A34,'CR CWIP query 072020 ISD'!$K:$K,'072020 PIS Summary'!B34) -> 0 | D34: 72286.06 | E34: 0 | F34: 0 | G34: 72286.06 | H34: 0.00356083 | I34: 0.001645 | J34: 257.4 | K34: 118.91 | L34: 138.49
A35: 21 Total | C35: =SUM(C23:C34) -> 0 | E35: =SUM(E23:E34) -> 0 | J35: =SUM(J23:J34) -> 3002.31 | K35: =SUM(K23:K34) -> 1386.96 | L35: 1615.35
A37: 2022 | B37: 1 | C37: =SUMIFS('CR CWIP query 072020 ISD'!$H:$H,'CR CWIP query 072020 ISD'!$L:$L,'072020 PIS Summary'!A37,'CR CWIP query 072020 ISD'!$K:$K,'072020 PIS Summary'!B37) -> 0 | D37: =+D34+E34+J34+K34 -> 72662.37 | E37: =C37 -> 0 | F37: =0.5*E37 -> 0 | G37: =+D37+F37 -> 72662.37 | H37: 0.00356083 | I37: 0.001645 | J37: =ROUND($G37*H37,2) -> 258.74 | K37: =ROUND($G37*I37,2) -> 119.53 | L37: =+J37-K37 -> 139.21
A38: 2022 | B38: 2 | C38: =SUMIFS('CR CWIP query 072020 ISD'!$H:$H,'CR CWIP query 072020 ISD'!$L:$L,'072020 PIS Summary'!A38,'CR CWIP query 072020 ISD'!$K:$K,'072020 PIS Summary'!B38) -> 0 | D38: =+D37+E37+J37+K37 -> 73040.64 | E38: 0 | F38: =0.5*E38 -> 0 | G38: =+D38+F38 -> 73040.64 | H38: 0.00356083 | I38: 0.001645 | J38: =ROUND($G38*H38,2) -> 260.09 | K38: 120.15 | L38: =+J38-K38 -> 139.94
A39: 2022 | B39: 3 | C39: =SUMIFS('CR CWIP query 072020 ISD'!$H:$H,'CR CWIP query 072020 ISD'!$L:$L,'072020 PIS Summary'!A39,'CR CWIP query 072020 ISD'!$K:$K,'072020 PIS Summary'!B39) -> 0 | D39: =+D38+E38+J38+K38 -> 73420.88 | E39: 0 | F39: 0 | G39: 73420.88 | H39: 0.00356083 | I39: 0.001645 | J39: 261.44 | K39: 120.78 | L39: 140.66
A40: 2022 | B40: 4 | C40: =SUMIFS('CR CWIP query 072020 ISD'!$H:$H,'CR CWIP query 072020 ISD'!$L:$L,'072020 PIS Summary'!A40,'CR CWIP query 072020 ISD'!$K:$K,'072020 PIS Summary'!B40) -> 0 | D40: =+D39+E39+J39+K39 -> 73803.1 | E40: 0 | F40: 0 | G40: 73803.1 | H40: 0.00356083 | I40: 0.001645 | J40: =ROUND($G40*H40,2) -> 262.8 | K40: 121.41 | L40: 141.39
A41: 2022 | B41: 5 | C41: =SUMIFS('CR CWIP query 072020 ISD'!$H:$H,'CR CWIP query 072020 ISD'!$L:$L,'072020 PIS Summary'!A41,'CR CWIP query 072020 ISD'!$K:$K,'072020 PIS Summary'!B41) -> 0 | D41: =+D40+E40+J40+K40 -> 74187.31 | E41: 0 | F41: 0 | G41: 74187.31 | H41: 0.00356083 | I41: 0.001645 | J41: 264.17 | K41: 122.04 | L41: 142.13
A42: 2022 | B42: 6 | C42: =SUMIFS('CR CWIP query 072020 ISD'!$H:$H,'CR CWIP query 072020 ISD'!$L:$L,'072020 PIS Summary'!A42,'CR CWIP query 072020 ISD'!$K:$K,'072020 PIS Summary'!B42) -> 0 | D42: 74573.52 | E42: 0 | F42: 0 | G42: 74573.52 | H42: 0.00356083 | I42: 0.001645 | J42: 265.54 | K42: 122.67 | L42: 142.87
A43: 2022 | B43: 7 | C43: =SUMIFS('CR CWIP query 072020 ISD'!$H:$H,'CR CWIP query 072020 ISD'!$L:$L,'072020 PIS Summary'!A43,'CR CWIP query 072020 ISD'!$K:$K,'072020 PIS Summary'!B43) -> 0 | D43: 74961.73 | E43: 0 | F43: 0 | G43: 74961.73 | H43: 0.00356083 | I43: 0.001645 | J43: 266.93 | K43: 123.31 | L43: 143.62
A44: 2022 | B44: 8 | C44: =SUMIFS('CR CWIP query 072020 ISD'!$H:$H,'CR CWIP query 072020 ISD'!$L:$L,'072020 PIS Summary'!A44,'CR CWIP query 072020 ISD'!$K:$K,'072020 PIS Summary'!B44) -> 0 | D44: 75351.97 | E44: 0 | F44: 0 | G44: 75351.97 | H44: 0.00356083 | I44: 0.001645 | J44: =ROUND($G44*H44,2) -> 268.32 | K44: =ROUND($G44*I44,2) -> 123.95 | L44: =+J44-K44 -> 144.37
A45: 2022 | B45: 9 | C45: =SUMIFS('CR CWIP query 072020 ISD'!$H:$H,'CR CWIP query 072020 ISD'!$L:$L,'072020 PIS Summary'!A45,'CR CWIP query 072020 ISD'!$K:$K,'072020 PIS Summary'!B45) -> 0 | D45: 75744.24 | E45: 0 | F45: 0 | G45: 75744.24 | H45: 0.00356083 | I45: 0.001645 | J45: 269.71 | K45: 124.6 | L45: 145.11
A46: 2022 | B46: 10 | C46: =SUMIFS('CR CWIP query 072020 ISD'!$H:$H,'CR CWIP query 072020 ISD'!$L:$L,'072020 PIS Summary'!A46,'CR CWIP query 072020 ISD'!$K:$K,'072020 PIS Summary'!B46) -> 0 | D46: 76138.55 | E46: 0 | F46: 0 | G46: 76138.55 | H46: 0.00356083 | I46: 0.001645 | J46: 271.12 | K46: 125.25 | L46: 145.87
A47: 2022 | B47: 11 | C47: =SUMIFS('CR CWIP query 072020 ISD'!$H:$H,'CR CWIP query 072020 ISD'!$L:$L,'072020 PIS Summary'!A47,'CR CWIP query 072020 ISD'!$K:$K,'072020 PIS Summary'!B47) -> 0 | D47: 76534.92 | E47: 0 | F47: 0 | G47: 76534.92 | H47: 0.00356083 | I47: 0.001645
A48: 2022 | B48: 12 | C48: =SUMIFS('CR CWIP query 072020 ISD'!$H:$H,'CR CWIP query 072020 ISD'!$L:$L,'072020 PIS Summary'!A48,'CR CWIP query 072020 ISD'!$K:$K,'072020 PIS Summary'!B48) -> 0 | D48: 76534.92 | E48: 0 | F48: 0 | G48: 76534.92 | H48: 0.00356083 | I48: 0.001645
A49: 22 Total | C49: =SUM(C37:C48) -> 0 | E49: =SUM(E37:E48) -> 0 | J49: =SUM(J37:J48) -> 2648.86 | K49: =SUM(K37:K48) -> 1223.69 | L49: 1425.17

Sheet 082020 PIS Summary (hidden)
A1: Indiana American Water
A2: Post In Service AFUDC Calc
A3: 8/1/2020- | J3: =SUM('CR CWIP query 082020 ISD'!H:H)+J5+K5-G61 -> 0 | K3: check
J5: =SUM(J34,J48,J50:J60) -> 3693.51 | K5: =SUM(K34,K48,K50:K60) -> 1706.305 | L5: =SUM(L34,L48,L50:L60) -> 1987.205
A7: Year | B7: Month | C7: Grand Total CWIP | D7: Beginning AFUDC Base | E7: Current Month Charges | F7: 50% Charge Current Charge | G7: Current Base | H7: PIS AFUDC Monthly Equity Rate | I7: PIS AFUDC Monthly Debt Rate | J7: PIS AFUDC Equity to be Recorded | K7: PIS AFUDC Debt to be Recorded | L7: AFUDC PIS Equity Reduction to record
A8: 2019 | B8: 1 | H8: 0.00356083 | I8: 0.001645
A9: 2019 | B9: 2 | C9: =SUMIFS('CR CWIP query 082020 ISD'!$H:$H,'CR CWIP query 082020 ISD'!$L:$L,'082020 PIS Summary'!A9,'CR CWIP query 082020 ISD'!$K:$K,'082020 PIS Summary'!B9) -> 0 | D9: =+D8+E8+J8+K8 -> 0 | E9: =C9 -> 0 | F9: =0.5*E9 -> 0 | G9: =+D9+F9 -> 0 | H9: 0.00356083 | I9: 0.001645
A10: 2019 | B10: 3 | C10: =SUMIFS('CR CWIP query 082020 ISD'!$H:$H,'CR CWIP query 082020 ISD'!$L:$L,'082020 PIS Summary'!A10,'CR CWIP query 082020 ISD'!$K:$K,'082020 PIS Summary'!B10) -> 0 | D10: 0 | E10: 0 | F10: 0 | G10: 0 | H10: 0.00356083 | I10: 0.001645
A11: 2019 | B11: 4 | C11: =SUMIFS('CR CWIP query 082020 ISD'!$H:$H,'CR CWIP query 082020 ISD'!$L:$L,'082020 PIS Summary'!A11,'CR CWIP query 082020 ISD'!$K:$K,'082020 PIS Summary'!B11) -> 0 | D11: 0 | E11: =C11 -> 0 | F11: =0.5*E11 -> 0 | G11: =+D11+F11 -> 0 | H11: 0.00356083 | I11: 0.001645
A12: 2019 | B12: 5 | C12: =SUMIFS('CR CWIP query 082020 ISD'!$H:$H,'CR CWIP query 082020 ISD'!$L:$L,'082020 PIS Summary'!A12,'CR CWIP query 082020 ISD'!$K:$K,'082020 PIS Summary'!B12) -> 0 | D12: 0 | E12: =C12 -> 0 | F12: =0.5*E12 -> 0 | G12: =+D12+F12 -> 0 | H12: 0.00356083 | I12: 0.001645
A13: 2019 | B13: 6 | C13: =SUMIFS('CR CWIP query 082020 ISD'!$H:$H,'CR CWIP query 082020 ISD'!$L:$L,'082020 PIS Summary'!A13,'CR CWIP query 082020 ISD'!$K:$K,'082020 PIS Summary'!B13) -> 0 | D13: 0 | E13: 0 | F13: 0 | G13: 0 | H13: 0.00356083 | I13: 0.001645
A14: 2019 | B14: 7 | C14: =SUMIFS('CR CWIP query 082020 ISD'!$H:$H,'CR CWIP query 082020 ISD'!$L:$L,'082020 PIS Summary'!A14,'CR CWIP query 082020 ISD'!$K:$K,'082020 PIS Summary'!B14) -> 0 | D14: 0 | E14: 0 | F14: 0 | G14: 0 | H14: 0.00356083 | I14: 0.001645
A15: 2019 | B15: 8 | C15: =SUMIFS('CR CWIP query 082020 ISD'!$H:$H,'CR CWIP query 082020 ISD'!$L:$L,'082020 PIS Summary'!A15,'CR CWIP query 082020 ISD'!$K:$K,'082020 PIS Summary'!B15) -> 0 | D15: 0 | E15: 0 | F15: 0 | G15: 0 | H15: 0.00356083 | I15: 0.001645 | J15: =ROUND($G15*H15,2)*0.5 -> 0 | K15: =ROUND($G15*I15,2)*0.5 -> 0 | L15: =+J15-K15 -> 0
A16: 2019 | B16: 9 | C16: =SUMIFS('CR CWIP query 082020 ISD'!$H:$H,'CR CWIP query 082020 ISD'!$L:$L,'082020 PIS Summary'!A16,'CR CWIP query 082020 ISD'!$K:$K,'082020 PIS Summary'!B16) -> 0 | D16: 0 | E16: 0 | F16: 0 | G16: 0 | H16: 0.00356083 | I16: 0.001645 | J16: =ROUND($G16*H16,2) -> 0 | K16: =ROUND($G16*I16,2) -> 0 | L16: 0
A17: 2019 | B17: 10 | C17: =SUMIFS('CR CWIP query 082020 ISD'!$H:$H,'CR CWIP query 082020 ISD'!$L:$L,'082020 PIS Summary'!A17,'CR CWIP query 082020 ISD'!$K:$K,'082020 PIS Summary'!B17) -> 0 | D17: 0 | E17: 0 | F17: 0 | G17: 0 | H17: 0.00356083 | I17: 0.001645 | J17: 0 | K17: 0 | L17: 0
A18: 2019 | B18: 11 | C18: =SUMIFS('CR CWIP query 082020 ISD'!$H:$H,'CR CWIP query 082020 ISD'!$L:$L,'082020 PIS Summary'!A18,'CR CWIP query 082020 ISD'!$K:$K,'082020 PIS Summary'!B18) -> 4228.79 | D18: =+D17+E17+J17+K17 -> 0 | E18: 4228.79 | F18: 2114.395 | G18: 2114.395 | H18: 0.00356083 | I18: 0.001645
A19: 2019 | B19: 12 | C19: =SUMIFS('CR CWIP query 082020 ISD'!$H:$H,'CR CWIP query 082020 ISD'!$L:$L,'082020 PIS Summary'!A19,'CR CWIP query 082020 ISD'!$K:$K,'082020 PIS Summary'!B19) -> 4.04 | D19: =+D18+E18+J18+K18 -> 4228.79 | E19: =C19 -> 4.04 | F19: =0.5*E19 -> 2.02 | G19: =+D19+F19 -> 4230.81 | H19: 0.00356083 | I19: 0.001645
A20: 20 Total | C20: =SUM(C9:C19) -> 4232.83 | E20: =SUM(E9:E19) -> 4232.83 | J20: =SUM(J11:J19) -> 0 | K20: =SUM(K11:K19) -> 0 | L20: =SUM(L11:L19) -> 0
A22: 2020 | B22: 1 | C22: =SUMIFS('CR CWIP query 082020 ISD'!$H:$H,'CR CWIP query 082020 ISD'!$L:$L,'082020 PIS Summary'!A22,'CR CWIP query 082020 ISD'!$K:$K,'082020 PIS Summary'!B22) -> 0 | D22: =+D19+E19+J19+K19 -> 4232.83 | E22: =C22 -> 0 | F22: =0.5*E22 -> 0 | G22: =+D22+F22 -> 4232.83 | H22: 0.00356083 | I22: 0.001645
A23: 2020 | B23: 2 | C23: =SUMIFS('CR CWIP query 082020 ISD'!$H:$H,'CR CWIP query 082020 ISD'!$L:$L,'082020 PIS Summary'!A23,'CR CWIP query 082020 ISD'!$K:$K,'082020 PIS Summary'!B23) -> 0 | D23: =+D22+E22+J22+K22 -> 4232.83 | E23: =C23 -> 0 | F23: =0.5*E23 -> 0 | G23: =+D23+F23 -> 4232.83 | H23: 0.00356083 | I23: 0.001645
A24: 2020 | B24: 3 | C24: =SUMIFS('CR CWIP query 082020 ISD'!$H:$H,'CR CWIP query 082020 ISD'!$L:$L,'082020 PIS Summary'!A24,'CR CWIP query 082020 ISD'!$K:$K,'082020 PIS Summary'!B24) -> 0 | D24: 4232.83 | E24: 0 | F24: 0 | G24: 4232.83 | H24: 0.00356083 | I24: 0.001645
A25: 2020 | B25: 4 | C25: =SUMIFS('CR CWIP query 082020 ISD'!$H:$H,'CR CWIP query 082020 ISD'!$L:$L,'082020 PIS Summary'!A25,'CR CWIP query 082020 ISD'!$K:$K,'082020 PIS Summary'!B25) -> 11556.66 | D25: 4232.83 | E25: =C25 -> 11556.66 | F25: =0.5*E25 -> 5778.33 | G25: =+D25+F25 -> 10011.16 | H25: 0.00356083 | I25: 0.001645
A26: 2020 | B26: 5 | C26: =SUMIFS('CR CWIP query 082020 ISD'!$H:$H,'CR CWIP query 082020 ISD'!$L:$L,'082020 PIS Summary'!A26,'CR CWIP query 082020 ISD'!$K:$K,'082020 PIS Summary'!B26) -> 60.16 | D26: 15789.49 | E26: =C26 -> 60.16 | F26: =0.5*E26 -> 30.08 | G26: =+D26+F26 -> 15819.57 | H26: 0.00356083 | I26: 0.001645
A27: 2020 | B27: 6 | C27: =SUMIFS('CR CWIP query 082020 ISD'!$H:$H,'CR CWIP query 082020 ISD'!$L:$L,'082020 PIS Summary'!A27,'CR CWIP query 082020 ISD'!$K:$K,'082020 PIS Summary'!B27) -> 60.48 | D27: 15849.65 | E27: 60.48 | F27: 30.24 | G27: 15879.89 | H27: 0.00356083 | I27: 0.001645
A28: 2020 | B28: 7 | C28: =SUMIFS('CR CWIP query 082020 ISD'!$H:$H,'CR CWIP query 082020 ISD'!$L:$L,'082020 PIS Summary'!A28,'CR CWIP query 082020 ISD'!$K:$K,'082020 PIS Summary'!B28) -> 11605.22 | D28: 15910.13 | E28: 11605.22 | F28: 5802.61 | G28: 21712.74 | H28: 0.00356083 | I28: 0.001645
A29: 2020 | B29: 8 | C29: =SUMIFS('CR CWIP query 082020 ISD'!$H:$H,'CR CWIP query 082020 ISD'!$L:$L,'082020 PIS Summary'!A29,'CR CWIP query 082020 ISD'!$K:$K,'082020 PIS Summary'!B29) -> 8979.14 | D29: 27515.35 | E29: 8979.14 | F29: 4489.57 | G29: 32004.92 | H29: 0.00356083 | I29: 0.001645 | J29: =ROUND($G29*H29,2)*0.5 -> 56.98 | K29: =ROUND($G29*I29,2)*0.5 -> 26.325 | L29: =+J29-K29 -> 30.655
A30: 2020 | B30: 9 | C30: =SUMIFS('CR CWIP query 082020 ISD'!$H:$H,'CR CWIP query 082020 ISD'!$L:$L,'082020 PIS Summary'!A30,'CR CWIP query 082020 ISD'!$K:$K,'082020 PIS Summary'!B30) -> 103.47 | D30: 36577.795 | E30: 103.47 | F30: 51.735 | G30: 36629.53 | H30: 0.00356083 | I30: 0.001645 | J30: =ROUND($G30*H30,2) -> 130.43 | K30: 60.26 | L30: =+J30-K30 -> 70.17
A31: 2020 | B31: 10 | C31: =SUMIFS('CR CWIP query 082020 ISD'!$H:$H,'CR CWIP query 082020 ISD'!$L:$L,'082020 PIS Summary'!A31,'CR CWIP query 082020 ISD'!$K:$K,'082020 PIS Summary'!B31) -> 211.82 | D31: =+D30+E30+J30+K30 -> 36871.955 | E31: 211.82 | F31: 105.91 | G31: 36977.865 | H31: 0.00356083 | I31: 0.001645 | J31: 131.67 | K31: 60.83 | L31: 70.84
A32: 2020 | B32: 11 | C32: =SUMIFS('CR CWIP query 082020 ISD'!$H:$H,'CR CWIP query 082020 ISD'!$L:$L,'082020 PIS Summary'!A32,'CR CWIP query 082020 ISD'!$K:$K,'082020 PIS Summary'!B32) -> -106.09 | D32: =+D31+E31+J31+K31 -> 37276.275 | E32: -106.09 | F32: -53.045 | G32: 37223.23 | H32: 0.00356083 | I32: 0.001645 | J32: 132.55 | K32: 61.23 | L32: 71.32
A33: 2020 | B33: 12 | C33: =SUMIFS('CR CWIP query 082020 ISD'!$H:$H,'CR CWIP query 082020 ISD'!$L:$L,'082020 PIS Summary'!A33,'CR CWIP query 082020 ISD'!$K:$K,'082020 PIS Summary'!B33) -> 0 | D33: =+D32+E32+J32+K32 -> 37363.965 | E33: =C33 -> 0 | F33: =0.5*E33 -> 0 | G33: =+D33+F33 -> 37363.965 | H33: 0.00356083 | I33: 0.001645 | J33: 133.05 | K33: 61.46 | L33: 71.59
A34: 20 Total | C34: =SUM(C23:C33) -> 32470.86 | E34: =SUM(E23:E33) -> 32470.86 | J34: =SUM(J25:J33) -> 584.68 | K34: =SUM(K25:K33) -> 270.105 | L34: =SUM(L25:L33) -> 314.575
A36: 2021 | B36: 1 | C36: =SUMIFS('CR CWIP query 082020 ISD'!$H:$H,'CR CWIP query 082020 ISD'!$L:$L,'082020 PIS Summary'!A36,'CR CWIP query 082020 ISD'!$K:$K,'082020 PIS Summary'!B36) -> 0 | D36: =+D33+E33+J33+K33 -> 37558.475 | E36: =C36 -> 0 | F36: =0.5*E36 -> 0 | G36: =+D36+F36 -> 37558.475 | H36: 0.00356083 | I36: 0.001645 | J36: =ROUND($G36*H36,2) -> 133.74 | K36: 61.78 | L36: =+J36-K36 -> 71.96
A37: 2021 | B37: 2 | C37: =SUMIFS('CR CWIP query 082020 ISD'!$H:$H,'CR CWIP query 082020 ISD'!$L:$L,'082020 PIS Summary'!A37,'CR CWIP query 082020 ISD'!$K:$K,'082020 PIS Summary'!B37) -> 0 | D37: =+D36+E36+J36+K36 -> 37753.995 | E37: 0 | F37: =0.5*E37 -> 0 | G37: =+D37+F37 -> 37753.995 | H37: 0.00356083 | I37: 0.001645 | J37: 134.44 | K37: 62.11 | L37: 72.33
A38: 2021 | B38: 3 | C38: =SUMIFS('CR CWIP query 082020 ISD'!$H:$H,'CR CWIP query 082020 ISD'!$L:$L,'082020 PIS Summary'!A38,'CR CWIP query 082020 ISD'!$K:$K,'082020 PIS Summary'!B38) -> 0 | D38: =+D37+E37+J37+K37 -> 37950.545 | E38: 0 | F38: 0 | G38: 37950.545 | H38: 0.00356083 | I38: 0.001645 | J38: 135.14 | K38: 62.43 | L38: 72.71
A39: 2021 | B39: 4 | C39: =SUMIFS('CR CWIP query 082020 ISD'!$H:$H,'CR CWIP query 082020 ISD'!$L:$L,'082020 PIS Summary'!A39,'CR CWIP query 082020 ISD'!$K:$K,'082020 PIS Summary'!B39) -> 0 | D39: =+D38+E38+J38+K38 -> 38148.115 | E39: 0 | F39: 0 | G39: 38148.115 | H39: 0.00356083 | I39: 0.001645 | J39: 135.84 | K39: 62.75 | L39: 73.09
A40: 2021 | B40: 5 | C40: =SUMIFS('CR CWIP query 082020 ISD'!$H:$H,'CR CWIP query 082020 ISD'!$L:$L,'082020 PIS Summary'!A40,'CR CWIP query 082020 ISD'!$K:$K,'082020 PIS Summary'!B40) -> 0 | D40: =+D39+E39+J39+K39 -> 38346.705 | E40: 0 | F40: 0 | G40: 38346.705 | H40: 0.00356083 | I40: 0.001645 | J40: 136.55 | K40: 63.08 | L40: 73.47
A41: 2021 | B41: 6 | C41: =SUMIFS('CR CWIP query 082020 ISD'!$H:$H,'CR CWIP query 082020 ISD'!$L:$L,'082020 PIS Summary'!A41,'CR CWIP query 082020 ISD'!$K:$K,'082020 PIS Summary'!B41) -> 0 | D41: 38546.335 | E41: 0 | F41: 0 | G41: 38546.335 | H41: 0.00356083 | I41: 0.001645 | J41: 137.26 | K41: 63.41 | L41: 73.85
A42: 2021 | B42: 7 | C42: =SUMIFS('CR CWIP query 082020 ISD'!$H:$H,'CR CWIP query 082020 ISD'!$L:$L,'082020 PIS Summary'!A42,'CR CWIP query 082020 ISD'!$K:$K,'082020 PIS Summary'!B42) -> 0 | D42: 38747.005 | E42: 0 | F42: 0 | G42: 38747.005 | H42: 0.00356083 | I42: 0.001645 | J42: 137.97 | K42: 63.74 | L42: 74.23
A43: 2021 | B43: 8 | C43: =SUMIFS('CR CWIP query 082020 ISD'!$H:$H,'CR CWIP query 082020 ISD'!$L:$L,'082020 PIS Summary'!A43,'CR CWIP query 082020 ISD'!$K:$K,'082020 PIS Summary'!B43) -> 0 | D43: 38948.715 | E43: 0 | F43: 0 | G43: 38948.715 | H43: 0.00356083 | I43: 0.001645 | J43: 138.69 | K43: 64.07 | L43: 74.62
A44: 2021 | B44: 9 | C44: =SUMIFS('CR CWIP query 082020 ISD'!$H:$H,'CR CWIP query 082020 ISD'!$L:$L,'082020 PIS Summary'!A44,'CR CWIP query 082020 ISD'!$K:$K,'082020 PIS Summary'!B44) -> 0 | D44: 39151.475 | E44: 0 | F44: 0 | G44: 39151.475 | H44: 0.00356083 | I44: 0.001645 | J44: 139.41 | K44: 64.4 | L44: 75.01
A45: 2021 | B45: 10 | C45: =SUMIFS('CR CWIP query 082020 ISD'!$H:$H,'CR CWIP query 082020 ISD'!$L:$L,'082020 PIS Summary'!A45,'CR CWIP query 082020 ISD'!$K:$K,'082020 PIS Summary'!B45) -> 0 | D45: 39355.285 | E45: 0 | F45: 0 | G45: 39355.285 | H45: 0.00356083 | I45: 0.001645 | J45: 140.14 | K45: 64.74 | L45: 75.4
A46: 2021 | B46: 11 | C46: =SUMIFS('CR CWIP query 082020 ISD'!$H:$H,'CR CWIP query 082020 ISD'!$L:$L,'082020 PIS Summary'!A46,'CR CWIP query 082020 ISD'!$K:$K,'082020 PIS Summary'!B46) -> 0 | D46: 39560.165 | E46: 0 | F46: 0 | G46: 39560.165 | H46: 0.00356083 | I46: 0.001645 | J46: 140.87 | K46: 65.08 | L46: 75.79
A47: 2021 | B47: 12 | C47: =SUMIFS('CR CWIP query 082020 ISD'!$H:$H,'CR CWIP query 082020 ISD'!$L:$L,'082020 PIS Summary'!A47,'CR CWIP query 082020 ISD'!$K:$K,'082020 PIS Summary'!B47) -> 0 | D47: 39766.115 | E47: 0 | F47: 0 | G47: 39766.115 | H47: 0.00356083 | I47: 0.001645 | J47: 141.6 | K47: 65.42 | L47: 76.18
A48: 21 Total | C48: =SUM(C36:C47) -> 0 | E48: =SUM(E36:E47) -> 0 | J48: =SUM(J36:J47) -> 1651.65 | K48: =SUM(K36:K47) -> 763.01 | L48: 888.64
A50: 2022 | B50: 1 | C50: =SUMIFS('CR CWIP query 082020 ISD'!$H:$H,'CR CWIP query 082020 ISD'!$L:$L,'082020 PIS Summary'!A50,'CR CWIP query 082020 ISD'!$K:$K,'082020 PIS Summary'!B50) -> 0 | D50: =+D47+E47+J47+K47 -> 39973.135 | E50: =C50 -> 0 | F50: =0.5*E50 -> 0 | G50: =+D50+F50 -> 39973.135 | H50: 0.00356083 | I50: 0.001645 | J50: =ROUND($G50*H50,2) -> 142.34 | K50: =ROUND($G50*I50,2) -> 65.76 | L50: =+J50-K50 -> 76.58
A51: 2022 | B51: 2 | C51: =SUMIFS('CR CWIP query 082020 ISD'!$H:$H,'CR CWIP query 082020 ISD'!$L:$L,'082020 PIS Summary'!A51,'CR CWIP query 082020 ISD'!$K:$K,'082020 PIS Summary'!B51) -> 0 | D51: =+D50+E50+J50+K50 -> 40181.235 | E51: 0 | F51: =0.5*E51 -> 0 | G51: =+D51+F51 -> 40181.235 | H51: 0.00356083 | I51: 0.001645 | J51: =ROUND($G51*H51,2) -> 143.08 | K51: 66.1 | L51: =+J51-K51 -> 76.98
A52: 2022 | B52: 3 | C52: =SUMIFS('CR CWIP query 082020 ISD'!$H:$H,'CR CWIP query 082020 ISD'!$L:$L,'082020 PIS Summary'!A52,'CR CWIP query 082020 ISD'!$K:$K,'082020 PIS Summary'!B52) -> 0 | D52: =+D51+E51+J51+K51 -> 40390.415 | E52: 0 | F52: 0 | G52: 40390.415 | H52: 0.00356083 | I52: 0.001645 | J52: 143.82 | K52: 66.44 | L52: 77.38
A53: 2022 | B53: 4 | C53: =SUMIFS('CR CWIP query 082020 ISD'!$H:$H,'CR CWIP query 082020 ISD'!$L:$L,'082020 PIS Summary'!A53,'CR CWIP query 082020 ISD'!$K:$K,'082020 PIS Summary'!B53) -> 0 | D53: =+D52+E52+J52+K52 -> 40600.675 | E53: 0 | F53: 0 | G53: 40600.675 | H53: 0.00356083 | I53: 0.001645 | J53: =ROUND($G53*H53,2) -> 144.57 | K53: 66.79 | L53: 77.78
A54: 2022 | B54: 5 | C54: =SUMIFS('CR CWIP query 082020 ISD'!$H:$H,'CR CWIP query 082020 ISD'!$L:$L,'082020 PIS Summary'!A54,'CR CWIP query 082020 ISD'!$K:$K,'082020 PIS Summary'!B54) -> 0 | D54: =+D53+E53+J53+K53 -> 40812.035 | E54: 0 | F54: 0 | G54: 40812.035 | H54: 0.00356083 | I54: 0.001645 | J54: 145.32 | K54: 67.14 | L54: 78.18
A55: 2022 | B55: 6 | C55: =SUMIFS('CR CWIP query 082020 ISD'!$H:$H,'CR CWIP query 082020 ISD'!$L:$L,'082020 PIS Summary'!A55,'CR CWIP query 082020 ISD'!$K:$K,'082020 PIS Summary'!B55) -> 0 | D55: 41024.495 | E55: 0 | F55: 0 | G55: 41024.495 | H55: 0.00356083 | I55: 0.001645 | J55: 146.08 | K55: 67.49 | L55: 78.59
A56: 2022 | B56: 7 | C56: =SUMIFS('CR CWIP query 082020 ISD'!$H:$H,'CR CWIP query 082020 ISD'!$L:$L,'082020 PIS Summary'!A56,'CR CWIP query 082020 ISD'!$K:$K,'082020 PIS Summary'!B56) -> 0 | D56: 41238.065 | E56: 0 | F56: 0 | G56: 41238.065 | H56: 0.00356083 | I56: 0.001645 | J56: 146.84 | K56: 67.84 | L56: 79
A57: 2022 | B57: 8 | C57: =SUMIFS('CR CWIP query 082020 ISD'!$H:$H,'CR CWIP query 082020 ISD'!$L:$L,'082020 PIS Summary'!A57,'CR CWIP query 082020 ISD'!$K:$K,'082020 PIS Summary'!B57) -> 0 | D57: 41452.745 | E57: 0 | F57: 0 | G57: 41452.745 | H57: 0.00356083 | I57: 0.001645 | J57: =ROUND($G57*H57,2) -> 147.61 | K57: =ROUND($G57*I57,2) -> 68.19 | L57: =+J57-K57 -> 79.42
A58: 2022 | B58: 9 | C58: =SUMIFS('CR CWIP query 082020 ISD'!$H:$H,'CR CWIP query 082020 ISD'!$L:$L,'082020 PIS Summary'!A58,'CR CWIP query 082020 ISD'!$K:$K,'082020 PIS Summary'!B58) -> 0 | D58: 41668.545 | E58: 0 | F58: 0 | G58: 41668.545 | H58: 0.00356083 | I58: 0.001645 | J58: 148.37 | K58: 68.54 | L58: 79.83
A59: 2022 | B59: 10 | C59: =SUMIFS('CR CWIP query 082020 ISD'!$H:$H,'CR CWIP query 082020 ISD'!$L:$L,'082020 PIS Summary'!A59,'CR CWIP query 082020 ISD'!$K:$K,'082020 PIS Summary'!B59) -> 0 | D59: 41885.455 | E59: 0 | F59: 0 | G59: 41885.455 | H59: 0.00356083 | I59: 0.001645 | J59: 149.15 | K59: 68.9 | L59: 80.25
A60: 2022 | B60: 11 | C60: =SUMIFS('CR CWIP query 082020 ISD'!$H:$H,'CR CWIP query 082020 ISD'!$L:$L,'082020 PIS Summary'!A60,'CR CWIP query 082020 ISD'!$K:$K,'082020 PIS Summary'!B60) -> 0 | D60: 42103.505 | E60: 0 | F60: 0 | G60: 42103.505 | H60: 0.00356083 | I60: 0.001645
A61: 2022 | B61: 12 | C61: =SUMIFS('CR CWIP query 082020 ISD'!$H:$H,'CR CWIP query 082020 ISD'!$L:$L,'082020 PIS Summary'!A61,'CR CWIP query 082020 ISD'!$K:$K,'082020 PIS Summary'!B61) -> 0 | D61: 42103.505 | E61: 0 | F61: 0 | G61: 42103.505 | H61: 0.00356083 | I61: 0.001645
A62: 22 Total | C62: =SUM(C50:C61) -> 0 | E62: =SUM(E50:E61) -> 0 | J62: =SUM(J50:J61) -> 1457.18 | K62: =SUM(K50:K61) -> 673.19 | L62: =SUM(L50:L61) -> 783.99

Sheet 092020 PIS Summary (hidden)
A1: Indiana American Water
A2: Post In Service AFUDC Calc
A3: 9/1/2020- | J3: =SUM('CR CWIP query 092020 ISD'!H:H)+J5+K5-G48 -> 0 | K3: check
J5: =SUM(J21,J35,J37:J47) -> 4079.105 | K5: =SUM(K21,K35,K37:K47) -> 1884.445 | L5: =SUM(L21,L35,L37:L47) -> 2194.66
A7: Year | B7: Month | C7: Grand Total CWIP | D7: Beginning AFUDC Base | E7: Current Month Charges | F7: 50% Charge Current Charge | G7: Current Base | H7: PIS AFUDC Monthly Equity Rate | I7: PIS AFUDC Monthly Debt Rate | J7: PIS AFUDC Equity to be Recorded | K7: PIS AFUDC Debt to be Recorded | L7: AFUDC PIS Equity Reduction to record
A9: 2020 | B9: 1 | H9: 0.00356083 | I9: 0.001645
A10: 2020 | B10: 2 | C10: =SUMIFS('CR CWIP query 092020 ISD'!$H:$H,'CR CWIP query 092020 ISD'!$L:$L,'092020 PIS Summary'!A10,'CR CWIP query 092020 ISD'!$K:$K,'092020 PIS Summary'!B10) -> 0 | D10: =+D9+E9+J9+K9 -> 0 | E10: =C10 -> 0 | F10: =0.5*E10 -> 0 | G10: =+D10+F10 -> 0 | H10: 0.00356083 | I10: 0.001645
A11: 2020 | B11: 3 | C11: =SUMIFS('CR CWIP query 092020 ISD'!$H:$H,'CR CWIP query 092020 ISD'!$L:$L,'092020 PIS Summary'!A11,'CR CWIP query 092020 ISD'!$K:$K,'092020 PIS Summary'!B11) -> 0 | D11: 0 | E11: 0 | F11: 0 | G11: 0 | H11: 0.00356083 | I11: 0.001645
A12: 2020 | B12: 4 | C12: =SUMIFS('CR CWIP query 092020 ISD'!$H:$H,'CR CWIP query 092020 ISD'!$L:$L,'092020 PIS Summary'!A12,'CR CWIP query 092020 ISD'!$K:$K,'092020 PIS Summary'!B12) -> 921.06 | D12: 0 | E12: =C12 -> 921.06 | F12: =0.5*E12 -> 460.53 | G12: =+D12+F12 -> 460.53 | H12: 0.00356083 | I12: 0.001645
A13: 2020 | B13: 5 | C13: =SUMIFS('CR CWIP query 092020 ISD'!$H:$H,'CR CWIP query 092020 ISD'!$L:$L,'092020 PIS Summary'!A13,'CR CWIP query 092020 ISD'!$K:$K,'092020 PIS Summary'!B13) -> 1966.51 | D13: 921.06 | E13: =C13 -> 1966.51 | F13: =0.5*E13 -> 983.255 | G13: =+D13+F13 -> 1904.315 | H13: 0.00356083 | I13: 0.001645
A14: 2020 | B14: 6 | C14: =SUMIFS('CR CWIP query 092020 ISD'!$H:$H,'CR CWIP query 092020 ISD'!$L:$L,'092020 PIS Summary'!A14,'CR CWIP query 092020 ISD'!$K:$K,'092020 PIS Summary'!B14) -> 8370.36 | D14: 2887.57 | E14: 8370.36 | F14: 4185.18 | G14: 7072.75 | H14: 0.00356083 | I14: 0.001645
A15: 2020 | B15: 7 | C15: =SUMIFS('CR CWIP query 092020 ISD'!$H:$H,'CR CWIP query 092020 ISD'!$L:$L,'092020 PIS Summary'!A15,'CR CWIP query 092020 ISD'!$K:$K,'092020 PIS Summary'!B15) -> 942.48 | D15: 11257.93 | E15: 942.48 | F15: 471.24 | G15: 11729.17 | H15: 0.00356083 | I15: 0.001645
A16: 2020 | B16: 8 | C16: =SUMIFS('CR CWIP query 092020 ISD'!$H:$H,'CR CWIP query 092020 ISD'!$L:$L,'092020 PIS Summary'!A16,'CR CWIP query 092020 ISD'!$K:$K,'092020 PIS Summary'!B16) -> 63.51 | D16: 12200.41 | E16: 63.51 | F16: 31.755 | G16: 12232.165 | H16: 0.00356083 | I16: 0.001645
A17: 2020 | B17: 9 | C17: =SUMIFS('CR CWIP query 092020 ISD'!$H:$H,'CR CWIP query 092020 ISD'!$L:$L,'092020 PIS Summary'!A17,'CR CWIP query 092020 ISD'!$K:$K,'092020 PIS Summary'!B17) -> 30175.55 | D17: 12263.92 | E17: 30175.55 | F17: 15087.775 | G17: 27351.695 | H17: 0.00356083 | I17: 0.001645 | J17: =ROUND($G17*H17,2)*0.5 -> 48.695 | K17: =ROUND($G17*I17,2)*0.5 -> 22.495 | L17: =+J17-K17 -> 26.2
A18: 2020 | B18: 10 | C18: =SUMIFS('CR CWIP query 092020 ISD'!$H:$H,'CR CWIP query 092020 ISD'!$L:$L,'092020 PIS Summary'!A18,'CR CWIP query 092020 ISD'!$K:$K,'092020 PIS Summary'!B18) -> 0 | D18: 42510.66 | E18: 0 | F18: 0 | G18: 42510.66 | H18: 0.00356083 | I18: 0.001645 | J18: =ROUND($G18*H18,2) -> 151.37 | K18: =ROUND($G18*I18,2) -> 69.93 | L18: =+J18-K18 -> 81.44
A19: 2020 | B19: 11 | C19: =SUMIFS('CR CWIP query 092020 ISD'!$H:$H,'CR CWIP query 092020 ISD'!$L:$L,'092020 PIS Summary'!A19,'CR CWIP query 092020 ISD'!$K:$K,'092020 PIS Summary'!B19) -> 0 | D19: 42731.96 | E19: 0 | F19: 0 | G19: 42731.96 | H19: 0.00356083 | I19: 0.001645 | J19: 152.16 | K19: 70.29 | L19: 81.87
A20: 2020 | B20: 12 | C20: =SUMIFS('CR CWIP query 092020 ISD'!$H:$H,'CR CWIP query 092020 ISD'!$L:$L,'092020 PIS Summary'!A20,'CR CWIP query 092020 ISD'!$K:$K,'092020 PIS Summary'!B20) -> 0 | D20: 42954.41 | E20: =C20 -> 0 | F20: =0.5*E20 -> 0 | G20: =+D20+F20 -> 42954.41 | H20: 0.00356083 | I20: 0.001645 | J20: 152.95 | K20: 70.66 | L20: 82.29
A21: 20 Total | C21: =SUM(C10:C20) -> 42439.47 | E21: =SUM(E10:E20) -> 42439.47 | J21: =SUM(J12:J20) -> 505.175 | K21: =SUM(K12:K20) -> 233.375 | L21: =SUM(L12:L20) -> 271.8
A23: 2021 | B23: 1 | C23: =SUMIFS('CR CWIP query 092020 ISD'!$H:$H,'CR CWIP query 092020 ISD'!$L:$L,'092020 PIS Summary'!A23,'CR CWIP query 092020 ISD'!$K:$K,'092020 PIS Summary'!B23) -> 0 | D23: =+D20+E20+J20+K20 -> 43178.02 | E23: =C23 -> 0 | F23: =0.5*E23 -> 0 | G23: =+D23+F23 -> 43178.02 | H23: 0.00356083 | I23: 0.001645 | J23: =ROUND($G23*H23,2) -> 153.75 | K23: 71.03 | L23: =+J23-K23 -> 82.72
A24: 2021 | B24: 2 | C24: =SUMIFS('CR CWIP query 092020 ISD'!$H:$H,'CR CWIP query 092020 ISD'!$L:$L,'092020 PIS Summary'!A24,'CR CWIP query 092020 ISD'!$K:$K,'092020 PIS Summary'!B24) -> 0 | D24: =+D23+E23+J23+K23 -> 43402.8 | E24: 0 | F24: =0.5*E24 -> 0 | G24: =+D24+F24 -> 43402.8 | H24: 0.00356083 | I24: 0.001645 | J24: =ROUND($G24*H24,2) -> 154.55 | K24: =ROUND($G24*I24,2) -> 71.4 | L24: 83.15
A25: 2021 | B25: 3 | C25: =SUMIFS('CR CWIP query 092020 ISD'!$H:$H,'CR CWIP query 092020 ISD'!$L:$L,'092020 PIS Summary'!A25,'CR CWIP query 092020 ISD'!$K:$K,'092020 PIS Summary'!B25) -> 0 | D25: =+D24+E24+J24+K24 -> 43628.75 | E25: 0 | F25: 0 | G25: 43628.75 | H25: 0.00356083 | I25: 0.001645 | J25: 155.35 | K25: 71.77 | L25: =+J25-K25 -> 83.58
A26: 2021 | B26: 4 | C26: =SUMIFS('CR CWIP query 092020 ISD'!$H:$H,'CR CWIP query 092020 ISD'!$L:$L,'092020 PIS Summary'!A26,'CR CWIP query 092020 ISD'!$K:$K,'092020 PIS Summary'!B26) -> 0 | D26: =+D25+E25+J25+K25 -> 43855.87 | E26: 0 | F26: 0 | G26: 43855.87 | H26: 0.00356083 | I26: 0.001645 | J26: 156.16 | K26: 72.14 | L26: 84.02
A27: 2021 | B27: 5 | C27: =SUMIFS('CR CWIP query 092020 ISD'!$H:$H,'CR CWIP query 092020 ISD'!$L:$L,'092020 PIS Summary'!A27,'CR CWIP query 092020 ISD'!$K:$K,'092020 PIS Summary'!B27) -> 0 | D27: =+D26+E26+J26+K26 -> 44084.17 | E27: 0 | F27: 0 | G27: 44084.17 | H27: 0.00356083 | I27: 0.001645 | J27: 156.98 | K27: 72.52 | L27: 84.46
A28: 2021 | B28: 6 | C28: =SUMIFS('CR CWIP query 092020 ISD'!$H:$H,'CR CWIP query 092020 ISD'!$L:$L,'092020 PIS Summary'!A28,'CR CWIP query 092020 ISD'!$K:$K,'092020 PIS Summary'!B28) -> 0 | D28: 44313.67 | E28: 0 | F28: 0 | G28: 44313.67 | H28: 0.00356083 | I28: 0.001645 | J28: 157.79 | K28: 72.9 | L28: 84.89
A29: 2021 | B29: 7 | C29: =SUMIFS('CR CWIP query 092020 ISD'!$H:$H,'CR CWIP query 092020 ISD'!$L:$L,'092020 PIS Summary'!A29,'CR CWIP query 092020 ISD'!$K:$K,'092020 PIS Summary'!B29) -> 0 | D29: 44544.36 | E29: 0 | F29: 0 | G29: 44544.36 | H29: 0.00356083 | I29: 0.001645 | J29: 158.61 | K29: 73.28 | L29: 85.33
A30: 2021 | B30: 8 | C30: =SUMIFS('CR CWIP query 092020 ISD'!$H:$H,'CR CWIP query 092020 ISD'!$L:$L,'092020 PIS Summary'!A30,'CR CWIP query 092020 ISD'!$K:$K,'092020 PIS Summary'!B30) -> 0 | D30: 44776.25 | E30: 0 | F30: 0 | G30: 44776.25 | H30: 0.00356083 | I30: 0.001645 | J30: 159.44 | K30: 73.66 | L30: 85.78
A31: 2021 | B31: 9 | C31: =SUMIFS('CR CWIP query 092020 ISD'!$H:$H,'CR CWIP query 092020 ISD'!$L:$L,'092020 PIS Summary'!A31,'CR CWIP query 092020 ISD'!$K:$K,'092020 PIS Summary'!B31) -> 0 | D31: 45009.35 | E31: 0 | F31: 0 | G31: 45009.35 | H31: 0.00356083 | I31: 0.001645 | J31: 160.27 | K31: 74.04 | L31: 86.23
A32: 2021 | B32: 10 | C32: =SUMIFS('CR CWIP query 092020 ISD'!$H:$H,'CR CWIP query 092020 ISD'!$L:$L,'092020 PIS Summary'!A32,'CR CWIP query 092020 ISD'!$K:$K,'092020 PIS Summary'!B32) -> 0 | D32: 45243.66 | E32: 0 | F32: 0 | G32: 45243.66 | H32: 0.00356083 | I32: 0.001645 | J32: 161.1 | K32: 74.43 | L32: 86.67
A33: 2021 | B33: 11 | C33: =SUMIFS('CR CWIP query 092020 ISD'!$H:$H,'CR CWIP query 092020 ISD'!$L:$L,'092020 PIS Summary'!A33,'CR CWIP query 092020 ISD'!$K:$K,'092020 PIS Summary'!B33) -> 0 | D33: 45479.19 | E33: 0 | F33: 0 | G33: 45479.19 | H33: 0.00356083 | I33: 0.001645 | J33: 161.94 | K33: 74.81 | L33: 87.13
A34: 2021 | B34: 12 | C34: =SUMIFS('CR CWIP query 092020 ISD'!$H:$H,'CR CWIP query 092020 ISD'!$L:$L,'092020 PIS Summary'!A34,'CR CWIP query 092020 ISD'!$K:$K,'092020 PIS Summary'!B34) -> 0 | D34: 45715.94 | E34: 0 | F34: 0 | G34: 45715.94 | H34: 0.00356083 | I34: 0.001645 | J34: 162.79 | K34: 75.2 | L34: 87.59
A35: 21 Total | C35: =SUM(C23:C34) -> 0 | E35: =SUM(E23:E34) -> 0 | J35: =SUM(J23:J34) -> 1898.73 | K35: =SUM(K23:K34) -> 877.18 | L35: 1021.55
A37: 2022 | B37: 1 | C37: =SUMIFS('CR CWIP query 092020 ISD'!$H:$H,'CR CWIP query 092020 ISD'!$L:$L,'092020 PIS Summary'!A37,'CR CWIP query 092020 ISD'!$K:$K,'092020 PIS Summary'!B37) -> 0 | D37: =+D34+E34+J34+K34 -> 45953.93 | E37: =C37 -> 0 | F37: =0.5*E37 -> 0 | G37: =+D37+F37 -> 45953.93 | H37: 0.00356083 | I37: 0.001645 | J37: =ROUND($G37*H37,2) -> 163.63 | K37: =ROUND($G37*I37,2) -> 75.59 | L37: =+J37-K37 -> 88.04
A38: 2022 | B38: 2 | C38: =SUMIFS('CR CWIP query 092020 ISD'!$H:$H,'CR CWIP query 092020 ISD'!$L:$L,'092020 PIS Summary'!A38,'CR CWIP query 092020 ISD'!$K:$K,'092020 PIS Summary'!B38) -> 0 | D38: =+D37+E37+J37+K37 -> 46193.15 | E38: 0 | F38: =0.5*E38 -> 0 | G38: =+D38+F38 -> 46193.15 | H38: 0.00356083 | I38: 0.001645 | J38: =ROUND($G38*H38,2) -> 164.49 | K38: =ROUND($G38*I38,2) -> 75.99 | L38: =+J38-K38 -> 88.5
A39: 2022 | B39: 3 | C39: =SUMIFS('CR CWIP query 092020 ISD'!$H:$H,'CR CWIP query 092020 ISD'!$L:$L,'092020 PIS Summary'!A39,'CR CWIP query 092020 ISD'!$K:$K,'092020 PIS Summary'!B39) -> 0 | D39: =+D38+E38+J38+K38 -> 46433.63 | E39: 0 | F39: 0 | G39: 46433.63 | H39: 0.00356083 | I39: 0.001645 | J39: =ROUND($G39*H39,2) -> 165.34 | K39: =ROUND($G39*I39,2) -> 76.38 | L39: 88.96
A40: 2022 | B40: 4 | C40: =SUMIFS('CR CWIP query 092020 ISD'!$H:$H,'CR CWIP query 092020 ISD'!$L:$L,'092020 PIS Summary'!A40,'CR CWIP query 092020 ISD'!$K:$K,'092020 PIS Summary'!B40) -> 0 | D40: =+D39+E39+J39+K39 -> 46675.35 | E40: 0 | F40: 0 | G40: 46675.35 | H40: 0.00356083 | I40: 0.001645 | J40: =ROUND($G40*H40,2) -> 166.2 | K40: 76.78 | L40: =+J40-K40 -> 89.42
A41: 2022 | B41: 5 | C41: =SUMIFS('CR CWIP query 092020 ISD'!$H:$H,'CR CWIP query 092020 ISD'!$L:$L,'092020 PIS Summary'!A41,'CR CWIP query 092020 ISD'!$K:$K,'092020 PIS Summary'!B41) -> 0 | D41: =+D40+E40+J40+K40 -> 46918.33 | E41: 0 | F41: 0 | G41: 46918.33 | H41: 0.00356083 | I41: 0.001645 | J41: 167.07 | K41: 77.18 | L41: 89.89
A42: 2022 | B42: 6 | C42: =SUMIFS('CR CWIP query 092020 ISD'!$H:$H,'CR CWIP query 092020 ISD'!$L:$L,'092020 PIS Summary'!A42,'CR CWIP query 092020 ISD'!$K:$K,'092020 PIS Summary'!B42) -> 0 | D42: 47162.58 | E42: 0 | F42: 0 | G42: 47162.58 | H42: 0.00356083 | I42: 0.001645 | J42: 167.94 | K42: 77.58 | L42: 90.36
A43: 2022 | B43: 7 | C43: =SUMIFS('CR CWIP query 092020 ISD'!$H:$H,'CR CWIP query 092020 ISD'!$L:$L,'092020 PIS Summary'!A43,'CR CWIP query 092020 ISD'!$K:$K,'092020 PIS Summary'!B43) -> 0 | D43: 47408.1 | E43: 0 | F43: 0 | G43: 47408.1 | H43: 0.00356083 | I43: 0.001645 | J43: 168.81 | K43: 77.99 | L43: 90.82
A44: 2022 | B44: 8 | C44: =SUMIFS('CR CWIP query 092020 ISD'!$H:$H,'CR CWIP query 092020 ISD'!$L:$L,'092020 PIS Summary'!A44,'CR CWIP query 092020 ISD'!$K:$K,'092020 PIS Summary'!B44) -> 0 | D44: 47654.9 | E44: 0 | F44: 0 | G44: 47654.9 | H44: 0.00356083 | I44: 0.001645 | J44: =ROUND($G44*H44,2) -> 169.69 | K44: =ROUND($G44*I44,2) -> 78.39 | L44: =+J44-K44 -> 91.3
A45: 2022 | B45: 9 | C45: =SUMIFS('CR CWIP query 092020 ISD'!$H:$H,'CR CWIP query 092020 ISD'!$L:$L,'092020 PIS Summary'!A45,'CR CWIP query 092020 ISD'!$K:$K,'092020 PIS Summary'!B45) -> 0 | D45: 47902.98 | E45: 0 | F45: 0 | G45: 47902.98 | H45: 0.00356083 | I45: 0.001645 | J45: 170.57 | K45: 78.8 | L45: 91.77
A46: 2022 | B46: 10 | C46: =SUMIFS('CR CWIP query 092020 ISD'!$H:$H,'CR CWIP query 092020 ISD'!$L:$L,'092020 PIS Summary'!A46,'CR CWIP query 092020 ISD'!$K:$K,'092020 PIS Summary'!B46) -> 0 | D46: 48152.35 | E46: 0 | F46: 0 | G46: 48152.35 | H46: 0.00356083 | I46: 0.001645 | J46: 171.46 | K46: 79.21 | L46: 92.25
A47: 2022 | B47: 11 | C47: =SUMIFS('CR CWIP query 092020 ISD'!$H:$H,'CR CWIP query 092020 ISD'!$L:$L,'092020 PIS Summary'!A47,'CR CWIP query 092020 ISD'!$K:$K,'092020 PIS Summary'!B47) -> 0 | D47: 48403.02 | E47: 0 | F47: 0 | G47: 48403.02 | H47: 0.00356083 | I47: 0.001645
A48: 2022 | B48: 12 | C48: =SUMIFS('CR CWIP query 092020 ISD'!$H:$H,'CR CWIP query 092020 ISD'!$L:$L,'092020 PIS Summary'!A48,'CR CWIP query 092020 ISD'!$K:$K,'092020 PIS Summary'!B48) -> 0 | D48: 48403.02 | E48: 0 | F48: 0 | G48: 48403.02 | H48: 0.00356083 | I48: 0.001645
A49: 22 Total | C49: =SUM(C37:C48) -> 0 | E49: =SUM(E37:E48) -> 0 | J49: =SUM(J37:J48) -> 1675.2 | K49: =SUM(K37:K48) -> 773.89 | L49: 901.31

Sheet 102020 PIS Summary (hidden)
A1: Indiana American Water
A2: Post In Service AFUDC Calc
A3: 10/1/2020- | J3: =SUM('CR CWIP query 102020 ISD'!H:H)+J5+K5-G62 -> 0 | K3: check
J5: =SUM(J35,J49,J51:J61) -> 3557.63 | K5: =SUM(K35,K49,K51:K61) -> 1643.53 | L5: =SUM(L35,L49,L51:L61) -> 1914.1
A7: Year | B7: Month | C7: Grand Total CWIP | D7: Beginning AFUDC Base | E7: Current Month Charges | F7: 50% Charge Current Charge | G7: Current Base | H7: PIS AFUDC Monthly Equity Rate | I7: PIS AFUDC Monthly Debt Rate | J7: PIS AFUDC Equity to be Recorded | K7: PIS AFUDC Debt to be Recorded | L7: AFUDC PIS Equity Reduction to record
A9: 2019 | B9: 1 | C9: =SUMIFS('CR CWIP query 102020 ISD'!$H:$H,'CR CWIP query 102020 ISD'!$L:$L,'102020 PIS Summary'!A9,'CR CWIP query 102020 ISD'!$K:$K,'102020 PIS Summary'!B9) -> 0 | D9: =+D6+E6+J6+K6 -> 0 | E9: =C9 -> 0 | F9: =0.5*E9 -> 0 | G9: =+D9+F9 -> 0 | H9: 0.00356083 | I9: 0.001645
A10: 2019 | B10: 2 | C10: =SUMIFS('CR CWIP query 102020 ISD'!$H:$H,'CR CWIP query 102020 ISD'!$L:$L,'102020 PIS Summary'!A10,'CR CWIP query 102020 ISD'!$K:$K,'102020 PIS Summary'!B10) -> 0 | D10: =+D9+E9+J9+K9 -> 0 | E10: =C10 -> 0 | F10: =0.5*E10 -> 0 | G10: =+D10+F10 -> 0 | H10: 0.00356083 | I10: 0.001645
A11: 2019 | B11: 3 | C11: =SUMIFS('CR CWIP query 102020 ISD'!$H:$H,'CR CWIP query 102020 ISD'!$L:$L,'102020 PIS Summary'!A11,'CR CWIP query 102020 ISD'!$K:$K,'102020 PIS Summary'!B11) -> 0 | D11: 0 | E11: 0 | F11: 0 | G11: 0 | H11: 0.00356083 | I11: 0.001645
A12: 2019 | B12: 4 | C12: =SUMIFS('CR CWIP query 102020 ISD'!$H:$H,'CR CWIP query 102020 ISD'!$L:$L,'102020 PIS Summary'!A12,'CR CWIP query 102020 ISD'!$K:$K,'102020 PIS Summary'!B12) -> 0 | D12: 0 | E12: =C12 -> 0 | F12: =0.5*E12 -> 0 | G12: =+D12+F12 -> 0 | H12: 0.00356083 | I12: 0.001645
A13: 2019 | B13: 5 | C13: =SUMIFS('CR CWIP query 102020 ISD'!$H:$H,'CR CWIP query 102020 ISD'!$L:$L,'102020 PIS Summary'!A13,'CR CWIP query 102020 ISD'!$K:$K,'102020 PIS Summary'!B13) -> 0 | D13: 0 | E13: =C13 -> 0 | F13: =0.5*E13 -> 0 | G13: =+D13+F13 -> 0 | H13: 0.00356083 | I13: 0.001645
A14: 2019 | B14: 6 | C14: =SUMIFS('CR CWIP query 102020 ISD'!$H:$H,'CR CWIP query 102020 ISD'!$L:$L,'102020 PIS Summary'!A14,'CR CWIP query 102020 ISD'!$K:$K,'102020 PIS Summary'!B14) -> 0 | D14: 0 | E14: 0 | F14: 0 | G14: 0 | H14: 0.00356083 | I14: 0.001645
A15: 2019 | B15: 7 | C15: =SUMIFS('CR CWIP query 102020 ISD'!$H:$H,'CR CWIP query 102020 ISD'!$L:$L,'102020 PIS Summary'!A15,'CR CWIP query 102020 ISD'!$K:$K,'102020 PIS Summary'!B15) -> 0 | D15: 0 | E15: 0 | F15: 0 | G15: 0 | H15: 0.00356083 | I15: 0.001645
A16: 2019 | B16: 8 | C16: =SUMIFS('CR CWIP query 102020 ISD'!$H:$H,'CR CWIP query 102020 ISD'!$L:$L,'102020 PIS Summary'!A16,'CR CWIP query 102020 ISD'!$K:$K,'102020 PIS Summary'!B16) -> 0 | D16: 0 | E16: 0 | F16: 0 | G16: 0 | H16: 0.00356083 | I16: 0.001645
A17: 2019 | B17: 9 | C17: =SUMIFS('CR CWIP query 102020 ISD'!$H:$H,'CR CWIP query 102020 ISD'!$L:$L,'102020 PIS Summary'!A17,'CR CWIP query 102020 ISD'!$K:$K,'102020 PIS Summary'!B17) -> 0 | D17: 0 | E17: 0 | F17: 0 | G17: 0 | H17: 0.00356083 | I17: 0.001645
A18: 2019 | B18: 10 | C18: =SUMIFS('CR CWIP query 102020 ISD'!$H:$H,'CR CWIP query 102020 ISD'!$L:$L,'102020 PIS Summary'!A18,'CR CWIP query 102020 ISD'!$K:$K,'102020 PIS Summary'!B18) -> 0 | D18: 0 | E18: 0 | F18: 0 | G18: 0 | H18: 0.00356083 | I18: 0.001645
A19: 2019 | B19: 11 | C19: =SUMIFS('CR CWIP query 102020 ISD'!$H:$H,'CR CWIP query 102020 ISD'!$L:$L,'102020 PIS Summary'!A19,'CR CWIP query 102020 ISD'!$K:$K,'102020 PIS Summary'!B19) -> 0 | D19: 0 | E19: 0 | F19: 0 | G19: 0 | H19: 0.00356083 | I19: 0.001645
A20: 2019 | B20: 12 | C20: =SUMIFS('CR CWIP query 102020 ISD'!$H:$H,'CR CWIP query 102020 ISD'!$L:$L,'102020 PIS Summary'!A20,'CR CWIP query 102020 ISD'!$K:$K,'102020 PIS Summary'!B20) -> 0 | D20: 0 | E20: =C20 -> 0 | F20: =0.5*E20 -> 0 | G20: =+D20+F20 -> 0 | H20: 0.00356083 | I20: 0.001645
A21: 19 Total | C21: =SUM(C9:C20) -> 0 | E21: =SUM(E9:E20) -> 0 | J21: =SUM(J9:J20) -> 0 | K21: =SUM(K9:K20) -> 0 | L21: =SUM(L9:L20) -> 0
A23: 2020 | B23: 1 | C23: =SUMIFS('CR CWIP query 102020 ISD'!$H:$H,'CR CWIP query 102020 ISD'!$L:$L,'102020 PIS Summary'!A23,'CR CWIP query 102020 ISD'!$K:$K,'102020 PIS Summary'!B23) -> 0 | D23: =+D20+E20+J20+K20 -> 0 | E23: =C23 -> 0 | F23: =0.5*E23 -> 0 | G23: =+D23+F23 -> 0 | H23: 0.00356083 | I23: 0.001645
A24: 2020 | B24: 2 | C24: =SUMIFS('CR CWIP query 102020 ISD'!$H:$H,'CR CWIP query 102020 ISD'!$L:$L,'102020 PIS Summary'!A24,'CR CWIP query 102020 ISD'!$K:$K,'102020 PIS Summary'!B24) -> 0 | D24: =+D23+E23+J23+K23 -> 0 | E24: =C24 -> 0 | F24: =0.5*E24 -> 0 | G24: =+D24+F24 -> 0 | H24: 0.00356083 | I24: 0.001645
A25: 2020 | B25: 3 | C25: =SUMIFS('CR CWIP query 102020 ISD'!$H:$H,'CR CWIP query 102020 ISD'!$L:$L,'102020 PIS Summary'!A25,'CR CWIP query 102020 ISD'!$K:$K,'102020 PIS Summary'!B25) -> 0 | D25: 0 | E25: 0 | F25: 0 | G25: 0 | H25: 0.00356083 | I25: 0.001645
A26: 2020 | B26: 4 | C26: =SUMIFS('CR CWIP query 102020 ISD'!$H:$H,'CR CWIP query 102020 ISD'!$L:$L,'102020 PIS Summary'!A26,'CR CWIP query 102020 ISD'!$K:$K,'102020 PIS Summary'!B26) -> 0 | D26: 0 | E26: =C26 -> 0 | F26: =0.5*E26 -> 0 | G26: =+D26+F26 -> 0 | H26: 0.00356083 | I26: 0.001645
A27: 2020 | B27: 5 | C27: =SUMIFS('CR CWIP query 102020 ISD'!$H:$H,'CR CWIP query 102020 ISD'!$L:$L,'102020 PIS Summary'!A27,'CR CWIP query 102020 ISD'!$K:$K,'102020 PIS Summary'!B27) -> 0 | D27: 0 | E27: =C27 -> 0 | F27: =0.5*E27 -> 0 | G27: =+D27+F27 -> 0 | H27: 0.00356083 | I27: 0.001645
A28: 2020 | B28: 6 | C28: =SUMIFS('CR CWIP query 102020 ISD'!$H:$H,'CR CWIP query 102020 ISD'!$L:$L,'102020 PIS Summary'!A28,'CR CWIP query 102020 ISD'!$K:$K,'102020 PIS Summary'!B28) -> 0 | D28: 0 | E28: 0 | F28: 0 | G28: 0 | H28: 0.00356083 | I28: 0.001645
A29: 2020 | B29: 7 | C29: =SUMIFS('CR CWIP query 102020 ISD'!$H:$H,'CR CWIP query 102020 ISD'!$L:$L,'102020 PIS Summary'!A29,'CR CWIP query 102020 ISD'!$K:$K,'102020 PIS Summary'!B29) -> 0 | D29: 0 | E29: 0 | F29: 0 | G29: 0 | H29: 0.00356083 | I29: 0.001645
A30: 2020 | B30: 8 | C30: =SUMIFS('CR CWIP query 102020 ISD'!$H:$H,'CR CWIP query 102020 ISD'!$L:$L,'102020 PIS Summary'!A30,'CR CWIP query 102020 ISD'!$K:$K,'102020 PIS Summary'!B30) -> 3926.12 | D30: 0 | E30: 3926.12 | F30: 1963.06 | G30: 1963.06 | H30: 0.00356083 | I30: 0.001645
A31: 2020 | B31: 9 | C31: =SUMIFS('CR CWIP query 102020 ISD'!$H:$H,'CR CWIP query 102020 ISD'!$L:$L,'102020 PIS Summary'!A31,'CR CWIP query 102020 ISD'!$K:$K,'102020 PIS Summary'!B31) -> 20.44 | D31: 3926.12 | E31: 20.44 | F31: 10.22 | G31: 3936.34 | H31: 0.00356083 | I31: 0.001645
A32: 2020 | B32: 10 | C32: =SUMIFS('CR CWIP query 102020 ISD'!$H:$H,'CR CWIP query 102020 ISD'!$L:$L,'102020 PIS Summary'!A32,'CR CWIP query 102020 ISD'!$K:$K,'102020 PIS Summary'!B32) -> 34761.76 | D32: 3946.56 | E32: 34761.76 | F32: 17380.88 | G32: 21327.44 | H32: 0.00356083 | I32: 0.001645 | J32: =ROUND($G32*H32,2)*0.5 -> 37.97 | K32: =ROUND($G32*I32,2)*0.5 -> 17.54 | L32: =+J32-K32 -> 20.43
A33: 2020 | B33: 11 | C33: =SUMIFS('CR CWIP query 102020 ISD'!$H:$H,'CR CWIP query 102020 ISD'!$L:$L,'102020 PIS Summary'!A33,'CR CWIP query 102020 ISD'!$K:$K,'102020 PIS Summary'!B33) -> 0 | D33: 38763.83 | E33: 0 | F33: 0 | G33: 38763.83 | H33: 0.00356083 | I33: 0.001645 | J33: =ROUND($G33*H33,2) -> 138.03 | K33: =ROUND($G33*I33,2) -> 63.77 | L33: =+J33-K33 -> 74.26
A34: 2020 | B34: 12 | C34: =SUMIFS('CR CWIP query 102020 ISD'!$H:$H,'CR CWIP query 102020 ISD'!$L:$L,'102020 PIS Summary'!A34,'CR CWIP query 102020 ISD'!$K:$K,'102020 PIS Summary'!B34) -> 9.41 | D34: 38965.63 | E34: =C34 -> 9.41 | F34: =0.5*E34 -> 4.705 | G34: =+D34+F34 -> 38970.335 | H34: 0.00356083 | I34: 0.001645 | J34: =ROUND($G34*H34,2) -> 138.77 | K34: =ROUND($G34*I34,2) -> 64.11 | L34: =+J34-K34 -> 74.66
A35: 20 Total | C35: =SUM(C23:C34) -> 38717.73 | E35: =SUM(E24:E34) -> 38717.73 | J35: =SUM(J23:J34) -> 314.77 | K35: =SUM(K23:K34) -> 145.42 | L35: 169.35
A37: 2021 | B37: 1 | C37: =SUMIFS('CR CWIP query 102020 ISD'!$H:$H,'CR CWIP query 102020 ISD'!$L:$L,'102020 PIS Summary'!A37,'CR CWIP query 102020 ISD'!$K:$K,'102020 PIS Summary'!B37) -> 0 | D37: =+D34+E34+J34+K34 -> 39177.92 | E37: =C37 -> 0 | F37: =0.5*E37 -> 0 | G37: =+D37+F37 -> 39177.92 | H37: 0.00356083 | I37: 0.001645 | J37: =ROUND($G37*H37,2) -> 139.51 | K37: 64.45 | L37: =+J37-K37 -> 75.06
A38: 2021 | B38: 2 | C38: =SUMIFS('CR CWIP query 102020 ISD'!$H:$H,'CR CWIP query 102020 ISD'!$L:$L,'102020 PIS Summary'!A38,'CR CWIP query 102020 ISD'!$K:$K,'102020 PIS Summary'!B38) -> 0 | D38: =+D37+E37+J37+K37 -> 39381.88 | E38: 0 | F38: =0.5*E38 -> 0 | G38: =+D38+F38 -> 39381.88 | H38: 0.00356083 | I38: 0.001645 | J38: =ROUND($G38*H38,2) -> 140.23 | K38: =ROUND($G38*I38,2) -> 64.78 | L38: 75.45
A39: 2021 | B39: 3 | C39: =SUMIFS('CR CWIP query 102020 ISD'!$H:$H,'CR CWIP query 102020 ISD'!$L:$L,'102020 PIS Summary'!A39,'CR CWIP query 102020 ISD'!$K:$K,'102020 PIS Summary'!B39) -> 0 | D39: =+D38+E38+J38+K38 -> 39586.89 | E39: 0 | F39: 0 | G39: 39586.89 | H39: 0.00356083 | I39: 0.001645 | J39: 140.96 | K39: 65.12 | L39: =+J39-K39 -> 75.84
A40: 2021 | B40: 4 | C40: =SUMIFS('CR CWIP query 102020 ISD'!$H:$H,'CR CWIP query 102020 ISD'!$L:$L,'102020 PIS Summary'!A40,'CR CWIP query 102020 ISD'!$K:$K,'102020 PIS Summary'!B40) -> 0 | D40: =+D39+E39+J39+K39 -> 39792.97 | E40: 0 | F40: 0 | G40: 39792.97 | H40: 0.00356083 | I40: 0.001645 | J40: 141.7 | K40: 65.46 | L40: 76.24
A41: 2021 | B41: 5 | C41: =SUMIFS('CR CWIP query 102020 ISD'!$H:$H,'CR CWIP query 102020 ISD'!$L:$L,'102020 PIS Summary'!A41,'CR CWIP query 102020 ISD'!$K:$K,'102020 PIS Summary'!B41) -> 0 | D41: =+D40+E40+J40+K40 -> 40000.13 | E41: 0 | F41: 0 | G41: 40000.13 | H41: 0.00356083 | I41: 0.001645 | J41: 142.43 | K41: 65.8 | L41: 76.63
A42: 2021 | B42: 6 | C42: =SUMIFS('CR CWIP query 102020 ISD'!$H:$H,'CR CWIP query 102020 ISD'!$L:$L,'102020 PIS Summary'!A42,'CR CWIP query 102020 ISD'!$K:$K,'102020 PIS Summary'!B42) -> 0 | D42: 40208.36 | E42: 0 | F42: 0 | G42: 40208.36 | H42: 0.00356083 | I42: 0.001645 | J42: 143.18 | K42: 66.14 | L42: 77.04
A43: 2021 | B43: 7 | C43: =SUMIFS('CR CWIP query 102020 ISD'!$H:$H,'CR CWIP query 102020 ISD'!$L:$L,'102020 PIS Summary'!A43,'CR CWIP query 102020 ISD'!$K:$K,'102020 PIS Summary'!B43) -> 0 | D43: 40417.68 | E43: 0 | F43: 0 | G43: 40417.68 | H43: 0.00356083 | I43: 0.001645 | J43: 143.92 | K43: 66.49 | L43: 77.43
A44: 2021 | B44: 8 | C44: =SUMIFS('CR CWIP query 102020 ISD'!$H:$H,'CR CWIP query 102020 ISD'!$L:$L,'102020 PIS Summary'!A44,'CR CWIP query 102020 ISD'!$K:$K,'102020 PIS Summary'!B44) -> 0 | D44: 40628.09 | E44: 0 | F44: 0 | G44: 40628.09 | H44: 0.00356083 | I44: 0.001645 | J44: 144.67 | K44: 66.83 | L44: 77.84
A45: 2021 | B45: 9 | C45: =SUMIFS('CR CWIP query 102020 ISD'!$H:$H,'CR CWIP query 102020 ISD'!$L:$L,'102020 PIS Summary'!A45,'CR CWIP query 102020 ISD'!$K:$K,'102020 PIS Summary'!B45) -> 0 | D45: 40839.59 | E45: 0 | F45: 0 | G45: 40839.59 | H45: 0.00356083 | I45: 0.001645 | J45: 145.42 | K45: 67.18 | L45: 78.24
A46: 2021 | B46: 10 | C46: =SUMIFS('CR CWIP query 102020 ISD'!$H:$H,'CR CWIP query 102020 ISD'!$L:$L,'102020 PIS Summary'!A46,'CR CWIP query 102020 ISD'!$K:$K,'102020 PIS Summary'!B46) -> 0 | D46: 41052.19 | E46: 0 | F46: 0 | G46: 41052.19 | H46: 0.00356083 | I46: 0.001645 | J46: 146.18 | K46: 67.53 | L46: 78.65
A47: 2021 | B47: 11 | C47: =SUMIFS('CR CWIP query 102020 ISD'!$H:$H,'CR CWIP query 102020 ISD'!$L:$L,'102020 PIS Summary'!A47,'CR CWIP query 102020 ISD'!$K:$K,'102020 PIS Summary'!B47) -> 0 | D47: 41265.9 | E47: 0 | F47: 0 | G47: 41265.9 | H47: 0.00356083 | I47: 0.001645 | J47: 146.94 | K47: 67.88 | L47: 79.06
A48: 2021 | B48: 12 | C48: =SUMIFS('CR CWIP query 102020 ISD'!$H:$H,'CR CWIP query 102020 ISD'!$L:$L,'102020 PIS Summary'!A48,'CR CWIP query 102020 ISD'!$K:$K,'102020 PIS Summary'!B48) -> 0 | D48: 41480.72 | E48: 0 | F48: 0 | G48: 41480.72 | H48: 0.00356083 | I48: 0.001645 | J48: 147.71 | K48: 68.24 | L48: 79.47
A49: 21 Total | C49: =SUM(C37:C48) -> 0 | E49: =SUM(E37:E48) -> 0 | J49: =SUM(J37:J48) -> 1722.85 | K49: =SUM(K37:K48) -> 795.9 | L49: =SUM(L37:L48) -> 926.95
A51: 2022 | B51: 1 | C51: =SUMIFS('CR CWIP query 102020 ISD'!$H:$H,'CR CWIP query 102020 ISD'!$L:$L,'102020 PIS Summary'!A51,'CR CWIP query 102020 ISD'!$K:$K,'102020 PIS Summary'!B51) -> 0 | D51: =+D48+E48+J48+K48 -> 41696.67 | E51: =C51 -> 0 | F51: =0.5*E51 -> 0 | G51: =+D51+F51 -> 41696.67 | H51: 0.00356083 | I51: 0.001645 | J51: =ROUND($G51*H51,2) -> 148.47 | K51: =ROUND($G51*I51,2) -> 68.59 | L51: =+J51-K51 -> 79.88
A52: 2022 | B52: 2 | C52: =SUMIFS('CR CWIP query 102020 ISD'!$H:$H,'CR CWIP query 102020 ISD'!$L:$L,'102020 PIS Summary'!A52,'CR CWIP query 102020 ISD'!$K:$K,'102020 PIS Summary'!B52) -> 0 | D52: =+D51+E51+J51+K51 -> 41913.73 | E52: 0 | F52: =0.5*E52 -> 0 | G52: =+D52+F52 -> 41913.73 | H52: 0.00356083 | I52: 0.001645 | J52: =ROUND($G52*H52,2) -> 149.25 | K52: =ROUND($G52*I52,2) -> 68.95 | L52: =+J52-K52 -> 80.3
A53: 2022 | B53: 3 | C53: =SUMIFS('CR CWIP query 102020 ISD'!$H:$H,'CR CWIP query 102020 ISD'!$L:$L,'102020 PIS Summary'!A53,'CR CWIP query 102020 ISD'!$K:$K,'102020 PIS Summary'!B53) -> 0 | D53: =+D52+E52+J52+K52 -> 42131.93 | E53: 0 | F53: 0 | G53: 42131.93 | H53: 0.00356083 | I53: 0.001645 | J53: =ROUND($G53*H53,2) -> 150.02 | K53: =ROUND($G53*I53,2) -> 69.31 | L53: 80.71
A54: 2022 | B54: 4 | C54: =SUMIFS('CR CWIP query 102020 ISD'!$H:$H,'CR CWIP query 102020 ISD'!$L:$L,'102020 PIS Summary'!A54,'CR CWIP query 102020 ISD'!$K:$K,'102020 PIS Summary'!B54) -> 0 | D54: =+D53+E53+J53+K53 -> 42351.26 | E54: 0 | F54: 0 | G54: 42351.26 | H54: 0.00356083 | I54: 0.001645 | J54: =ROUND($G54*H54,2) -> 150.81 | K54: 69.67 | L54: =+J54-K54 -> 81.14
A55: 2022 | B55: 5 | C55: =SUMIFS('CR CWIP query 102020 ISD'!$H:$H,'CR CWIP query 102020 ISD'!$L:$L,'102020 PIS Summary'!A55,'CR CWIP query 102020 ISD'!$K:$K,'102020 PIS Summary'!B55) -> 0 | D55: =+D54+E54+J54+K54 -> 42571.74 | E55: 0 | F55: 0 | G55: 42571.74 | H55: 0.00356083 | I55: 0.001645 | J55: 151.59 | K55: 70.03 | L55: 81.56
A56: 2022 | B56: 6 | C56: =SUMIFS('CR CWIP query 102020 ISD'!$H:$H,'CR CWIP query 102020 ISD'!$L:$L,'102020 PIS Summary'!A56,'CR CWIP query 102020 ISD'!$K:$K,'102020 PIS Summary'!B56) -> 0 | D56: 42793.36 | E56: 0 | F56: 0 | G56: 42793.36 | H56: 0.00356083 | I56: 0.001645 | J56: 152.38 | K56: 70.4 | L56: 81.98
A57: 2022 | B57: 7 | C57: =SUMIFS('CR CWIP query 102020 ISD'!$H:$H,'CR CWIP query 102020 ISD'!$L:$L,'102020 PIS Summary'!A57,'CR CWIP query 102020 ISD'!$K:$K,'102020 PIS Summary'!B57) -> 0 | D57: 43016.14 | E57: 0 | F57: 0 | G57: 43016.14 | H57: 0.00356083 | I57: 0.001645 | J57: 153.17 | K57: 70.76 | L57: 82.41
A58: 2022 | B58: 8 | C58: =SUMIFS('CR CWIP query 102020 ISD'!$H:$H,'CR CWIP query 102020 ISD'!$L:$L,'102020 PIS Summary'!A58,'CR CWIP query 102020 ISD'!$K:$K,'102020 PIS Summary'!B58) -> 0 | D58: 43240.07 | E58: 0 | F58: 0 | G58: 43240.07 | H58: 0.00356083 | I58: 0.001645 | J58: =ROUND($G58*H58,2) -> 153.97 | K58: =ROUND($G58*I58,2) -> 71.13 | L58: =+J58-K58 -> 82.84
A59: 2022 | B59: 9 | C59: =SUMIFS('CR CWIP query 102020 ISD'!$H:$H,'CR CWIP query 102020 ISD'!$L:$L,'102020 PIS Summary'!A59,'CR CWIP query 102020 ISD'!$K:$K,'102020 PIS Summary'!B59) -> 0 | D59: 43465.17 | E59: 0 | F59: 0 | G59: 43465.17 | H59: 0.00356083 | I59: 0.001645 | J59: 154.77 | K59: 71.5 | L59: 83.27
A60: 2022 | B60: 10 | C60: =SUMIFS('CR CWIP query 102020 ISD'!$H:$H,'CR CWIP query 102020 ISD'!$L:$L,'102020 PIS Summary'!A60,'CR CWIP query 102020 ISD'!$K:$K,'102020 PIS Summary'!B60) -> 0 | D60: 43691.44 | E60: 0 | F60: 0 | G60: 43691.44 | H60: 0.00356083 | I60: 0.001645 | J60: 155.58 | K60: 71.87 | L60: 83.71
A61: 2022 | B61: 11 | C61: =SUMIFS('CR CWIP query 102020 ISD'!$H:$H,'CR CWIP query 102020 ISD'!$L:$L,'102020 PIS Summary'!A61,'CR CWIP query 102020 ISD'!$K:$K,'102020 PIS Summary'!B61) -> 0 | D61: 43918.89 | E61: 0 | F61: 0 | G61: 43918.89 | H61: 0.00356083 | I61: 0.001645
A62: 2022 | B62: 12 | C62: =SUMIFS('CR CWIP query 102020 ISD'!$H:$H,'CR CWIP query 102020 ISD'!$L:$L,'102020 PIS Summary'!A62,'CR CWIP query 102020 ISD'!$K:$K,'102020 PIS Summary'!B62) -> 0 | D62: 43918.89 | E62: 0 | F62: 0 | G62: 43918.89 | H62: 0.00356083 | I62: 0.001645
A63: 22 Total | C63: =SUM(C51:C62) -> 0 | E63: =SUM(E51:E62) -> 0 | J63: =SUM(J51:J62) -> 1520.01 | K63: =SUM(K51:K62) -> 702.21 | L63: =SUM(L51:L62) -> 817.8

Sheet 112020 PIS Summary (hidden)
A1: Indiana American Water
A2: Post In Service AFUDC Calc
A3: 11/1/2020- | J3: =SUM('CR CWIP query 112020 ISD'!H:H)+J5+K5-G62 -> 0 | K3: check
J5: =SUM(J35,J49,J51:J61) -> 48469.965 | K5: =SUM(K35,K49,K51:K61) -> 22391.74 | L5: =SUM(L35,L49,L51:L61) -> 26078.225
A7: Year | B7: Month | C7: Grand Total CWIP | D7: Beginning AFUDC Base | E7: Current Month Charges | F7: 50% Charge Current Charge | G7: Current Base | H7: PIS AFUDC Monthly Equity Rate | I7: PIS AFUDC Monthly Debt Rate | J7: PIS AFUDC Equity to be Recorded | K7: PIS AFUDC Debt to be Recorded | L7: AFUDC PIS Equity Reduction to record
A9: 2019 | B9: 1 | C9: =SUMIFS('CR CWIP query 112020 ISD'!$H:$H,'CR CWIP query 112020 ISD'!$L:$L,'112020 PIS Summary'!A9,'CR CWIP query 112020 ISD'!$K:$K,'112020 PIS Summary'!B9) -> 0 | D9: =+D6+E6+J6+K6 -> 0 | E9: =C9 -> 0 | F9: =0.5*E9 -> 0 | G9: =+D9+F9 -> 0 | H9: 0.00356083 | I9: 0.001645
A10: 2019 | B10: 2 | C10: =SUMIFS('CR CWIP query 112020 ISD'!$H:$H,'CR CWIP query 112020 ISD'!$L:$L,'112020 PIS Summary'!A10,'CR CWIP query 112020 ISD'!$K:$K,'112020 PIS Summary'!B10) -> 0 | D10: =+D9+E9+J9+K9 -> 0 | E10: 0 | F10: =0.5*E10 -> 0 | G10: =+D10+F10 -> 0 | H10: 0.00356083 | I10: 0.001645
A11: 2019 | B11: 3 | C11: =SUMIFS('CR CWIP query 112020 ISD'!$H:$H,'CR CWIP query 112020 ISD'!$L:$L,'112020 PIS Summary'!A11,'CR CWIP query 112020 ISD'!$K:$K,'112020 PIS Summary'!B11) -> 0 | D11: 0 | E11: 0 | F11: 0 | G11: 0 | H11: 0.00356083 | I11: 0.001645
A12: 2019 | B12: 4 | C12: =SUMIFS('CR CWIP query 112020 ISD'!$H:$H,'CR CWIP query 112020 ISD'!$L:$L,'112020 PIS Summary'!A12,'CR CWIP query 112020 ISD'!$K:$K,'112020 PIS Summary'!B12) -> 0 | D12: 0 | E12: =C12 -> 0 | F12: =0.5*E12 -> 0 | G12: =+D12+F12 -> 0 | H12: 0.00356083 | I12: 0.001645
A13: 2019 | B13: 5 | C13: =SUMIFS('CR CWIP query 112020 ISD'!$H:$H,'CR CWIP query 112020 ISD'!$L:$L,'112020 PIS Summary'!A13,'CR CWIP query 112020 ISD'!$K:$K,'112020 PIS Summary'!B13) -> 0 | D13: 0 | E13: =C13 -> 0 | F13: =0.5*E13 -> 0 | G13: =+D13+F13 -> 0 | H13: 0.00356083 | I13: 0.001645
A14: 2019 | B14: 6 | C14: =SUMIFS('CR CWIP query 112020 ISD'!$H:$H,'CR CWIP query 112020 ISD'!$L:$L,'112020 PIS Summary'!A14,'CR CWIP query 112020 ISD'!$K:$K,'112020 PIS Summary'!B14) -> 0 | D14: 0 | E14: 0 | F14: 0 | G14: 0 | H14: 0.00356083 | I14: 0.001645
A15: 2019 | B15: 7 | C15: =SUMIFS('CR CWIP query 112020 ISD'!$H:$H,'CR CWIP query 112020 ISD'!$L:$L,'112020 PIS Summary'!A15,'CR CWIP query 112020 ISD'!$K:$K,'112020 PIS Summary'!B15) -> 0 | D15: 0 | E15: 0 | F15: 0 | G15: 0 | H15: 0.00356083 | I15: 0.001645
A16: 2019 | B16: 8 | C16: =SUMIFS('CR CWIP query 112020 ISD'!$H:$H,'CR CWIP query 112020 ISD'!$L:$L,'112020 PIS Summary'!A16,'CR CWIP query 112020 ISD'!$K:$K,'112020 PIS Summary'!B16) -> 0 | D16: 0 | E16: 0 | F16: 0 | G16: 0 | H16: 0.00356083 | I16: 0.001645
A17: 2019 | B17: 9 | C17: =SUMIFS('CR CWIP query 112020 ISD'!$H:$H,'CR CWIP query 112020 ISD'!$L:$L,'112020 PIS Summary'!A17,'CR CWIP query 112020 ISD'!$K:$K,'112020 PIS Summary'!B17) -> 0 | D17: 0 | E17: 0 | F17: 0 | G17: 0 | H17: 0.00356083 | I17: 0.001645
A18: 2019 | B18: 10 | C18: =SUMIFS('CR CWIP query 112020 ISD'!$H:$H,'CR CWIP query 112020 ISD'!$L:$L,'112020 PIS Summary'!A18,'CR CWIP query 112020 ISD'!$K:$K,'112020 PIS Summary'!B18) -> 0 | D18: 0 | E18: 0 | F18: 0 | G18: 0 | H18: 0.00356083 | I18: 0.001645
A19: 2019 | B19: 11 | C19: =SUMIFS('CR CWIP query 112020 ISD'!$H:$H,'CR CWIP query 112020 ISD'!$L:$L,'112020 PIS Summary'!A19,'CR CWIP query 112020 ISD'!$K:$K,'112020 PIS Summary'!B19) -> 0 | D19: 0 | E19: 0 | F19: 0 | G19: 0 | H19: 0.00356083 | I19: 0.001645
A20: 2019 | B20: 12 | C20: =SUMIFS('CR CWIP query 112020 ISD'!$H:$H,'CR CWIP query 112020 ISD'!$L:$L,'112020 PIS Summary'!A20,'CR CWIP query 112020 ISD'!$K:$K,'112020 PIS Summary'!B20) -> 62351.76 | D20: 0 | E20: =C20 -> 62351.76 | F20: =0.5*E20 -> 31175.88 | G20: =+D20+F20 -> 31175.88 | H20: 0.00356083 | I20: 0.001645
A21: 19 Total | C21: =SUM(C9:C20) -> 62351.76 | E21: =SUM(E9:E20) -> 62351.76 | J21: =SUM(J9:J20) -> 0 | K21: =SUM(K9:K20) -> 0 | L21: =SUM(L9:L20) -> 0
A23: 2020 | B23: 1 | C23: =SUMIFS('CR CWIP query 112020 ISD'!$H:$H,'CR CWIP query 112020 ISD'!$L:$L,'112020 PIS Summary'!A23,'CR CWIP query 112020 ISD'!$K:$K,'112020 PIS Summary'!B23) -> 59837.31 | D23: =+D20+E20+J20+K20 -> 62351.76 | E23: =C23 -> 59837.31 | F23: =0.5*E23 -> 29918.655 | G23: =+D23+F23 -> 92270.415 | H23: 0.00356083 | I23: 0.001645
A24: 2020 | B24: 2 | C24: =SUMIFS('CR CWIP query 112020 ISD'!$H:$H,'CR CWIP query 112020 ISD'!$L:$L,'112020 PIS Summary'!A24,'CR CWIP query 112020 ISD'!$K:$K,'112020 PIS Summary'!B24) -> 47963.54 | D24: =+D23+E23+J23+K23 -> 122189.07 | E24: 47963.54 | F24: =0.5*E24 -> 23981.77 | G24: =+D24+F24 -> 146170.84 | H24: 0.00356083 | I24: 0.001645
A25: 2020 | B25: 3 | C25: =SUMIFS('CR CWIP query 112020 ISD'!$H:$H,'CR CWIP query 112020 ISD'!$L:$L,'112020 PIS Summary'!A25,'CR CWIP query 112020 ISD'!$K:$K,'112020 PIS Summary'!B25) -> 4748.69 | D25: 170152.61 | E25: 4748.69 | F25: 2374.345 | G25: 172526.955 | H25: 0.00356083 | I25: 0.001645
A26: 2020 | B26: 4 | C26: =SUMIFS('CR CWIP query 112020 ISD'!$H:$H,'CR CWIP query 112020 ISD'!$L:$L,'112020 PIS Summary'!A26,'CR CWIP query 112020 ISD'!$K:$K,'112020 PIS Summary'!B26) -> 120708.4 | D26: 174901.3 | E26: =C26 -> 120708.4 | F26: =0.5*E26 -> 60354.2 | G26: =+D26+F26 -> 235255.5 | H26: 0.00356083 | I26: 0.001645
A27: 2020 | B27: 5 | C27: =SUMIFS('CR CWIP query 112020 ISD'!$H:$H,'CR CWIP query 112020 ISD'!$L:$L,'112020 PIS Summary'!A27,'CR CWIP query 112020 ISD'!$K:$K,'112020 PIS Summary'!B27) -> -59261.98 | D27: 295609.7 | E27: =C27 -> -59261.98 | F27: =0.5*E27 -> -29630.99 | G27: =+D27+F27 -> 265978.71 | H27: 0.00356083 | I27: 0.001645
A28: 2020 | B28: 6 | C28: =SUMIFS('CR CWIP query 112020 ISD'!$H:$H,'CR CWIP query 112020 ISD'!$L:$L,'112020 PIS Summary'!A28,'CR CWIP query 112020 ISD'!$K:$K,'112020 PIS Summary'!B28) -> 10493.99 | D28: 236347.72 | E28: 10493.99 | F28: 5246.995 | G28: 241594.715 | H28: 0.00356083 | I28: 0.001645
A29: 2020 | B29: 7 | C29: =SUMIFS('CR CWIP query 112020 ISD'!$H:$H,'CR CWIP query 112020 ISD'!$L:$L,'112020 PIS Summary'!A29,'CR CWIP query 112020 ISD'!$K:$K,'112020 PIS Summary'!B29) -> 643.78 | D29: 246841.71 | E29: 643.78 | F29: 321.89 | G29: 247163.6 | H29: 0.00356083 | I29: 0.001645
A30: 2020 | B30: 8 | C30: =SUMIFS('CR CWIP query 112020 ISD'!$H:$H,'CR CWIP query 112020 ISD'!$L:$L,'112020 PIS Summary'!A30,'CR CWIP query 112020 ISD'!$K:$K,'112020 PIS Summary'!B30) -> 47448.28 | D30: 247485.49 | E30: 47448.28 | F30: 23724.14 | G30: 271209.63 | H30: 0.00356083 | I30: 0.001645
A31: 2020 | B31: 9 | C31: =SUMIFS('CR CWIP query 112020 ISD'!$H:$H,'CR CWIP query 112020 ISD'!$L:$L,'112020 PIS Summary'!A31,'CR CWIP query 112020 ISD'!$K:$K,'112020 PIS Summary'!B31) -> 27307.33 | D31: 294933.77 | E31: 27307.33 | F31: 13653.665 | G31: 308587.435 | H31: 0.00356083 | I31: 0.001645
A32: 2020 | B32: 10 | C32: =SUMIFS('CR CWIP query 112020 ISD'!$H:$H,'CR CWIP query 112020 ISD'!$L:$L,'112020 PIS Summary'!A32,'CR CWIP query 112020 ISD'!$K:$K,'112020 PIS Summary'!B32) -> 56294.66 | D32: 322241.1 | E32: 56294.66 | F32: 28147.33 | G32: 350388.43 | H32: 0.00356083 | I32: 0.001645
A33: 2020 | B33: 11 | C33: =SUMIFS('CR CWIP query 112020 ISD'!$H:$H,'CR CWIP query 112020 ISD'!$L:$L,'112020 PIS Summary'!A33,'CR CWIP query 112020 ISD'!$K:$K,'112020 PIS Summary'!B33) -> 40029.02 | D33: 378535.76 | E33: 40029.02 | F33: 20014.51 | G33: 398550.27 | H33: 0.00356083 | I33: 0.001645 | J33: =ROUND($G33*H33,2)*0.5 -> 709.585 | K33: =ROUND($G33*I33,2)*0.5 -> 327.81 | L33: =+J33-K33 -> 381.775
A34: 2020 | B34: 12 | C34: =SUMIFS('CR CWIP query 112020 ISD'!$H:$H,'CR CWIP query 112020 ISD'!$L:$L,'112020 PIS Summary'!A34,'CR CWIP query 112020 ISD'!$K:$K,'112020 PIS Summary'!B34) -> 127662.74 | D34: 419602.175 | E34: =C34 -> 127662.74 | F34: =0.5*E34 -> 63831.37 | G34: =+D34+F34 -> 483433.545 | H34: 0.00356083 | I34: 0.001645 | J34: =ROUND($G34*H34,2) -> 1721.42 | K34: =ROUND($G34*I34,2) -> 795.25 | L34: =+J34-K34 -> 926.17
A35: 20 Total | C35: =SUM(C23:C34) -> 483875.76 | E35: =SUM(E24:E34) -> 424038.45 | J35: =SUM(J23:J34) -> 2431.005 | K35: =SUM(K23:K34) -> 1123.06 | L35: 1307.945
A37: 2021 | B37: 1 | C37: =SUMIFS('CR CWIP query 112020 ISD'!$H:$H,'CR CWIP query 112020 ISD'!$L:$L,'112020 PIS Summary'!A37,'CR CWIP query 112020 ISD'!$K:$K,'112020 PIS Summary'!B37) -> -220.97 | D37: =+D34+E34+J34+K34 -> 549781.585 | E37: =C37 -> -220.97 | F37: =0.5*E37 -> -110.485 | G37: =+D37+F37 -> 549671.1 | H37: 0.00356083 | I37: 0.001645 | J37: =ROUND($G37*H37,2) -> 1957.29 | K37: 904.21 | L37: =+J37-K37 -> 1053.08
A38: 2021 | B38: 2 | C38: =SUMIFS('CR CWIP query 112020 ISD'!$H:$H,'CR CWIP query 112020 ISD'!$L:$L,'112020 PIS Summary'!A38,'CR CWIP query 112020 ISD'!$K:$K,'112020 PIS Summary'!B38) -> 0 | D38: =+D37+E37+J37+K37 -> 552422.115 | E38: 0 | F38: =0.5*E38 -> 0 | G38: =+D38+F38 -> 552422.115 | H38: 0.00356083 | I38: 0.001645 | J38: =ROUND($G38*H38,2) -> 1967.08 | K38: =ROUND($G38*I38,2) -> 908.73 | L38: 1058.35
A39: 2021 | B39: 3 | C39: =SUMIFS('CR CWIP query 112020 ISD'!$H:$H,'CR CWIP query 112020 ISD'!$L:$L,'112020 PIS Summary'!A39,'CR CWIP query 112020 ISD'!$K:$K,'112020 PIS Summary'!B39) -> 0 | D39: =+D38+E38+J38+K38 -> 555297.925 | E39: 0 | F39: 0 | G39: 555297.925 | H39: 0.00356083 | I39: 0.001645 | J39: 1977.32 | K39: 913.47 | L39: =+J39-K39 -> 1063.85
A40: 2021 | B40: 4 | C40: =SUMIFS('CR CWIP query 112020 ISD'!$H:$H,'CR CWIP query 112020 ISD'!$L:$L,'112020 PIS Summary'!A40,'CR CWIP query 112020 ISD'!$K:$K,'112020 PIS Summary'!B40) -> 0 | D40: =+D39+E39+J39+K39 -> 558188.715 | E40: 0 | F40: 0 | G40: 558188.715 | H40: 0.00356083 | I40: 0.001645 | J40: 1987.62 | K40: 918.22 | L40: 1069.4
A41: 2021 | B41: 5 | C41: =SUMIFS('CR CWIP query 112020 ISD'!$H:$H,'CR CWIP query 112020 ISD'!$L:$L,'112020 PIS Summary'!A41,'CR CWIP query 112020 ISD'!$K:$K,'112020 PIS Summary'!B41) -> 0 | D41: =+D40+E40+J40+K40 -> 561094.555 | E41: 0 | F41: 0 | G41: 561094.555 | H41: 0.00356083 | I41: 0.001645 | J41: 1997.96 | K41: 923 | L41: 1074.96
A42: 2021 | B42: 6 | C42: =SUMIFS('CR CWIP query 112020 ISD'!$H:$H,'CR CWIP query 112020 ISD'!$L:$L,'112020 PIS Summary'!A42,'CR CWIP query 112020 ISD'!$K:$K,'112020 PIS Summary'!B42) -> 0 | D42: 564015.515 | E42: 0 | F42: 0 | G42: 564015.515 | H42: 0.00356083 | I42: 0.001645 | J42: 2008.36 | K42: 927.81 | L42: 1080.55
A43: 2021 | B43: 7 | C43: =SUMIFS('CR CWIP query 112020 ISD'!$H:$H,'CR CWIP query 112020 ISD'!$L:$L,'112020 PIS Summary'!A43,'CR CWIP query 112020 ISD'!$K:$K,'112020 PIS Summary'!B43) -> 0 | D43: 566951.685 | E43: 0 | F43: 0 | G43: 566951.685 | H43: 0.00356083 | I43: 0.001645 | J43: 2018.82 | K43: 932.64 | L43: 1086.18
A44: 2021 | B44: 8 | C44: =SUMIFS('CR CWIP query 112020 ISD'!$H:$H,'CR CWIP query 112020 ISD'!$L:$L,'112020 PIS Summary'!A44,'CR CWIP query 112020 ISD'!$K:$K,'112020 PIS Summary'!B44) -> 0 | D44: 569903.145 | E44: 0 | F44: 0 | G44: 569903.145 | H44: 0.00356083 | I44: 0.001645 | J44: 2029.33 | K44: 937.49 | L44: 1091.84
A45: 2021 | B45: 9 | C45: =SUMIFS('CR CWIP query 112020 ISD'!$H:$H,'CR CWIP query 112020 ISD'!$L:$L,'112020 PIS Summary'!A45,'CR CWIP query 112020 ISD'!$K:$K,'112020 PIS Summary'!B45) -> 0 | D45: 572869.965 | E45: 0 | F45: 0 | G45: 572869.965 | H45: 0.00356083 | I45: 0.001645 | J45: 2039.89 | K45: 942.37 | L45: 1097.52
A46: 2021 | B46: 10 | C46: =SUMIFS('CR CWIP query 112020 ISD'!$H:$H,'CR CWIP query 112020 ISD'!$L:$L,'112020 PIS Summary'!A46,'CR CWIP query 112020 ISD'!$K:$K,'112020 PIS Summary'!B46) -> 0 | D46: 575852.225 | E46: 0 | F46: 0 | G46: 575852.225 | H46: 0.00356083 | I46: 0.001645 | J46: 2050.51 | K46: 947.28 | L46: 1103.23
A47: 2021 | B47: 11 | C47: =SUMIFS('CR CWIP query 112020 ISD'!$H:$H,'CR CWIP query 112020 ISD'!$L:$L,'112020 PIS Summary'!A47,'CR CWIP query 112020 ISD'!$K:$K,'112020 PIS Summary'!B47) -> 0 | D47: 578850.015 | E47: 0 | F47: 0 | G47: 578850.015 | H47: 0.00356083 | I47: 0.001645 | J47: 2061.19 | K47: 952.21 | L47: 1108.98
A48: 2021 | B48: 12 | C48: =SUMIFS('CR CWIP query 112020 ISD'!$H:$H,'CR CWIP query 112020 ISD'!$L:$L,'112020 PIS Summary'!A48,'CR CWIP query 112020 ISD'!$K:$K,'112020 PIS Summary'!B48) -> 14347.46 | D48: 581863.415 | E48: 14347.46 | F48: 7173.73 | G48: 589037.145 | H48: 0.00356083 | I48: 0.001645 | J48: 2097.46 | K48: 968.97 | L48: 1128.49
A49: 21 Total | C49: =SUM(C37:C48) -> 14126.49 | E49: =SUM(E37:E48) -> 14126.49 | J49: =SUM(J37:J48) -> 24192.83 | K49: =SUM(K37:K48) -> 11176.4 | L49: =SUM(L37:L48) -> 13016.43
A51: 2022 | B51: 1 | C51: =SUMIFS('CR CWIP query 112020 ISD'!$H:$H,'CR CWIP query 112020 ISD'!$L:$L,'112020 PIS Summary'!A51,'CR CWIP query 112020 ISD'!$K:$K,'112020 PIS Summary'!B51) -> 0 | D51: =+D48+E48+J48+K48 -> 599277.305 | E51: =C51 -> 0 | F51: =0.5*E51 -> 0 | G51: =+D51+F51 -> 599277.305 | H51: 0.00356083 | I51: 0.001645 | J51: =ROUND($G51*H51,2) -> 2133.92 | K51: =ROUND($G51*I51,2) -> 985.81 | L51: =+J51-K51 -> 1148.11
A52: 2022 | B52: 2 | C52: =SUMIFS('CR CWIP query 112020 ISD'!$H:$H,'CR CWIP query 112020 ISD'!$L:$L,'112020 PIS Summary'!A52,'CR CWIP query 112020 ISD'!$K:$K,'112020 PIS Summary'!B52) -> 0 | D52: =+D51+E51+J51+K51 -> 602397.035 | E52: 0 | F52: =0.5*E52 -> 0 | G52: =+D52+F52 -> 602397.035 | H52: 0.00356083 | I52: 0.001645 | J52: =ROUND($G52*H52,2) -> 2145.03 | K52: =ROUND($G52*I52,2) -> 990.94 | L52: =+J52-K52 -> 1154.09
A53: 2022 | B53: 3 | C53: =SUMIFS('CR CWIP query 112020 ISD'!$H:$H,'CR CWIP query 112020 ISD'!$L:$L,'112020 PIS Summary'!A53,'CR CWIP query 112020 ISD'!$K:$K,'112020 PIS Summary'!B53) -> 0 | D53: =+D52+E52+J52+K52 -> 605533.005 | E53: 0 | F53: 0 | G53: 605533.005 | H53: 0.00356083 | I53: 0.001645 | J53: =ROUND($G53*H53,2) -> 2156.2 | K53: =ROUND($G53*I53,2) -> 996.1 | L53: 1160.1
A54: 2022 | B54: 4 | C54: =SUMIFS('CR CWIP query 112020 ISD'!$H:$H,'CR CWIP query 112020 ISD'!$L:$L,'112020 PIS Summary'!A54,'CR CWIP query 112020 ISD'!$K:$K,'112020 PIS Summary'!B54) -> 0 | D54: =+D53+E53+J53+K53 -> 608685.305 | E54: 0 | F54: 0 | G54: 608685.305 | H54: 0.00356083 | I54: 0.001645 | J54: =ROUND($G54*H54,2) -> 2167.42 | K54: 1001.29 | L54: =+J54-K54 -> 1166.13
A55: 2022 | B55: 5 | C55: =SUMIFS('CR CWIP query 112020 ISD'!$H:$H,'CR CWIP query 112020 ISD'!$L:$L,'112020 PIS Summary'!A55,'CR CWIP query 112020 ISD'!$K:$K,'112020 PIS Summary'!B55) -> 0 | D55: =+D54+E54+J54+K54 -> 611854.015 | E55: 0 | F55: 0 | G55: 611854.015 | H55: 0.00356083 | I55: 0.001645 | J55: 2178.71 | K55: 1006.5 | L55: 1172.21
A56: 2022 | B56: 6 | C56: =SUMIFS('CR CWIP query 112020 ISD'!$H:$H,'CR CWIP query 112020 ISD'!$L:$L,'112020 PIS Summary'!A56,'CR CWIP query 112020 ISD'!$K:$K,'112020 PIS Summary'!B56) -> 0 | D56: 615039.225 | E56: 0 | F56: 0 | G56: 615039.225 | H56: 0.00356083 | I56: 0.001645 | J56: 2190.05 | K56: 1011.74 | L56: 1178.31
A57: 2022 | B57: 7 | C57: =SUMIFS('CR CWIP query 112020 ISD'!$H:$H,'CR CWIP query 112020 ISD'!$L:$L,'112020 PIS Summary'!A57,'CR CWIP query 112020 ISD'!$K:$K,'112020 PIS Summary'!B57) -> 0 | D57: 618241.015 | E57: 0 | F57: 0 | G57: 618241.015 | H57: 0.00356083 | I57: 0.001645 | J57: 2201.45 | K57: 1017.01 | L57: 1184.44
A58: 2022 | B58: 8 | C58: =SUMIFS('CR CWIP query 112020 ISD'!$H:$H,'CR CWIP query 112020 ISD'!$L:$L,'112020 PIS Summary'!A58,'CR CWIP query 112020 ISD'!$K:$K,'112020 PIS Summary'!B58) -> 0 | D58: 621459.475 | E58: 0 | F58: 0 | G58: 621459.475 | H58: 0.00356083 | I58: 0.001645 | J58: =ROUND($G58*H58,2) -> 2212.91 | K58: =ROUND($G58*I58,2) -> 1022.3 | L58: =+J58-K58 -> 1190.61
A59: 2022 | B59: 9 | C59: =SUMIFS('CR CWIP query 112020 ISD'!$H:$H,'CR CWIP query 112020 ISD'!$L:$L,'112020 PIS Summary'!A59,'CR CWIP query 112020 ISD'!$K:$K,'112020 PIS Summary'!B59) -> 0 | D59: 624694.685 | E59: 0 | F59: 0 | G59: 624694.685 | H59: 0.00356083 | I59: 0.001645 | J59: 2224.43 | K59: 1027.62 | L59: 1196.81
A60: 2022 | B60: 10 | C60: =SUMIFS('CR CWIP query 112020 ISD'!$H:$H,'CR CWIP query 112020 ISD'!$L:$L,'112020 PIS Summary'!A60,'CR CWIP query 112020 ISD'!$K:$K,'112020 PIS Summary'!B60) -> 0 | D60: 627946.735 | E60: 0 | F60: 0 | G60: 627946.735 | H60: 0.00356083 | I60: 0.001645 | J60: 2236.01 | K60: 1032.97 | L60: 1203.04
A61: 2022 | B61: 11 | C61: =SUMIFS('CR CWIP query 112020 ISD'!$H:$H,'CR CWIP query 112020 ISD'!$L:$L,'112020 PIS Summary'!A61,'CR CWIP query 112020 ISD'!$K:$K,'112020 PIS Summary'!B61) -> 0 | D61: 631215.715 | E61: 0 | F61: 0 | G61: 631215.715 | H61: 0.00356083 | I61: 0.001645
A62: 2022 | B62: 12 | C62: =SUMIFS('CR CWIP query 112020 ISD'!$H:$H,'CR CWIP query 112020 ISD'!$L:$L,'112020 PIS Summary'!A62,'CR CWIP query 112020 ISD'!$K:$K,'112020 PIS Summary'!B62) -> 0 | D62: 631215.715 | E62: 0 | F62: 0 | G62: 631215.715 | H62: 0.00356083 | I62: 0.001645
A63: 22 Total | C63: =SUM(C51:C62) -> 0 | E63: =SUM(E51:E62) -> 0 | J63: =SUM(J51:J62) -> 21846.13 | K63: =SUM(K51:K62) -> 10092.28 | L63: =SUM(L51:L62) -> 11753.85

Sheet 122020 PIS Summary (hidden)
A1: Indiana American Water
A2: Post In Service AFUDC Calc
A3: 12/1/2020- | J3: =SUM('CR query CWIP only 122020 ISD'!H:H)+J5+K5-G48 -> -4.656612873e-10 | K3: check
J5: =SUM(J21,J35,J37:J47) -> 36932.57 | K5: =SUM(K21,K35,K37:K47) -> 17061.77 | L5: =SUM(L21,L35,L37:L47) -> 19870.8
A7: Year | B7: Month | C7: Grand Total CWIP | D7: Beginning AFUDC Base | E7: Current Month Charges | F7: 50% Charge Current Charge | G7: Current Base | H7: PIS AFUDC Monthly Equity Rate | I7: PIS AFUDC Monthly Debt Rate | J7: PIS AFUDC Equity to be Recorded | K7: PIS AFUDC Debt to be Recorded | L7: AFUDC PIS Equity Reduction to record
A9: 2020 | B9: 1 | H9: 0.00356083 | I9: 0.001645
A10: 2020 | B10: 2 | C10: =SUMIFS('CR query CWIP only 122020 ISD'!$H:$H,'CR query CWIP only 122020 ISD'!$L:$L,'122020 PIS Summary'!A10,'CR query CWIP only 122020 ISD'!$K:$K,'122020 PIS Summary'!B10) -> 0 | D10: =+D9+E9 -> 0 | E10: =C10 -> 0 | F10: =0.5*E10 -> 0 | G10: =+D10+F10 -> 0 | H10: 0.00356083 | I10: 0.001645
A11: 2020 | B11: 3 | C11: =SUMIFS('CR query CWIP only 122020 ISD'!$H:$H,'CR query CWIP only 122020 ISD'!$L:$L,'122020 PIS Summary'!A11,'CR query CWIP only 122020 ISD'!$K:$K,'122020 PIS Summary'!B11) -> 0 | D11: 0 | E11: 0 | F11: 0 | G11: 0 | H11: 0.00356083 | I11: 0.001645
A12: 2020 | B12: 4 | C12: =SUMIFS('CR query CWIP only 122020 ISD'!$H:$H,'CR query CWIP only 122020 ISD'!$L:$L,'122020 PIS Summary'!A12,'CR query CWIP only 122020 ISD'!$K:$K,'122020 PIS Summary'!B12) -> 23232.85 | D12: =+D11+E11 -> 0 | E12: =C12 -> 23232.85 | F12: =0.5*E12 -> 11616.425 | G12: =+D12+F12 -> 11616.425 | H12: 0.00356083 | I12: 0.001645
A13: 2020 | B13: 5 | C13: =SUMIFS('CR query CWIP only 122020 ISD'!$H:$H,'CR query CWIP only 122020 ISD'!$L:$L,'122020 PIS Summary'!A13,'CR query CWIP only 122020 ISD'!$K:$K,'122020 PIS Summary'!B13) -> 5194.16 | D13: =+D12+E12 -> 23232.85 | E13: =C13 -> 5194.16 | F13: =0.5*E13 -> 2597.08 | G13: =+D13+F13 -> 25829.93 | H13: 0.00356083 | I13: 0.001645
A14: 2020 | B14: 6 | C14: =SUMIFS('CR query CWIP only 122020 ISD'!$H:$H,'CR query CWIP only 122020 ISD'!$L:$L,'122020 PIS Summary'!A14,'CR query CWIP only 122020 ISD'!$K:$K,'122020 PIS Summary'!B14) -> 4872.4 | D14: 28427.01 | E14: 4872.4 | F14: 2436.2 | G14: 30863.21 | H14: 0.00356083 | I14: 0.001645
A15: 2020 | B15: 7 | C15: =SUMIFS('CR query CWIP only 122020 ISD'!$H:$H,'CR query CWIP only 122020 ISD'!$L:$L,'122020 PIS Summary'!A15,'CR query CWIP only 122020 ISD'!$K:$K,'122020 PIS Summary'!B15) -> 24323.53 | D15: 33299.41 | E15: 24323.53 | F15: 12161.765 | G15: 45461.175 | H15: 0.00356083 | I15: 0.001645
A16: 2020 | B16: 8 | C16: =SUMIFS('CR query CWIP only 122020 ISD'!$H:$H,'CR query CWIP only 122020 ISD'!$L:$L,'122020 PIS Summary'!A16,'CR query CWIP only 122020 ISD'!$K:$K,'122020 PIS Summary'!B16) -> 40115.5 | D16: 57622.94 | E16: 40115.5 | F16: 20057.75 | G16: 77680.69 | H16: 0.00356083 | I16: 0.001645
A17: 2020 | B17: 9 | C17: =SUMIFS('CR query CWIP only 122020 ISD'!$H:$H,'CR query CWIP only 122020 ISD'!$L:$L,'122020 PIS Summary'!A17,'CR query CWIP only 122020 ISD'!$K:$K,'122020 PIS Summary'!B17) -> 6099.92 | D17: 97738.44 | E17: 6099.92 | F17: 3049.96 | G17: 100788.4 | H17: 0.00356083 | I17: 0.001645
A18: 2020 | B18: 10 | C18: =SUMIFS('CR query CWIP only 122020 ISD'!$H:$H,'CR query CWIP only 122020 ISD'!$L:$L,'122020 PIS Summary'!A18,'CR query CWIP only 122020 ISD'!$K:$K,'122020 PIS Summary'!B18) -> 45839.36 | D18: 103838.36 | E18: 45839.36 | F18: 22919.68 | G18: 126758.04 | H18: 0.00356083 | I18: 0.001645
A19: 2020 | B19: 11 | C19: =SUMIFS('CR query CWIP only 122020 ISD'!$H:$H,'CR query CWIP only 122020 ISD'!$L:$L,'122020 PIS Summary'!A19,'CR query CWIP only 122020 ISD'!$K:$K,'122020 PIS Summary'!B19) -> 83934.02 | D19: 149677.72 | E19: 83934.02 | F19: 41967.01 | G19: 191644.73 | H19: 0.00356083 | I19: 0.001645
A20: 2020 | B20: 12 | C20: =SUMIFS('CR query CWIP only 122020 ISD'!$H:$H,'CR query CWIP only 122020 ISD'!$L:$L,'122020 PIS Summary'!A20,'CR query CWIP only 122020 ISD'!$K:$K,'122020 PIS Summary'!B20) -> 204482.64 | D20: =+D19+E19 -> 233611.74 | E20: =C20 -> 204482.64 | F20: =0.5*E20 -> 102241.32 | G20: =+D20+F20 -> 335853.06 | H20: 0.00356083 | I20: 0.001645 | J20: =ROUND($G20*H20,2)*0.5 -> 597.96 | K20: =ROUND($G20*I20,2)*0.5 -> 276.24 | L20: =+J20-K20 -> 321.72
A21: 20 Total | C21: =SUM(C10:C20) -> 438094.38 | E21: =SUM(E10:E20) -> 438094.38 | J21: =SUM(J12:J20) -> 597.96 | K21: =SUM(K12:K20) -> 276.24 | L21: =SUM(L12:L20) -> 321.72
A23: 2021 | B23: 1 | C23: =SUMIFS('CR query CWIP only 122020 ISD'!$H:$H,'CR query CWIP only 122020 ISD'!$L:$L,'122020 PIS Summary'!A23,'CR query CWIP only 122020 ISD'!$K:$K,'122020 PIS Summary'!B23) -> 0 | D23: =+D20+E20+J20+K20 -> 438968.58 | E23: =C23 -> 0 | F23: =0.5*E23 -> 0 | G23: =+D23+F23 -> 438968.58 | H23: 0.00356083 | I23: 0.001645 | J23: =ROUND($G23*H23,2) -> 1563.09 | K23: =ROUND($G23*I23,2) -> 722.1 | L23: =+J23-K23 -> 840.99
A24: 2021 | B24: 2 | C24: =SUMIFS('CR query CWIP only 122020 ISD'!$H:$H,'CR query CWIP only 122020 ISD'!$L:$L,'122020 PIS Summary'!A24,'CR query CWIP only 122020 ISD'!$K:$K,'122020 PIS Summary'!B24) -> 0 | D24: =+D23+E23+J23+K23 -> 441253.77 | E24: 0 | F24: =0.5*E24 -> 0 | G24: =+D24+F24 -> 441253.77 | H24: 0.00356083 | I24: 0.001645 | J24: 1571.23 | K24: 725.86 | L24: 845.37
A25: 2021 | B25: 3 | C25: =SUMIFS('CR query CWIP only 122020 ISD'!$H:$H,'CR query CWIP only 122020 ISD'!$L:$L,'122020 PIS Summary'!A25,'CR query CWIP only 122020 ISD'!$K:$K,'122020 PIS Summary'!B25) -> 0 | D25: =+D24+E24+J24+K24 -> 443550.86 | E25: 0 | F25: 0 | G25: =+D25+F25 -> 443550.86 | H25: 0.00356083 | I25: 0.001645 | J25: 1579.41 | K25: 729.64 | L25: 849.77
A26: 2021 | B26: 4 | C26: =SUMIFS('CR query CWIP only 122020 ISD'!$H:$H,'CR query CWIP only 122020 ISD'!$L:$L,'122020 PIS Summary'!A26,'CR query CWIP only 122020 ISD'!$K:$K,'122020 PIS Summary'!B26) -> 0 | D26: 445859.91 | E26: 0 | F26: 0 | G26: 445859.91 | H26: 0.00356083 | I26: 0.001645 | J26: 1587.63 | K26: 733.44 | L26: 854.19
A27: 2021 | B27: 5 | C27: =SUMIFS('CR query CWIP only 122020 ISD'!$H:$H,'CR query CWIP only 122020 ISD'!$L:$L,'122020 PIS Summary'!A27,'CR query CWIP only 122020 ISD'!$K:$K,'122020 PIS Summary'!B27) -> 0 | D27: 448180.98 | E27: 0 | F27: 0 | G27: 448180.98 | H27: 0.00356083 | I27: 0.001645 | J27: 1595.9 | K27: 737.26 | L27: 858.64
A28: 2021 | B28: 6 | C28: =SUMIFS('CR query CWIP only 122020 ISD'!$H:$H,'CR query CWIP only 122020 ISD'!$L:$L,'122020 PIS Summary'!A28,'CR query CWIP only 122020 ISD'!$K:$K,'122020 PIS Summary'!B28) -> 0 | D28: 450514.14 | E28: 0 | F28: 0 | G28: 450514.14 | H28: 0.00356083 | I28: 0.001645 | J28: 1604.2 | K28: 741.1 | L28: 863.1
A29: 2021 | B29: 7 | C29: =SUMIFS('CR query CWIP only 122020 ISD'!$H:$H,'CR query CWIP only 122020 ISD'!$L:$L,'122020 PIS Summary'!A29,'CR query CWIP only 122020 ISD'!$K:$K,'122020 PIS Summary'!B29) -> 0 | D29: 452859.44 | E29: 0 | F29: 0 | G29: 452859.44 | H29: 0.00356083 | I29: 0.001645 | J29: 1612.56 | K29: 744.95 | L29: 867.61
A30: 2021 | B30: 8 | C30: =SUMIFS('CR query CWIP only 122020 ISD'!$H:$H,'CR query CWIP only 122020 ISD'!$L:$L,'122020 PIS Summary'!A30,'CR query CWIP only 122020 ISD'!$K:$K,'122020 PIS Summary'!B30) -> 0 | D30: 455216.95 | E30: 0 | F30: 0 | G30: 455216.95 | H30: 0.00356083 | I30: 0.001645 | J30: 1620.95 | K30: 748.83 | L30: 872.12
A31: 2021 | B31: 9 | C31: =SUMIFS('CR query CWIP only 122020 ISD'!$H:$H,'CR query CWIP only 122020 ISD'!$L:$L,'122020 PIS Summary'!A31,'CR query CWIP only 122020 ISD'!$K:$K,'122020 PIS Summary'!B31) -> 0 | D31: 457586.73 | E31: 0 | F31: 0 | G31: 457586.73 | H31: 0.00356083 | I31: 0.001645 | J31: 1629.39 | K31: 752.73 | L31: 876.66
A32: 2021 | B32: 10 | C32: =SUMIFS('CR query CWIP only 122020 ISD'!$H:$H,'CR query CWIP only 122020 ISD'!$L:$L,'122020 PIS Summary'!A32,'CR query CWIP only 122020 ISD'!$K:$K,'122020 PIS Summary'!B32) -> 0 | D32: =+D31+E31+J31+K31 -> 459968.85 | E32: 0 | F32: 0 | G32: 459968.85 | H32: 0.00356083 | I32: 0.001645 | J32: 1637.87 | K32: 756.65 | L32: 881.22
A33: 2021 | B33: 11 | C33: =SUMIFS('CR query CWIP only 122020 ISD'!$H:$H,'CR query CWIP only 122020 ISD'!$L:$L,'122020 PIS Summary'!A33,'CR query CWIP only 122020 ISD'!$K:$K,'122020 PIS Summary'!B33) -> 0 | D33: 462363.37 | E33: 0 | F33: 0 | G33: 462363.37 | H33: 0.00356083 | I33: 0.001645 | J33: 1646.4 | K33: 760.59 | L33: 885.81
A34: 2021 | B34: 12 | C34: =SUMIFS('CR query CWIP only 122020 ISD'!$H:$H,'CR query CWIP only 122020 ISD'!$L:$L,'122020 PIS Summary'!A34,'CR query CWIP only 122020 ISD'!$K:$K,'122020 PIS Summary'!B34) -> 0 | D34: 464770.36 | E34: 0 | F34: 0 | G34: 464770.36 | H34: 0.00356083 | I34: 0.001645 | J34: 1654.97 | K34: 764.55 | L34: 890.42
A35: 21 Total | C35: =SUM(C23:C34) -> 0 | E35: =SUM(E23:E34) -> 0 | J35: =SUM(J23:J34) -> 19303.6 | K35: =SUM(K23:K34) -> 8917.7 | L35: =SUM(L23:L34) -> 10385.9
A37: 2022 | B37: 1 | C37: =SUMIFS('CR query CWIP only 122020 ISD'!$H:$H,'CR query CWIP only 122020 ISD'!$L:$L,'122020 PIS Summary'!A37,'CR query CWIP only 122020 ISD'!$K:$K,'122020 PIS Summary'!B37) -> 0 | D37: =+D34+E34+J34+K34 -> 467189.88 | E37: =C37 -> 0 | F37: =0.5*E37 -> 0 | G37: =+D37+F37 -> 467189.88 | H37: 0.00356083 | I37: 0.001645 | J37: =ROUND($G37*H37,2) -> 1663.58 | K37: =ROUND($G37*I37,2) -> 768.53 | L37: =+J37-K37 -> 895.05
A38: 2022 | B38: 2 | C38: =SUMIFS('CR query CWIP only 122020 ISD'!$H:$H,'CR query CWIP only 122020 ISD'!$L:$L,'122020 PIS Summary'!A38,'CR query CWIP only 122020 ISD'!$K:$K,'122020 PIS Summary'!B38) -> 0 | D38: =+D37+E37+J37+K37 -> 469621.99 | E38: 0 | F38: =0.5*E38 -> 0 | G38: =+D38+F38 -> 469621.99 | H38: 0.00356083 | I38: 0.001645 | J38: =ROUND($G38*H38,2) -> 1672.24 | K38: =ROUND($G38*I38,2) -> 772.53 | L38: =+J38-K38 -> 899.71
A39: 2022 | B39: 3 | C39: =SUMIFS('CR query CWIP only 122020 ISD'!$H:$H,'CR query CWIP only 122020 ISD'!$L:$L,'122020 PIS Summary'!A39,'CR query CWIP only 122020 ISD'!$K:$K,'122020 PIS Summary'!B39) -> 0 | D39: =+D38+E38+J38+K38 -> 472066.76 | E39: 0 | F39: 0 | G39: 472066.76 | H39: 0.00356083 | I39: 0.001645 | J39: 1680.95 | K39: 776.55 | L39: 904.4
A40: 2022 | B40: 4 | C40: =SUMIFS('CR query CWIP only 122020 ISD'!$H:$H,'CR query CWIP only 122020 ISD'!$L:$L,'122020 PIS Summary'!A40,'CR query CWIP only 122020 ISD'!$K:$K,'122020 PIS Summary'!B40) -> 0 | D40: 474524.26 | E40: 0 | F40: 0 | G40: 474524.26 | H40: 0.00356083 | I40: 0.001645 | J40: =ROUND($G40*H40,2) -> 1689.7 | K40: 780.59 | L40: 909.11
A41: 2022 | B41: 5 | C41: =SUMIFS('CR query CWIP only 122020 ISD'!$H:$H,'CR query CWIP only 122020 ISD'!$L:$L,'122020 PIS Summary'!A41,'CR query CWIP only 122020 ISD'!$K:$K,'122020 PIS Summary'!B41) -> 0 | D41: 476994.55 | E41: 0 | F41: 0 | G41: 476994.55 | H41: 0.00356083 | I41: 0.001645 | J41: 1698.5 | K41: 784.66 | L41: 913.84
A42: 2022 | B42: 6 | C42: =SUMIFS('CR query CWIP only 122020 ISD'!$H:$H,'CR query CWIP only 122020 ISD'!$L:$L,'122020 PIS Summary'!A42,'CR query CWIP only 122020 ISD'!$K:$K,'122020 PIS Summary'!B42) -> 0 | D42: 479477.71 | E42: 0 | F42: 0 | G42: 479477.71 | H42: 0.00356083 | I42: 0.001645 | J42: 1707.34 | K42: 788.74 | L42: 918.6
A43: 2022 | B43: 7 | C43: =SUMIFS('CR query CWIP only 122020 ISD'!$H:$H,'CR query CWIP only 122020 ISD'!$L:$L,'122020 PIS Summary'!A43,'CR query CWIP only 122020 ISD'!$K:$K,'122020 PIS Summary'!B43) -> 0 | D43: 481973.79 | E43: 0 | F43: 0 | G43: 481973.79 | H43: 0.00356083 | I43: 0.001645 | J43: 1716.23 | K43: 792.85 | L43: 923.38
A44: 2022 | B44: 8 | C44: =SUMIFS('CR query CWIP only 122020 ISD'!$H:$H,'CR query CWIP only 122020 ISD'!$L:$L,'122020 PIS Summary'!A44,'CR query CWIP only 122020 ISD'!$K:$K,'122020 PIS Summary'!B44) -> 0 | D44: 484482.87 | E44: 0 | F44: 0 | G44: 484482.87 | H44: 0.00356083 | I44: 0.001645 | J44: =ROUND($G44*H44,2) -> 1725.16 | K44: =ROUND($G44*I44,2) -> 796.97 | L44: =+J44-K44 -> 928.19
A45: 2022 | B45: 9 | C45: =SUMIFS('CR query CWIP only 122020 ISD'!$H:$H,'CR query CWIP only 122020 ISD'!$L:$L,'122020 PIS Summary'!A45,'CR query CWIP only 122020 ISD'!$K:$K,'122020 PIS Summary'!B45) -> 0 | D45: 487005 | E45: 0 | F45: 0 | G45: 487005 | H45: 0.00356083 | I45: 0.001645 | J45: 1734.14 | K45: 801.12 | L45: 933.02
A46: 2022 | B46: 10 | C46: =SUMIFS('CR query CWIP only 122020 ISD'!$H:$H,'CR query CWIP only 122020 ISD'!$L:$L,'122020 PIS Summary'!A46,'CR query CWIP only 122020 ISD'!$K:$K,'122020 PIS Summary'!B46) -> 0 | D46: 489540.26 | E46: 0 | F46: 0 | G46: 489540.26 | H46: 0.00356083 | I46: 0.001645 | J46: 1743.17 | K46: 805.29 | L46: 937.88
A47: 2022 | B47: 11 | C47: =SUMIFS('CR query CWIP only 122020 ISD'!$H:$H,'CR query CWIP only 122020 ISD'!$L:$L,'122020 PIS Summary'!A47,'CR query CWIP only 122020 ISD'!$K:$K,'122020 PIS Summary'!B47) -> 0 | D47: 492088.72 | E47: 0 | F47: 0 | G47: 492088.72 | H47: 0.00356083 | I47: 0.001645
A48: 2022 | B48: 12 | C48: =SUMIFS('CR query CWIP only 122020 ISD'!$H:$H,'CR query CWIP only 122020 ISD'!$L:$L,'122020 PIS Summary'!A48,'CR query CWIP only 122020 ISD'!$K:$K,'122020 PIS Summary'!B48) -> 0 | D48: 492088.72 | E48: 0 | F48: 0 | G48: 492088.72 | H48: 0.00356083 | I48: 0.001645
A49: 22 Total | C49: =SUM(C37:C48) -> 0 | E49: =SUM(E37:E48) -> 0 | J49: =SUM(J37:J48) -> 17031.01 | K49: =SUM(K37:K48) -> 7867.83 | L49: =SUM(L37:L48) -> 9163.18

Sheet 012021 PIS Summary (hidden)
A1: Indiana American Water
A2: Post In Service AFUDC Calc
A3: 01/1/2021- | J3: =SUM('CR CWIP query 012021 ISD'!H:H)+J5+K5-G62 -> 0 | K3: check
J5: =SUM(J35,J49,J51:J61) -> 9100.135 | K5: =SUM(K35,K49,K51:K61) -> 4204.015 | L5: =SUM(L35,L49,L51:L61) -> 4896.12
A7: Year | B7: Month | C7: Grand Total CWIP | D7: Beginning AFUDC Base | E7: Current Month Charges | F7: 50% Charge Current Charge | G7: Current Base | H7: PIS AFUDC Monthly Equity Rate | I7: PIS AFUDC Monthly Debt Rate | J7: PIS AFUDC Equity to be Recorded | K7: PIS AFUDC Debt to be Recorded | L7: AFUDC PIS Equity Reduction to record
A9: 2019 | B9: 1 | C9: =SUMIFS('CR CWIP query 012021 ISD'!$H:$H,'CR CWIP query 012021 ISD'!$L:$L,'012021 PIS Summary'!A9,'CR CWIP query 012021 ISD'!$K:$K,'012021 PIS Summary'!B9) -> 0 | D9: =+D6+E6+J6+K6 -> 0 | E9: =C9 -> 0 | F9: =0.5*E9 -> 0 | G9: =+D9+F9 -> 0 | H9: 0.00356083 | I9: 0.001645
A10: 2019 | B10: 2 | C10: =SUMIFS('CR CWIP query 012021 ISD'!$H:$H,'CR CWIP query 012021 ISD'!$L:$L,'012021 PIS Summary'!A10,'CR CWIP query 012021 ISD'!$K:$K,'012021 PIS Summary'!B10) -> 0 | D10: =+D9+E9+J9+K9 -> 0 | E10: 0 | F10: =0.5*E10 -> 0 | G10: =+D10+F10 -> 0 | H10: 0.00356083 | I10: 0.001645
A11: 2019 | B11: 3 | C11: =SUMIFS('CR CWIP query 012021 ISD'!$H:$H,'CR CWIP query 012021 ISD'!$L:$L,'012021 PIS Summary'!A11,'CR CWIP query 012021 ISD'!$K:$K,'012021 PIS Summary'!B11) -> 0 | D11: 0 | E11: 0 | F11: 0 | G11: 0 | H11: 0.00356083 | I11: 0.001645
A12: 2019 | B12: 4 | C12: =SUMIFS('CR CWIP query 012021 ISD'!$H:$H,'CR CWIP query 012021 ISD'!$L:$L,'012021 PIS Summary'!A12,'CR CWIP query 012021 ISD'!$K:$K,'012021 PIS Summary'!B12) -> 0 | D12: 0 | E12: =C12 -> 0 | F12: =0.5*E12 -> 0 | G12: =+D12+F12 -> 0 | H12: 0.00356083 | I12: 0.001645
A13: 2019 | B13: 5 | C13: =SUMIFS('CR CWIP query 012021 ISD'!$H:$H,'CR CWIP query 012021 ISD'!$L:$L,'012021 PIS Summary'!A13,'CR CWIP query 012021 ISD'!$K:$K,'012021 PIS Summary'!B13) -> 0 | D13: 0 | E13: =C13 -> 0 | F13: =0.5*E13 -> 0 | G13: =+D13+F13 -> 0 | H13: 0.00356083 | I13: 0.001645
A14: 2019 | B14: 6 | C14: =SUMIFS('CR CWIP query 012021 ISD'!$H:$H,'CR CWIP query 012021 ISD'!$L:$L,'012021 PIS Summary'!A14,'CR CWIP query 012021 ISD'!$K:$K,'012021 PIS Summary'!B14) -> 0 | D14: 0 | E14: 0 | F14: 0 | G14: 0 | H14: 0.00356083 | I14: 0.001645
A15: 2019 | B15: 7 | C15: =SUMIFS('CR CWIP query 012021 ISD'!$H:$H,'CR CWIP query 012021 ISD'!$L:$L,'012021 PIS Summary'!A15,'CR CWIP query 012021 ISD'!$K:$K,'012021 PIS Summary'!B15) -> 0 | D15: 0 | E15: 0 | F15: 0 | G15: 0 | H15: 0.00356083 | I15: 0.001645
A16: 2019 | B16: 8 | C16: =SUMIFS('CR CWIP query 012021 ISD'!$H:$H,'CR CWIP query 012021 ISD'!$L:$L,'012021 PIS Summary'!A16,'CR CWIP query 012021 ISD'!$K:$K,'012021 PIS Summary'!B16) -> 0 | D16: 0 | E16: 0 | F16: 0 | G16: 0 | H16: 0.00356083 | I16: 0.001645
A17: 2019 | B17: 9 | C17: =SUMIFS('CR CWIP query 012021 ISD'!$H:$H,'CR CWIP query 012021 ISD'!$L:$L,'012021 PIS Summary'!A17,'CR CWIP query 012021 ISD'!$K:$K,'012021 PIS Summary'!B17) -> 0 | D17: 0 | E17: 0 | F17: 0 | G17: 0 | H17: 0.00356083 | I17: 0.001645
A18: 2019 | B18: 10 | C18: =SUMIFS('CR CWIP query 012021 ISD'!$H:$H,'CR CWIP query 012021 ISD'!$L:$L,'012021 PIS Summary'!A18,'CR CWIP query 012021 ISD'!$K:$K,'012021 PIS Summary'!B18) -> 0 | D18: 0 | E18: 0 | F18: 0 | G18: 0 | H18: 0.00356083 | I18: 0.001645
A19: 2019 | B19: 11 | C19: =SUMIFS('CR CWIP query 012021 ISD'!$H:$H,'CR CWIP query 012021 ISD'!$L:$L,'012021 PIS Summary'!A19,'CR CWIP query 012021 ISD'!$K:$K,'012021 PIS Summary'!B19) -> 0 | D19: 0 | E19: 0 | F19: 0 | G19: 0 | H19: 0.00356083 | I19: 0.001645
A20: 2019 | B20: 12 | C20: =SUMIFS('CR CWIP query 012021 ISD'!$H:$H,'CR CWIP query 012021 ISD'!$L:$L,'012021 PIS Summary'!A20,'CR CWIP query 012021 ISD'!$K:$K,'012021 PIS Summary'!B20) -> 0 | D20: 0 | E20: =C20 -> 0 | F20: =0.5*E20 -> 0 | G20: =+D20+F20 -> 0 | H20: 0.00356083 | I20: 0.001645
A21: 19 Total | C21: =SUM(C9:C20) -> 0 | E21: =SUM(E9:E20) -> 0 | J21: =SUM(J9:J20) -> 0 | K21: =SUM(K9:K20) -> 0 | L21: =SUM(L9:L20) -> 0
A23: 2020 | B23: 1 | C23: =SUMIFS('CR CWIP query 012021 ISD'!$H:$H,'CR CWIP query 012021 ISD'!$L:$L,'012021 PIS Summary'!A23,'CR CWIP query 012021 ISD'!$K:$K,'012021 PIS Summary'!B23) -> 0 | D23: =+D20+E20+J20+K20 -> 0 | E23: =C23 -> 0 | F23: =0.5*E23 -> 0 | G23: =+D23+F23 -> 0 | H23: 0.00356083 | I23: 0.001645
A24: 2020 | B24: 2 | C24: =SUMIFS('CR CWIP query 012021 ISD'!$H:$H,'CR CWIP query 012021 ISD'!$L:$L,'012021 PIS Summary'!A24,'CR CWIP query 012021 ISD'!$K:$K,'012021 PIS Summary'!B24) -> 0 | D24: =+D23+E23+J23+K23 -> 0 | E24: 0 | F24: =0.5*E24 -> 0 | G24: =+D24+F24 -> 0 | H24: 0.00356083 | I24: 0.001645
A25: 2020 | B25: 3 | C25: =SUMIFS('CR CWIP query 012021 ISD'!$H:$H,'CR CWIP query 012021 ISD'!$L:$L,'012021 PIS Summary'!A25,'CR CWIP query 012021 ISD'!$K:$K,'012021 PIS Summary'!B25) -> 0 | D25: 0 | E25: 0 | F25: 0 | G25: 0 | H25: 0.00356083 | I25: 0.001645
A26: 2020 | B26: 4 | C26: =SUMIFS('CR CWIP query 012021 ISD'!$H:$H,'CR CWIP query 012021 ISD'!$L:$L,'012021 PIS Summary'!A26,'CR CWIP query 012021 ISD'!$K:$K,'012021 PIS Summary'!B26) -> 12913.46 | D26: 0 | E26: =C26 -> 12913.46 | F26: =0.5*E26 -> 6456.73 | G26: =+D26+F26 -> 6456.73 | H26: 0.00356083 | I26: 0.001645
A27: 2020 | B27: 5 | C27: =SUMIFS('CR CWIP query 012021 ISD'!$H:$H,'CR CWIP query 012021 ISD'!$L:$L,'012021 PIS Summary'!A27,'CR CWIP query 012021 ISD'!$K:$K,'012021 PIS Summary'!B27) -> 3424.09 | D27: 12913.46 | E27: =C27 -> 3424.09 | F27: =0.5*E27 -> 1712.045 | G27: =+D27+F27 -> 14625.505 | H27: 0.00356083 | I27: 0.001645
A28: 2020 | B28: 6 | C28: =SUMIFS('CR CWIP query 012021 ISD'!$H:$H,'CR CWIP query 012021 ISD'!$L:$L,'012021 PIS Summary'!A28,'CR CWIP query 012021 ISD'!$K:$K,'012021 PIS Summary'!B28) -> 0 | D28: 16337.55 | E28: 0 | F28: 0 | G28: 16337.55 | H28: 0.00356083 | I28: 0.001645
A29: 2020 | B29: 7 | C29: =SUMIFS('CR CWIP query 012021 ISD'!$H:$H,'CR CWIP query 012021 ISD'!$L:$L,'012021 PIS Summary'!A29,'CR CWIP query 012021 ISD'!$K:$K,'012021 PIS Summary'!B29) -> 0 | D29: 16337.55 | E29: 0 | F29: 0 | G29: 16337.55 | H29: 0.00356083 | I29: 0.001645
A30: 2020 | B30: 8 | C30: =SUMIFS('CR CWIP query 012021 ISD'!$H:$H,'CR CWIP query 012021 ISD'!$L:$L,'012021 PIS Summary'!A30,'CR CWIP query 012021 ISD'!$K:$K,'012021 PIS Summary'!B30) -> 147.99 | D30: 16337.55 | E30: 147.99 | F30: 73.995 | G30: 16411.545 | H30: 0.00356083 | I30: 0.001645
A31: 2020 | B31: 9 | C31: =SUMIFS('CR CWIP query 012021 ISD'!$H:$H,'CR CWIP query 012021 ISD'!$L:$L,'012021 PIS Summary'!A31,'CR CWIP query 012021 ISD'!$K:$K,'012021 PIS Summary'!B31) -> 298.17 | D31: 16485.54 | E31: 298.17 | F31: 149.085 | G31: 16634.625 | H31: 0.00356083 | I31: 0.001645
A32: 2020 | B32: 10 | C32: =SUMIFS('CR CWIP query 012021 ISD'!$H:$H,'CR CWIP query 012021 ISD'!$L:$L,'012021 PIS Summary'!A32,'CR CWIP query 012021 ISD'!$K:$K,'012021 PIS Summary'!B32) -> 91298.82 | D32: 16783.71 | E32: 91298.82 | F32: 45649.41 | G32: 62433.12 | H32: 0.00356083 | I32: 0.001645
A33: 2020 | B33: 11 | C33: =SUMIFS('CR CWIP query 012021 ISD'!$H:$H,'CR CWIP query 012021 ISD'!$L:$L,'012021 PIS Summary'!A33,'CR CWIP query 012021 ISD'!$K:$K,'012021 PIS Summary'!B33) -> 0 | D33: 108082.53 | E33: 0 | F33: 0 | G33: 108082.53 | H33: 0.00356083 | I33: 0.001645
A34: 2020 | B34: 12 | C34: =SUMIFS('CR CWIP query 012021 ISD'!$H:$H,'CR CWIP query 012021 ISD'!$L:$L,'012021 PIS Summary'!A34,'CR CWIP query 012021 ISD'!$K:$K,'012021 PIS Summary'!B34) -> 3311.26 | D34: 108082.53 | E34: =C34 -> 3311.26 | F34: =0.5*E34 -> 1655.63 | G34: =+D34+F34 -> 109738.16 | H34: 0.00356083 | I34: 0.001645
A35: 20 Total | C35: =SUM(C23:C34) -> 111393.79 | E35: =SUM(E24:E34) -> 111393.79 | J35: =SUM(J23:J34) -> 0 | K35: =SUM(K23:K34) -> 0 | L35: 0
A37: 2021 | B37: 1 | C37: =SUMIFS('CR CWIP query 012021 ISD'!$H:$H,'CR CWIP query 012021 ISD'!$L:$L,'012021 PIS Summary'!A37,'CR CWIP query 012021 ISD'!$K:$K,'012021 PIS Summary'!B37) -> 7.16 | D37: =+D34+E34+J34+K34 -> 111393.79 | E37: =C37 -> 7.16 | F37: =0.5*E37 -> 3.58 | G37: =+D37+F37 -> 111397.37 | H37: 0.00356083 | I37: 0.001645 | J37: =ROUND($G37*H37,2)*0.5 -> 198.335 | K37: =ROUND($G37*I37,2)*0.5 -> 91.625 | L37: =+J37-K37 -> 106.71
A38: 2021 | B38: 2 | C38: =SUMIFS('CR CWIP query 012021 ISD'!$H:$H,'CR CWIP query 012021 ISD'!$L:$L,'012021 PIS Summary'!A38,'CR CWIP query 012021 ISD'!$K:$K,'012021 PIS Summary'!B38) -> 1233.68 | D38: =+D37+E37+J37+K37 -> 111690.91 | E38: 1233.68 | F38: =0.5*E38 -> 616.84 | G38: =+D38+F38 -> 112307.75 | H38: 0.00356083 | I38: 0.001645 | J38: =ROUND($G38*H38,2) -> 399.91 | K38: =ROUND($G38*I38,2) -> 184.75 | L38: =+J38-K38 -> 215.16
A39: 2021 | B39: 3 | C39: =SUMIFS('CR CWIP query 012021 ISD'!$H:$H,'CR CWIP query 012021 ISD'!$L:$L,'012021 PIS Summary'!A39,'CR CWIP query 012021 ISD'!$K:$K,'012021 PIS Summary'!B39) -> 0 | D39: =+D38+E38+J38+K38 -> 113509.25 | E39: 0 | F39: 0 | G39: 113509.25 | H39: 0.00356083 | I39: 0.001645 | J39: =ROUND($G39*H39,2) -> 404.19 | K39: 186.72 | L39: =+J39-K39 -> 217.47
A40: 2021 | B40: 4 | C40: =SUMIFS('CR CWIP query 012021 ISD'!$H:$H,'CR CWIP query 012021 ISD'!$L:$L,'012021 PIS Summary'!A40,'CR CWIP query 012021 ISD'!$K:$K,'012021 PIS Summary'!B40) -> 0 | D40: =+D39+E39+J39+K39 -> 114100.16 | E40: 0 | F40: 0 | G40: 114100.16 | H40: 0.00356083 | I40: 0.001645 | J40: 406.29 | K40: 187.69 | L40: =+J40-K40 -> 218.6
A41: 2021 | B41: 5 | C41: =SUMIFS('CR CWIP query 012021 ISD'!$H:$H,'CR CWIP query 012021 ISD'!$L:$L,'012021 PIS Summary'!A41,'CR CWIP query 012021 ISD'!$K:$K,'012021 PIS Summary'!B41) -> 85.83 | D41: =+D40+E40+J40+K40 -> 114694.14 | E41: 85.83 | F41: 42.915 | G41: 114737.055 | H41: 0.00356083 | I41: 0.001645 | J41: 408.56 | K41: 188.74 | L41: 219.82
A42: 2021 | B42: 6 | C42: =SUMIFS('CR CWIP query 012021 ISD'!$H:$H,'CR CWIP query 012021 ISD'!$L:$L,'012021 PIS Summary'!A42,'CR CWIP query 012021 ISD'!$K:$K,'012021 PIS Summary'!B42) -> 0 | D42: 115377.27 | E42: 0 | F42: 0 | G42: 115377.27 | H42: 0.00356083 | I42: 0.001645 | J42: 410.84 | K42: 189.8 | L42: 221.04
A43: 2021 | B43: 7 | C43: =SUMIFS('CR CWIP query 012021 ISD'!$H:$H,'CR CWIP query 012021 ISD'!$L:$L,'012021 PIS Summary'!A43,'CR CWIP query 012021 ISD'!$K:$K,'012021 PIS Summary'!B43) -> 0 | D43: 115977.91 | E43: 0 | F43: 0 | G43: 115977.91 | H43: 0.00356083 | I43: 0.001645 | J43: 412.98 | K43: 190.78 | L43: 222.2
A44: 2021 | B44: 8 | C44: =SUMIFS('CR CWIP query 012021 ISD'!$H:$H,'CR CWIP query 012021 ISD'!$L:$L,'012021 PIS Summary'!A44,'CR CWIP query 012021 ISD'!$K:$K,'012021 PIS Summary'!B44) -> 0 | D44: 116581.67 | E44: 0 | F44: 0 | G44: 116581.67 | H44: 0.00356083 | I44: 0.001645 | J44: 415.13 | K44: 191.78 | L44: 223.35
A45: 2021 | B45: 9 | C45: =SUMIFS('CR CWIP query 012021 ISD'!$H:$H,'CR CWIP query 012021 ISD'!$L:$L,'012021 PIS Summary'!A45,'CR CWIP query 012021 ISD'!$K:$K,'012021 PIS Summary'!B45) -> 0 | D45: 117188.58 | E45: 0 | F45: 0 | G45: 117188.58 | H45: 0.00356083 | I45: 0.001645 | J45: 417.29 | K45: 192.78 | L45: 224.51
A46: 2021 | B46: 10 | C46: =SUMIFS('CR CWIP query 012021 ISD'!$H:$H,'CR CWIP query 012021 ISD'!$L:$L,'012021 PIS Summary'!A46,'CR CWIP query 012021 ISD'!$K:$K,'012021 PIS Summary'!B46) -> 0 | D46: 117798.65 | E46: 0 | F46: 0 | G46: 117798.65 | H46: 0.00356083 | I46: 0.001645 | J46: 419.46 | K46: 193.78 | L46: 225.68
A47: 2021 | B47: 11 | C47: =SUMIFS('CR CWIP query 012021 ISD'!$H:$H,'CR CWIP query 012021 ISD'!$L:$L,'012021 PIS Summary'!A47,'CR CWIP query 012021 ISD'!$K:$K,'012021 PIS Summary'!B47) -> 0 | D47: 118411.89 | E47: 0 | F47: 0 | G47: 118411.89 | H47: 0.00356083 | I47: 0.001645 | J47: 421.64 | K47: 194.79 | L47: 226.85
A48: 2021 | B48: 12 | C48: =SUMIFS('CR CWIP query 012021 ISD'!$H:$H,'CR CWIP query 012021 ISD'!$L:$L,'012021 PIS Summary'!A48,'CR CWIP query 012021 ISD'!$K:$K,'012021 PIS Summary'!B48) -> 0 | D48: 119028.32 | E48: 0 | F48: 0 | G48: 119028.32 | H48: 0.00356083 | I48: 0.001645 | J48: 423.84 | K48: 195.8 | L48: 228.04
A49: 21 Total | C49: =SUM(C37:C48) -> 1326.67 | E49: =SUM(E37:E48) -> 1326.67 | J49: =SUM(J37:J48) -> 4738.465 | K49: =SUM(K37:K48) -> 2189.035 | L49: =SUM(L37:L48) -> 2549.43
A51: 2022 | B51: 1 | C51: =SUMIFS('CR CWIP query 012021 ISD'!$H:$H,'CR CWIP query 012021 ISD'!$L:$L,'012021 PIS Summary'!A51,'CR CWIP query 012021 ISD'!$K:$K,'012021 PIS Summary'!B51) -> 0 | D51: =+D48+E48+J48+K48 -> 119647.96 | E51: =C51 -> 0 | F51: =0.5*E51 -> 0 | G51: =+D51+F51 -> 119647.96 | H51: 0.00356083 | I51: 0.001645 | J51: =ROUND($G51*H51,2) -> 426.05 | K51: =ROUND($G51*I51,2) -> 196.82 | L51: =+J51-K51 -> 229.23
A52: 2022 | B52: 2 | C52: =SUMIFS('CR CWIP query 012021 ISD'!$H:$H,'CR CWIP query 012021 ISD'!$L:$L,'012021 PIS Summary'!A52,'CR CWIP query 012021 ISD'!$K:$K,'012021 PIS Summary'!B52) -> 0 | D52: =+D51+E51+J51+K51 -> 120270.83 | E52: 0 | F52: =0.5*E52 -> 0 | G52: =+D52+F52 -> 120270.83 | H52: 0.00356083 | I52: 0.001645 | J52: =ROUND($G52*H52,2) -> 428.26 | K52: =ROUND($G52*I52,2) -> 197.85 | L52: =+J52-K52 -> 230.41
A53: 2022 | B53: 3 | C53: =SUMIFS('CR CWIP query 012021 ISD'!$H:$H,'CR CWIP query 012021 ISD'!$L:$L,'012021 PIS Summary'!A53,'CR CWIP query 012021 ISD'!$K:$K,'012021 PIS Summary'!B53) -> 0 | D53: =+D52+E52+J52+K52 -> 120896.94 | E53: 0 | F53: 0 | G53: 120896.94 | H53: 0.00356083 | I53: 0.001645 | J53: =ROUND($G53*H53,2) -> 430.49 | K53: =ROUND($G53*I53,2) -> 198.88 | L53: 231.61
A54: 2022 | B54: 4 | C54: =SUMIFS('CR CWIP query 012021 ISD'!$H:$H,'CR CWIP query 012021 ISD'!$L:$L,'012021 PIS Summary'!A54,'CR CWIP query 012021 ISD'!$K:$K,'012021 PIS Summary'!B54) -> 0 | D54: =+D53+E53+J53+K53 -> 121526.31 | E54: 0 | F54: 0 | G54: 121526.31 | H54: 0.00356083 | I54: 0.001645 | J54: =ROUND($G54*H54,2) -> 432.73 | K54: 199.91 | L54: =+J54-K54 -> 232.82
A55: 2022 | B55: 5 | C55: =SUMIFS('CR CWIP query 012021 ISD'!$H:$H,'CR CWIP query 012021 ISD'!$L:$L,'012021 PIS Summary'!A55,'CR CWIP query 012021 ISD'!$K:$K,'012021 PIS Summary'!B55) -> 0 | D55: =+D54+E54+J54+K54 -> 122158.95 | E55: 0 | F55: 0 | G55: 122158.95 | H55: 0.00356083 | I55: 0.001645 | J55: 434.99 | K55: 200.95 | L55: 234.04
A56: 2022 | B56: 6 | C56: =SUMIFS('CR CWIP query 012021 ISD'!$H:$H,'CR CWIP query 012021 ISD'!$L:$L,'012021 PIS Summary'!A56,'CR CWIP query 012021 ISD'!$K:$K,'012021 PIS Summary'!B56) -> 0 | D56: 122794.89 | E56: 0 | F56: 0 | G56: 122794.89 | H56: 0.00356083 | I56: 0.001645 | J56: 437.25 | K56: 202 | L56: 235.25
A57: 2022 | B57: 7 | C57: =SUMIFS('CR CWIP query 012021 ISD'!$H:$H,'CR CWIP query 012021 ISD'!$L:$L,'012021 PIS Summary'!A57,'CR CWIP query 012021 ISD'!$K:$K,'012021 PIS Summary'!B57) -> 0 | D57: 123434.14 | E57: 0 | F57: 0 | G57: 123434.14 | H57: 0.00356083 | I57: 0.001645 | J57: 439.53 | K57: 203.05 | L57: 236.48
A58: 2022 | B58: 8 | C58: =SUMIFS('CR CWIP query 012021 ISD'!$H:$H,'CR CWIP query 012021 ISD'!$L:$L,'012021 PIS Summary'!A58,'CR CWIP query 012021 ISD'!$K:$K,'012021 PIS Summary'!B58) -> 0 | D58: 124076.72 | E58: 0 | F58: 0 | G58: 124076.72 | H58: 0.00356083 | I58: 0.001645 | J58: =ROUND($G58*H58,2) -> 441.82 | K58: =ROUND($G58*I58,2) -> 204.11 | L58: =+J58-K58 -> 237.71
A59: 2022 | B59: 9 | C59: =SUMIFS('CR CWIP query 012021 ISD'!$H:$H,'CR CWIP query 012021 ISD'!$L:$L,'012021 PIS Summary'!A59,'CR CWIP query 012021 ISD'!$K:$K,'012021 PIS Summary'!B59) -> 0 | D59: 124722.65 | E59: 0 | F59: 0 | G59: 124722.65 | H59: 0.00356083 | I59: 0.001645 | J59: 444.12 | K59: 205.17 | L59: 238.95
A60: 2022 | B60: 10 | C60: =SUMIFS('CR CWIP query 012021 ISD'!$H:$H,'CR CWIP query 012021 ISD'!$L:$L,'012021 PIS Summary'!A60,'CR CWIP query 012021 ISD'!$K:$K,'012021 PIS Summary'!B60) -> 0 | D60: 125371.94 | E60: 0 | F60: 0 | G60: 125371.94 | H60: 0.00356083 | I60: 0.001645 | J60: 446.43 | K60: 206.24 | L60: 240.19
A61: 2022 | B61: 11 | C61: =SUMIFS('CR CWIP query 012021 ISD'!$H:$H,'CR CWIP query 012021 ISD'!$L:$L,'012021 PIS Summary'!A61,'CR CWIP query 012021 ISD'!$K:$K,'012021 PIS Summary'!B61) -> 0 | D61: 126024.61 | E61: 0 | F61: 0 | G61: 126024.61 | H61: 0.00356083 | I61: 0.001645
A62: 2022 | B62: 12 | C62: =SUMIFS('CR CWIP query 012021 ISD'!$H:$H,'CR CWIP query 012021 ISD'!$L:$L,'012021 PIS Summary'!A62,'CR CWIP query 012021 ISD'!$K:$K,'012021 PIS Summary'!B62) -> 0 | D62: 126024.61 | E62: 0 | F62: 0 | G62: 126024.61 | H62: 0.00356083 | I62: 0.001645
A63: 22 Total | C63: =SUM(C51:C62) -> 0 | E63: =SUM(E51:E62) -> 0 | J63: =SUM(J51:J62) -> 4361.67 | K63: =SUM(K51:K62) -> 2014.98 | L63: =SUM(L51:L62) -> 2346.69

Sheet 022021 PIS Summary (hidden)
A1: Indiana American Water
A2: Post In Service AFUDC Calc
A3: 02/1/2021- | J3: =SUM('CR CWIP query 022021 ISD'!H:H)+J5+K5-G62 -> 0 | K3: check
J5: =SUM(J35,J49,J51:J61) -> 16986.005 | K5: =SUM(K35,K49,K51:K61) -> 7847.065 | L5: =SUM(L35,L49,L51:L61) -> 9138.94
A7: Year | B7: Month | C7: Grand Total CWIP | D7: Beginning AFUDC Base | E7: Current Month Charges | F7: 50% Charge Current Charge | G7: Current Base | H7: PIS AFUDC Monthly Equity Rate | I7: PIS AFUDC Monthly Debt Rate | J7: PIS AFUDC Equity to be Recorded | K7: PIS AFUDC Debt to be Recorded | L7: AFUDC PIS Equity Reduction to record
A9: 2019 | B9: 1 | C9: =SUMIFS('CR CWIP query 022021 ISD'!$H:$H,'CR CWIP query 022021 ISD'!$L:$L,'022021 PIS Summary'!A9,'CR CWIP query 022021 ISD'!$K:$K,'022021 PIS Summary'!B9) -> 0 | D9: =+D6+E6+J6+K6 -> 0 | E9: =C9 -> 0 | F9: =0.5*E9 -> 0 | G9: =+D9+F9 -> 0 | H9: 0.00356083 | I9: 0.001645
A10: 2019 | B10: 2 | C10: =SUMIFS('CR CWIP query 022021 ISD'!$H:$H,'CR CWIP query 022021 ISD'!$L:$L,'022021 PIS Summary'!A10,'CR CWIP query 022021 ISD'!$K:$K,'022021 PIS Summary'!B10) -> 0 | D10: =+D9+E9+J9+K9 -> 0 | E10: 0 | F10: =0.5*E10 -> 0 | G10: =+D10+F10 -> 0 | H10: 0.00356083 | I10: 0.001645
A11: 2019 | B11: 3 | C11: =SUMIFS('CR CWIP query 022021 ISD'!$H:$H,'CR CWIP query 022021 ISD'!$L:$L,'022021 PIS Summary'!A11,'CR CWIP query 022021 ISD'!$K:$K,'022021 PIS Summary'!B11) -> 0 | D11: 0 | E11: 0 | F11: 0 | G11: 0 | H11: 0.00356083 | I11: 0.001645
A12: 2019 | B12: 4 | C12: =SUMIFS('CR CWIP query 022021 ISD'!$H:$H,'CR CWIP query 022021 ISD'!$L:$L,'022021 PIS Summary'!A12,'CR CWIP query 022021 ISD'!$K:$K,'022021 PIS Summary'!B12) -> 0 | D12: 0 | E12: =C12 -> 0 | F12: =0.5*E12 -> 0 | G12: =+D12+F12 -> 0 | H12: 0.00356083 | I12: 0.001645
A13: 2019 | B13: 5 | C13: =SUMIFS('CR CWIP query 022021 ISD'!$H:$H,'CR CWIP query 022021 ISD'!$L:$L,'022021 PIS Summary'!A13,'CR CWIP query 022021 ISD'!$K:$K,'022021 PIS Summary'!B13) -> 0 | D13: 0 | E13: =C13 -> 0 | F13: =0.5*E13 -> 0 | G13: =+D13+F13 -> 0 | H13: 0.00356083 | I13: 0.001645
A14: 2019 | B14: 6 | C14: =SUMIFS('CR CWIP query 022021 ISD'!$H:$H,'CR CWIP query 022021 ISD'!$L:$L,'022021 PIS Summary'!A14,'CR CWIP query 022021 ISD'!$K:$K,'022021 PIS Summary'!B14) -> 0 | D14: 0 | E14: 0 | F14: 0 | G14: 0 | H14: 0.00356083 | I14: 0.001645
A15: 2019 | B15: 7 | C15: =SUMIFS('CR CWIP query 022021 ISD'!$H:$H,'CR CWIP query 022021 ISD'!$L:$L,'022021 PIS Summary'!A15,'CR CWIP query 022021 ISD'!$K:$K,'022021 PIS Summary'!B15) -> 0 | D15: 0 | E15: 0 | F15: 0 | G15: 0 | H15: 0.00356083 | I15: 0.001645
A16: 2019 | B16: 8 | C16: =SUMIFS('CR CWIP query 022021 ISD'!$H:$H,'CR CWIP query 022021 ISD'!$L:$L,'022021 PIS Summary'!A16,'CR CWIP query 022021 ISD'!$K:$K,'022021 PIS Summary'!B16) -> 0 | D16: 0 | E16: 0 | F16: 0 | G16: 0 | H16: 0.00356083 | I16: 0.001645
A17: 2019 | B17: 9 | C17: =SUMIFS('CR CWIP query 022021 ISD'!$H:$H,'CR CWIP query 022021 ISD'!$L:$L,'022021 PIS Summary'!A17,'CR CWIP query 022021 ISD'!$K:$K,'022021 PIS Summary'!B17) -> 0 | D17: 0 | E17: 0 | F17: 0 | G17: 0 | H17: 0.00356083 | I17: 0.001645
A18: 2019 | B18: 10 | C18: =SUMIFS('CR CWIP query 022021 ISD'!$H:$H,'CR CWIP query 022021 ISD'!$L:$L,'022021 PIS Summary'!A18,'CR CWIP query 022021 ISD'!$K:$K,'022021 PIS Summary'!B18) -> 0 | D18: 0 | E18: 0 | F18: 0 | G18: 0 | H18: 0.00356083 | I18: 0.001645
A19: 2019 | B19: 11 | C19: =SUMIFS('CR CWIP query 022021 ISD'!$H:$H,'CR CWIP query 022021 ISD'!$L:$L,'022021 PIS Summary'!A19,'CR CWIP query 022021 ISD'!$K:$K,'022021 PIS Summary'!B19) -> 0 | D19: 0 | E19: 0 | F19: 0 | G19: 0 | H19: 0.00356083 | I19: 0.001645
A20: 2019 | B20: 12 | C20: =SUMIFS('CR CWIP query 022021 ISD'!$H:$H,'CR CWIP query 022021 ISD'!$L:$L,'022021 PIS Summary'!A20,'CR CWIP query 022021 ISD'!$K:$K,'022021 PIS Summary'!B20) -> 0 | D20: 0 | E20: =C20 -> 0 | F20: =0.5*E20 -> 0 | G20: =+D20+F20 -> 0 | H20: 0.00356083 | I20: 0.001645
A21: 19 Total | C21: =SUM(C9:C20) -> 0 | E21: =SUM(E9:E20) -> 0 | J21: =SUM(J9:J20) -> 0 | K21: =SUM(K9:K20) -> 0 | L21: =SUM(L9:L20) -> 0
A23: 2020 | B23: 1 | C23: =SUMIFS('CR CWIP query 022021 ISD'!$H:$H,'CR CWIP query 022021 ISD'!$L:$L,'022021 PIS Summary'!A23,'CR CWIP query 022021 ISD'!$K:$K,'022021 PIS Summary'!B23) -> 0 | D23: =+D20+E20+J20+K20 -> 0 | E23: =C23 -> 0 | F23: =0.5*E23 -> 0 | G23: =+D23+F23 -> 0 | H23: 0.00356083 | I23: 0.001645
A24: 2020 | B24: 2 | C24: =SUMIFS('CR CWIP query 022021 ISD'!$H:$H,'CR CWIP query 022021 ISD'!$L:$L,'022021 PIS Summary'!A24,'CR CWIP query 022021 ISD'!$K:$K,'022021 PIS Summary'!B24) -> 0 | D24: =+D23+E23+J23+K23 -> 0 | E24: 0 | F24: =0.5*E24 -> 0 | G24: =+D24+F24 -> 0 | H24: 0.00356083 | I24: 0.001645
A25: 2020 | B25: 3 | C25: =SUMIFS('CR CWIP query 022021 ISD'!$H:$H,'CR CWIP query 022021 ISD'!$L:$L,'022021 PIS Summary'!A25,'CR CWIP query 022021 ISD'!$K:$K,'022021 PIS Summary'!B25) -> 0 | D25: 0 | E25: 0 | F25: 0 | G25: 0 | H25: 0.00356083 | I25: 0.001645
A26: 2020 | B26: 4 | C26: =SUMIFS('CR CWIP query 022021 ISD'!$H:$H,'CR CWIP query 022021 ISD'!$L:$L,'022021 PIS Summary'!A26,'CR CWIP query 022021 ISD'!$K:$K,'022021 PIS Summary'!B26) -> 0 | D26: 0 | E26: =C26 -> 0 | F26: =0.5*E26 -> 0 | G26: =+D26+F26 -> 0 | H26: 0.00356083 | I26: 0.001645
A27: 2020 | B27: 5 | C27: =SUMIFS('CR CWIP query 022021 ISD'!$H:$H,'CR CWIP query 022021 ISD'!$L:$L,'022021 PIS Summary'!A27,'CR CWIP query 022021 ISD'!$K:$K,'022021 PIS Summary'!B27) -> 0 | D27: 0 | E27: =C27 -> 0 | F27: =0.5*E27 -> 0 | G27: =+D27+F27 -> 0 | H27: 0.00356083 | I27: 0.001645
A28: 2020 | B28: 6 | C28: =SUMIFS('CR CWIP query 022021 ISD'!$H:$H,'CR CWIP query 022021 ISD'!$L:$L,'022021 PIS Summary'!A28,'CR CWIP query 022021 ISD'!$K:$K,'022021 PIS Summary'!B28) -> 4372.33 | D28: 0 | E28: 4372.33 | F28: 2186.165 | G28: 2186.165 | H28: 0.00356083 | I28: 0.001645
A29: 2020 | B29: 7 | C29: =SUMIFS('CR CWIP query 022021 ISD'!$H:$H,'CR CWIP query 022021 ISD'!$L:$L,'022021 PIS Summary'!A29,'CR CWIP query 022021 ISD'!$K:$K,'022021 PIS Summary'!B29) -> 14162.01 | D29: 4372.33 | E29: 14162.01 | F29: 7081.005 | G29: 11453.335 | H29: 0.00356083 | I29: 0.001645
A30: 2020 | B30: 8 | C30: =SUMIFS('CR CWIP query 022021 ISD'!$H:$H,'CR CWIP query 022021 ISD'!$L:$L,'022021 PIS Summary'!A30,'CR CWIP query 022021 ISD'!$K:$K,'022021 PIS Summary'!B30) -> 3668.5 | D30: 18534.34 | E30: 3668.5 | F30: 1834.25 | G30: 20368.59 | H30: 0.00356083 | I30: 0.001645
A31: 2020 | B31: 9 | C31: =SUMIFS('CR CWIP query 022021 ISD'!$H:$H,'CR CWIP query 022021 ISD'!$L:$L,'022021 PIS Summary'!A31,'CR CWIP query 022021 ISD'!$K:$K,'022021 PIS Summary'!B31) -> 99.34 | D31: 22202.84 | E31: 99.34 | F31: 49.67 | G31: 22252.51 | H31: 0.00356083 | I31: 0.001645
A32: 2020 | B32: 10 | C32: =SUMIFS('CR CWIP query 022021 ISD'!$H:$H,'CR CWIP query 022021 ISD'!$L:$L,'022021 PIS Summary'!A32,'CR CWIP query 022021 ISD'!$K:$K,'022021 PIS Summary'!B32) -> 114166.65 | D32: 22302.18 | E32: 114166.65 | F32: 57083.325 | G32: 79385.505 | H32: 0.00356083 | I32: 0.001645
A33: 2020 | B33: 11 | C33: =SUMIFS('CR CWIP query 022021 ISD'!$H:$H,'CR CWIP query 022021 ISD'!$L:$L,'022021 PIS Summary'!A33,'CR CWIP query 022021 ISD'!$K:$K,'022021 PIS Summary'!B33) -> 3534.05 | D33: 136468.83 | E33: 3534.05 | F33: 1767.025 | G33: 138235.855 | H33: 0.00356083 | I33: 0.001645
A34: 2020 | B34: 12 | C34: =SUMIFS('CR CWIP query 022021 ISD'!$H:$H,'CR CWIP query 022021 ISD'!$L:$L,'022021 PIS Summary'!A34,'CR CWIP query 022021 ISD'!$K:$K,'022021 PIS Summary'!B34) -> 79029.81 | D34: 140002.88 | E34: =C34 -> 79029.81 | F34: =0.5*E34 -> 39514.905 | G34: =+D34+F34 -> 179517.785 | H34: 0.00356083 | I34: 0.001645
A35: 20 Total | C35: =SUM(C23:C34) -> 219032.69 | E35: =SUM(E24:E34) -> 219032.69 | J35: =SUM(J23:J34) -> 0 | K35: =SUM(K23:K34) -> 0 | L35: 0
A37: 2021 | B37: 1 | C37: =SUMIFS('CR CWIP query 022021 ISD'!$H:$H,'CR CWIP query 022021 ISD'!$L:$L,'022021 PIS Summary'!A37,'CR CWIP query 022021 ISD'!$K:$K,'022021 PIS Summary'!B37) -> 5374.66 | D37: =+D34+E34+J34+K34 -> 219032.69 | E37: =C37 -> 5374.66 | F37: =0.5*E37 -> 2687.33 | G37: =+D37+F37 -> 221720.02 | H37: 0.00356083 | I37: 0.001645
A38: 2021 | B38: 2 | C38: =SUMIFS('CR CWIP query 022021 ISD'!$H:$H,'CR CWIP query 022021 ISD'!$L:$L,'022021 PIS Summary'!A38,'CR CWIP query 022021 ISD'!$K:$K,'022021 PIS Summary'!B38) -> -3135.22 | D38: =+D37+E37+J37+K37 -> 224407.35 | E38: -3135.22 | F38: =0.5*E38 -> -1567.61 | G38: =+D38+F38 -> 222839.74 | H38: 0.00356083 | I38: 0.001645 | J38: =ROUND($G38*H38,2)*0.5 -> 396.745 | K38: =ROUND($G38*I38,2)*0.5 -> 183.285 | L38: =+J38-K38 -> 213.46
A39: 2021 | B39: 3 | C39: =SUMIFS('CR CWIP query 022021 ISD'!$H:$H,'CR CWIP query 022021 ISD'!$L:$L,'022021 PIS Summary'!A39,'CR CWIP query 022021 ISD'!$K:$K,'022021 PIS Summary'!B39) -> 0 | D39: =+D38+E38+J38+K38 -> 221852.16 | E39: 0 | F39: 0 | G39: 221852.16 | H39: 0.00356083 | I39: 0.001645 | J39: =ROUND($G39*H39,2) -> 789.98 | K39: =ROUND($G39*I39,2) -> 364.95 | L39: =+J39-K39 -> 425.03
A40: 2021 | B40: 4 | C40: =SUMIFS('CR CWIP query 022021 ISD'!$H:$H,'CR CWIP query 022021 ISD'!$L:$L,'022021 PIS Summary'!A40,'CR CWIP query 022021 ISD'!$K:$K,'022021 PIS Summary'!B40) -> 0 | D40: =+D39+E39+J39+K39 -> 223007.09 | E40: 0 | F40: 0 | G40: 223007.09 | H40: 0.00356083 | I40: 0.001645 | J40: =ROUND($G40*H40,2) -> 794.09 | K40: 366.85 | L40: =+J40-K40 -> 427.24
A41: 2021 | B41: 5 | C41: =SUMIFS('CR CWIP query 022021 ISD'!$H:$H,'CR CWIP query 022021 ISD'!$L:$L,'022021 PIS Summary'!A41,'CR CWIP query 022021 ISD'!$K:$K,'022021 PIS Summary'!B41) -> 0 | D41: =+D40+E40+J40+K40 -> 224168.03 | E41: 0 | F41: 0 | G41: 224168.03 | H41: 0.00356083 | I41: 0.001645 | J41: 798.22 | K41: 368.76 | L41: 429.46
A42: 2021 | B42: 6 | C42: =SUMIFS('CR CWIP query 022021 ISD'!$H:$H,'CR CWIP query 022021 ISD'!$L:$L,'022021 PIS Summary'!A42,'CR CWIP query 022021 ISD'!$K:$K,'022021 PIS Summary'!B42) -> 0 | D42: 225335.01 | E42: 0 | F42: 0 | G42: 225335.01 | H42: 0.00356083 | I42: 0.001645 | J42: 802.38 | K42: 370.68 | L42: 431.7
A43: 2021 | B43: 7 | C43: =SUMIFS('CR CWIP query 022021 ISD'!$H:$H,'CR CWIP query 022021 ISD'!$L:$L,'022021 PIS Summary'!A43,'CR CWIP query 022021 ISD'!$K:$K,'022021 PIS Summary'!B43) -> 0 | D43: 226508.07 | E43: 0 | F43: 0 | G43: 226508.07 | H43: 0.00356083 | I43: 0.001645 | J43: 806.56 | K43: 372.61 | L43: 433.95
A44: 2021 | B44: 8 | C44: =SUMIFS('CR CWIP query 022021 ISD'!$H:$H,'CR CWIP query 022021 ISD'!$L:$L,'022021 PIS Summary'!A44,'CR CWIP query 022021 ISD'!$K:$K,'022021 PIS Summary'!B44) -> 0 | D44: 227687.24 | E44: 0 | F44: 0 | G44: 227687.24 | H44: 0.00356083 | I44: 0.001645 | J44: 810.76 | K44: 374.55 | L44: 436.21
A45: 2021 | B45: 9 | C45: =SUMIFS('CR CWIP query 022021 ISD'!$H:$H,'CR CWIP query 022021 ISD'!$L:$L,'022021 PIS Summary'!A45,'CR CWIP query 022021 ISD'!$K:$K,'022021 PIS Summary'!B45) -> 0 | D45: 228872.55 | E45: 0 | F45: 0 | G45: 228872.55 | H45: 0.00356083 | I45: 0.001645 | J45: 814.98 | K45: 376.5 | L45: 438.48
A46: 2021 | B46: 10 | C46: =SUMIFS('CR CWIP query 022021 ISD'!$H:$H,'CR CWIP query 022021 ISD'!$L:$L,'022021 PIS Summary'!A46,'CR CWIP query 022021 ISD'!$K:$K,'022021 PIS Summary'!B46) -> 0 | D46: 230064.03 | E46: 0 | F46: 0 | G46: 230064.03 | H46: 0.00356083 | I46: 0.001645 | J46: 819.22 | K46: 378.46 | L46: 440.76
A47: 2021 | B47: 11 | C47: =SUMIFS('CR CWIP query 022021 ISD'!$H:$H,'CR CWIP query 022021 ISD'!$L:$L,'022021 PIS Summary'!A47,'CR CWIP query 022021 ISD'!$K:$K,'022021 PIS Summary'!B47) -> -395.3 | D47: 231261.71 | E47: -395.3 | F47: -197.65 | G47: 231064.06 | H47: 0.00356083 | I47: 0.001645 | J47: 822.78 | K47: 380.1 | L47: 442.68
A48: 2021 | B48: 12 | C48: =SUMIFS('CR CWIP query 022021 ISD'!$H:$H,'CR CWIP query 022021 ISD'!$L:$L,'022021 PIS Summary'!A48,'CR CWIP query 022021 ISD'!$K:$K,'022021 PIS Summary'!B48) -> 0.17 | D48: 232069.29 | E48: 0.17 | F48: 0.085 | G48: 232069.375 | H48: 0.00356083 | I48: 0.001645 | J48: 826.36 | K48: 381.75 | L48: 444.61
A49: 21 Total | C49: =SUM(C37:C48) -> 1844.31 | E49: =SUM(E37:E48) -> 1844.31 | J49: =SUM(J37:J48) -> 8482.075 | K49: =SUM(K37:K48) -> 3918.495 | L49: =SUM(L37:L48) -> 4563.58
A51: 2022 | B51: 1 | C51: =SUMIFS('CR CWIP query 022021 ISD'!$H:$H,'CR CWIP query 022021 ISD'!$L:$L,'022021 PIS Summary'!A51,'CR CWIP query 022021 ISD'!$K:$K,'022021 PIS Summary'!B51) -> 0 | D51: =+D48+E48+J48+K48 -> 233277.57 | E51: =C51 -> 0 | F51: =0.5*E51 -> 0 | G51: =+D51+F51 -> 233277.57 | H51: 0.00356083 | I51: 0.001645 | J51: =ROUND($G51*H51,2) -> 830.66 | K51: =ROUND($G51*I51,2) -> 383.74 | L51: =+J51-K51 -> 446.92
A52: 2022 | B52: 2 | C52: =SUMIFS('CR CWIP query 022021 ISD'!$H:$H,'CR CWIP query 022021 ISD'!$L:$L,'022021 PIS Summary'!A52,'CR CWIP query 022021 ISD'!$K:$K,'022021 PIS Summary'!B52) -> 0 | D52: =+D51+E51+J51+K51 -> 234491.97 | E52: 0 | F52: =0.5*E52 -> 0 | G52: =+D52+F52 -> 234491.97 | H52: 0.00356083 | I52: 0.001645 | J52: =ROUND($G52*H52,2) -> 834.99 | K52: =ROUND($G52*I52,2) -> 385.74 | L52: =+J52-K52 -> 449.25
A53: 2022 | B53: 3 | C53: =SUMIFS('CR CWIP query 022021 ISD'!$H:$H,'CR CWIP query 022021 ISD'!$L:$L,'022021 PIS Summary'!A53,'CR CWIP query 022021 ISD'!$K:$K,'022021 PIS Summary'!B53) -> 0 | D53: =+D52+E52+J52+K52 -> 235712.7 | E53: 0 | F53: 0 | G53: 235712.7 | H53: 0.00356083 | I53: 0.001645 | J53: =ROUND($G53*H53,2) -> 839.33 | K53: =ROUND($G53*I53,2) -> 387.75 | L53: 451.58
A54: 2022 | B54: 4 | C54: =SUMIFS('CR CWIP query 022021 ISD'!$H:$H,'CR CWIP query 022021 ISD'!$L:$L,'022021 PIS Summary'!A54,'CR CWIP query 022021 ISD'!$K:$K,'022021 PIS Summary'!B54) -> 0 | D54: =+D53+E53+J53+K53 -> 236939.78 | E54: 0 | F54: 0 | G54: 236939.78 | H54: 0.00356083 | I54: 0.001645 | J54: =ROUND($G54*H54,2) -> 843.7 | K54: 389.77 | L54: =+J54-K54 -> 453.93
A55: 2022 | B55: 5 | C55: =SUMIFS('CR CWIP query 022021 ISD'!$H:$H,'CR CWIP query 022021 ISD'!$L:$L,'022021 PIS Summary'!A55,'CR CWIP query 022021 ISD'!$K:$K,'022021 PIS Summary'!B55) -> 0 | D55: =+D54+E54+J54+K54 -> 238173.25 | E55: 0 | F55: 0 | G55: 238173.25 | H55: 0.00356083 | I55: 0.001645 | J55: 848.09 | K55: 391.79 | L55: 456.3
A56: 2022 | B56: 6 | C56: =SUMIFS('CR CWIP query 022021 ISD'!$H:$H,'CR CWIP query 022021 ISD'!$L:$L,'022021 PIS Summary'!A56,'CR CWIP query 022021 ISD'!$K:$K,'022021 PIS Summary'!B56) -> 0 | D56: 239413.13 | E56: 0 | F56: 0 | G56: 239413.13 | H56: 0.00356083 | I56: 0.001645 | J56: 852.51 | K56: 393.83 | L56: 458.68
A57: 2022 | B57: 7 | C57: =SUMIFS('CR CWIP query 022021 ISD'!$H:$H,'CR CWIP query 022021 ISD'!$L:$L,'022021 PIS Summary'!A57,'CR CWIP query 022021 ISD'!$K:$K,'022021 PIS Summary'!B57) -> 0 | D57: 240659.47 | E57: 0 | F57: 0 | G57: 240659.47 | H57: 0.00356083 | I57: 0.001645 | J57: 856.95 | K57: 395.88 | L57: 461.07
A58: 2022 | B58: 8 | C58: =SUMIFS('CR CWIP query 022021 ISD'!$H:$H,'CR CWIP query 022021 ISD'!$L:$L,'022021 PIS Summary'!A58,'CR CWIP query 022021 ISD'!$K:$K,'022021 PIS Summary'!B58) -> 0 | D58: 241912.3 | E58: 0 | F58: 0 | G58: 241912.3 | H58: 0.00356083 | I58: 0.001645 | J58: =ROUND($G58*H58,2) -> 861.41 | K58: =ROUND($G58*I58,2) -> 397.95 | L58: =+J58-K58 -> 463.46
A59: 2022 | B59: 9 | C59: =SUMIFS('CR CWIP query 022021 ISD'!$H:$H,'CR CWIP query 022021 ISD'!$L:$L,'022021 PIS Summary'!A59,'CR CWIP query 022021 ISD'!$K:$K,'022021 PIS Summary'!B59) -> 0 | D59: 243171.66 | E59: 0 | F59: 0 | G59: 243171.66 | H59: 0.00356083 | I59: 0.001645 | J59: 865.89 | K59: 400.02 | L59: 465.87
A60: 2022 | B60: 10 | C60: =SUMIFS('CR CWIP query 022021 ISD'!$H:$H,'CR CWIP query 022021 ISD'!$L:$L,'022021 PIS Summary'!A60,'CR CWIP query 022021 ISD'!$K:$K,'022021 PIS Summary'!B60) -> 0 | D60: 244437.57 | E60: 0 | F60: 0 | G60: 244437.57 | H60: 0.00356083 | I60: 0.001645 | J60: 870.4 | K60: 402.1 | L60: 468.3
A61: 2022 | B61: 11 | C61: =SUMIFS('CR CWIP query 022021 ISD'!$H:$H,'CR CWIP query 022021 ISD'!$L:$L,'022021 PIS Summary'!A61,'CR CWIP query 022021 ISD'!$K:$K,'022021 PIS Summary'!B61) -> 0 | D61: 245710.07 | E61: 0 | F61: 0 | G61: 245710.07 | H61: 0.00356083 | I61: 0.001645
A62: 2022 | B62: 12 | C62: =SUMIFS('CR CWIP query 022021 ISD'!$H:$H,'CR CWIP query 022021 ISD'!$L:$L,'022021 PIS Summary'!A62,'CR CWIP query 022021 ISD'!$K:$K,'022021 PIS Summary'!B62) -> 0 | D62: 245710.07 | E62: 0 | F62: 0 | G62: 245710.07 | H62: 0.00356083 | I62: 0.001645
A63: 22 Total | C63: =SUM(C51:C62) -> 0 | E63: =SUM(E51:E62) -> 0 | J63: =SUM(J51:J62) -> 8503.93 | K63: =SUM(K51:K62) -> 3928.57 | L63: =SUM(L51:L62) -> 4575.36

Sheet 032021 PIS Summary (hidden)
A1: Indiana American Water
A2: Post In Service AFUDC Calc
A3: 03/1/2021- | J3: =SUM('CR CWIP query 032021 ISD'!H:H)+J5+K5-G62 -> 0 | K3: check
J5: =SUM(J35,J49,J51:J60) -> 0 | K5: =SUM(K35,K49,K51:K60) -> 0 | L5: =SUM(L35,L49,L51:L60) -> 0
A7: Year | B7: Month | C7: Grand Total CWIP | D7: Beginning AFUDC Base | E7: Current Month Charges | F7: 50% Charge Current Charge | G7: Current Base | H7: PIS AFUDC Monthly Equity Rate | I7: PIS AFUDC Monthly Debt Rate | J7: PIS AFUDC Equity to be Recorded | K7: PIS AFUDC Debt to be Recorded | L7: AFUDC PIS Equity Reduction to record
A9: 2019 | B9: 1 | C9: =SUMIFS('CR CWIP query 032021 ISD'!$H:$H,'CR CWIP query 032021 ISD'!$L:$L,'032021 PIS Summary'!A9,'CR CWIP query 032021 ISD'!$K:$K,'032021 PIS Summary'!B9) -> 0 | D9: =+D6+E6+J6+K6 -> 0 | E9: =C9 -> 0 | F9: =0.5*E9 -> 0 | G9: =+D9+F9 -> 0 | H9: 0.00356083 | I9: 0.001645
A10: 2019 | B10: 2 | C10: =SUMIFS('CR CWIP query 032021 ISD'!$H:$H,'CR CWIP query 032021 ISD'!$L:$L,'032021 PIS Summary'!A10,'CR CWIP query 032021 ISD'!$K:$K,'032021 PIS Summary'!B10) -> 0 | D10: =+D9+E9+J9+K9 -> 0 | E10: 0 | F10: =0.5*E10 -> 0 | G10: =+D10+F10 -> 0 | H10: 0.00356083 | I10: 0.001645
A11: 2019 | B11: 3 | C11: =SUMIFS('CR CWIP query 032021 ISD'!$H:$H,'CR CWIP query 032021 ISD'!$L:$L,'032021 PIS Summary'!A11,'CR CWIP query 032021 ISD'!$K:$K,'032021 PIS Summary'!B11) -> 0 | D11: 0 | E11: 0 | F11: 0 | G11: 0 | H11: 0.00356083 | I11: 0.001645
A12: 2019 | B12: 4 | C12: =SUMIFS('CR CWIP query 032021 ISD'!$H:$H,'CR CWIP query 032021 ISD'!$L:$L,'032021 PIS Summary'!A12,'CR CWIP query 032021 ISD'!$K:$K,'032021 PIS Summary'!B12) -> 0 | D12: 0 | E12: =C12 -> 0 | F12: =0.5*E12 -> 0 | G12: =+D12+F12 -> 0 | H12: 0.00356083 | I12: 0.001645
A13: 2019 | B13: 5 | C13: =SUMIFS('CR CWIP query 032021 ISD'!$H:$H,'CR CWIP query 032021 ISD'!$L:$L,'032021 PIS Summary'!A13,'CR CWIP query 032021 ISD'!$K:$K,'032021 PIS Summary'!B13) -> 0 | D13: 0 | E13: =C13 -> 0 | F13: =0.5*E13 -> 0 | G13: =+D13+F13 -> 0 | H13: 0.00356083 | I13: 0.001645
A14: 2019 | B14: 6 | C14: =SUMIFS('CR CWIP query 032021 ISD'!$H:$H,'CR CWIP query 032021 ISD'!$L:$L,'032021 PIS Summary'!A14,'CR CWIP query 032021 ISD'!$K:$K,'032021 PIS Summary'!B14) -> 0 | D14: 0 | E14: 0 | F14: 0 | G14: 0 | H14: 0.00356083 | I14: 0.001645
A15: 2019 | B15: 7 | C15: =SUMIFS('CR CWIP query 032021 ISD'!$H:$H,'CR CWIP query 032021 ISD'!$L:$L,'032021 PIS Summary'!A15,'CR CWIP query 032021 ISD'!$K:$K,'032021 PIS Summary'!B15) -> 0 | D15: 0 | E15: 0 | F15: 0 | G15: 0 | H15: 0.00356083 | I15: 0.001645
A16: 2019 | B16: 8 | C16: =SUMIFS('CR CWIP query 032021 ISD'!$H:$H,'CR CWIP query 032021 ISD'!$L:$L,'032021 PIS Summary'!A16,'CR CWIP query 032021 ISD'!$K:$K,'032021 PIS Summary'!B16) -> 0 | D16: 0 | E16: 0 | F16: 0 | G16: 0 | H16: 0.00356083 | I16: 0.001645
A17: 2019 | B17: 9 | C17: =SUMIFS('CR CWIP query 032021 ISD'!$H:$H,'CR CWIP query 032021 ISD'!$L:$L,'032021 PIS Summary'!A17,'CR CWIP query 032021 ISD'!$K:$K,'032021 PIS Summary'!B17) -> 0 | D17: 0 | E17: 0 | F17: 0 | G17: 0 | H17: 0.00356083 | I17: 0.001645
A18: 2019 | B18: 10 | C18: =SUMIFS('CR CWIP query 032021 ISD'!$H:$H,'CR CWIP query 032021 ISD'!$L:$L,'032021 PIS Summary'!A18,'CR CWIP query 032021 ISD'!$K:$K,'032021 PIS Summary'!B18) -> 0 | D18: 0 | E18: 0 | F18: 0 | G18: 0 | H18: 0.00356083 | I18: 0.001645
A19: 2019 | B19: 11 | C19: =SUMIFS('CR CWIP query 032021 ISD'!$H:$H,'CR CWIP query 032021 ISD'!$L:$L,'032021 PIS Summary'!A19,'CR CWIP query 032021 ISD'!$K:$K,'032021 PIS Summary'!B19) -> 0 | D19: 0 | E19: 0 | F19: 0 | G19: 0 | H19: 0.00356083 | I19: 0.001645
A20: 2019 | B20: 12 | C20: =SUMIFS('CR CWIP query 032021 ISD'!$H:$H,'CR CWIP query 032021 ISD'!$L:$L,'032021 PIS Summary'!A20,'CR CWIP query 032021 ISD'!$K:$K,'032021 PIS Summary'!B20) -> 0 | D20: 0 | E20: =C20 -> 0 | F20: =0.5*E20 -> 0 | G20: =+D20+F20 -> 0 | H20: 0.00356083 | I20: 0.001645
A21: 19 Total | C21: =SUM(C9:C20) -> 0 | E21: =SUM(E9:E20) -> 0 | J21: =SUM(J9:J20) -> 0 | K21: =SUM(K9:K20) -> 0 | L21: =SUM(L9:L20) -> 0
A23: 2020 | B23: 1 | C23: =SUMIFS('CR CWIP query 032021 ISD'!$H:$H,'CR CWIP query 032021 ISD'!$L:$L,'032021 PIS Summary'!A23,'CR CWIP query 032021 ISD'!$K:$K,'032021 PIS Summary'!B23) -> 0 | D23: =+D20+E20+J20+K20 -> 0 | E23: =C23 -> 0 | F23: =0.5*E23 -> 0 | G23: =+D23+F23 -> 0 | H23: 0.00356083 | I23: 0.001645
A24: 2020 | B24: 2 | C24: =SUMIFS('CR CWIP query 032021 ISD'!$H:$H,'CR CWIP query 032021 ISD'!$L:$L,'032021 PIS Summary'!A24,'CR CWIP query 032021 ISD'!$K:$K,'032021 PIS Summary'!B24) -> 0 | D24: =+D23+E23+J23+K23 -> 0 | E24: 0 | F24: =0.5*E24 -> 0 | G24: =+D24+F24 -> 0 | H24: 0.00356083 | I24: 0.001645
A25: 2020 | B25: 3 | C25: =SUMIFS('CR CWIP query 032021 ISD'!$H:$H,'CR CWIP query 032021 ISD'!$L:$L,'032021 PIS Summary'!A25,'CR CWIP query 032021 ISD'!$K:$K,'032021 PIS Summary'!B25) -> 0 | D25: 0 | E25: 0 | F25: 0 | G25: 0 | H25: 0.00356083 | I25: 0.001645
A26: 2020 | B26: 4 | C26: =SUMIFS('CR CWIP query 032021 ISD'!$H:$H,'CR CWIP query 032021 ISD'!$L:$L,'032021 PIS Summary'!A26,'CR CWIP query 032021 ISD'!$K:$K,'032021 PIS Summary'!B26) -> 0 | D26: 0 | E26: =C26 -> 0 | F26: =0.5*E26 -> 0 | G26: =+D26+F26 -> 0 | H26: 0.00356083 | I26: 0.001645
A27: 2020 | B27: 5 | C27: =SUMIFS('CR CWIP query 032021 ISD'!$H:$H,'CR CWIP query 032021 ISD'!$L:$L,'032021 PIS Summary'!A27,'CR CWIP query 032021 ISD'!$K:$K,'032021 PIS Summary'!B27) -> 0 | D27: 0 | E27: =C27 -> 0 | F27: =0.5*E27 -> 0 | G27: =+D27+F27 -> 0 | H27: 0.00356083 | I27: 0.001645
A28: 2020 | B28: 6 | C28: =SUMIFS('CR CWIP query 032021 ISD'!$H:$H,'CR CWIP query 032021 ISD'!$L:$L,'032021 PIS Summary'!A28,'CR CWIP query 032021 ISD'!$K:$K,'032021 PIS Summary'!B28) -> 0 | D28: 0 | E28: 0 | F28: 0 | G28: 0 | H28: 0.00356083 | I28: 0.001645
A29: 2020 | B29: 7 | C29: =SUMIFS('CR CWIP query 032021 ISD'!$H:$H,'CR CWIP query 032021 ISD'!$L:$L,'032021 PIS Summary'!A29,'CR CWIP query 032021 ISD'!$K:$K,'032021 PIS Summary'!B29) -> 0 | D29: 0 | E29: 0 | F29: 0 | G29: 0 | H29: 0.00356083 | I29: 0.001645
A30: 2020 | B30: 8 | C30: =SUMIFS('CR CWIP query 032021 ISD'!$H:$H,'CR CWIP query 032021 ISD'!$L:$L,'032021 PIS Summary'!A30,'CR CWIP query 032021 ISD'!$K:$K,'032021 PIS Summary'!B30) -> 0 | D30: 0 | E30: 0 | F30: 0 | G30: 0 | H30: 0.00356083 | I30: 0.001645
A31: 2020 | B31: 9 | C31: =SUMIFS('CR CWIP query 032021 ISD'!$H:$H,'CR CWIP query 032021 ISD'!$L:$L,'032021 PIS Summary'!A31,'CR CWIP query 032021 ISD'!$K:$K,'032021 PIS Summary'!B31) -> 0 | D31: 0 | E31: 0 | F31: 0 | G31: 0 | H31: 0.00356083 | I31: 0.001645
A32: 2020 | B32: 10 | C32: =SUMIFS('CR CWIP query 032021 ISD'!$H:$H,'CR CWIP query 032021 ISD'!$L:$L,'032021 PIS Summary'!A32,'CR CWIP query 032021 ISD'!$K:$K,'032021 PIS Summary'!B32) -> 0 | D32: 0 | E32: 0 | F32: 0 | G32: 0 | H32: 0.00356083 | I32: 0.001645
A33: 2020 | B33: 11 | C33: =SUMIFS('CR CWIP query 032021 ISD'!$H:$H,'CR CWIP query 032021 ISD'!$L:$L,'032021 PIS Summary'!A33,'CR CWIP query 032021 ISD'!$K:$K,'032021 PIS Summary'!B33) -> 0 | D33: 0 | E33: 0 | F33: 0 | G33: 0 | H33: 0.00356083 | I33: 0.001645
A34: 2020 | B34: 12 | C34: =SUMIFS('CR CWIP query 032021 ISD'!$H:$H,'CR CWIP query 032021 ISD'!$L:$L,'032021 PIS Summary'!A34,'CR CWIP query 032021 ISD'!$K:$K,'032021 PIS Summary'!B34) -> 0 | D34: 0 | E34: =C34 -> 0 | F34: =0.5*E34 -> 0 | G34: =+D34+F34 -> 0 | H34: 0.00356083 | I34: 0.001645
A35: 20 Total | C35: =SUM(C23:C34) -> 0 | E35: =SUM(E24:E34) -> 0 | J35: =SUM(J23:J34) -> 0 | K35: =SUM(K23:K34) -> 0 | L35: 0
A37: 2021 | B37: 1 | C37: =SUMIFS('CR CWIP query 032021 ISD'!$H:$H,'CR CWIP query 032021 ISD'!$L:$L,'032021 PIS Summary'!A37,'CR CWIP query 032021 ISD'!$K:$K,'032021 PIS Summary'!B37) -> 0 | D37: =+D34+E34+J34+K34 -> 0 | E37: =C37 -> 0 | F37: =0.5*E37 -> 0 | G37: =+D37+F37 -> 0 | H37: 0.00356083 | I37: 0.001645
A38: 2021 | B38: 2 | C38: =SUMIFS('CR CWIP query 032021 ISD'!$H:$H,'CR CWIP query 032021 ISD'!$L:$L,'032021 PIS Summary'!A38,'CR CWIP query 032021 ISD'!$K:$K,'032021 PIS Summary'!B38) -> 0 | D38: =+D37+E37+J37+K37 -> 0 | E38: 0 | F38: =0.5*E38 -> 0 | G38: =+D38+F38 -> 0 | H38: 0.00356083 | I38: 0.001645
A39: 2021 | B39: 3 | C39: =SUMIFS('CR CWIP query 032021 ISD'!$H:$H,'CR CWIP query 032021 ISD'!$L:$L,'032021 PIS Summary'!A39,'CR CWIP query 032021 ISD'!$K:$K,'032021 PIS Summary'!B39) -> 0 | D39: =+D38+E38+J38+K38 -> 0 | E39: 0 | F39: 0 | G39: 0 | H39: 0.00356083 | I39: 0.001645 | J39: =ROUND($G39*H39,2)*0.5 -> 0 | K39: =ROUND($G39*I39,2)*0.5 -> 0 | L39: =+J39-K39 -> 0
A40: 2021 | B40: 4 | C40: =SUMIFS('CR CWIP query 032021 ISD'!$H:$H,'CR CWIP query 032021 ISD'!$L:$L,'032021 PIS Summary'!A40,'CR CWIP query 032021 ISD'!$K:$K,'032021 PIS Summary'!B40) -> 0 | D40: =+D39+E39+J39+K39 -> 0 | E40: 0 | F40: 0 | G40: 0 | H40: 0.00356083 | I40: 0.001645 | J40: =ROUND($G40*H40,2) -> 0 | K40: 0 | L40: =+J40-K40 -> 0
A41: 2021 | B41: 5 | C41: =SUMIFS('CR CWIP query 032021 ISD'!$H:$H,'CR CWIP query 032021 ISD'!$L:$L,'032021 PIS Summary'!A41,'CR CWIP query 032021 ISD'!$K:$K,'032021 PIS Summary'!B41) -> 0 | D41: =+D40+E40+J40+K40 -> 0 | E41: 0 | F41: 0 | G41: 0 | H41: 0.00356083 | I41: 0.001645 | J41: 0 | K41: 0 | L41: 0
A42: 2021 | B42: 6 | C42: =SUMIFS('CR CWIP query 032021 ISD'!$H:$H,'CR CWIP query 032021 ISD'!$L:$L,'032021 PIS Summary'!A42,'CR CWIP query 032021 ISD'!$K:$K,'032021 PIS Summary'!B42) -> 0 | D42: 0 | E42: 0 | F42: 0 | G42: 0 | H42: 0.00356083 | I42: 0.001645 | J42: 0 | K42: 0 | L42: 0
